Workbook

Sheet Cover
D2: Cost Information Review Pack (CIRP)
D4: Release for 2027/28 charge setting
B6: ='Version control'!F7 -> Model date: | D6: ='Version control'!H7 -> 2025-11-06
B8: ='Version control'!F9 -> Development stage: | D8: ='Version control'!H9 -> Release for charge setting
B10: ='Version control'!F11 -> Model number: | D10: ='Version control'!H11 -> 1
B12: ='Version control'!F13 -> DCUSA text version: | D12: ='Version control'!H13 -> Attachment A_DCUSA Charging Methodologies Pre-Release for 2027-28 (shared on 08/10/2025)
B14: ='Version control'!F15 -> DCUSA text schedule: | D14: ='Version control'!H15 -> Schedules 16 & 20
B16: DISCLAIMER | D16: Neither the authors nor Cambridge Economic Policy Associates/TNEI accept or assume any responsibility or duty of care to any third party.
D17: © All rights reserved by Cambridge Economic Policy Associates Ltd (CEPA) and TNEI Services Ltd (TNEI).
B19: Latest published charges: | D19: 2027/28
B21: CIRP submission date: | D21: 2026-01-01
B23: DNO name: | D23: SP Manweb
B25: Data version: | D25: V2
B27: Notes:
B29: Key:
B30: Format | D30: Description
D31: Cell intentionally blank
B32: Value | D32: Hardcoded input
B33: Value | D33: User input
B34: Value | D34: Model output
B35: Value | D35: Calculation
B36: Value | D36: Value from another worksheet
B37: Value | D37: Value used on another worksheet
B38: Value | D38: Issue identified in a check
B39: Text | D39: Label
B40: Text | D40: Annotation
B41: Text | D41: Column heading
B42: Text | D42: Level 1 heading
B43: Text | D43: Level 2 heading
B44: Text | D44: Level 3 and 4 heading
B45: Sheet tab colour | D45: Information sheet
B46: Sheet tab colour | D46: User control sheet
B47: Sheet tab colour | D47: Input sheet
B48: Sheet tab colour | D48: Calculation sheet
B49: Sheet tab colour | D49: Output sheet

Sheet Version control
A1: =MID(CELL("filename",A1),FIND("]",CELL("filename",A1))+1,255) -> Version control
A2: =Cover!D23 & " - " & TEXT(CIRP_submission_date, "mmm") & "-" & RIGHT(YEAR(CIRP_submission_date), 2) & " - " & Cover!D25 -> SP Manweb - Jan-26 - V2
A3: =Cover!D2&" - "&Cover!D8&" v"&Cover!D10&" - "&Cover!D19 -> Cost Information Review Pack (CIRP) - Release for charge setting v1 - 2027/28
A4: =J56 & IF(J56 = 1, " issue", " issues") &" identified in checks on this sheet" -> 0 issues identified in checks on this sheet
B5: Model version
F7: Model date: | H7: =LOOKUP(2,1/(F20:F22<>""),F20:F22) -> 2025-11-06
F9: Development stage: | H9: =LOOKUP(2,1/(G20:G22<>""),G20:G22) -> Release for charge setting
F11: Model number: | H11: =LOOKUP(2,1/(H20:H22<>""),H20:H22) -> 1
F13: DCUSA text version: | H13: =LOOKUP(2,1/(I20:I22<>""),I20:I22) -> Attachment A_DCUSA Charging Methodologies Pre-Release for 2027-28 (shared on 08/10/2025)
F15: DCUSA text schedule: | H15: =LOOKUP(2,1/(J20:J22<>""),J20:J22) -> Schedules 16 & 20
B17: Version log
F19: Model date | G19: Development stage | H19: Model number | I19: DCUSA text version | J19: DCUSA text schedule | K19: Author | L19: Description of changes
F20: 2025-11-06 | G20: Release for charge setting | H20: 1 | I20: Attachment A_DCUSA Charging Methodologies Pre-Release for 2027-28 (shared on 08/10/2025) | J20: Schedules 16 & 20 | K20: CEPA-TNEI | L20: Introduction of the "Cost information reporting pack" (CIRP) to replace previous requirement for DNOs to publish "Cost Information Template" (CIT) and "Annual Review Pack" (ARP) separately.
B23: Model checks
E25: Issues identified by in-built model checks, by sheet
F26: Table 1 - Detailed | H26: Cost information tables | I26: number of issues | J26: ='Table 1 - Detailed'!H121 -> 0
F27: Table 1 - Delta from previous | H27: Cost information tables | I27: number of issues | J27: ='Table 1 - Delta from previous'!H123 -> 0
F28: Table 2 - Sensitivities | H28: Cost information tables | I28: number of issues | J28: ='Table 2 - Sensitivities'!H128 -> 0
F29: ="CIRP_"&F33 -> CIRP_Inputs by customer type | H29: Input 501 | I29: number of issues | J29: ='CIRP_Inputs by customer type'!$H$1994 -> 0
F30: ="CIRP_"&F34 -> CIRP_Inputs by network level | H30: Input 502 | I30: number of issues | J30: ='CIRP_Inputs by network level'!$H$218 -> 0
F31: ="CIRP_"&F35 -> CIRP_General inputs | H31: Input 503 | I31: number of issues | J31: ='CIRP_General inputs'!$H$123 -> 0
F32: Fixed inputs | H32: Input 504 | I32: number of issues | J32: ='Fixed inputs'!H201 -> 0
F33: Inputs by customer type | H33: Section 501 | I33: number of issues | J33: ='Inputs by customer type'!H216 -> 0
F34: Inputs by network level | H34: Section 502 | I34: number of issues | J34: ='General inputs'!H122 -> 0
F35: General inputs | H35: Section 503 | I35: number of issues | J35: ='General inputs'!H122 -> 0
F36: Standing Charge Factors | H36: Section 504 | I36: number of issues | J36: ='Standing charge factors'!H58 -> 0
F37: Load & loss characteristics | H37: Section 505 | I37: number of issues | J37: ='Load & loss characteristics'!H183 -> 0
F38: Customer contributions | H38: Section 506 | I38: number of issues | J38: ='Customer contributions'!H70 -> 0
F39: Volume adjustments | H39: Section 507 | I39: number of issues | J39: ='Volume adjustments'!H693 -> 0
F40: Pseudo-load coefficients | H40: Section 508 | I40: number of issues | J40: ='Pseudo-load coefficients'!H306 -> 0
F41: System peak demand | H41: Section 509 | I41: number of issues | J41: ='System peak demand'!H281 -> 0
F42: Service model assets | H42: Section 510 | I42: number of issues | J42: ='Service model assets'!H38 -> 0
F43: Unit costs | H43: Section 511 | I43: number of issues | J43: ='Unit costs'!H131 -> 0
F44: Initial unit rates | H44: Section 512 | I44: number of issues | J44: ='Initial unit rates'!H241 -> 0
F45: Service model charges | H45: Section 513 | I45: number of issues | J45: ='Service model charges'!H48 -> 0
F46: Unit rate charges | H46: Section 514 | I46: number of issues | J46: ='Unit rate charges'!H223 -> 0
F47: Capacity charges | H47: Section 515 | I47: number of issues | J47: ='Capacity charges'!H295 -> 0
F48: Reactive power charges | H48: Section 516 | I48: number of issues | J48: ='Reactive power charges'!H254 -> 0
F49: Fixed charges | H49: Section 517 | I49: number of issues | J49: ='Fixed charges'!H165 -> 0
F50: SoLR & bad debt adders | H50: Section 518 | I50: number of issues | J50: ='SoLR & bad debt adders'!H66 -> 0
F51: Revenue matching | H51: Section 519 | I51: number of issues | J51: ='Revenue matching'!H432 -> 0
F52: Rounding | H52: Section 520 | I52: number of issues | J52: =Rounding!H178 -> 0
F53: Net revenue summary | H53: Section 521 | I53: number of issues | J53: ='Net revenue summary'!H146 -> 0
F54: Tariff summary | H54: Output 501 | I54: number of issues | J54: ='Tariff summary'!H442 -> 0
F55: Typical bills | H55: Output 502 | I55: number of issues | J55: ='Typical bills'!H126 -> 0
F56: Total | I56: number of issues | J56: =IFERROR(SUM(J29:J55), 1) -> 0
B58: Version log lists
F60: Development stages
F61: Working draft
F62: Interim release
F63: Pre-release
F64: Release for charge setting
F71: …
B73: End of sheet

Sheet Model map
A1: =MID(CELL("filename",A1),FIND("]",CELL("filename",A1))+1,255) -> Model map
A2: =Cover!D23 & " - " & TEXT(CIRP_submission_date, "mmm") & "-" & RIGHT(YEAR(CIRP_submission_date), 2) & " - " & Cover!D25 -> SP Manweb - Jan-26 - V2
A3: =Cover!D2&" - "&Cover!D8&" v"&Cover!D10&" - "&Cover!D19 -> Cost Information Review Pack (CIRP) - Release for charge setting v1 - 2027/28
B5: Model map
B64: End of sheet

Sheet Index
A1: =MID(CELL("filename",A1),FIND("]",CELL("filename",A1))+1,255) -> Index
A2: =Cover!D23 & " - " & TEXT(CIRP_submission_date, "mmm") & "-" & RIGHT(YEAR(CIRP_submission_date), 2) & " - " & Cover!D25 -> SP Manweb - Jan-26 - V2
A3: =Cover!D2&" - "&Cover!D8&" v"&Cover!D10&" - "&Cover!D19 -> Cost Information Review Pack (CIRP) - Release for charge setting v1 - 2027/28
B5: Description
C7: This sheet contains links to each sheet of the model and the main sections within them.
C8: It also contains links to more granular sections within the sheets for inputs, calculations and outputs.
B10: Index of sheets and main sections
C12: The following table provides links to all the sheets within this model and the main sections within them.
F14: Sheet | G14: Section
F15: Cover
F16: Version control | G16: ='Version control'!$B$5 -> Model version
G17: ='Version control'!$B$17 -> Version log
G18: ='Version control'!$B$23 -> Model checks
G19: ='Version control'!$B$58 -> Version log lists
F20: Model map | G20: ='Model map'!$B$5 -> Model map
F21: Named ranges | G21: ='Named ranges'!$B$5 -> List of named ranges
F22: CDCM timebands | G22: ='CDCM timebands'!$B$12 -> CDCM timebands
F23: CIRP_Instructions | G23: =CIRP_Instructions!$B$9 -> Commentary
F24: CIRP_User control | G24: ='CIRP_User control'!$B$12 -> User interface
F25: Table 1 - Detailed | G25: ='Table 1 - Detailed'!$B$14 -> Table 1 - Detailed
F26: Table 1 - Delta from previous | G26: ='Table 1 - Delta from previous'!$B$16 -> Table 1 - Delta from previous
F27: Table 2 - Sensitivities | G27: ='Table 2 - Sensitivities'!$B$13 -> Table 2 - Sensitivities
G28: ='Table 2 - Sensitivities'!$B$101 -> Summary of Table 2 - Sensitivities
F29: CIRP_Inputs by customer type | G29: ='CIRP_Inputs by customer type'!$B$14 -> Load characteristics
G30: ='CIRP_Inputs by customer type'!$B$56 -> Volumes
G31: ='CIRP_Inputs by customer type'!$B$1998 -> Non-Domestic Aggregated (Related MPAN) distribution by bands
G32: ='CIRP_Inputs by customer type'!$B$2072 -> Service model asset values
F33: CIRP_Inputs by network level | G33: ='CIRP_Inputs by network level'!$B$14 -> Inputs by network level
F34: CIRP_General inputs | G34: ='CIRP_General inputs'!$B$14 -> General inputs
F35: Fixed inputs | G35: ='Fixed inputs'!$B$11 -> Fixed inputs
F36: Inputs by customer type | G36: ='Inputs by customer type'!$B$14 -> Inputs by customer type
F37: Inputs by network level | G37: ='Inputs by network level'!$B$14 -> Inputs by network level
F38: General inputs | G38: ='General inputs'!$B$14 -> General inputs
F39: Standing charge factors | G39: ='Standing charge factors'!$B$17 -> Adjustments to standing charges
F40: Load & loss characteristics | G40: ='Load & loss characteristics'!$B$13 -> Load and loss characteristics
G41: ='Load & loss characteristics'!$B$31 -> User loss factor adjustments
F42: Customer contributions | G42: ='Customer contributions'!$B$12 -> Customer contributions
F43: Volume adjustments | G43: ='Volume adjustments'!$B$13 -> LDNO discounts
G44: ='Volume adjustments'!$B$51 -> Volume discounting
G45: ='Volume adjustments'!$B$310 -> Volume discounting for revenue matching
F46: Pseudo-load coefficients | G46: ='Pseudo-load coefficients'!$B$13 -> Step 1: Ratio of coincidence to load factor assuming units evenly spread within time bands, and peak falls in Red period
G47: ='Pseudo-load coefficients'!$B$56 -> Step 2: Calculate correction factor
G48: ='Pseudo-load coefficients'!$B$95 -> Step 3: Ratio of coincidence factor (to network asset peak) to load factor, given peaking probabilities, multiplied by correction factor
G49: ='Pseudo-load coefficients'!$B$261 -> Step 4: Results of Step 3
F50: System peak demand | G50: ='System peak demand'!$B$16 -> Common inputs for chargeable load calculations
G51: ='System peak demand'!$B$63 -> Load at system peak charged to unit rates
G52: ='System peak demand'!$B$179 -> Load at system peak charged to standing charges
G53: ='System peak demand'!$B$262 -> System peak based on chargeable load
F54: Service model assets | G54: ='Service model assets'!$B$12 -> Service model notional asset values
F55: Unit costs | G55: ='Unit costs'!$B$15 -> 500MW model costs
G56: ='Unit costs'!$B$58 -> Allocation of other costs
G57: ='Unit costs'!$B$102 -> Outputs
F58: Initial unit rates | G58: ='Initial unit rates'!$B$11 -> Inputs for yardstick and unit rate calculations
G59: ='Initial unit rates'!$B$116 -> Calculation of yardstick & unit rate charges
F60: Service model charges | G60: ='Service model charges'!$B$13 -> Inputs to service model charge calculation
G61: ='Service model charges'!$B$29 -> Allocation of service model costs
F62: Unit rate charges | G62: ='Unit rate charges'!$B$15 -> Inputs to unit rate charge calculations
G63: ='Unit rate charges'!$B$122 -> Application of standing charges to unit rates
F64: Capacity charges | G64: ='Capacity charges'!$B$17 -> Inputs to capacity charge calculations
G65: ='Capacity charges'!$B$125 -> Calculation of capacity charges
G66: ='Capacity charges'!$B$249 -> Capacity charges (and elements allocated to fixed charges)
F67: Reactive power charges | G67: ='Reactive power charges'!$B$13 -> Inputs to reactive power charge calculations
G68: ='Reactive power charges'!$B$150 -> Calculation of yardstick charges for generation
G69: ='Reactive power charges'!$B$185 -> Calculation of reactive power charges
F70: Fixed charges | G70: ='Fixed charges'!$B$14 -> Inputs to fixed charge calculations
G71: ='Fixed charges'!$B$65 -> Calculation of fixed charges
F72: SoLR & bad debt adders | G72: ='SoLR & bad debt adders'!$B$12 -> Fixed tariff adjustments
F73: Revenue matching | G73: ='Revenue matching'!$B$13 -> Pre-matching net revenue calculations
G74: ='Revenue matching'!$B$86 -> Residual charge calculation
G75: ='Revenue matching'!$B$209 -> Adjustments for negative fixed charges
G76: ='Revenue matching'!$B$407 -> Final adders
F77: Rounding | G77: =Rounding!$B$12 -> Inputs
G78: =Rounding!$B$103 -> Rounding of tariff forecast
F79: Net revenue summary | G79: ='Net revenue summary'!$B$11 -> Inputs to net revenue summary calculation
G80: ='Net revenue summary'!$B$90 -> Typical bills
F81: Tariff summary | G81: ='Tariff summary'!$B$13 -> Disclaimer
G82: ='Tariff summary'!$B$22 -> Tariff summary
F83: Typical bills | G83: ='Typical bills'!$B$13 -> Disclaimer
G84: ='Typical bills'!$B$18 -> Typical bills
B86: Index of inputs, calculation sections and outputs
C88: The following table provides links to each input, calculation and output section. Each has a unique identifier for ease of reference.
F90: Sheet | G90: Section
F91: CDCM timebands | G91: ='CDCM timebands'!$C$14 -> Distribution time bands
G92: ='CDCM timebands'!$C$26 -> Special distribution time bands
F93: CIRP_User control | G93: ='CIRP_User control'!$C$14 -> CIRP submission date
G94: ='CIRP_User control'!$C$34 -> Macro to run all years
G95: ='CIRP_User control'!$C$47 -> Macros to hide or unhide sheets
F96: Table 2 - Sensitivities | G96: ='Table 2 - Sensitivities'!$C$15 -> Part A - Impact of Variances in Calculated Revenue (£m 20/21 prices) in future years
G97: ='Table 2 - Sensitivities'!$C$66 -> Part B - Impact of Variances in Calculated Revenue (%) in future years
G98: ='Table 2 - Sensitivities'!$C$86 -> Part C - Impact of Variances in Recovered Revenue (%) in future years
F99: CIRP_Inputs by customer type | G99: ='CIRP_Inputs by customer type'!$C$16 -> Input 501-A: Load factor
G100: ='CIRP_Inputs by customer type'!$C$36 -> Input 501-B: Coincidence factor
G101: ='CIRP_Inputs by customer type'!$C$58 -> Input 501-C: All-the-way volumes - No residual
G102: ='CIRP_Inputs by customer type'!$C$186 -> Input 501-D: All-the-way volumes - Residual Band 1
G103: ='CIRP_Inputs by customer type'!$C$314 -> Input 501-E: All-the-way volumes - Residual Band 2
G104: ='CIRP_Inputs by customer type'!$C$442 -> Input 501-F: All-the-way volumes - Residual Band 3
G105: ='CIRP_Inputs by customer type'!$C$570 -> Input 501-G: All-the-way volumes - Residual Band 4
G106: ='CIRP_Inputs by customer type'!$C$698 -> Input 501-H: LDNO LV volumes - No residual
G107: ='CIRP_Inputs by customer type'!$C$826 -> Input 501-I: LDNO LV volumes - Residual band 1
G108: ='CIRP_Inputs by customer type'!$C$954 -> Input 501-J: LDNO LV volumes - Residual band 2
G109: ='CIRP_Inputs by customer type'!$C$1082 -> Input 501-K: LDNO LV volumes - Residual band 3
G110: ='CIRP_Inputs by customer type'!$C$1210 -> Input 501-L: LDNO LV volumes - Residual band 4
G111: ='CIRP_Inputs by customer type'!$C$1338 -> Input 501-M: LDNO HV volumes - No residual
G112: ='CIRP_Inputs by customer type'!$C$1466 -> Input 501-N: LDNO HV volumes - Residual band 1
G113: ='CIRP_Inputs by customer type'!$C$1594 -> Input 501-O: LDNO HV volumes - Residual band 2
G114: ='CIRP_Inputs by customer type'!$C$1722 -> Input 501-P: LDNO HV volumes - Residual band 3
G115: ='CIRP_Inputs by customer type'!$C$1850 -> Input 501-Q: LDNO HV volumes - Residual band 4
G116: ='CIRP_Inputs by customer type'!$C$1978 -> Input 501-R: 'Designated Property' MPANs with EDCM-level LDNO boundaries
G117: ='CIRP_Inputs by customer type'!$C$2003 -> Input 501-S: All the way non-domestic aggregated (related MPAN) distribution by bands
G118: ='CIRP_Inputs by customer type'!$C$2026 -> Input 501-T: LDNO LV non-domestic aggregated (related MPAN) distribution by bands
G119: ='CIRP_Inputs by customer type'!$C$2049 -> Input 501-U: LDNO HV non-domestic aggregated (related MPAN) distribution by bands
G120: ='CIRP_Inputs by customer type'!$C$2076 -> Input 501-V: LV customer service model asset values
G121: ='CIRP_Inputs by customer type'!$C$2096 -> Input 501-W: HV customer service model asset values
G122: ='CIRP_Inputs by customer type'!$C$2116 -> Input 501-X: LV UMS customer service model asset values
F123: CIRP_Inputs by network level | G123: ='CIRP_Inputs by network level'!$C$16 -> Input 502-A: Diversity allowance between top and bottom of network level
G124: ='CIRP_Inputs by network level'!$C$30 -> Input 502-B: Proportion of EHV/HV load going through 132kV/HV direct transformation
G125: ='CIRP_Inputs by network level'!$C$44 -> Input 502-C: Loss adjustment factors to transmission
G126: ='CIRP_Inputs by network level'!$C$58 -> Input 502-D: Average kVAr by kVA, by network level
G127: ='CIRP_Inputs by network level'!$C$72 -> Input 502-E: Customer contributions under current connection charging policy
G128: ='CIRP_Inputs by network level'!$C$120 -> Input 502-F: Gross asset cost by network level
G129: ='CIRP_Inputs by network level'!$C$134 -> Input 502-G: Peaking probabilities, by timeband & network level
F130: CIRP_General inputs | G130: ='CIRP_General inputs'!$C$16 -> Input 503-A: Split of hours by distribution timeband
G131: ='CIRP_General inputs'!$C$28 -> Input 503-B: Embedded network (LDNO) discount percentages
G132: ='CIRP_General inputs'!$C$38 -> Input 503-C: CDCM target revenue
G133: ='CIRP_General inputs'!$C$97 -> Input 503-D: Financial and general assumptions
G134: ='CIRP_General inputs'!$C$102 -> Input 503-E: Transmission exit charges
G135: ='CIRP_General inputs'!$C$106 -> Input 503-F: Other expenditure
F136: Fixed inputs | G136: ='Fixed inputs'!$C$13 -> Input 504-A: Conversions and time
G137: ='Fixed inputs'!$C$25 -> Input 504-B: Input 101-B: Rounding
G138: ='Fixed inputs'!$C$38 -> Input 504-C: Financial and general assumptions
G139: ='Fixed inputs'!$C$48 -> Input 504-D: Mappings
G140: ='Fixed inputs'!$C$89 -> Input 504-E: Standing charge factors
G141: ='Fixed inputs'!$C$104 -> Input 504-F: Flags
G142: ='Fixed inputs'!$C$146 -> Input 504-G: Identifiers for customer groupings
G143: ='Fixed inputs'!$C$156 -> Input 504-H: Decimal places for error checks
G144: ='Fixed inputs'!$C$160 -> Input 504-I: Map of applicable MPANs
G145: ='Fixed inputs'!$C$166 -> Input 504-J: Revenue matching inputs
F146: Inputs by customer type | G146: ='Inputs by customer type'!$C$16 -> Section 501-A: Load characteristics
G147: ='Inputs by customer type'!$C$21 -> Section 501-B: Volume forecasts for the charging year
G148: ='Inputs by customer type'!$C$166 -> Section 501-C: Non-Domestic Aggregated (Related MPAN) distribution by bands
G149: ='Inputs by customer type'!$C$186 -> Section 501-D: Service model asset values
F150: Inputs by network level | G150: ='Inputs by network level'!$C$16 -> Section 502-A: Network and load inputs
G151: ='Inputs by network level'!$C$26 -> Section 502-B: Customer contributions under current connection charging policy
G152: ='Inputs by network level'!$C$34 -> Section 502-C: DRM asset costs
G153: ='Inputs by network level'!$C$38 -> Section 502-D: Peaking probabilities by network level
F154: General inputs | G154: ='General inputs'!$C$16 -> Section 503-A: Inputs by distribution timeband
G155: ='General inputs'!$C$28 -> Section 503-B: LDNO discount inputs
G156: ='General inputs'!$C$38 -> Section 503-C: CDCM target revenue
G157: ='General inputs'!$C$97 -> Section 503-D: Financial and general assumptions
G158: ='General inputs'!$C$103 -> Section 503-E: Transmission exit charges
G159: ='General inputs'!$C$107 -> Section 503-F: Other expenditure
F160: Standing charge factors | G160: ='Standing charge factors'!$C$19 -> Section 504-A: Adjustments to standing charges
F161: Load & loss characteristics | G161: ='Load & loss characteristics'!$C$17 -> Section 505-A: Load characteristics
G162: ='Load & loss characteristics'!$C$25 -> Section 505-B: Loss adjustment factors
G163: ='Load & loss characteristics'!$C$35 -> Section 505-C: Proportion of relevant load going through 132kV/HV direct transformation
G164: ='Load & loss characteristics'!$C$40 -> Section 505-D: Network use factors
G165: ='Load & loss characteristics'!$C$121 -> Section 505-E: User loss factors
F166: Customer contributions | G166: ='Customer contributions'!$C$16 -> Section 506-A: Network use factors
G167: ='Customer contributions'!$C$38 -> Section 506-B: Customer contributions
F168: Volume adjustments | G168: ='Volume adjustments'!$C$15 -> Section 507-A: LDNO discounts
G169: ='Volume adjustments'!$C$53 -> Section 507-B: Aggregation of volumes
G170: ='Volume adjustments'!$C$225 -> Section 507-C: Volume discounting
G171: ='Volume adjustments'!$C$332 -> Section 507-D: No residual volume discounting
G172: ='Volume adjustments'!$C$361 -> Section 507-E: Residual band 1 volume discounting
G173: ='Volume adjustments'!$C$390 -> Section 507-F: Residual band 2 volume discounting
G174: ='Volume adjustments'!$C$419 -> Section 507-G: Residual band 3 volume discounting
G175: ='Volume adjustments'!$C$448 -> Section 507-H: Residual band 4 volume discounting
G176: ='Volume adjustments'!$C$477 -> Section 507-I: Discounted volumes by residual band
G177: ='Volume adjustments'!$C$523 -> Section 507-J: Volumes by residual band
G178: ='Volume adjustments'!$C$657 -> Section 507-K: Non-domestic aggregated (related MPAN) distribution across bands
F179: Pseudo-load coefficients | G179: ='Pseudo-load coefficients'!$C$18 -> Section 508-A: Flags and hours in timebands
G180: ='Pseudo-load coefficients'!$C$28 -> Section 508-B: Average load by timeband
G181: ='Pseudo-load coefficients'!$C$36 -> Section 508-C: Aggregated groups for pseudo-load coefficients
G182: ='Pseudo-load coefficients'!$C$52 -> Section 508-D: Ratio of coincidence to load factor assuming units evenly spread within time bands, and peak falls in Red period
G183: ='Pseudo-load coefficients'!$C$60 -> Section 508-E: Load characteristics for all customers
G184: ='Pseudo-load coefficients'!$C$65 -> Section 508-F: Aggregated load characteristics for grouped customers
G185: ='Pseudo-load coefficients'!$C$87 -> Section 508-G: Calculation of correction factor
G186: ='Pseudo-load coefficients'!$C$100 -> Section 508-H: Peaking probabilities, by network level
G187: ='Pseudo-load coefficients'!$C$174 -> Section 508-I: Peaking probabilities, by network level and customer type
G188: ='Pseudo-load coefficients'!$C$221 -> Section 508-J: Ratio of coincidence factor to load factor, based on uniform distribution in timebands and peaking probabilities
G189: ='Pseudo-load coefficients'!$C$265 -> Section 508-K: Load coefficient
G190: ='Pseudo-load coefficients'!$C$269 -> Section 508-L: Pseudo load coefficients, by unit rate
F191: System peak demand | G191: ='System peak demand'!$C$18 -> Section 509-A: Common inputs for chargeable load calculations
G192: ='System peak demand'!$C$67 -> Section 509-B: System peak load, by unit rate
G193: ='System peak demand'!$C$138 -> Section 509-C: System peak load, all unit rates
G194: ='System peak demand'!$C$164 -> Section 509-D: Unit rate contributions to chargeable peak load
G195: ='System peak demand'!$C$184 -> Section 509-E: Adjustment of import and exceeded capacity
G196: ='System peak demand'!$C$194 -> Section 509-F: Calculation of LV circuit diversity factor
G197: ='System peak demand'!$C$236 -> Section 509-G: Import/exceeded capacity contribution to system peak
G198: ='System peak demand'!$C$249 -> Section 509-H: Estimated capacity contribution to system peak
G199: ='System peak demand'!$C$266 -> Section 509-I: System peak based on chargeable load
F200: Service model assets | G200: ='Service model assets'!$C$14 -> Section 510-A: Service model notional asset values
F201: Unit costs | G201: ='Unit costs'!$C$19 -> Section 511-A: Financial data
G202: ='Unit costs'!$C$27 -> Section 511-B: Diversity and loss adjustment factors
G203: ='Unit costs'!$C$35 -> Section 511-C: Maximum demand
G204: ='Unit costs'!$C$42 -> Section 511-D: Rerouting matrix
G205: ='Unit costs'!$C$50 -> Section 511-E: Annuitised cost of assets
G206: ='Unit costs'!$C$62 -> Section 511-F: System simultaneous peak load based on chargeable units
G207: ='Unit costs'!$C$69 -> Section 511-G: Notional asset values, by network level
G208: ='Unit costs'!$C$80 -> Section 511-H: Other operating costs
... 78 more rows

Sheet Named ranges (hidden)
A1: =MID(CELL("filename",A1),FIND("]",CELL("filename",A1))+1,255) -> Named ranges
A2: =Cover!D23 & " - " & TEXT(CIRP_submission_date, "mmm") & "-" & RIGHT(YEAR(CIRP_submission_date), 2) & " - " & Cover!D25 -> SP Manweb - Jan-26 - V2
A3: =Cover!D2&" - "&Cover!D8&" v"&Cover!D10&" - "&Cover!D19 -> Cost Information Review Pack (CIRP) - Release for charge setting v1 - 2027/28
B5: List of named ranges
F7: charging_year | G7: Year for which charges are being calculated | H7: Cover
F8: charging_year_selected | G8: Charging year currently selected for ARP | H8: CIRP_User control
F9: charging_year_selected_index | G9: Index for selected charging year | H9: CIRP_User control
F10: check_decimals | G10: Number of decimal places of precision for in-built model checks | H10: Fixed inputs
F11: days_in_year | G11: Days in the charging year | H11: General inputs
F12: DNO_name | G12: Name of DNO | H12: Cover
F13: hours_in_day | G13: Hours per day | H13: Fixed inputs
F14: hours_in_year | G14: Hours in the charging year | H14: General inputs
F15: hundred | G15: Equal to 100 | H15: Fixed inputs
F16: live_results_bills | G16: Typical bills for selected charging year | H16: Typical bills
F17: live_results_tariffs | G17: Tariffs for selected charging year | H17: Tariff summary
F18: PowerFactor | G18: Power factor, equal to 0.95 | H18: Fixed inputs
F19: results_4_bills | G19: Typical bills for current charging year | H19: Typical bills
F20: results_4_tariffs | G20: Tariffs for current charging year | H20: Tariff summary
F21: results_5_bills | G21: Typical bills for current charging year + 1 | H21: Typical bills
F22: results_5_tariffs | G22: Tariffs for current charging year + 1 | H22: Tariff summary
F23: results_6_bills | G23: Typical bills for current charging year + 2 | H23: Typical bills
F24: results_6_tariffs | G24: Tariffs for current charging year + 2 | H24: Tariff summary
F25: Historic | G25: Year label | H25: Fixed inputs
F26: Current | G26: Year label | H26: Fixed inputs
F27: Published | G27: Year label | H27: Fixed inputs
F28: Forecast | G28: Year label | H28: Fixed inputs
F29: ten | G29: Equal to 10 | H29: Fixed inputs
F30: thousand | G30: Equal to 1,000 | H30: Fixed inputs
F31: million | G31: Equal to 1,000,000 | H31: Fixed inputs
B33: End of sheet

Sheet CDCM timebands
A1: =MID(CELL("filename",A1),FIND("]",CELL("filename",A1))+1,255) -> CDCM timebands
A2: =Cover!D23 & " - " & TEXT(CIRP_submission_date, "mmm") & "-" & RIGHT(YEAR(CIRP_submission_date), 2) & " - " & Cover!D25 -> SP Manweb - Jan-26 - V2
A3: =Cover!D2&" - "&Cover!D8&" v"&Cover!D10&" - "&Cover!D19 -> Cost Information Review Pack (CIRP) - Release for charge setting v1 - 2027/28
B5: Click here to return to model map | G5: Units | H5: Constants | J5: =TRANSPOSE('CIRP_User control'!G30:G32) -> 2027/28 | K5: 2028/29 | L5: 2029/30
B7: Description
C9: This sheet sets out the expected timebands that the DNO plans to use for each of the three years covered by the
C10: CIRP, as required by DCUSA Schedule 20, Paragraph 2.2 (g).
B12: CDCM timebands
C14: Distribution time bands
E16: Weekdays (including bank holidays)
F17: Red | G17: time of day | J17: 16:30 - 19:30 | K17: 16:30 - 19:30 | L17: 16:30 - 19:30
F18: Amber | G18: time of day | J18: 08:00 - 16:30 19:30 - 22:30 | K18: 08:00 - 16:30 19:30 - 22:30 | L18: 08:00 - 16:30 19:30 - 22:30
F19: Green | G19: time of day | J19: 00:00 - 08:00 22:30 - 00:00 | K19: 00:00 - 08:00 22:30 - 00:00 | L19: 00:00 - 08:00 22:30 - 00:00
E21: Weekends
F22: Red | G22: time of day
F23: Amber | G23: time of day | J23: 16:00 - 20:00 | K23: 16:00 - 20:00 | L23: 16:00 - 20:00
F24: Green | G24: time of day | J24: 00:00 - 16:00 20:00 - 00:00 | K24: 00:00 - 16:00 20:00 - 00:00 | L24: 00:00 - 16:00 20:00 - 00:00
C26: Special distribution time bands
E28: Weekdays (including bank holidays) Nov to Feb
F29: Black | G29: time of day | J29: 16:30 - 19:30 | K29: 16:30 - 19:30 | L29: 16:30 - 19:30
F30: Yellow | G30: time of day | J30: 08:00 - 16:30 19:30 - 22:30 | K30: 08:00 - 16:30 19:30 - 22:30 | L30: 08:00 - 16:30 19:30 - 22:30
F31: Green | G31: time of day | J31: 00:00 - 08:00 22:30 - 00:00 | K31: 00:00 - 08:00 22:30 - 00:00 | L31: 00:00 - 08:00 22:30 - 00:00
E33: Weekdays (including bank holidays) Mar to Oct
F34: Black | G34: time of day
F35: Yellow | G35: time of day | J35: 08:00 - 22:30 | K35: 08:00 - 22:30 | L35: 08:00 - 22:30
F36: Green | G36: time of day | J36: 00:00 - 08:00 22:30 - 00:00 | K36: 00:00 - 08:00 22:30 - 00:00 | L36: 00:00 - 08:00 22:30 - 00:00
E38: Weekends
F39: Black | G39: time of day
F40: Yellow | G40: time of day | J40: 16:00 - 20:00 | K40: 16:00 - 20:00 | L40: 16:00 - 20:00
F41: Green | G41: time of day | J41: 00:00 - 16:00 20:00 - 00:00 | K41: 00:00 - 16:00 20:00 - 00:00 | L41: 00:00 - 16:00 20:00 - 00:00
B43: End of sheet

Sheet CIRP_Instructions
A1: =MID(CELL("filename",A1),FIND("]",CELL("filename",A1))+1,255) -> CIRP_Instructions
A2: =Cover!D23 & " - " & TEXT(CIRP_submission_date, "mmm") & "-" & RIGHT(YEAR(CIRP_submission_date), 2) & " - " & Cover!D25 -> SP Manweb - Jan-26 - V2
A3: =Cover!D2&" - "&Cover!D8&" v"&Cover!D10&" - "&Cover!D19 -> Cost Information Review Pack (CIRP) - Release for charge setting v1 - 2027/28
B5: Description
C7: This sheet contains gives instructions to DNOs when completing the Cost Information Review Pack (CIRP) and to other users wishing to explore its results.
B9: Commentary
F11: Sheet | G11: Cells | H11: Party | I11: Instructions
F12: Cover | G12: D19 | H12: DNO | I12: Input latest charging year for which charges have been published.
G13: D21 | H13: DNO | I13: Input date of Cost Information submission.
G14: D23 | H14: DNO | I14: Input DNO name.
F15: Table 1 - Detailed | G15: Columns K:P | H15: DNO | I15: Enter detailed allowed revenue from the latest Price Control Financial Model (PCFM) or equivalent forecast.
F16: Table 1 - Delta From Previous | G16: Columns K:P | H16: DNO | I16: Enter detailed allowed revenue from the previous Cost Information forecast. When incrementing by one year for the first forecast of each regulatory year, the final column (t+4) will be blank, as no previous forecast was prepared for this year.
F17: Table 2 - Sensitivities | G17: K22:P22 | H17: DNO | I17: Confirm the years for which actual charges have been published by entering "Y" or "N" - allowing the model to override sensitivities for published years.
G18: F29:F38; K29:P38 | H18: DNO | I18: Enter sensitivities for any known potential updates to the Calculated Revenue (e.g. reopeners), which have not been included in the values in Table 1. May be left blank if no potential updates are known. Enter a description of the potential change in column F and the potential change in calculated revenue (in 2020/21 prices) in columns K:P.
G19: K72:P72 | H19: DNO/Suppliers | I19: Enter change in inflation % to see the impact of this change on allowed revenue in the year and on prior year correction and allowed revenue in subsequent years.
G20: K91:P91 | H20: DNO/Suppliers | I20: Enter % change in recovered revenue to see the impact of this change on prior year correction and recovered revenue in subsequent years.
F21: CIRP_General inputs; CIRP_Inputs by customer type; CIRP_Inputs by network level | G21: Columns L:Q | H21: DNO | I21: For regulatory years for which tariffs are already published, populate all inputs, including those for allowed revenue, with those used in the CDCM at the time that the tariffs were set. This will mean there is a difference between the allowed revenue in 'Table 1 - Detailed', which is the latest available information from the PCFM or equivalent forecast, and the allowed revenue in 'CIRP_General inputs', which was the value when tariffs were set.
B23: End of sheet

Sheet CIRP_User control
A1: =MID(CELL("filename",A1),FIND("]",CELL("filename",A1))+1,255) -> CIRP_User control
A2: =Cover!D23 & " - " & TEXT(CIRP_submission_date, "mmm") & "-" & RIGHT(YEAR(CIRP_submission_date), 2) & " - " & Cover!D25 -> SP Manweb - Jan-26 - V2
A3: =Cover!D2&" - "&Cover!D8&" v"&Cover!D10&" - "&Cover!D19 -> Cost Information Review Pack (CIRP) - Release for charge setting v1 - 2027/28
B5: Description
C7: This sheet contains a user interface for the CIRP, where DNOs should input the CIRP publication date to determine the
C8: "current regulatory year"; and where users can update multi-year tariff calculations for defined charging years
C9: by pressing the "Run all years" macro button.
C10: DNOs are responsible for ensuring that CIRP inputs match published CDCM model inputs for historic, current, or published years.
B12: User interface
C14: CIRP submission date
C16: DNOs should define the CIRP submission date in the 'CIRP submission date" cell. The model then automatically defines
C17: the charging year labels with reference to the "current" regulatory year in which the submission date falls.
C18: DNOs are responsible for ensuring that CIRP inputs match the charging year labels suggested by their submission date.
D20: CIRP submission date | G20: =CIRP_submission_date -> 2026-01-01
D22: Current regulatory year (year "t") at CIRP publication date | G22: =IF(MONTH(G20) < 4, YEAR(G20) - 1 & "/" & YEAR(G20) - 2000, YEAR(G20) & "/" & YEAR(G20) + 1 - 2000) -> 2025/26
D24: Most recent year for which charges have been published | G24: =charging_year -> 2027/28
D26: Definition of charging years
E27: t-1 | G27: =LEFT(G28,4) - 1 & "/" & RIGHT(G28,2) - 1 -> 2024/25 | H27: =IF(LEFT(G27, 4) < LEFT($G$22, 4), historic, "") & IF(G27 = $G$22, current, "") & IF(LEFT(G27, 4) > LEFT($G$24, 4), forecast, "") & IF(AND(LEFT(G27, 4) > LEFT($G$22, 4), LEFT(G27, 4) <= LEFT($G$24, 4)), published, "") -> Historic
E28: t | F28: (current regulatory year) | G28: =$G$22 -> 2025/26 | H28: Current
E29: t+1 | G29: =LEFT(G28,4) + 1 & "/" & RIGHT(G28,2) + 1 -> 2026/27 | H29: Published
E30: t+2 | G30: 2027/28 | H30: Published
E31: t+3 | G31: 2028/29 | H31: Forecast
E32: t+4 | G32: =LEFT(G31,4) + 1 & "/" & RIGHT(G31,2) + 1 -> 2029/30 | H32: Forecast
C34: Macro to run all years
C36: Users can press the "Run all years" macro button to update multi-year results on the 'Tariff summary' and 'Typical bills' sheets.
C37: Users can select which year of input data is pulled into the model using the dropdown list in the 'Year selection' cell.
D39: Year selection | G39: 2027/28
D41: Year selection (index) | G41: =MATCH(G39,G27:G32) -> 4 | H41: =INDEX(H27:H32,MATCH($G$39,$G$27:$G$32,0)) -> Published
C47: Macros to hide or unhide sheets
C49: Users can hide and unhide input / calculations / named range and timeband sheets by pressing the macro buttons below.
B68: End of sheet

Sheet Table 1 - Detailed
A1: =MID(CELL("filename",A1),FIND("]",CELL("filename",A1))+1,255) -> Table 1 - Detailed
A2: =Cover!D23 & " - " & TEXT(CIRP_submission_date, "mmm") & "-" & RIGHT(YEAR(CIRP_submission_date), 2) & " - " & Cover!D25 -> SP Manweb - Jan-26 - V2
A3: =Cover!D2&" - "&Cover!D8&" v"&Cover!D10&" - "&Cover!D19 -> Cost Information Review Pack (CIRP) - Release for charge setting v1 - 2027/28
A4: =H121 & IF(H121 = 1, " issue", " issues") &" identified in checks on this sheet" -> 0 issues identified in checks on this sheet | J4: ="Latest forecast (" & TEXT('CIRP_User control'!G20, "MMM-YY") & ") >>" -> Latest forecast (Jan-26) >>
K5: =TRANSPOSE('CIRP_User control'!G27:G32) -> 2024/25 | L5: 2025/26 | M5: 2026/27 | N5: 2027/28 | O5: 2028/29 | P5: 2029/30
B6: Click here to return to model map | G6: Units | H6: Constants | K6: =TRANSPOSE('CIRP_User control'!E27:E32) -> t-1 | L6: t | M6: t+1 | N6: t+2 | O6: t+3 | P6: t+4 | R6: Formula Description
K7: =TRANSPOSE('CIRP_User control'!$H$27:$H$32) -> Historic | L7: Current | M7: Published | N7: Published | O7: Forecast | P7: Forecast
B8: Description
C10: This sheet contains cost information Table 1 in the form required by Schedule 20, paragraph 2.2(a).
C11: Table 1 gives greater detail on the calculation of the DNO's Allowed Revenues.
C12: DNOs are responsible for ensuring that CIRP inputs match published CDCM model inputs for historic, current, or published years.
B14: Table 1 - Detailed
F16: Allowed load related capex | G16: £m 20/21 prices | K16: 25.39530853 | L16: 16.2191115 | M16: 16.69267376 | N16: 17.41805223 | O16: 17.41805223 | P16: 17.41805223 | R16: FM1_A1
F17: Allowed non-load related capex - asset replacement | G17: £m 20/21 prices | K17: 96.37297773 | L17: 99.89628231 | M17: 86.59849219 | N17: 77.47608997 | O17: 77.47608997 | P17: 77.47608997 | R17: FM1_A2
F18: Allowed non-load related capex - other | G18: £m 20/21 prices | K18: 33.11272565 | L18: 33.02207901 | M18: 30.19563657 | N18: 28.93111774 | O18: 28.93111774 | P18: 28.93111774 | R18: FM1_A3
F19: Allowed faults | G19: £m 20/21 prices | K19: 22.51959354 | L19: 22.04778615 | M19: 22.28570266 | N19: 22.02687723 | O19: 22.02687723 | P19: 22.02687723 | R19: FM1_A4
F20: Allowed tree cutting | G20: £m 20/21 prices | K20: 8.242997458 | L20: 8.333391914 | M20: 8.433683011 | N20: 8.34899012 | O20: 8.34899012 | P20: 8.34899012 | R20: FM1_A5
F21: Allowed 100% 'revenue pool' expenditure | G21: £m 20/21 prices | K21: 14.80230538 | L21: 14.55674833 | M21: 14.27101168 | N21: 14.20186346 | O21: 14.20186346 | P21: 14.20186346 | R21: FM1_A6
F22: Allowed controllable opex | G22: £m 20/21 prices | K22: 76.87653316 | L22: 78.04708601 | M22: 75.56614934 | N22: 75.94626047 | O22: 75.94626047 | P22: 75.94626047 | R22: FM1_A7
F23: Total RIIO-2 capitalisation rate allocation 1 allowances | G23: £m 20/21 prices | K23: =SUM(K16:K22) -> 277.3224414 | L23: 272.1224852 | M23: 254.0433492 | N23: 244.3492512 | O23: 244.3492512 | P23: 244.3492512 | R23: FM1_A = FM1_A1 + FM1_A2 + FM1_A3 + FM1_A4 + FM1_A5 + FM1_A6 + FM1_A7
F24: Actual load related capex | G24: £m 20/21 prices | H24: ALCt | K24: 14.52003345 | L24: 12.95857313 | M24: 16.07489549 | N24: 19.77595874 | O24: 19.77595874 | P24: 19.77595874 | R24: FM1_B1
F25: Actual non-load related capex - asset replacement | G25: £m 20/21 prices | H25: ANCAt | K25: 83.8437746 | L25: 96.78870052 | M25: 80.13378446 | N25: 75.1176732 | O25: 75.1176732 | P25: 75.1176732 | R25: FM1_B2
F26: Actual non-load related capex - other | G26: £m 20/21 prices | H26: ANCOt | K26: 31.29318464 | L26: 35.52784832 | M26: 41.91777039 | N26: 38.64468146 | O26: 38.64468146 | P26: 38.64468146 | R26: FM1_B3
F27: Actual faults | G27: £m 20/21 prices | H27: AFAt | K27: 24.25404699 | L27: 24.26316569 | M27: 24.11201957 | N27: 23.91209257 | O27: 23.91209257 | P27: 23.91209257 | R27: FM1_B4
F28: Actual tree cutting | G28: £m 20/21 prices | H28: ATCt | K28: 11.43128645 | L28: 14.07437779 | M28: 14.09454203 | N28: 14.10536877 | O28: 14.10536877 | P28: 14.10536877 | R28: FM1_B5
F29: Actual 100% ‘revenue pool’ expenditure | G29: £m 20/21 prices | H29: ARPt | K29: 13.14462803 | L29: 15.92585228 | M29: 14.97539662 | N29: 15.29344437 | O29: 15.29344437 | P29: 15.29344437 | R29: FM1_B6
F30: Actual controllable opex | G30: £m 20/21 prices | H30: ACOt | K30: 108.9011724 | L30: 96.39027881 | M30: 89.21333266 | N30: 86.79224392 | O30: 86.79224392 | P30: 86.79224392 | R30: FM1_B7
F31: Total actual expenditure in capitalisation rate allocation 1 | G31: £m 20/21 prices | K31: =SUM(K24:K30) -> 287.3881265 | L31: =SUM(L24:L30) -> 295.9287965 | M31: 280.5217412 | N31: 273.641463 | O31: 273.641463 | P31: 273.641463 | R31: FM1_B = FM1_B1 + FM1_B2 + FM1_B3 + FM1_B4 + FM1_B5 + FM1_B6 + FM1_B7
F32: RIIO-2 Funding Adjustment Rate (often referred to as 'sharing factor') | G32: % | H32: SF | K32: 0.5 | L32: 0.5 | M32: 0.5 | N32: 0.5 | O32: 0.5 | P32: 0.5 | R32: SF
F33: Post-TIM totex Allocation 1 | G33: £m 20/21 prices | K33: =IF(K31 > 0, (K31 - K23) * K32 + K23, K23) -> 282.355284 | L33: =IF(L31 > 0, (L31 - L23) * L32 + L23, L23) -> 284.0256409 | M33: 267.2825452 | N33: 258.9953571 | O33: 258.9953571 | P33: 258.9953571 | R33: FM1.1 = (FM1_B - FM1_A) x SF + FM1_A if FM1_B > 0 FM1.1 = FM1_A otherwise
F34: RIIO-2 allocation 1 Capitalisation rate | G34: % | K34: 0.7 | L34: 0.7 | M34: 0.7 | N34: 0.7 | O34: 0.7 | P34: 0.7 | R34: CR1
E35: Fast Pot Allocation 1 | G35: £m 20/21 prices | K35: =(1 - K34) * K33 -> 84.70658519 | L35: =(1 - L34) * L33 -> 85.20769226 | M35: 80.18476357 | N35: 77.69860714 | O35: 77.69860714 | P35: 77.69860714 | R35: FM1 = (1 - CR1) x FM1.1
F36: Allowed load related capex | G36: £m 20/21 prices | K36: 18.84656517 | L36: 29.32062757 | M36: 29.94395854 | N36: 30.15524588 | O36: 30.15524588 | P36: 30.15524588 | R36: FM2_A1
F37: Allowed non-load related capex - asset replacement | G37: £m 20/21 prices | K37: 7.522198433 | L37: 15.79957594 | M37: 15.60668981 | N37: 16.69358446 | O37: 16.69358446 | P37: 16.69358446 | R37: FM2_A2
F38: Allowed non-load related capex - other | G38: £m 20/21 prices | K38: 16.73 | L38: 7.54 | M38: 22.285 | N38: 37.75 | O38: 37.75 | P38: 37.75 | R38: FM2_A3
F39: Allowed faults | G39: £m 20/21 prices | K39: 10.29746249 | L39: 2.330495 | M39: 2.27527 | N39: 2.209 | O39: 2.209 | P39: 2.209 | R39: FM2_A4
F40: Allowed tree cutting | G40: £m 20/21 prices | K40: 0 | L40: 0 | M40: 0 | N40: 0 | O40: 0 | P40: 0 | R40: FM2_A5
F41: Allowed 100% 'revenue pool' expenditure | G41: £m 20/21 prices | K41: 0 | L41: 0 | M41: 0 | N41: 0 | O41: 0 | P41: 0 | R41: FM2_A6
F42: Allowed controllable opex | G42: £m 20/21 prices | K42: 4.971982725 | L42: 6.187545717 | M42: 5.847545717 | N42: 6.337545717 | O42: 6.337545717 | P42: 6.337545717 | R42: FM2_A7
F43: Total RIIO-2 capitalisation rate allocation 2 allowances | G43: £m 20/21 prices | K43: =SUM(K36:K42) -> 58.36820882 | L43: =SUM(L36:L42) -> 61.17824423 | M43: 75.95846407 | N43: 93.14537605 | O43: 93.14537605 | P43: 93.14537605 | R43: FM2_A = FM2_A1 + FM2_A2 + FM2_A3 + FM2_A4 + FM2_A5 + FM2_A6 + FM2_A7
F44: Actual load related capex | G44: £m 20/21 prices | H44: ALCUt | K44: 25.28223486 | L44: 33.72778384 | M44: 33.72778384 | N44: 33.72778384 | O44: 33.72778384 | P44: 33.72778384 | R44: FM2_B1
F45: Actual non-load related capex - asset replacement | G45: £m 20/21 prices | H45: ANCAUt | K45: 10.12025132 | L45: 17.67716829 | M45: 20.80530304 | N45: 21.03169898 | O45: 21.03169898 | P45: 21.03169898 | R45: FM2_B2
F46: Actual non-load related capex - other | G46: £m 20/21 prices | H46: ANCOUt | K46: 6.790578179 | L46: 21.24170427 | M46: 35.24170427 | N46: 37.24170427 | O46: 37.24170427 | P46: 37.24170427 | R46: FM2_B3
F47: Actual faults | G47: £m 20/21 prices | H47: AFAUt | K47: 6.166632489 | L47: 0 | M47: 0 | N47: 0 | O47: 0 | P47: 0 | R47: FM2_B4
F48: Actual tree cutting | G48: £m 20/21 prices | H48: ATCUt | K48: 0 | L48: 0 | M48: 0 | N48: 0 | O48: 0 | P48: 0 | R48: FM2_B5
F49: Actual 100% ‘revenue pool’ expenditure | G49: £m 20/21 prices | H49: ARPUt | K49: 0 | L49: 0 | M49: 0 | N49: 0 | O49: 0 | P49: 0 | R49: FM2_B6
F50: Actual controllable opex | G50: £m 20/21 prices | H50: ACOUt | K50: 0 | L50: 0 | M50: 0 | N50: 0 | O50: 0 | P50: 0 | R50: FM2_B7
F51: Total actual expenditure in capitalisation rate allocation 2 | G51: £m 20/21 prices | K51: =SUM(K44:K50) -> 48.35969684 | L51: =SUM(L44:L50) -> 72.6466564 | M51: 89.77479115 | N51: 92.00118709 | O51: 92.00118709 | P51: 92.00118709 | R51: FM2_B = FM2_B1 + FM2_B2 + FM2_B3 + FM2_B4 + FM2_B5 + FM2_B6 + FM2_B7
F52: RIIO-2 Funding Adjustment Rate (often referred to as 'sharing factor') | G52: % | H52: SF | K52: =K32 -> 0.5 | L52: =L32 -> 0.5 | M52: 0.5 | N52: 0.5 | O52: 0.5 | P52: 0.5 | R52: SF
F53: Post-TIM totex Allocation 2 | G53: £m 20/21 prices | K53: =IF(K51 > 0, (K51 - K43) * K52 + K43, K43) -> 53.36395283 | L53: =IF(L51 > 0, (L51 - L43) * L52 + L43, L43) -> 66.91245031 | M53: 82.86662761 | N53: 92.57328157 | O53: 92.57328157 | P53: 92.57328157 | R53: FM2.1 = (FM2_B - FM2_A) x SF + FM2_A if FM2_B > 0 FM2.1 = FM2_A otherwise
F54: RIIO-2 allocation 2 Capitalisation rate | G54: % | K54: 0.85 | L54: 0.85 | M54: 0.85 | N54: 0.85 | O54: 0.85 | P54: 0.85 | R54: CR2
E55: Fast Pot Allocation 2 | G55: £m 20/21 prices | K55: =(1 - K54) * K53 -> 8.004592925 | L55: =(1 - L54) * L53 -> 10.03686755 | M55: 12.42999414 | N55: 13.88599224 | O55: 13.88599224 | P55: 13.88599224 | R55: FM2 = (1 - CR2) x FM2.1
D56: Fast money | G56: £m 20/21 prices | H56: FMt | K56: =K35 + K55 -> 92.71117812 | L56: =L35 + L55 -> 95.24455981 | M56: 92.61475771 | N56: 91.58459937 | O56: 91.58459937 | P56: 91.58459937 | R56: FM = FM1 + FM2
E57: Post-vesting pre-RIIO depreciation | G57: £m 20/21 prices | K57: 99.22889081 | L57: 91.94743761 | M57: 84.47552936 | N57: 74.01975275 | O57: 74.01975275 | P57: 74.01975275 | R57: DPN1
E58: RIIO-1 depreciation | G58: £m 20/21 prices | K58: 52.87471219 | L58: 52.87471219 | M58: 52.87471219 | N58: 52.87471219 | O58: 52.87471219 | P58: 52.87471219 | R58: DPN2
E59: RIIO-2 depreciation | G59: £m 20/21 prices | K59: 4.539109028 | L59: 9.93928811 | M59: 15.62136659 | N59: 21.34435359 | O59: 21.34435359 | P59: 21.34435359 | R59: DPN3
D60: Depreciation | G60: £m 20/21 prices | H60: DPNt | K60: =K57 + K58 + K59 -> 156.642712 | L60: =L57 + L58 + L59 -> 154.7614379 | M60: 152.9716081 | N60: 148.2388185 | O60: 148.2388185 | P60: 148.2388185 | R60: DPN = DPN1 + DPN2 + DPN3
E61: Vanilla WACC | G61: annual real % | K61: 0.0413701832 | L61: 0.0409301584 | M61: 0.041868818 | N61: 0.0413087932 | O61: 0.0413087932 | P61: 0.0413087932 | R61: RTN1
E62: Single year discount factor | G62: scalar | K62: =1 / (1 + K61) -> 0.960273317 | L62: 0.9606792463 | M62: 0.9598137335 | N62: 0.9603299295 | O62: 0.9603299295 | P62: 0.9603299295 | R62: RTN2
E63: Closing RAV | G63: £m 20/21 prices | K63: 2334.243039 | L63: 2435.175132 | M63: 2539.737939 | N63: 2651.48316 | O63: 2651.48316 | P63: 2651.48316 | R63: RTN3
E64: Opening RAV (after transfers) | G64: £m 20/21 prices | K64: 2247.877692 | L64: 2334.243039 | M64: 2435.175132 | N64: 2539.737939 | O64: 2539.737939 | P64: 2539.737939 | R64: RTN4
E65: Discounted closing RAV | G65: £m 20/21 prices | K65: =K62 * K63 -> 2241.511306 | L65: =L62 * L63 -> 2339.422211 | M65: 2437.675354 | N65: 2546.298636 | O65: 2546.298636 | P65: 2546.298636 | R65: RTN5
E66: NPV-neutral RAV return base | G66: £m 20/21 prices | K66: =AVERAGE(K64:K65) -> 2244.694499 | L66: 2336.832625 | M66: 2436.425243 | N66: 2543.018288 | O66: 2543.018288 | P66: 2543.018288 | R66: RTN6
D67: Return | G67: £m 20/21 prices | H67: RTNt | K67: =K66 * K61 -> 92.86342265 | L67: =L66 * L61 -> 95.64692949 | M67: 102.0102451 | N67: 105.0490166 | O67: 105.0490166 | P67: 105.0490166 | R67: RTN = RTN1 + RTN2 + RTN3 + RTN4 + RTN5 + RTN6
E68: Licence Fee Payments | G68: £m 20/21 prices | H68: LFt | K68: 1.589545911 | L68: 1.738646119 | M68: 1.873580565 | N68: 2.013948851 | O68: 2.013948851 | P68: 2.013948851 | R68: PT1
E69: Prescribed Rates | G69: £m 20/21 prices | H69: RBt | K69: 22.05209056 | L69: 21.81819223 | M69: 26.5602701 | N69: 28.37230314 | O69: 28.37230314 | P69: 28.37230314 | R69: PT2
E70: Pass-through Transmission Connection Point Charges | G70: £m 20/21 prices | H70: TBt | K70: 15.32083785 | L70: 15.89137514 | M70: 16.1610012 | N70: 16.17835922 | O70: 16.17835922 | P70: 16.17835922 | R70: PT3
E71: Smart Meter Communication Licensee Costs | G71: £m 20/21 prices | H71: SMCt | K71: 1.261108716 | L71: 1.601164483 | M71: 1.671979565 | N71: 10.37621549 | O71: 10.37621549 | P71: 10.37621549 | R71: PT4
E72: Smart Meter Information Technology Costs | G72: £m 20/21 prices | H72: SMITt | K72: 0.8547503881 | L72: 1.157709633 | M72: 1.157709633 | N72: 1.157709633 | O72: 1.157709633 | P72: 1.157709633 | R72: PT5
E73: Ring Fence Costs | G73: £m 20/21 prices | H73: RFt | K73: 0 | L73: 0 | M73: 0 | N73: 0 | O73: 0 | P73: 0 | R73: PT6
E74: Supplier of Last Resort Net Costs | G74: £m 20/21 prices | H74: SLRt | K74: 0.3366040745 | L74: -0.3946998996 | M74: -1.856810772 | N74: 0 | O74: 0 | P74: 0 | R74: PT7
E75: Valid Bad Debt Claims | G75: £m 20/21 prices | H75: IBDAt | K75: 0.1163674858 | L75: 0 | M75: 0 | N75: 0 | O75: 0 | P75: 0 | R75: PT8
E76: Pension Scheme Established Deficit repair expenditure | G76: £m 20/21 prices | H76: EDEt | K76: 33.28437553 | L76: 33.28437553 | M76: 33.28437553 | N76: 13.58502022 | O76: 13.58502022 | P76: 13.58502022 | R76: PT9
E77: Failed Supplier Recovered Costs | G77: £m 20/21 prices | H77: SRCt | K77: 0 | L77: 0 | M77: 0 | N77: 0 | O77: 0 | P77: 0 | R77: PT10
E78: Shetland Variable Energy Costs (SSEH only) | G78: £m 20/21 prices | H78: SECt | K78: 0 | L78: 0 | M78: 0 | N78: 0 | O78: 0 | P78: 0 | R78: PT11
E79: Assistance for high-cost distributors adjustment (SSEH only) | G79: £m 20/21 prices | H79: HBt | K79: 0 | L79: 0 | M79: 0 | N79: 0 | O79: 0 | P79: 0 | R79: PT12
D80: Pass-through | G80: £m 20/21 prices | H80: PTt | K80: =SUM(K68:K76, K78) - K77 - K79 -> 74.81568052 | L80: =SUM(L68:L76, L78) - L77 - L79 -> 75.09676324 | M80: 78.85210583 | N80: 71.68355656 | O80: 71.68355656 | P80: 71.68355656 | R80: PT = PT1 + PT2 + PT3 + PT4 + PT5 + PT6 + PT7 + PT8 + PT9 - PT10 + PT11 - PT12
C81: Base Revenue | G81: £m 20/21 prices | K81: =K56 + K60 + K67 + K80 -> 417.0329933 | L81: =L56 + L60 + L67 + L80 -> 420.7496905 | M81: 426.4487167 | N81: 416.555991 | O81: 416.555991 | P81: 416.555991 | R81: A = FM + DPN + RTN + PT
D82: Return Adjustment (note: this row is not active. It will be linked to ReturnAdj for closeout) | G82: £m 20/21 prices | H82: RTNAt | K82: 0 | L82: 0 | M82: 0 | N82: 0 | O82: 0 | P82: 0 | R82: RTNA
D83: Equity issuance costs | G83: £m 20/21 prices | H83: EICt | K83: 0 | L83: 0 | M83: 0 | N83: 0 | O83: 0 | P83: 0 | R83: EIC
D84: Business plan incentive | G84: £m 20/21 prices | H84: BPIt | K84: 0 | L84: 0 | M84: 0 | N84: 0 | O84: 0 | P84: 0 | R84: BPI
E85: Time to connect ODI | G85: £m 20/21 prices | H85: TTCt | K85: 0.4428036204 | L85: 0.6882721153 | M85: 0.4363287 | N85: 0.4363287 | O85: 0.4363287 | P85: 0.4363287 | R85: ODI1
E86: Broad Measure of Customer Service ODI | G86: £m 20/21 prices | H86: BMCSt | K86: 0.9617925826 | L86: 1.364275354 | M86: 2.7972 | N86: 3.323 | O86: 3.323 | P86: 3.323 | R86: ODI2
E87: Interruptions incentive scheme ODI | G87: £m 20/21 prices | H87: IQt | K87: -0.6040822633 | L87: 0.9699555781 | M87: 1.255965 | N87: 1.25358 | O87: 1.25358 | P87: 1.25358 | R87: ODI3
E88: Major connections ODI | G88: £m 20/21 prices | H88: MCt | K88: 0 | L88: 0 | M88: 0 | N88: 0 | O88: 0 | P88: 0 | R88: ODI4
E89: Consumer Vulnerability ODI | G89: £m 20/21 prices | H89: CVIt | K89: 1.849 | L89: 0 | M89: 0 | N89: 4.917406096 | O89: 4.917406096 | P89: 4.917406096 | R89: ODI5
E90: Distribution System Operator ODI | G90: £m 20/21 prices | H90: DSOIt | K90: 1.92292 | L90: 0 | M90: 0 | N90: 0 | O90: 0 | P90: 0 | R90: ODI6
E91: Dig, Fix and Go ODI (ENWL only) | G91: £m 20/21 prices | H91: DFGt | K91: 0 | L91: 0 | M91: 0 | N91: 0 | O91: 0 | P91: 0 | R91: ODI7
E92: Collaborative Streetworks ODI (EPN, LPN and SPN only) | G92: £m 20/21 prices | H92: CSWt | K92: 0 | L92: 0 | M92: 0 | N92: 0 | O92: 0 | P92: 0 | R92: ODI8
D93: Output delivery incentive | G93: £m 20/21 prices | H93: ODIt | K93: =SUM(K85:K92) -> 4.57243394 | L93: =SUM(L85:L92) -> 3.022503048 | M93: 4.4894937 | N93: 9.930314796 | O93: 9.930314796 | P93: 9.930314796 | R93: ODI = ODI1 + ODI2 + ODI3 + ODI4 + ODI5 + ODI6 + ODI7 + ODI8
D94: Other revenue allowances | G94: £m 20/21 prices | H94: ORAt | K94: 0.8161719951 | L94: 4.314475496 | M94: 0 | N94: 0 | O94: 0 | P94: 0 | R94: ORA
D95: Directly Remunerated Services | G95: £m 20/21 prices | H95: DRSt | K95: -0.1698850907 | L95: -0.01471656657 | M95: -0.01470800331 | N95: -0.01467110567 | O95: -0.01467110567 | P95: -0.01467110567 | R95: DRS
C96: Calculated revenue (before tax) | G96: £m 20/21 prices | K96: =SUM(K81:K95) - K93 -> 422.2517142 | L96: =SUM(L81:L95) - L93 -> 428.0719524 | M96: 430.9235024 | N96: 426.4716347 | O96: 426.4716347 | P96: 426.4716347 | R96: B = A + RTNA + EIC + BPI + ODI + ORA + DRS
D97: Tax allowance | G97: £m 20/21 prices | H97: TAXt | K97: 1.383753166 | L97: 1.398017401 | M97: 1.393881714 | N97: 1.388040331 | O97: 0 | P97: 0 | R97: TAX
D98: Tax allowance adjustment | G98: £m 20/21 prices | H98: TAXAt | K98: 0 | L98: 0 | M98: 0 | N98: 0 | O98: 0 | P98: 0 | R98: TAXA
C99: Calculated revenue | G99: £m 20/21 prices | K99: =SUM(K96:K98) -> 423.6354673 | L99: =SUM(L96:L98) -> 429.4699698 | M99: 432.3173842 | N99: 427.859675 | O99: 426.4716347 | P99: 426.4716347 | R99: R = B + TAX + TAXA
C100: Real to nominal prices conversion factor (splice index for RIIO-2) | G100: scalar | H100: PIt / PI2020-21 | K100: 1.321792586 | L100: 1.374382762 | M100: 1.406672201 | N100: 1.435242215 | O100: 1.463947059 | P100: 1.493226 | R100: PIt / PI2020-21
C101: Combined RPI-CPIH price index (financial year average) (aka Price Index term) PIt | G101: scalar | H101: PIt | K101: 388.8273189 | L101: 404.2975959 | M101: 413.7960725 | N101: 422.2004182 | O101: 430.6444266 | P101: 439.2573151 | R101: PI
C103: Calculated revenue | G103: £m nominal | H103: Rt x PIt / PI2020/21 | K103: =K99 * K100 -> 559.9582197 | L103: =L99 * L100 -> 590.2561234 | M103: 608.1288464 | N103: 614.0822677 | O103: 624.3318955 | P103: 636.8185334 | R103: C = R x Pit / PI2020/21
D104: Correction term | G104: £m nominal | H104: Kt | K104: =K115 -> 66.94369182 | L104: =L115 -> 92.69080839 | M104: 28.73775137 | N104: 25.4290846 | O104: 0 | P104: 0 | R104: K
D105: Forecasting penalty | G105: £m nominal | H105: FPt | K105: 0 | L105: 0 | M105: 0 | N105: 0 | O105: 0 | P105: 0 | R105: FP
D106: Legacy Allowed Revenue | G106: £m nominal | H106: LARt | K106: 47.82646261 | L106: 0.9757573821 | M106: 0.9012215899 | N106: 0.9580251767 | O106: 0 | P106: 0 | R106: LAR
C107: Allowed revenue | G107: £m nominal | H107: ARt (part C) | K107: =SUM(K103:K106) -> 674.7283741 | L107: =SUM(L103:L106) -> 683.9226892 | M107: 637.7678194 | N107: 640.4693775 | O107: 624.3318955 | P107: 636.8185334 | R107: AR = C + K + FP + LAR
C109: Recovered Revenue | G109: £m nominal | H109: RRt | K109: 589.1257372 | L109: 656.9486498 | M109: 613.8464856 | N109: 640.4693775 | O109: 624.3318955 | P109: 636.8185334 | R109: RR
C110: Revenue under/(over) recovery | G110: £m nominal | K110: =K107 - K109 -> 85.60263694 | L110: =L107 - L109 -> 26.97403932 | M110: 23.92133382 | N110: 0 | O110: 0 | P110: 0 | R110: D = AR - RR
D112: Vanilla weighted average cost of capital | G112: annual real % | H112: WACCt | K112: 0.0413701832 | L112: 0.0409301584 | M112: 0.041868818 | N112: 0.0413087932 | O112: 0.0413087932 | P112: 0.0413087932 | R112: WACC
D113: Inflation (from year t to t+1) | G113: annual % | H113: PIt+1/PIt | K113: 0.03978701129 | L113: 0.02349377481 | M113: 0.02031035638 | N113: 0.02031035638 | O113: 0.02031035638 | P113: 0.02031035638 | R113: E [= PIt+1/PIt]
D114: Nominal time value of money | G114: annual nominal % | H114: TVMt | K114: =(1 + K112) * (1 + K113) - 1 -> 0.08280319044 | L114: =(1 + L112) * (1 + L113) - 1 -> 0.06538553713 | M114: 0.06302954499 | N114: 0.06245814589 | O114: 0.06245814589 | P114: 0.06245814589 | R114: TVM = (1 + WACC) x (1 + E) - 1
C115: Correction Term | G115: £m nominal | H115: Kt | K115: 66.94369182 | L115: 92.69080839 | M115: 28.73775137 | N115: 25.4290846 | O115: 0 | P115: 0 | R115: K [= Dt-1 x (1 + TVMt-1)]
B117: Checks
E119: Check for error values | G119: number of issues | H119: =SUM(IF(ISERROR(K15:P116), 1)) -> 0
E121: Summary of checks | G121: number of issues | H121: =H119 -> 0
B123: End of sheet

Sheet Table 1 - Delta from previous
A1: =MID(CELL("filename",A1),FIND("]",CELL("filename",A1))+1,255) -> Table 1 - Delta from previous
A2: =Cover!D23 & " - " & TEXT(CIRP_submission_date, "mmm") & "-" & RIGHT(YEAR(CIRP_submission_date), 2) & " - " & Cover!D25 -> SP Manweb - Jan-26 - V2
A3: =Cover!D2&" - "&Cover!D8&" v"&Cover!D10&" - "&Cover!D19 -> Cost Information Review Pack (CIRP) - Release for charge setting v1 - 2027/28
A4: =H123 & IF(H123 = 1, " issue", " issues") &" identified in checks on this sheet" -> 0 issues identified in checks on this sheet | J4: Previous forecast >> | Q4: Delta from previous >>
K5: =TRANSPOSE('CIRP_User control'!G27:G32) -> 2024/25 | L5: 2025/26 | M5: 2026/27 | N5: 2027/28 | O5: 2028/29 | P5: 2029/30 | R5: =K5 -> 2024/25 | S5: =L5 -> 2025/26 | T5: =M5 -> 2026/27 | U5: =N5 -> 2027/28 | V5: =O5 -> 2028/29 | W5: =P5 -> 2029/30
B6: Click here to return to model map | G6: Units | H6: Constants | K6: =TRANSPOSE('CIRP_User control'!E27:E32) -> t-1 | L6: t | M6: t+1 | N6: t+2 | O6: t+3 | P6: t+4 | R6: =K6 -> t-1 | S6: t | T6: t+1 | U6: t+2 | V6: t+3 | W6: t+4 | Y6: Variance commentary
K7: =TRANSPOSE('CIRP_User control'!$H$27:$H$32) -> Historic | L7: Current | M7: Published | N7: Published | O7: Forecast | P7: Forecast | R7: =K7 -> Historic | S7: =L7 -> Current | T7: =M7 -> Published | U7: =N7 -> Published | V7: =O7 -> Forecast | W7: =P7 -> Forecast
B8: Description
C10: This sheet contains: (1) the DNO's previous forecast of Table 1 values (which determine its Allowed Revenue), (2) the
C11: difference between the current and previous forecasts, and (3) a commentary on the DNO's forecast beyond the latest
C12: published charging year, as required by DCUSA Schedule 20, paragraph 2.2 (h).
F14: [DNO commentary]
B16: Table 1 - Delta from previous
F18: Allowed load related capex | G18: £m 20/21 prices | R18: ='Table 1 - Detailed'!K16 - 'Table 1 - Delta from previous'!K18 -> 25.39530853 | S18: ='Table 1 - Detailed'!L16 - 'Table 1 - Delta from previous'!L18 -> 16.2191115 | T18: ='Table 1 - Detailed'!M16 - 'Table 1 - Delta from previous'!M18 -> 16.69267376 | U18: ='Table 1 - Detailed'!N16 - 'Table 1 - Delta from previous'!N18 -> 17.41805223 | V18: ='Table 1 - Detailed'!O16 - 'Table 1 - Delta from previous'!O18 -> 17.41805223 | W18: ='Table 1 - Detailed'!P16 - 'Table 1 - Delta from previous'!P18 -> 17.41805223
F19: Allowed non-load related capex - asset replacement | G19: £m 20/21 prices | R19: ='Table 1 - Detailed'!K17 - 'Table 1 - Delta from previous'!K19 -> 96.37297773 | S19: ='Table 1 - Detailed'!L17 - 'Table 1 - Delta from previous'!L19 -> 99.89628231 | T19: ='Table 1 - Detailed'!M17 - 'Table 1 - Delta from previous'!M19 -> 86.59849219 | U19: ='Table 1 - Detailed'!N17 - 'Table 1 - Delta from previous'!N19 -> 77.47608997 | V19: ='Table 1 - Detailed'!O17 - 'Table 1 - Delta from previous'!O19 -> 77.47608997 | W19: ='Table 1 - Detailed'!P17 - 'Table 1 - Delta from previous'!P19 -> 77.47608997
F20: Allowed non-load related capex - other | G20: £m 20/21 prices | R20: ='Table 1 - Detailed'!K18 - 'Table 1 - Delta from previous'!K20 -> 33.11272565 | S20: ='Table 1 - Detailed'!L18 - 'Table 1 - Delta from previous'!L20 -> 33.02207901 | T20: ='Table 1 - Detailed'!M18 - 'Table 1 - Delta from previous'!M20 -> 30.19563657 | U20: ='Table 1 - Detailed'!N18 - 'Table 1 - Delta from previous'!N20 -> 28.93111774 | V20: ='Table 1 - Detailed'!O18 - 'Table 1 - Delta from previous'!O20 -> 28.93111774 | W20: ='Table 1 - Detailed'!P18 - 'Table 1 - Delta from previous'!P20 -> 28.93111774
F21: Allowed faults | G21: £m 20/21 prices | R21: ='Table 1 - Detailed'!K19 - 'Table 1 - Delta from previous'!K21 -> 22.51959354 | S21: ='Table 1 - Detailed'!L19 - 'Table 1 - Delta from previous'!L21 -> 22.04778615 | T21: ='Table 1 - Detailed'!M19 - 'Table 1 - Delta from previous'!M21 -> 22.28570266 | U21: ='Table 1 - Detailed'!N19 - 'Table 1 - Delta from previous'!N21 -> 22.02687723 | V21: ='Table 1 - Detailed'!O19 - 'Table 1 - Delta from previous'!O21 -> 22.02687723 | W21: ='Table 1 - Detailed'!P19 - 'Table 1 - Delta from previous'!P21 -> 22.02687723
F22: Allowed tree cutting | G22: £m 20/21 prices | R22: ='Table 1 - Detailed'!K20 - 'Table 1 - Delta from previous'!K22 -> 8.242997458 | S22: ='Table 1 - Detailed'!L20 - 'Table 1 - Delta from previous'!L22 -> 8.333391914 | T22: ='Table 1 - Detailed'!M20 - 'Table 1 - Delta from previous'!M22 -> 8.433683011 | U22: ='Table 1 - Detailed'!N20 - 'Table 1 - Delta from previous'!N22 -> 8.34899012 | V22: ='Table 1 - Detailed'!O20 - 'Table 1 - Delta from previous'!O22 -> 8.34899012 | W22: ='Table 1 - Detailed'!P20 - 'Table 1 - Delta from previous'!P22 -> 8.34899012
F23: Allowed 100% 'revenue pool' expenditure | G23: £m 20/21 prices | R23: ='Table 1 - Detailed'!K21 - 'Table 1 - Delta from previous'!K23 -> 14.80230538 | S23: ='Table 1 - Detailed'!L21 - 'Table 1 - Delta from previous'!L23 -> 14.55674833 | T23: ='Table 1 - Detailed'!M21 - 'Table 1 - Delta from previous'!M23 -> 14.27101168 | U23: ='Table 1 - Detailed'!N21 - 'Table 1 - Delta from previous'!N23 -> 14.20186346 | V23: ='Table 1 - Detailed'!O21 - 'Table 1 - Delta from previous'!O23 -> 14.20186346 | W23: ='Table 1 - Detailed'!P21 - 'Table 1 - Delta from previous'!P23 -> 14.20186346
F24: Allowed controllable opex | G24: £m 20/21 prices | R24: ='Table 1 - Detailed'!K22 - 'Table 1 - Delta from previous'!K24 -> 76.87653316 | S24: ='Table 1 - Detailed'!L22 - 'Table 1 - Delta from previous'!L24 -> 78.04708601 | T24: ='Table 1 - Detailed'!M22 - 'Table 1 - Delta from previous'!M24 -> 75.56614934 | U24: ='Table 1 - Detailed'!N22 - 'Table 1 - Delta from previous'!N24 -> 75.94626047 | V24: ='Table 1 - Detailed'!O22 - 'Table 1 - Delta from previous'!O24 -> 75.94626047 | W24: ='Table 1 - Detailed'!P22 - 'Table 1 - Delta from previous'!P24 -> 75.94626047
F25: Total RIIO-2 capitalisation rate allocation 1 allowances | G25: £m 20/21 prices | K25: =SUM(K18:K24) -> 0 | L25: 0 | M25: 0 | N25: 0 | O25: 0 | P25: 0 | R25: ='Table 1 - Detailed'!K23 - 'Table 1 - Delta from previous'!K25 -> 277.3224414 | S25: ='Table 1 - Detailed'!L23 - 'Table 1 - Delta from previous'!L25 -> 272.1224852 | T25: ='Table 1 - Detailed'!M23 - 'Table 1 - Delta from previous'!M25 -> 254.0433492 | U25: ='Table 1 - Detailed'!N23 - 'Table 1 - Delta from previous'!N25 -> 244.3492512 | V25: ='Table 1 - Detailed'!O23 - 'Table 1 - Delta from previous'!O25 -> 244.3492512 | W25: ='Table 1 - Detailed'!P23 - 'Table 1 - Delta from previous'!P25 -> 244.3492512
F26: Actual load related capex | G26: £m 20/21 prices | H26: ALCt | R26: ='Table 1 - Detailed'!K24 - 'Table 1 - Delta from previous'!K26 -> 14.52003345 | S26: ='Table 1 - Detailed'!L24 - 'Table 1 - Delta from previous'!L26 -> 12.95857313 | T26: ='Table 1 - Detailed'!M24 - 'Table 1 - Delta from previous'!M26 -> 16.07489549 | U26: ='Table 1 - Detailed'!N24 - 'Table 1 - Delta from previous'!N26 -> 19.77595874 | V26: ='Table 1 - Detailed'!O24 - 'Table 1 - Delta from previous'!O26 -> 19.77595874 | W26: ='Table 1 - Detailed'!P24 - 'Table 1 - Delta from previous'!P26 -> 19.77595874
F27: Actual non-load related capex - asset replacement | G27: £m 20/21 prices | H27: ANCAt | R27: ='Table 1 - Detailed'!K25 - 'Table 1 - Delta from previous'!K27 -> 83.8437746 | S27: ='Table 1 - Detailed'!L25 - 'Table 1 - Delta from previous'!L27 -> 96.78870052 | T27: ='Table 1 - Detailed'!M25 - 'Table 1 - Delta from previous'!M27 -> 80.13378446 | U27: ='Table 1 - Detailed'!N25 - 'Table 1 - Delta from previous'!N27 -> 75.1176732 | V27: ='Table 1 - Detailed'!O25 - 'Table 1 - Delta from previous'!O27 -> 75.1176732 | W27: ='Table 1 - Detailed'!P25 - 'Table 1 - Delta from previous'!P27 -> 75.1176732
F28: Actual non-load related capex - other | G28: £m 20/21 prices | H28: ANCOt | R28: ='Table 1 - Detailed'!K26 - 'Table 1 - Delta from previous'!K28 -> 31.29318464 | S28: ='Table 1 - Detailed'!L26 - 'Table 1 - Delta from previous'!L28 -> 35.52784832 | T28: ='Table 1 - Detailed'!M26 - 'Table 1 - Delta from previous'!M28 -> 41.91777039 | U28: ='Table 1 - Detailed'!N26 - 'Table 1 - Delta from previous'!N28 -> 38.64468146 | V28: ='Table 1 - Detailed'!O26 - 'Table 1 - Delta from previous'!O28 -> 38.64468146 | W28: ='Table 1 - Detailed'!P26 - 'Table 1 - Delta from previous'!P28 -> 38.64468146
F29: Actual faults | G29: £m 20/21 prices | H29: AFAt | R29: ='Table 1 - Detailed'!K27 - 'Table 1 - Delta from previous'!K29 -> 24.25404699 | S29: ='Table 1 - Detailed'!L27 - 'Table 1 - Delta from previous'!L29 -> 24.26316569 | T29: ='Table 1 - Detailed'!M27 - 'Table 1 - Delta from previous'!M29 -> 24.11201957 | U29: ='Table 1 - Detailed'!N27 - 'Table 1 - Delta from previous'!N29 -> 23.91209257 | V29: ='Table 1 - Detailed'!O27 - 'Table 1 - Delta from previous'!O29 -> 23.91209257 | W29: ='Table 1 - Detailed'!P27 - 'Table 1 - Delta from previous'!P29 -> 23.91209257
F30: Actual tree cutting | G30: £m 20/21 prices | H30: ATCt | R30: ='Table 1 - Detailed'!K28 - 'Table 1 - Delta from previous'!K30 -> 11.43128645 | S30: ='Table 1 - Detailed'!L28 - 'Table 1 - Delta from previous'!L30 -> 14.07437779 | T30: ='Table 1 - Detailed'!M28 - 'Table 1 - Delta from previous'!M30 -> 14.09454203 | U30: ='Table 1 - Detailed'!N28 - 'Table 1 - Delta from previous'!N30 -> 14.10536877 | V30: ='Table 1 - Detailed'!O28 - 'Table 1 - Delta from previous'!O30 -> 14.10536877 | W30: ='Table 1 - Detailed'!P28 - 'Table 1 - Delta from previous'!P30 -> 14.10536877
F31: Actual 100% ‘revenue pool’ expenditure | G31: £m 20/21 prices | H31: ARPt | R31: ='Table 1 - Detailed'!K29 - 'Table 1 - Delta from previous'!K31 -> 13.14462803 | S31: ='Table 1 - Detailed'!L29 - 'Table 1 - Delta from previous'!L31 -> 15.92585228 | T31: ='Table 1 - Detailed'!M29 - 'Table 1 - Delta from previous'!M31 -> 14.97539662 | U31: ='Table 1 - Detailed'!N29 - 'Table 1 - Delta from previous'!N31 -> 15.29344437 | V31: ='Table 1 - Detailed'!O29 - 'Table 1 - Delta from previous'!O31 -> 15.29344437 | W31: ='Table 1 - Detailed'!P29 - 'Table 1 - Delta from previous'!P31 -> 15.29344437
F32: Actual controllable opex | G32: £m 20/21 prices | H32: ACOt | R32: ='Table 1 - Detailed'!K30 - 'Table 1 - Delta from previous'!K32 -> 108.9011724 | S32: ='Table 1 - Detailed'!L30 - 'Table 1 - Delta from previous'!L32 -> 96.39027881 | T32: ='Table 1 - Detailed'!M30 - 'Table 1 - Delta from previous'!M32 -> 89.21333266 | U32: ='Table 1 - Detailed'!N30 - 'Table 1 - Delta from previous'!N32 -> 86.79224392 | V32: ='Table 1 - Detailed'!O30 - 'Table 1 - Delta from previous'!O32 -> 86.79224392 | W32: ='Table 1 - Detailed'!P30 - 'Table 1 - Delta from previous'!P32 -> 86.79224392
F33: Total actual expenditure in capitalisation rate allocation 1 | G33: £m 20/21 prices | K33: =SUM(K26:K32) -> 0 | L33: =SUM(L26:L32) -> 0 | M33: 0 | N33: 0 | O33: 0 | P33: 0 | R33: ='Table 1 - Detailed'!K31 - 'Table 1 - Delta from previous'!K33 -> 287.3881265 | S33: ='Table 1 - Detailed'!L31 - 'Table 1 - Delta from previous'!L33 -> 295.9287965 | T33: ='Table 1 - Detailed'!M31 - 'Table 1 - Delta from previous'!M33 -> 280.5217412 | U33: ='Table 1 - Detailed'!N31 - 'Table 1 - Delta from previous'!N33 -> 273.641463 | V33: ='Table 1 - Detailed'!O31 - 'Table 1 - Delta from previous'!O33 -> 273.641463 | W33: ='Table 1 - Detailed'!P31 - 'Table 1 - Delta from previous'!P33 -> 273.641463
F34: RIIO-2 Funding Adjustment Rate (often referred to as 'sharing factor') | G34: % | H34: SF | R34: ='Table 1 - Detailed'!K32 - 'Table 1 - Delta from previous'!K34 -> 0.5 | S34: ='Table 1 - Detailed'!L32 - 'Table 1 - Delta from previous'!L34 -> 0.5 | T34: ='Table 1 - Detailed'!M32 - 'Table 1 - Delta from previous'!M34 -> 0.5 | U34: ='Table 1 - Detailed'!N32 - 'Table 1 - Delta from previous'!N34 -> 0.5 | V34: ='Table 1 - Detailed'!O32 - 'Table 1 - Delta from previous'!O34 -> 0.5 | W34: ='Table 1 - Detailed'!P32 - 'Table 1 - Delta from previous'!P34 -> 0.5
F35: Post-TIM totex Allocation 1 | G35: £m 20/21 prices | K35: =IF(K33 > 0, (K33 - K25) * K34 + K25, K25) -> 0 | L35: =IF(L33 > 0, (L33 - L25) * L34 + L25, L25) -> 0 | M35: 0 | N35: 0 | O35: 0 | P35: 0 | R35: ='Table 1 - Detailed'!K33 - 'Table 1 - Delta from previous'!K35 -> 282.355284 | S35: ='Table 1 - Detailed'!L33 - 'Table 1 - Delta from previous'!L35 -> 284.0256409 | T35: ='Table 1 - Detailed'!M33 - 'Table 1 - Delta from previous'!M35 -> 267.2825452 | U35: ='Table 1 - Detailed'!N33 - 'Table 1 - Delta from previous'!N35 -> 258.9953571 | V35: ='Table 1 - Detailed'!O33 - 'Table 1 - Delta from previous'!O35 -> 258.9953571 | W35: ='Table 1 - Detailed'!P33 - 'Table 1 - Delta from previous'!P35 -> 258.9953571
F36: RIIO-2 allocation 1 Capitalisation rate | G36: % | R36: ='Table 1 - Detailed'!K34 - 'Table 1 - Delta from previous'!K36 -> 0.7 | S36: ='Table 1 - Detailed'!L34 - 'Table 1 - Delta from previous'!L36 -> 0.7 | T36: ='Table 1 - Detailed'!M34 - 'Table 1 - Delta from previous'!M36 -> 0.7 | U36: ='Table 1 - Detailed'!N34 - 'Table 1 - Delta from previous'!N36 -> 0.7 | V36: ='Table 1 - Detailed'!O34 - 'Table 1 - Delta from previous'!O36 -> 0.7 | W36: ='Table 1 - Detailed'!P34 - 'Table 1 - Delta from previous'!P36 -> 0.7
E37: Fast Pot Allocation 1 | G37: £m 20/21 prices | K37: =(1 - K36) * K35 -> 0 | L37: =(1 - L36) * L35 -> 0 | M37: 0 | N37: 0 | O37: 0 | P37: 0 | R37: ='Table 1 - Detailed'!K35 - 'Table 1 - Delta from previous'!K37 -> 84.70658519 | S37: ='Table 1 - Detailed'!L35 - 'Table 1 - Delta from previous'!L37 -> 85.20769226 | T37: ='Table 1 - Detailed'!M35 - 'Table 1 - Delta from previous'!M37 -> 80.18476357 | U37: ='Table 1 - Detailed'!N35 - 'Table 1 - Delta from previous'!N37 -> 77.69860714 | V37: ='Table 1 - Detailed'!O35 - 'Table 1 - Delta from previous'!O37 -> 77.69860714 | W37: ='Table 1 - Detailed'!P35 - 'Table 1 - Delta from previous'!P37 -> 77.69860714
F38: Allowed load related capex | G38: £m 20/21 prices | R38: ='Table 1 - Detailed'!K36 - 'Table 1 - Delta from previous'!K38 -> 18.84656517 | S38: ='Table 1 - Detailed'!L36 - 'Table 1 - Delta from previous'!L38 -> 29.32062757 | T38: ='Table 1 - Detailed'!M36 - 'Table 1 - Delta from previous'!M38 -> 29.94395854 | U38: ='Table 1 - Detailed'!N36 - 'Table 1 - Delta from previous'!N38 -> 30.15524588 | V38: ='Table 1 - Detailed'!O36 - 'Table 1 - Delta from previous'!O38 -> 30.15524588 | W38: ='Table 1 - Detailed'!P36 - 'Table 1 - Delta from previous'!P38 -> 30.15524588
F39: Allowed non-load related capex - asset replacement | G39: £m 20/21 prices | R39: ='Table 1 - Detailed'!K37 - 'Table 1 - Delta from previous'!K39 -> 7.522198433 | S39: ='Table 1 - Detailed'!L37 - 'Table 1 - Delta from previous'!L39 -> 15.79957594 | T39: ='Table 1 - Detailed'!M37 - 'Table 1 - Delta from previous'!M39 -> 15.60668981 | U39: ='Table 1 - Detailed'!N37 - 'Table 1 - Delta from previous'!N39 -> 16.69358446 | V39: ='Table 1 - Detailed'!O37 - 'Table 1 - Delta from previous'!O39 -> 16.69358446 | W39: ='Table 1 - Detailed'!P37 - 'Table 1 - Delta from previous'!P39 -> 16.69358446
F40: Allowed non-load related capex - other | G40: £m 20/21 prices | R40: ='Table 1 - Detailed'!K38 - 'Table 1 - Delta from previous'!K40 -> 16.73 | S40: ='Table 1 - Detailed'!L38 - 'Table 1 - Delta from previous'!L40 -> 7.54 | T40: ='Table 1 - Detailed'!M38 - 'Table 1 - Delta from previous'!M40 -> 22.285 | U40: ='Table 1 - Detailed'!N38 - 'Table 1 - Delta from previous'!N40 -> 37.75 | V40: ='Table 1 - Detailed'!O38 - 'Table 1 - Delta from previous'!O40 -> 37.75 | W40: ='Table 1 - Detailed'!P38 - 'Table 1 - Delta from previous'!P40 -> 37.75
F41: Allowed faults | G41: £m 20/21 prices | R41: ='Table 1 - Detailed'!K39 - 'Table 1 - Delta from previous'!K41 -> 10.29746249 | S41: ='Table 1 - Detailed'!L39 - 'Table 1 - Delta from previous'!L41 -> 2.330495 | T41: ='Table 1 - Detailed'!M39 - 'Table 1 - Delta from previous'!M41 -> 2.27527 | U41: ='Table 1 - Detailed'!N39 - 'Table 1 - Delta from previous'!N41 -> 2.209 | V41: ='Table 1 - Detailed'!O39 - 'Table 1 - Delta from previous'!O41 -> 2.209 | W41: ='Table 1 - Detailed'!P39 - 'Table 1 - Delta from previous'!P41 -> 2.209
F42: Allowed tree cutting | G42: £m 20/21 prices | R42: ='Table 1 - Detailed'!K40 - 'Table 1 - Delta from previous'!K42 -> 0 | S42: ='Table 1 - Detailed'!L40 - 'Table 1 - Delta from previous'!L42 -> 0 | T42: ='Table 1 - Detailed'!M40 - 'Table 1 - Delta from previous'!M42 -> 0 | U42: ='Table 1 - Detailed'!N40 - 'Table 1 - Delta from previous'!N42 -> 0 | V42: ='Table 1 - Detailed'!O40 - 'Table 1 - Delta from previous'!O42 -> 0 | W42: ='Table 1 - Detailed'!P40 - 'Table 1 - Delta from previous'!P42 -> 0
F43: Allowed 100% 'revenue pool' expenditure | G43: £m 20/21 prices | R43: ='Table 1 - Detailed'!K41 - 'Table 1 - Delta from previous'!K43 -> 0 | S43: ='Table 1 - Detailed'!L41 - 'Table 1 - Delta from previous'!L43 -> 0 | T43: ='Table 1 - Detailed'!M41 - 'Table 1 - Delta from previous'!M43 -> 0 | U43: ='Table 1 - Detailed'!N41 - 'Table 1 - Delta from previous'!N43 -> 0 | V43: ='Table 1 - Detailed'!O41 - 'Table 1 - Delta from previous'!O43 -> 0 | W43: ='Table 1 - Detailed'!P41 - 'Table 1 - Delta from previous'!P43 -> 0
F44: Allowed controllable opex | G44: £m 20/21 prices | R44: ='Table 1 - Detailed'!K42 - 'Table 1 - Delta from previous'!K44 -> 4.971982725 | S44: ='Table 1 - Detailed'!L42 - 'Table 1 - Delta from previous'!L44 -> 6.187545717 | T44: ='Table 1 - Detailed'!M42 - 'Table 1 - Delta from previous'!M44 -> 5.847545717 | U44: ='Table 1 - Detailed'!N42 - 'Table 1 - Delta from previous'!N44 -> 6.337545717 | V44: ='Table 1 - Detailed'!O42 - 'Table 1 - Delta from previous'!O44 -> 6.337545717 | W44: ='Table 1 - Detailed'!P42 - 'Table 1 - Delta from previous'!P44 -> 6.337545717
F45: Total RIIO-2 capitalisation rate allocation 2 allowances | G45: £m 20/21 prices | K45: =SUM(K38:K44) -> 0 | L45: =SUM(L38:L44) -> 0 | M45: 0 | N45: 0 | O45: 0 | P45: 0 | R45: ='Table 1 - Detailed'!K43 - 'Table 1 - Delta from previous'!K45 -> 58.36820882 | S45: ='Table 1 - Detailed'!L43 - 'Table 1 - Delta from previous'!L45 -> 61.17824423 | T45: ='Table 1 - Detailed'!M43 - 'Table 1 - Delta from previous'!M45 -> 75.95846407 | U45: ='Table 1 - Detailed'!N43 - 'Table 1 - Delta from previous'!N45 -> 93.14537605 | V45: ='Table 1 - Detailed'!O43 - 'Table 1 - Delta from previous'!O45 -> 93.14537605 | W45: ='Table 1 - Detailed'!P43 - 'Table 1 - Delta from previous'!P45 -> 93.14537605
F46: Actual load related capex | G46: £m 20/21 prices | H46: ALCUt | R46: ='Table 1 - Detailed'!K44 - 'Table 1 - Delta from previous'!K46 -> 25.28223486 | S46: ='Table 1 - Detailed'!L44 - 'Table 1 - Delta from previous'!L46 -> 33.72778384 | T46: ='Table 1 - Detailed'!M44 - 'Table 1 - Delta from previous'!M46 -> 33.72778384 | U46: ='Table 1 - Detailed'!N44 - 'Table 1 - Delta from previous'!N46 -> 33.72778384 | V46: ='Table 1 - Detailed'!O44 - 'Table 1 - Delta from previous'!O46 -> 33.72778384 | W46: ='Table 1 - Detailed'!P44 - 'Table 1 - Delta from previous'!P46 -> 33.72778384
F47: Actual non-load related capex - asset replacement | G47: £m 20/21 prices | H47: ANCAUt | R47: ='Table 1 - Detailed'!K45 - 'Table 1 - Delta from previous'!K47 -> 10.12025132 | S47: ='Table 1 - Detailed'!L45 - 'Table 1 - Delta from previous'!L47 -> 17.67716829 | T47: ='Table 1 - Detailed'!M45 - 'Table 1 - Delta from previous'!M47 -> 20.80530304 | U47: ='Table 1 - Detailed'!N45 - 'Table 1 - Delta from previous'!N47 -> 21.03169898 | V47: ='Table 1 - Detailed'!O45 - 'Table 1 - Delta from previous'!O47 -> 21.03169898 | W47: ='Table 1 - Detailed'!P45 - 'Table 1 - Delta from previous'!P47 -> 21.03169898
F48: Actual non-load related capex - other | G48: £m 20/21 prices | H48: ANCOUt | R48: ='Table 1 - Detailed'!K46 - 'Table 1 - Delta from previous'!K48 -> 6.790578179 | S48: ='Table 1 - Detailed'!L46 - 'Table 1 - Delta from previous'!L48 -> 21.24170427 | T48: ='Table 1 - Detailed'!M46 - 'Table 1 - Delta from previous'!M48 -> 35.24170427 | U48: ='Table 1 - Detailed'!N46 - 'Table 1 - Delta from previous'!N48 -> 37.24170427 | V48: ='Table 1 - Detailed'!O46 - 'Table 1 - Delta from previous'!O48 -> 37.24170427 | W48: ='Table 1 - Detailed'!P46 - 'Table 1 - Delta from previous'!P48 -> 37.24170427
F49: Actual faults | G49: £m 20/21 prices | H49: AFAUt | R49: ='Table 1 - Detailed'!K47 - 'Table 1 - Delta from previous'!K49 -> 6.166632489 | S49: ='Table 1 - Detailed'!L47 - 'Table 1 - Delta from previous'!L49 -> 0 | T49: ='Table 1 - Detailed'!M47 - 'Table 1 - Delta from previous'!M49 -> 0 | U49: ='Table 1 - Detailed'!N47 - 'Table 1 - Delta from previous'!N49 -> 0 | V49: ='Table 1 - Detailed'!O47 - 'Table 1 - Delta from previous'!O49 -> 0 | W49: ='Table 1 - Detailed'!P47 - 'Table 1 - Delta from previous'!P49 -> 0
F50: Actual tree cutting | G50: £m 20/21 prices | H50: ATCUt | R50: ='Table 1 - Detailed'!K48 - 'Table 1 - Delta from previous'!K50 -> 0 | S50: ='Table 1 - Detailed'!L48 - 'Table 1 - Delta from previous'!L50 -> 0 | T50: ='Table 1 - Detailed'!M48 - 'Table 1 - Delta from previous'!M50 -> 0 | U50: ='Table 1 - Detailed'!N48 - 'Table 1 - Delta from previous'!N50 -> 0 | V50: ='Table 1 - Detailed'!O48 - 'Table 1 - Delta from previous'!O50 -> 0 | W50: ='Table 1 - Detailed'!P48 - 'Table 1 - Delta from previous'!P50 -> 0
F51: Actual 100% ‘revenue pool’ expenditure | G51: £m 20/21 prices | H51: ARPUt | R51: ='Table 1 - Detailed'!K49 - 'Table 1 - Delta from previous'!K51 -> 0 | S51: ='Table 1 - Detailed'!L49 - 'Table 1 - Delta from previous'!L51 -> 0 | T51: ='Table 1 - Detailed'!M49 - 'Table 1 - Delta from previous'!M51 -> 0 | U51: ='Table 1 - Detailed'!N49 - 'Table 1 - Delta from previous'!N51 -> 0 | V51: ='Table 1 - Detailed'!O49 - 'Table 1 - Delta from previous'!O51 -> 0 | W51: ='Table 1 - Detailed'!P49 - 'Table 1 - Delta from previous'!P51 -> 0
F52: Actual controllable opex | G52: £m 20/21 prices | H52: ACOUt | R52: ='Table 1 - Detailed'!K50 - 'Table 1 - Delta from previous'!K52 -> 0 | S52: ='Table 1 - Detailed'!L50 - 'Table 1 - Delta from previous'!L52 -> 0 | T52: ='Table 1 - Detailed'!M50 - 'Table 1 - Delta from previous'!M52 -> 0 | U52: ='Table 1 - Detailed'!N50 - 'Table 1 - Delta from previous'!N52 -> 0 | V52: ='Table 1 - Detailed'!O50 - 'Table 1 - Delta from previous'!O52 -> 0 | W52: ='Table 1 - Detailed'!P50 - 'Table 1 - Delta from previous'!P52 -> 0
F53: Total actual expenditure in capitalisation rate allocation 2 | G53: £m 20/21 prices | K53: =SUM(K46:K52) -> 0 | L53: =SUM(L46:L52) -> 0 | M53: 0 | N53: 0 | O53: 0 | P53: 0 | R53: ='Table 1 - Detailed'!K51 - 'Table 1 - Delta from previous'!K53 -> 48.35969684 | S53: ='Table 1 - Detailed'!L51 - 'Table 1 - Delta from previous'!L53 -> 72.6466564 | T53: ='Table 1 - Detailed'!M51 - 'Table 1 - Delta from previous'!M53 -> 89.77479115 | U53: ='Table 1 - Detailed'!N51 - 'Table 1 - Delta from previous'!N53 -> 92.00118709 | V53: ='Table 1 - Detailed'!O51 - 'Table 1 - Delta from previous'!O53 -> 92.00118709 | W53: ='Table 1 - Detailed'!P51 - 'Table 1 - Delta from previous'!P53 -> 92.00118709
F54: RIIO-2 Funding Adjustment Rate (often referred to as 'sharing factor') | G54: % | H54: SF | K54: =K34 -> 0 | L54: =L34 -> 0 | M54: 0 | N54: 0 | O54: 0 | P54: 0 | R54: ='Table 1 - Detailed'!K52 - 'Table 1 - Delta from previous'!K54 -> 0.5 | S54: ='Table 1 - Detailed'!L52 - 'Table 1 - Delta from previous'!L54 -> 0.5 | T54: ='Table 1 - Detailed'!M52 - 'Table 1 - Delta from previous'!M54 -> 0.5 | U54: ='Table 1 - Detailed'!N52 - 'Table 1 - Delta from previous'!N54 -> 0.5 | V54: ='Table 1 - Detailed'!O52 - 'Table 1 - Delta from previous'!O54 -> 0.5 | W54: ='Table 1 - Detailed'!P52 - 'Table 1 - Delta from previous'!P54 -> 0.5
F55: Post-TIM totex Allocation 2 | G55: £m 20/21 prices | K55: =IF(K53 > 0, (K53 - K45) * K54 + K45, K45) -> 0 | L55: =IF(L53 > 0, (L53 - L45) * L54 + L45, L45) -> 0 | M55: 0 | N55: 0 | O55: 0 | P55: 0 | R55: ='Table 1 - Detailed'!K53 - 'Table 1 - Delta from previous'!K55 -> 53.36395283 | S55: ='Table 1 - Detailed'!L53 - 'Table 1 - Delta from previous'!L55 -> 66.91245031 | T55: ='Table 1 - Detailed'!M53 - 'Table 1 - Delta from previous'!M55 -> 82.86662761 | U55: ='Table 1 - Detailed'!N53 - 'Table 1 - Delta from previous'!N55 -> 92.57328157 | V55: ='Table 1 - Detailed'!O53 - 'Table 1 - Delta from previous'!O55 -> 92.57328157 | W55: ='Table 1 - Detailed'!P53 - 'Table 1 - Delta from previous'!P55 -> 92.57328157
F56: RIIO-2 allocation 2 Capitalisation rate | G56: % | R56: ='Table 1 - Detailed'!K54 - 'Table 1 - Delta from previous'!K56 -> 0.85 | S56: ='Table 1 - Detailed'!L54 - 'Table 1 - Delta from previous'!L56 -> 0.85 | T56: ='Table 1 - Detailed'!M54 - 'Table 1 - Delta from previous'!M56 -> 0.85 | U56: ='Table 1 - Detailed'!N54 - 'Table 1 - Delta from previous'!N56 -> 0.85 | V56: ='Table 1 - Detailed'!O54 - 'Table 1 - Delta from previous'!O56 -> 0.85 | W56: ='Table 1 - Detailed'!P54 - 'Table 1 - Delta from previous'!P56 -> 0.85
E57: Fast Pot Allocation 2 | G57: £m 20/21 prices | K57: =(1 - K56) * K55 -> 0 | L57: =(1 - L56) * L55 -> 0 | M57: 0 | N57: 0 | O57: 0 | P57: 0 | R57: ='Table 1 - Detailed'!K55 - 'Table 1 - Delta from previous'!K57 -> 8.004592925 | S57: ='Table 1 - Detailed'!L55 - 'Table 1 - Delta from previous'!L57 -> 10.03686755 | T57: ='Table 1 - Detailed'!M55 - 'Table 1 - Delta from previous'!M57 -> 12.42999414 | U57: ='Table 1 - Detailed'!N55 - 'Table 1 - Delta from previous'!N57 -> 13.88599224 | V57: ='Table 1 - Detailed'!O55 - 'Table 1 - Delta from previous'!O57 -> 13.88599224 | W57: ='Table 1 - Detailed'!P55 - 'Table 1 - Delta from previous'!P57 -> 13.88599224
D58: Fast money | G58: £m 20/21 prices | H58: FMt | K58: =K37 + K57 -> 0 | L58: =L37 + L57 -> 0 | M58: 0 | N58: 0 | O58: 0 | P58: 0 | R58: ='Table 1 - Detailed'!K56 - 'Table 1 - Delta from previous'!K58 -> 92.71117812 | S58: ='Table 1 - Detailed'!L56 - 'Table 1 - Delta from previous'!L58 -> 95.24455981 | T58: ='Table 1 - Detailed'!M56 - 'Table 1 - Delta from previous'!M58 -> 92.61475771 | U58: ='Table 1 - Detailed'!N56 - 'Table 1 - Delta from previous'!N58 -> 91.58459937 | V58: ='Table 1 - Detailed'!O56 - 'Table 1 - Delta from previous'!O58 -> 91.58459937 | W58: ='Table 1 - Detailed'!P56 - 'Table 1 - Delta from previous'!P58 -> 91.58459937
E59: Post-vesting pre-RIIO depreciation | G59: £m 20/21 prices | R59: ='Table 1 - Detailed'!K57 - 'Table 1 - Delta from previous'!K59 -> 99.22889081 | S59: ='Table 1 - Detailed'!L57 - 'Table 1 - Delta from previous'!L59 -> 91.94743761 | T59: ='Table 1 - Detailed'!M57 - 'Table 1 - Delta from previous'!M59 -> 84.47552936 | U59: ='Table 1 - Detailed'!N57 - 'Table 1 - Delta from previous'!N59 -> 74.01975275 | V59: ='Table 1 - Detailed'!O57 - 'Table 1 - Delta from previous'!O59 -> 74.01975275 | W59: ='Table 1 - Detailed'!P57 - 'Table 1 - Delta from previous'!P59 -> 74.01975275
E60: RIIO-1 depreciation | G60: £m 20/21 prices | R60: ='Table 1 - Detailed'!K58 - 'Table 1 - Delta from previous'!K60 -> 52.87471219 | S60: ='Table 1 - Detailed'!L58 - 'Table 1 - Delta from previous'!L60 -> 52.87471219 | T60: ='Table 1 - Detailed'!M58 - 'Table 1 - Delta from previous'!M60 -> 52.87471219 | U60: ='Table 1 - Detailed'!N58 - 'Table 1 - Delta from previous'!N60 -> 52.87471219 | V60: ='Table 1 - Detailed'!O58 - 'Table 1 - Delta from previous'!O60 -> 52.87471219 | W60: ='Table 1 - Detailed'!P58 - 'Table 1 - Delta from previous'!P60 -> 52.87471219
E61: RIIO-2 depreciation | G61: £m 20/21 prices | R61: ='Table 1 - Detailed'!K59 - 'Table 1 - Delta from previous'!K61 -> 4.539109028 | S61: ='Table 1 - Detailed'!L59 - 'Table 1 - Delta from previous'!L61 -> 9.93928811 | T61: ='Table 1 - Detailed'!M59 - 'Table 1 - Delta from previous'!M61 -> 15.62136659 | U61: ='Table 1 - Detailed'!N59 - 'Table 1 - Delta from previous'!N61 -> 21.34435359 | V61: ='Table 1 - Detailed'!O59 - 'Table 1 - Delta from previous'!O61 -> 21.34435359 | W61: ='Table 1 - Detailed'!P59 - 'Table 1 - Delta from previous'!P61 -> 21.34435359
D62: Depreciation | G62: £m 20/21 prices | H62: DPNt | K62: =K59 + K60 + K61 -> 0 | L62: =L59 + L60 + L61 -> 0 | M62: 0 | N62: 0 | O62: 0 | P62: 0 | R62: ='Table 1 - Detailed'!K60 - 'Table 1 - Delta from previous'!K62 -> 156.642712 | S62: ='Table 1 - Detailed'!L60 - 'Table 1 - Delta from previous'!L62 -> 154.7614379 | T62: ='Table 1 - Detailed'!M60 - 'Table 1 - Delta from previous'!M62 -> 152.9716081 | U62: ='Table 1 - Detailed'!N60 - 'Table 1 - Delta from previous'!N62 -> 148.2388185 | V62: ='Table 1 - Detailed'!O60 - 'Table 1 - Delta from previous'!O62 -> 148.2388185 | W62: ='Table 1 - Detailed'!P60 - 'Table 1 - Delta from previous'!P62 -> 148.2388185
E63: Vanilla WACC | G63: annual real % | R63: ='Table 1 - Detailed'!K61 - 'Table 1 - Delta from previous'!K63 -> 0.0413701832 | S63: ='Table 1 - Detailed'!L61 - 'Table 1 - Delta from previous'!L63 -> 0.0409301584 | T63: ='Table 1 - Detailed'!M61 - 'Table 1 - Delta from previous'!M63 -> 0.041868818 | U63: ='Table 1 - Detailed'!N61 - 'Table 1 - Delta from previous'!N63 -> 0.0413087932 | V63: ='Table 1 - Detailed'!O61 - 'Table 1 - Delta from previous'!O63 -> 0.0413087932 | W63: ='Table 1 - Detailed'!P61 - 'Table 1 - Delta from previous'!P63 -> 0.0413087932
E64: Single year discount factor | G64: scalar | K64: =1 / (1 + K63) -> 1 | L64: 1 | M64: 1 | N64: 1 | O64: 1 | P64: 1 | R64: ='Table 1 - Detailed'!K62 - 'Table 1 - Delta from previous'!K64 -> -0.03972668304 | S64: ='Table 1 - Detailed'!L62 - 'Table 1 - Delta from previous'!L64 -> -0.03932075372 | T64: ='Table 1 - Detailed'!M62 - 'Table 1 - Delta from previous'!M64 -> -0.04018626652 | U64: ='Table 1 - Detailed'!N62 - 'Table 1 - Delta from previous'!N64 -> -0.03967007046 | V64: ='Table 1 - Detailed'!O62 - 'Table 1 - Delta from previous'!O64 -> -0.03967007046 | W64: ='Table 1 - Detailed'!P62 - 'Table 1 - Delta from previous'!P64 -> -0.03967007046
E65: Closing RAV | G65: £m 20/21 prices | R65: ='Table 1 - Detailed'!K63 - 'Table 1 - Delta from previous'!K65 -> 2334.243039 | S65: ='Table 1 - Detailed'!L63 - 'Table 1 - Delta from previous'!L65 -> 2435.175132 | T65: ='Table 1 - Detailed'!M63 - 'Table 1 - Delta from previous'!M65 -> 2539.737939 | U65: ='Table 1 - Detailed'!N63 - 'Table 1 - Delta from previous'!N65 -> 2651.48316 | V65: ='Table 1 - Detailed'!O63 - 'Table 1 - Delta from previous'!O65 -> 2651.48316 | W65: ='Table 1 - Detailed'!P63 - 'Table 1 - Delta from previous'!P65 -> 2651.48316
E66: Opening RAV (after transfers) | G66: £m 20/21 prices | R66: ='Table 1 - Detailed'!K64 - 'Table 1 - Delta from previous'!K66 -> 2247.877692 | S66: ='Table 1 - Detailed'!L64 - 'Table 1 - Delta from previous'!L66 -> 2334.243039 | T66: ='Table 1 - Detailed'!M64 - 'Table 1 - Delta from previous'!M66 -> 2435.175132 | U66: ='Table 1 - Detailed'!N64 - 'Table 1 - Delta from previous'!N66 -> 2539.737939 | V66: ='Table 1 - Detailed'!O64 - 'Table 1 - Delta from previous'!O66 -> 2539.737939 | W66: ='Table 1 - Detailed'!P64 - 'Table 1 - Delta from previous'!P66 -> 2539.737939
E67: Discounted closing RAV | G67: £m 20/21 prices | K67: =K64 * K65 -> 0 | L67: =L64 * L65 -> 0 | M67: 0 | N67: 0 | O67: 0 | P67: 0 | R67: ='Table 1 - Detailed'!K65 - 'Table 1 - Delta from previous'!K67 -> 2241.511306 | S67: ='Table 1 - Detailed'!L65 - 'Table 1 - Delta from previous'!L67 -> 2339.422211 | T67: ='Table 1 - Detailed'!M65 - 'Table 1 - Delta from previous'!M67 -> 2437.675354 | U67: ='Table 1 - Detailed'!N65 - 'Table 1 - Delta from previous'!N67 -> 2546.298636 | V67: ='Table 1 - Detailed'!O65 - 'Table 1 - Delta from previous'!O67 -> 2546.298636 | W67: ='Table 1 - Detailed'!P65 - 'Table 1 - Delta from previous'!P67 -> 2546.298636
E68: NPV-neutral RAV return base | G68: £m 20/21 prices | K68: =AVERAGE(K66:K67) -> 0 | L68: 0 | M68: 0 | N68: 0 | O68: 0 | P68: 0 | R68: ='Table 1 - Detailed'!K66 - 'Table 1 - Delta from previous'!K68 -> 2244.694499 | S68: ='Table 1 - Detailed'!L66 - 'Table 1 - Delta from previous'!L68 -> 2336.832625 | T68: ='Table 1 - Detailed'!M66 - 'Table 1 - Delta from previous'!M68 -> 2436.425243 | U68: ='Table 1 - Detailed'!N66 - 'Table 1 - Delta from previous'!N68 -> 2543.018288 | V68: ='Table 1 - Detailed'!O66 - 'Table 1 - Delta from previous'!O68 -> 2543.018288 | W68: ='Table 1 - Detailed'!P66 - 'Table 1 - Delta from previous'!P68 -> 2543.018288
D69: Return | G69: £m 20/21 prices | H69: RTNt | K69: =K68 * K63 -> 0 | L69: =L68 * L63 -> 0 | M69: 0 | N69: 0 | O69: 0 | P69: 0 | R69: ='Table 1 - Detailed'!K67 - 'Table 1 - Delta from previous'!K69 -> 92.86342265 | S69: ='Table 1 - Detailed'!L67 - 'Table 1 - Delta from previous'!L69 -> 95.64692949 | T69: ='Table 1 - Detailed'!M67 - 'Table 1 - Delta from previous'!M69 -> 102.0102451 | U69: ='Table 1 - Detailed'!N67 - 'Table 1 - Delta from previous'!N69 -> 105.0490166 | V69: ='Table 1 - Detailed'!O67 - 'Table 1 - Delta from previous'!O69 -> 105.0490166 | W69: ='Table 1 - Detailed'!P67 - 'Table 1 - Delta from previous'!P69 -> 105.0490166
E70: Licence Fee Payments | G70: £m 20/21 prices | H70: LFt | R70: ='Table 1 - Detailed'!K68 - 'Table 1 - Delta from previous'!K70 -> 1.589545911 | S70: ='Table 1 - Detailed'!L68 - 'Table 1 - Delta from previous'!L70 -> 1.738646119 | T70: ='Table 1 - Detailed'!M68 - 'Table 1 - Delta from previous'!M70 -> 1.873580565 | U70: ='Table 1 - Detailed'!N68 - 'Table 1 - Delta from previous'!N70 -> 2.013948851 | V70: ='Table 1 - Detailed'!O68 - 'Table 1 - Delta from previous'!O70 -> 2.013948851 | W70: ='Table 1 - Detailed'!P68 - 'Table 1 - Delta from previous'!P70 -> 2.013948851
E71: Prescribed Rates | G71: £m 20/21 prices | H71: RBt | R71: ='Table 1 - Detailed'!K69 - 'Table 1 - Delta from previous'!K71 -> 22.05209056 | S71: ='Table 1 - Detailed'!L69 - 'Table 1 - Delta from previous'!L71 -> 21.81819223 | T71: ='Table 1 - Detailed'!M69 - 'Table 1 - Delta from previous'!M71 -> 26.5602701 | U71: ='Table 1 - Detailed'!N69 - 'Table 1 - Delta from previous'!N71 -> 28.37230314 | V71: ='Table 1 - Detailed'!O69 - 'Table 1 - Delta from previous'!O71 -> 28.37230314 | W71: ='Table 1 - Detailed'!P69 - 'Table 1 - Delta from previous'!P71 -> 28.37230314
E72: Pass-through Transmission Connection Point Charges | G72: £m 20/21 prices | H72: TBt | R72: ='Table 1 - Detailed'!K70 - 'Table 1 - Delta from previous'!K72 -> 15.32083785 | S72: ='Table 1 - Detailed'!L70 - 'Table 1 - Delta from previous'!L72 -> 15.89137514 | T72: ='Table 1 - Detailed'!M70 - 'Table 1 - Delta from previous'!M72 -> 16.1610012 | U72: ='Table 1 - Detailed'!N70 - 'Table 1 - Delta from previous'!N72 -> 16.17835922 | V72: ='Table 1 - Detailed'!O70 - 'Table 1 - Delta from previous'!O72 -> 16.17835922 | W72: ='Table 1 - Detailed'!P70 - 'Table 1 - Delta from previous'!P72 -> 16.17835922
E73: Smart Meter Communication Licensee Costs | G73: £m 20/21 prices | H73: SMCt | R73: ='Table 1 - Detailed'!K71 - 'Table 1 - Delta from previous'!K73 -> 1.261108716 | S73: ='Table 1 - Detailed'!L71 - 'Table 1 - Delta from previous'!L73 -> 1.601164483 | T73: ='Table 1 - Detailed'!M71 - 'Table 1 - Delta from previous'!M73 -> 1.671979565 | U73: ='Table 1 - Detailed'!N71 - 'Table 1 - Delta from previous'!N73 -> 10.37621549 | V73: ='Table 1 - Detailed'!O71 - 'Table 1 - Delta from previous'!O73 -> 10.37621549 | W73: ='Table 1 - Detailed'!P71 - 'Table 1 - Delta from previous'!P73 -> 10.37621549
E74: Smart Meter Information Technology Costs | G74: £m 20/21 prices | H74: SMITt | R74: ='Table 1 - Detailed'!K72 - 'Table 1 - Delta from previous'!K74 -> 0.8547503881 | S74: ='Table 1 - Detailed'!L72 - 'Table 1 - Delta from previous'!L74 -> 1.157709633 | T74: ='Table 1 - Detailed'!M72 - 'Table 1 - Delta from previous'!M74 -> 1.157709633 | U74: ='Table 1 - Detailed'!N72 - 'Table 1 - Delta from previous'!N74 -> 1.157709633 | V74: ='Table 1 - Detailed'!O72 - 'Table 1 - Delta from previous'!O74 -> 1.157709633 | W74: ='Table 1 - Detailed'!P72 - 'Table 1 - Delta from previous'!P74 -> 1.157709633
E75: Ring Fence Costs | G75: £m 20/21 prices | H75: RFt | R75: ='Table 1 - Detailed'!K73 - 'Table 1 - Delta from previous'!K75 -> 0 | S75: ='Table 1 - Detailed'!L73 - 'Table 1 - Delta from previous'!L75 -> 0 | T75: ='Table 1 - Detailed'!M73 - 'Table 1 - Delta from previous'!M75 -> 0 | U75: ='Table 1 - Detailed'!N73 - 'Table 1 - Delta from previous'!N75 -> 0 | V75: ='Table 1 - Detailed'!O73 - 'Table 1 - Delta from previous'!O75 -> 0 | W75: ='Table 1 - Detailed'!P73 - 'Table 1 - Delta from previous'!P75 -> 0
E76: Supplier of Last Resort Net Costs | G76: £m 20/21 prices | H76: SLRt | R76: ='Table 1 - Detailed'!K74 - 'Table 1 - Delta from previous'!K76 -> 0.3366040745 | S76: ='Table 1 - Detailed'!L74 - 'Table 1 - Delta from previous'!L76 -> -0.3946998996 | T76: ='Table 1 - Detailed'!M74 - 'Table 1 - Delta from previous'!M76 -> -1.856810772 | U76: ='Table 1 - Detailed'!N74 - 'Table 1 - Delta from previous'!N76 -> 0 | V76: ='Table 1 - Detailed'!O74 - 'Table 1 - Delta from previous'!O76 -> 0 | W76: ='Table 1 - Detailed'!P74 - 'Table 1 - Delta from previous'!P76 -> 0
E77: Valid Bad Debt Claims | G77: £m 20/21 prices | H77: IBDAt | R77: ='Table 1 - Detailed'!K75 - 'Table 1 - Delta from previous'!K77 -> 0.1163674858 | S77: ='Table 1 - Detailed'!L75 - 'Table 1 - Delta from previous'!L77 -> 0 | T77: ='Table 1 - Detailed'!M75 - 'Table 1 - Delta from previous'!M77 -> 0 | U77: ='Table 1 - Detailed'!N75 - 'Table 1 - Delta from previous'!N77 -> 0 | V77: ='Table 1 - Detailed'!O75 - 'Table 1 - Delta from previous'!O77 -> 0 | W77: ='Table 1 - Detailed'!P75 - 'Table 1 - Delta from previous'!P77 -> 0
E78: Pension Scheme Established Deficit repair expenditure | G78: £m 20/21 prices | H78: EDEt | R78: ='Table 1 - Detailed'!K76 - 'Table 1 - Delta from previous'!K78 -> 33.28437553 | S78: ='Table 1 - Detailed'!L76 - 'Table 1 - Delta from previous'!L78 -> 33.28437553 | T78: ='Table 1 - Detailed'!M76 - 'Table 1 - Delta from previous'!M78 -> 33.28437553 | U78: ='Table 1 - Detailed'!N76 - 'Table 1 - Delta from previous'!N78 -> 13.58502022 | V78: ='Table 1 - Detailed'!O76 - 'Table 1 - Delta from previous'!O78 -> 13.58502022 | W78: ='Table 1 - Detailed'!P76 - 'Table 1 - Delta from previous'!P78 -> 13.58502022
E79: Failed Supplier Recovered Costs | G79: £m 20/21 prices | H79: SRCt | R79: ='Table 1 - Detailed'!K77 - 'Table 1 - Delta from previous'!K79 -> 0 | S79: ='Table 1 - Detailed'!L77 - 'Table 1 - Delta from previous'!L79 -> 0 | T79: ='Table 1 - Detailed'!M77 - 'Table 1 - Delta from previous'!M79 -> 0 | U79: ='Table 1 - Detailed'!N77 - 'Table 1 - Delta from previous'!N79 -> 0 | V79: ='Table 1 - Detailed'!O77 - 'Table 1 - Delta from previous'!O79 -> 0 | W79: ='Table 1 - Detailed'!P77 - 'Table 1 - Delta from previous'!P79 -> 0
E80: Shetland Variable Energy Costs (SSEH only) | G80: £m 20/21 prices | H80: SECt | R80: ='Table 1 - Detailed'!K78 - 'Table 1 - Delta from previous'!K80 -> 0 | S80: ='Table 1 - Detailed'!L78 - 'Table 1 - Delta from previous'!L80 -> 0 | T80: ='Table 1 - Detailed'!M78 - 'Table 1 - Delta from previous'!M80 -> 0 | U80: ='Table 1 - Detailed'!N78 - 'Table 1 - Delta from previous'!N80 -> 0 | V80: ='Table 1 - Detailed'!O78 - 'Table 1 - Delta from previous'!O80 -> 0 | W80: ='Table 1 - Detailed'!P78 - 'Table 1 - Delta from previous'!P80 -> 0
E81: Assistance for high-cost distributors adjustment (SSEH only) | G81: £m 20/21 prices | H81: HBt | R81: ='Table 1 - Detailed'!K79 - 'Table 1 - Delta from previous'!K81 -> 0 | S81: ='Table 1 - Detailed'!L79 - 'Table 1 - Delta from previous'!L81 -> 0 | T81: ='Table 1 - Detailed'!M79 - 'Table 1 - Delta from previous'!M81 -> 0 | U81: ='Table 1 - Detailed'!N79 - 'Table 1 - Delta from previous'!N81 -> 0 | V81: ='Table 1 - Detailed'!O79 - 'Table 1 - Delta from previous'!O81 -> 0 | W81: ='Table 1 - Detailed'!P79 - 'Table 1 - Delta from previous'!P81 -> 0
D82: Pass-through | G82: £m 20/21 prices | H82: PTt | K82: =SUM(K70:K78, K80) - K79 - K81 -> 0 | L82: =SUM(L70:L78, L80) - L79 - L81 -> 0 | M82: 0 | N82: 0 | O82: 0 | P82: 0 | R82: ='Table 1 - Detailed'!K80 - 'Table 1 - Delta from previous'!K82 -> 74.81568052 | S82: ='Table 1 - Detailed'!L80 - 'Table 1 - Delta from previous'!L82 -> 75.09676324 | T82: ='Table 1 - Detailed'!M80 - 'Table 1 - Delta from previous'!M82 -> 78.85210583 | U82: ='Table 1 - Detailed'!N80 - 'Table 1 - Delta from previous'!N82 -> 71.68355656 | V82: ='Table 1 - Detailed'!O80 - 'Table 1 - Delta from previous'!O82 -> 71.68355656 | W82: ='Table 1 - Detailed'!P80 - 'Table 1 - Delta from previous'!P82 -> 71.68355656
C83: Base Revenue | G83: £m 20/21 prices | K83: =K58 + K62 + K69 + K82 -> 0 | L83: =L58 + L62 + L69 + L82 -> 0 | M83: 0 | N83: 0 | O83: 0 | P83: 0 | R83: ='Table 1 - Detailed'!K81 - 'Table 1 - Delta from previous'!K83 -> 417.0329933 | S83: ='Table 1 - Detailed'!L81 - 'Table 1 - Delta from previous'!L83 -> 420.7496905 | T83: ='Table 1 - Detailed'!M81 - 'Table 1 - Delta from previous'!M83 -> 426.4487167 | U83: ='Table 1 - Detailed'!N81 - 'Table 1 - Delta from previous'!N83 -> 416.555991 | V83: ='Table 1 - Detailed'!O81 - 'Table 1 - Delta from previous'!O83 -> 416.555991 | W83: ='Table 1 - Detailed'!P81 - 'Table 1 - Delta from previous'!P83 -> 416.555991
D84: Return Adjustment (note: this row is not active. It will be linked to ReturnAdj for closeout) | G84: £m 20/21 prices | H84: RTNAt | R84: ='Table 1 - Detailed'!K82 - 'Table 1 - Delta from previous'!K84 -> 0 | S84: ='Table 1 - Detailed'!L82 - 'Table 1 - Delta from previous'!L84 -> 0 | T84: ='Table 1 - Detailed'!M82 - 'Table 1 - Delta from previous'!M84 -> 0 | U84: ='Table 1 - Detailed'!N82 - 'Table 1 - Delta from previous'!N84 -> 0 | V84: ='Table 1 - Detailed'!O82 - 'Table 1 - Delta from previous'!O84 -> 0 | W84: ='Table 1 - Detailed'!P82 - 'Table 1 - Delta from previous'!P84 -> 0
D85: Equity issuance costs | G85: £m 20/21 prices | H85: EICt | R85: ='Table 1 - Detailed'!K83 - 'Table 1 - Delta from previous'!K85 -> 0 | S85: ='Table 1 - Detailed'!L83 - 'Table 1 - Delta from previous'!L85 -> 0 | T85: ='Table 1 - Detailed'!M83 - 'Table 1 - Delta from previous'!M85 -> 0 | U85: ='Table 1 - Detailed'!N83 - 'Table 1 - Delta from previous'!N85 -> 0 | V85: ='Table 1 - Detailed'!O83 - 'Table 1 - Delta from previous'!O85 -> 0 | W85: ='Table 1 - Detailed'!P83 - 'Table 1 - Delta from previous'!P85 -> 0
D86: Business plan incentive | G86: £m 20/21 prices | H86: BPIt | R86: ='Table 1 - Detailed'!K84 - 'Table 1 - Delta from previous'!K86 -> 0 | S86: ='Table 1 - Detailed'!L84 - 'Table 1 - Delta from previous'!L86 -> 0 | T86: ='Table 1 - Detailed'!M84 - 'Table 1 - Delta from previous'!M86 -> 0 | U86: ='Table 1 - Detailed'!N84 - 'Table 1 - Delta from previous'!N86 -> 0 | V86: ='Table 1 - Detailed'!O84 - 'Table 1 - Delta from previous'!O86 -> 0 | W86: ='Table 1 - Detailed'!P84 - 'Table 1 - Delta from previous'!P86 -> 0
E87: Time to connect ODI | G87: £m 20/21 prices | H87: TTCt | R87: ='Table 1 - Detailed'!K85 - 'Table 1 - Delta from previous'!K87 -> 0.4428036204 | S87: ='Table 1 - Detailed'!L85 - 'Table 1 - Delta from previous'!L87 -> 0.6882721153 | T87: ='Table 1 - Detailed'!M85 - 'Table 1 - Delta from previous'!M87 -> 0.4363287 | U87: ='Table 1 - Detailed'!N85 - 'Table 1 - Delta from previous'!N87 -> 0.4363287 | V87: ='Table 1 - Detailed'!O85 - 'Table 1 - Delta from previous'!O87 -> 0.4363287 | W87: ='Table 1 - Detailed'!P85 - 'Table 1 - Delta from previous'!P87 -> 0.4363287
E88: Broad Measure of Customer Service ODI | G88: £m 20/21 prices | H88: BMCSt | R88: ='Table 1 - Detailed'!K86 - 'Table 1 - Delta from previous'!K88 -> 0.9617925826 | S88: ='Table 1 - Detailed'!L86 - 'Table 1 - Delta from previous'!L88 -> 1.364275354 | T88: ='Table 1 - Detailed'!M86 - 'Table 1 - Delta from previous'!M88 -> 2.7972 | U88: ='Table 1 - Detailed'!N86 - 'Table 1 - Delta from previous'!N88 -> 3.323 | V88: ='Table 1 - Detailed'!O86 - 'Table 1 - Delta from previous'!O88 -> 3.323 | W88: ='Table 1 - Detailed'!P86 - 'Table 1 - Delta from previous'!P88 -> 3.323
E89: Interruptions incentive scheme ODI | G89: £m 20/21 prices | H89: IQt | R89: ='Table 1 - Detailed'!K87 - 'Table 1 - Delta from previous'!K89 -> -0.6040822633 | S89: ='Table 1 - Detailed'!L87 - 'Table 1 - Delta from previous'!L89 -> 0.9699555781 | T89: ='Table 1 - Detailed'!M87 - 'Table 1 - Delta from previous'!M89 -> 1.255965 | U89: ='Table 1 - Detailed'!N87 - 'Table 1 - Delta from previous'!N89 -> 1.25358 | V89: ='Table 1 - Detailed'!O87 - 'Table 1 - Delta from previous'!O89 -> 1.25358 | W89: ='Table 1 - Detailed'!P87 - 'Table 1 - Delta from previous'!P89 -> 1.25358
E90: Major connections ODI | G90: £m 20/21 prices | H90: MCt | R90: ='Table 1 - Detailed'!K88 - 'Table 1 - Delta from previous'!K90 -> 0 | S90: ='Table 1 - Detailed'!L88 - 'Table 1 - Delta from previous'!L90 -> 0 | T90: ='Table 1 - Detailed'!M88 - 'Table 1 - Delta from previous'!M90 -> 0 | U90: ='Table 1 - Detailed'!N88 - 'Table 1 - Delta from previous'!N90 -> 0 | V90: ='Table 1 - Detailed'!O88 - 'Table 1 - Delta from previous'!O90 -> 0 | W90: ='Table 1 - Detailed'!P88 - 'Table 1 - Delta from previous'!P90 -> 0
E91: Consumer Vulnerability ODI | G91: £m 20/21 prices | H91: CVIt | R91: ='Table 1 - Detailed'!K89 - 'Table 1 - Delta from previous'!K91 -> 1.849 | S91: ='Table 1 - Detailed'!L89 - 'Table 1 - Delta from previous'!L91 -> 0 | T91: ='Table 1 - Detailed'!M89 - 'Table 1 - Delta from previous'!M91 -> 0 | U91: ='Table 1 - Detailed'!N89 - 'Table 1 - Delta from previous'!N91 -> 4.917406096 | V91: ='Table 1 - Detailed'!O89 - 'Table 1 - Delta from previous'!O91 -> 4.917406096 | W91: ='Table 1 - Detailed'!P89 - 'Table 1 - Delta from previous'!P91 -> 4.917406096
E92: Distribution System Operator ODI | G92: £m 20/21 prices | H92: DSOIt | R92: ='Table 1 - Detailed'!K90 - 'Table 1 - Delta from previous'!K92 -> 1.92292 | S92: ='Table 1 - Detailed'!L90 - 'Table 1 - Delta from previous'!L92 -> 0 | T92: ='Table 1 - Detailed'!M90 - 'Table 1 - Delta from previous'!M92 -> 0 | U92: ='Table 1 - Detailed'!N90 - 'Table 1 - Delta from previous'!N92 -> 0 | V92: ='Table 1 - Detailed'!O90 - 'Table 1 - Delta from previous'!O92 -> 0 | W92: ='Table 1 - Detailed'!P90 - 'Table 1 - Delta from previous'!P92 -> 0
E93: Dig, Fix and Go ODI (ENWL only) | G93: £m 20/21 prices | H93: DFGt | R93: ='Table 1 - Detailed'!K91 - 'Table 1 - Delta from previous'!K93 -> 0 | S93: ='Table 1 - Detailed'!L91 - 'Table 1 - Delta from previous'!L93 -> 0 | T93: ='Table 1 - Detailed'!M91 - 'Table 1 - Delta from previous'!M93 -> 0 | U93: ='Table 1 - Detailed'!N91 - 'Table 1 - Delta from previous'!N93 -> 0 | V93: ='Table 1 - Detailed'!O91 - 'Table 1 - Delta from previous'!O93 -> 0 | W93: ='Table 1 - Detailed'!P91 - 'Table 1 - Delta from previous'!P93 -> 0
E94: Collaborative Streetworks ODI (EPN, LPN and SPN only) | G94: £m 20/21 prices | H94: CSWt | R94: ='Table 1 - Detailed'!K92 - 'Table 1 - Delta from previous'!K94 -> 0 | S94: ='Table 1 - Detailed'!L92 - 'Table 1 - Delta from previous'!L94 -> 0 | T94: ='Table 1 - Detailed'!M92 - 'Table 1 - Delta from previous'!M94 -> 0 | U94: ='Table 1 - Detailed'!N92 - 'Table 1 - Delta from previous'!N94 -> 0 | V94: ='Table 1 - Detailed'!O92 - 'Table 1 - Delta from previous'!O94 -> 0 | W94: ='Table 1 - Detailed'!P92 - 'Table 1 - Delta from previous'!P94 -> 0
D95: Output delivery incentive | G95: £m 20/21 prices | H95: ODIt | K95: =SUM(K87:K94) -> 0 | L95: =SUM(L87:L94) -> 0 | M95: 0 | N95: 0 | O95: 0 | P95: 0 | R95: ='Table 1 - Detailed'!K93 - 'Table 1 - Delta from previous'!K95 -> 4.57243394 | S95: ='Table 1 - Detailed'!L93 - 'Table 1 - Delta from previous'!L95 -> 3.022503048 | T95: ='Table 1 - Detailed'!M93 - 'Table 1 - Delta from previous'!M95 -> 4.4894937 | U95: ='Table 1 - Detailed'!N93 - 'Table 1 - Delta from previous'!N95 -> 9.930314796 | V95: ='Table 1 - Detailed'!O93 - 'Table 1 - Delta from previous'!O95 -> 9.930314796 | W95: ='Table 1 - Detailed'!P93 - 'Table 1 - Delta from previous'!P95 -> 9.930314796
D96: Other revenue allowances | G96: £m 20/21 prices | H96: ORAt | R96: ='Table 1 - Detailed'!K94 - 'Table 1 - Delta from previous'!K96 -> 0.8161719951 | S96: ='Table 1 - Detailed'!L94 - 'Table 1 - Delta from previous'!L96 -> 4.314475496 | T96: ='Table 1 - Detailed'!M94 - 'Table 1 - Delta from previous'!M96 -> 0 | U96: ='Table 1 - Detailed'!N94 - 'Table 1 - Delta from previous'!N96 -> 0 | V96: ='Table 1 - Detailed'!O94 - 'Table 1 - Delta from previous'!O96 -> 0 | W96: ='Table 1 - Detailed'!P94 - 'Table 1 - Delta from previous'!P96 -> 0
D97: Directly Remunerated Services | G97: £m 20/21 prices | H97: DRSt | R97: ='Table 1 - Detailed'!K95 - 'Table 1 - Delta from previous'!K97 -> -0.1698850907 | S97: ='Table 1 - Detailed'!L95 - 'Table 1 - Delta from previous'!L97 -> -0.01471656657 | T97: ='Table 1 - Detailed'!M95 - 'Table 1 - Delta from previous'!M97 -> -0.01470800331 | U97: ='Table 1 - Detailed'!N95 - 'Table 1 - Delta from previous'!N97 -> -0.01467110567 | V97: ='Table 1 - Detailed'!O95 - 'Table 1 - Delta from previous'!O97 -> -0.01467110567 | W97: ='Table 1 - Detailed'!P95 - 'Table 1 - Delta from previous'!P97 -> -0.01467110567
C98: Calculated revenue (before tax) | G98: £m 20/21 prices | K98: =SUM(K83:K97) - K95 -> 0 | L98: =SUM(L83:L97) - L95 -> 0 | M98: 0 | N98: 0 | O98: 0 | P98: 0 | R98: ='Table 1 - Detailed'!K96 - 'Table 1 - Delta from previous'!K98 -> 422.2517142 | S98: ='Table 1 - Detailed'!L96 - 'Table 1 - Delta from previous'!L98 -> 428.0719524 | T98: ='Table 1 - Detailed'!M96 - 'Table 1 - Delta from previous'!M98 -> 430.9235024 | U98: ='Table 1 - Detailed'!N96 - 'Table 1 - Delta from previous'!N98 -> 426.4716347 | V98: ='Table 1 - Detailed'!O96 - 'Table 1 - Delta from previous'!O98 -> 426.4716347 | W98: ='Table 1 - Detailed'!P96 - 'Table 1 - Delta from previous'!P98 -> 426.4716347
D99: Tax allowance | G99: £m 20/21 prices | H99: TAXt | R99: ='Table 1 - Detailed'!K97 - 'Table 1 - Delta from previous'!K99 -> 1.383753166 | S99: ='Table 1 - Detailed'!L97 - 'Table 1 - Delta from previous'!L99 -> 1.398017401 | T99: ='Table 1 - Detailed'!M97 - 'Table 1 - Delta from previous'!M99 -> 1.393881714 | U99: ='Table 1 - Detailed'!N97 - 'Table 1 - Delta from previous'!N99 -> 1.388040331 | V99: ='Table 1 - Detailed'!O97 - 'Table 1 - Delta from previous'!O99 -> 0 | W99: ='Table 1 - Detailed'!P97 - 'Table 1 - Delta from previous'!P99 -> 0
D100: Tax allowance adjustment | G100: £m 20/21 prices | H100: TAXAt | R100: ='Table 1 - Detailed'!K98 - 'Table 1 - Delta from previous'!K100 -> 0 | S100: ='Table 1 - Detailed'!L98 - 'Table 1 - Delta from previous'!L100 -> 0 | T100: ='Table 1 - Detailed'!M98 - 'Table 1 - Delta from previous'!M100 -> 0 | U100: ='Table 1 - Detailed'!N98 - 'Table 1 - Delta from previous'!N100 -> 0 | V100: ='Table 1 - Detailed'!O98 - 'Table 1 - Delta from previous'!O100 -> 0 | W100: ='Table 1 - Detailed'!P98 - 'Table 1 - Delta from previous'!P100 -> 0
C101: Calculated revenue | G101: £m 20/21 prices | K101: =SUM(K98:K100) -> 0 | L101: =SUM(L98:L100) -> 0 | M101: 0 | N101: 0 | O101: 0 | P101: 0 | R101: ='Table 1 - Detailed'!K99 - 'Table 1 - Delta from previous'!K101 -> 423.6354673 | S101: ='Table 1 - Detailed'!L99 - 'Table 1 - Delta from previous'!L101 -> 429.4699698 | T101: ='Table 1 - Detailed'!M99 - 'Table 1 - Delta from previous'!M101 -> 432.3173842 | U101: ='Table 1 - Detailed'!N99 - 'Table 1 - Delta from previous'!N101 -> 427.859675 | V101: ='Table 1 - Detailed'!O99 - 'Table 1 - Delta from previous'!O101 -> 426.4716347 | W101: ='Table 1 - Detailed'!P99 - 'Table 1 - Delta from previous'!P101 -> 426.4716347
C102: Real to nominal prices conversion factor (splice index for RIIO-2) | G102: scalar | H102: PIt / PI2020-21 | R102: ='Table 1 - Detailed'!K100 - 'Table 1 - Delta from previous'!K102 -> 1.321792586 | S102: ='Table 1 - Detailed'!L100 - 'Table 1 - Delta from previous'!L102 -> 1.374382762 | T102: ='Table 1 - Detailed'!M100 - 'Table 1 - Delta from previous'!M102 -> 1.406672201 | U102: ='Table 1 - Detailed'!N100 - 'Table 1 - Delta from previous'!N102 -> 1.435242215 | V102: ='Table 1 - Detailed'!O100 - 'Table 1 - Delta from previous'!O102 -> 1.463947059 | W102: ='Table 1 - Detailed'!P100 - 'Table 1 - Delta from previous'!P102 -> 1.493226
C103: Combined RPI-CPIH price index (financial year average) (aka Price Index term) PIt | G103: scalar | H103: PIt | R103: ='Table 1 - Detailed'!K101 - 'Table 1 - Delta from previous'!K103 -> 388.8273189 | S103: ='Table 1 - Detailed'!L101 - 'Table 1 - Delta from previous'!L103 -> 404.2975959 | T103: ='Table 1 - Detailed'!M101 - 'Table 1 - Delta from previous'!M103 -> 413.7960725 | U103: ='Table 1 - Detailed'!N101 - 'Table 1 - Delta from previous'!N103 -> 422.2004182 | V103: ='Table 1 - Detailed'!O101 - 'Table 1 - Delta from previous'!O103 -> 430.6444266 | W103: ='Table 1 - Detailed'!P101 - 'Table 1 - Delta from previous'!P103 -> 439.2573151
C105: Calculated revenue | G105: £m nominal | H105: Rt x PIt / PI2020/21 | K105: =K101 * K102 -> 0 | L105: =L101 * L102 -> 0 | M105: 0 | N105: 0 | O105: 0 | P105: 0 | R105: ='Table 1 - Detailed'!K103 - 'Table 1 - Delta from previous'!K105 -> 559.9582197 | S105: ='Table 1 - Detailed'!L103 - 'Table 1 - Delta from previous'!L105 -> 590.2561234 | T105: ='Table 1 - Detailed'!M103 - 'Table 1 - Delta from previous'!M105 -> 608.1288464 | U105: ='Table 1 - Detailed'!N103 - 'Table 1 - Delta from previous'!N105 -> 614.0822677 | V105: ='Table 1 - Detailed'!O103 - 'Table 1 - Delta from previous'!O105 -> 624.3318955 | W105: ='Table 1 - Detailed'!P103 - 'Table 1 - Delta from previous'!P105 -> 636.8185334
D106: Correction term | G106: £m nominal | H106: Kt | K106: =K117 -> 0 | L106: =L117 -> 0 | M106: 0 | N106: 0 | O106: 0 | P106: 0 | R106: ='Table 1 - Detailed'!K104 - 'Table 1 - Delta from previous'!K106 -> 66.94369182 | S106: ='Table 1 - Detailed'!L104 - 'Table 1 - Delta from previous'!L106 -> 92.69080839 | T106: ='Table 1 - Detailed'!M104 - 'Table 1 - Delta from previous'!M106 -> 28.73775137 | U106: ='Table 1 - Detailed'!N104 - 'Table 1 - Delta from previous'!N106 -> 25.4290846 | V106: ='Table 1 - Detailed'!O104 - 'Table 1 - Delta from previous'!O106 -> 0 | W106: ='Table 1 - Detailed'!P104 - 'Table 1 - Delta from previous'!P106 -> 0
D107: Forecasting penalty | G107: £m nominal | H107: FPt | R107: ='Table 1 - Detailed'!K105 - 'Table 1 - Delta from previous'!K107 -> 0 | S107: ='Table 1 - Detailed'!L105 - 'Table 1 - Delta from previous'!L107 -> 0 | T107: ='Table 1 - Detailed'!M105 - 'Table 1 - Delta from previous'!M107 -> 0 | U107: ='Table 1 - Detailed'!N105 - 'Table 1 - Delta from previous'!N107 -> 0 | V107: ='Table 1 - Detailed'!O105 - 'Table 1 - Delta from previous'!O107 -> 0 | W107: ='Table 1 - Detailed'!P105 - 'Table 1 - Delta from previous'!P107 -> 0
D108: Legacy Allowed Revenue | G108: £m nominal | H108: LARt | R108: ='Table 1 - Detailed'!K106 - 'Table 1 - Delta from previous'!K108 -> 47.82646261 | S108: ='Table 1 - Detailed'!L106 - 'Table 1 - Delta from previous'!L108 -> 0.9757573821 | T108: ='Table 1 - Detailed'!M106 - 'Table 1 - Delta from previous'!M108 -> 0.9012215899 | U108: ='Table 1 - Detailed'!N106 - 'Table 1 - Delta from previous'!N108 -> 0.9580251767 | V108: ='Table 1 - Detailed'!O106 - 'Table 1 - Delta from previous'!O108 -> 0 | W108: ='Table 1 - Detailed'!P106 - 'Table 1 - Delta from previous'!P108 -> 0
C109: Allowed revenue | G109: £m nominal | H109: ARt (part C) | K109: =SUM(K105:K108) -> 0 | L109: =SUM(L105:L108) -> 0 | M109: 0 | N109: 0 | O109: 0 | P109: 0 | R109: ='Table 1 - Detailed'!K107 - 'Table 1 - Delta from previous'!K109 -> 674.7283741 | S109: ='Table 1 - Detailed'!L107 - 'Table 1 - Delta from previous'!L109 -> 683.9226892 | T109: ='Table 1 - Detailed'!M107 - 'Table 1 - Delta from previous'!M109 -> 637.7678194 | U109: ='Table 1 - Detailed'!N107 - 'Table 1 - Delta from previous'!N109 -> 640.4693775 | V109: ='Table 1 - Detailed'!O107 - 'Table 1 - Delta from previous'!O109 -> 624.3318955 | W109: ='Table 1 - Detailed'!P107 - 'Table 1 - Delta from previous'!P109 -> 636.8185334
C111: Recovered Revenue | G111: £m nominal | H111: RRt | R111: ='Table 1 - Detailed'!K109 - 'Table 1 - Delta from previous'!K111 -> 589.1257372 | S111: ='Table 1 - Detailed'!L109 - 'Table 1 - Delta from previous'!L111 -> 656.9486498 | T111: ='Table 1 - Detailed'!M109 - 'Table 1 - Delta from previous'!M111 -> 613.8464856 | U111: ='Table 1 - Detailed'!N109 - 'Table 1 - Delta from previous'!N111 -> 640.4693775 | V111: ='Table 1 - Detailed'!O109 - 'Table 1 - Delta from previous'!O111 -> 624.3318955 | W111: ='Table 1 - Detailed'!P109 - 'Table 1 - Delta from previous'!P111 -> 636.8185334
C112: Revenue under/(over) recovery | G112: £m nominal | K112: =K109 - K111 -> 0 | L112: =L109 - L111 -> 0 | M112: 0 | N112: 0 | O112: 0 | P112: 0 | R112: ='Table 1 - Detailed'!K110 - 'Table 1 - Delta from previous'!K112 -> 85.60263694 | S112: ='Table 1 - Detailed'!L110 - 'Table 1 - Delta from previous'!L112 -> 26.97403932 | T112: ='Table 1 - Detailed'!M110 - 'Table 1 - Delta from previous'!M112 -> 23.92133382 | U112: ='Table 1 - Detailed'!N110 - 'Table 1 - Delta from previous'!N112 -> 0 | V112: ='Table 1 - Detailed'!O110 - 'Table 1 - Delta from previous'!O112 -> 0 | W112: ='Table 1 - Detailed'!P110 - 'Table 1 - Delta from previous'!P112 -> 0
D114: Vanilla weighted average cost of capital | G114: annual real % | H114: WACCt | R114: ='Table 1 - Detailed'!K112 - 'Table 1 - Delta from previous'!K114 -> 0.0413701832 | S114: ='Table 1 - Detailed'!L112 - 'Table 1 - Delta from previous'!L114 -> 0.0409301584 | T114: ='Table 1 - Detailed'!M112 - 'Table 1 - Delta from previous'!M114 -> 0.041868818 | U114: ='Table 1 - Detailed'!N112 - 'Table 1 - Delta from previous'!N114 -> 0.0413087932 | V114: ='Table 1 - Detailed'!O112 - 'Table 1 - Delta from previous'!O114 -> 0.0413087932 | W114: ='Table 1 - Detailed'!P112 - 'Table 1 - Delta from previous'!P114 -> 0.0413087932
D115: Inflation (from year t to t+1) | G115: annual % | H115: PIt+1/PIt | R115: ='Table 1 - Detailed'!K113 - 'Table 1 - Delta from previous'!K115 -> 0.03978701129 | S115: ='Table 1 - Detailed'!L113 - 'Table 1 - Delta from previous'!L115 -> 0.02349377481 | T115: ='Table 1 - Detailed'!M113 - 'Table 1 - Delta from previous'!M115 -> 0.02031035638 | U115: ='Table 1 - Detailed'!N113 - 'Table 1 - Delta from previous'!N115 -> 0.02031035638 | V115: ='Table 1 - Detailed'!O113 - 'Table 1 - Delta from previous'!O115 -> 0.02031035638 | W115: ='Table 1 - Detailed'!P113 - 'Table 1 - Delta from previous'!P115 -> 0.02031035638
D116: Nominal time value of money | G116: annual nominal % | H116: TVMt | K116: =(1 + K114) * (1 + K115) - 1 -> 0 | L116: =(1 + L114) * (1 + L115) - 1 -> 0 | M116: 0 | N116: 0 | O116: 0 | P116: 0 | R116: ='Table 1 - Detailed'!K114 - 'Table 1 - Delta from previous'!K116 -> 0.08280319044 | S116: ='Table 1 - Detailed'!L114 - 'Table 1 - Delta from previous'!L116 -> 0.06538553713 | T116: ='Table 1 - Detailed'!M114 - 'Table 1 - Delta from previous'!M116 -> 0.06302954499 | U116: ='Table 1 - Detailed'!N114 - 'Table 1 - Delta from previous'!N116 -> 0.06245814589 | V116: ='Table 1 - Detailed'!O114 - 'Table 1 - Delta from previous'!O116 -> 0.06245814589 | W116: ='Table 1 - Detailed'!P114 - 'Table 1 - Delta from previous'!P116 -> 0.06245814589
C117: Correction Term | G117: £m nominal | H117: Kt | R117: ='Table 1 - Detailed'!K115 - 'Table 1 - Delta from previous'!K117 -> 66.94369182 | S117: ='Table 1 - Detailed'!L115 - 'Table 1 - Delta from previous'!L117 -> 92.69080839 | T117: ='Table 1 - Detailed'!M115 - 'Table 1 - Delta from previous'!M117 -> 28.73775137 | U117: ='Table 1 - Detailed'!N115 - 'Table 1 - Delta from previous'!N117 -> 25.4290846 | V117: ='Table 1 - Detailed'!O115 - 'Table 1 - Delta from previous'!O117 -> 0 | W117: ='Table 1 - Detailed'!P115 - 'Table 1 - Delta from previous'!P117 -> 0
B119: Checks
E121: Check for error values | G121: number of issues | H121: =SUM(IF(ISERROR(K17:X118), 1)) -> 0
E123: Summary of checks | G123: number of issues | H123: =H121 -> 0
B125: End of sheet

Sheet Table 2 - Sensitivities
A1: =MID(CELL("filename",A1),FIND("]",CELL("filename",A1))+1,255) -> Table 2 - Sensitivities
A2: =Cover!D23 & " - " & TEXT(CIRP_submission_date, "mmm") & "-" & RIGHT(YEAR(CIRP_submission_date), 2) & " - " & Cover!D25 -> SP Manweb - Jan-26 - V2
A3: =Cover!D2&" - "&Cover!D8&" v"&Cover!D10&" - "&Cover!D19 -> Cost Information Review Pack (CIRP) - Release for charge setting v1 - 2027/28
A4: =H128 & IF(H128 = 1, " issue", " issues") &" identified in checks on this sheet" -> 0 issues identified in checks on this sheet | J4: Sensitivities >>
K5: =TRANSPOSE('CIRP_User control'!G27:G32) -> 2024/25 | L5: 2025/26 | M5: 2026/27 | N5: 2027/28 | O5: 2028/29 | P5: 2029/30
B6: Click here to return to model map | G6: Units | H6: Constants | K6: =TRANSPOSE('CIRP_User control'!E27:E32) -> t-1 | L6: t | M6: t+1 | N6: t+2 | O6: t+3 | P6: t+4 | R6: Formula Description
K7: =TRANSPOSE('CIRP_User control'!$H$27:$H$32) -> Historic | L7: Current | M7: Published | N7: Published | O7: Forecast | P7: Forecast
B8: Description
C10: This sheet allows users to explore how changes to Calculated Revenue or Recovered Revenue would feed through to
C11: Allowed Revenue and Recovered Revenue in future years, as required by DCUSA Schedule 20, paragraph 2.2 (b).
B13: Table 2 - Sensitivities
C15: Part A - Impact of Variances in Calculated Revenue (£m 20/21 prices) in future years
D17: Forecast Calculated Revenue from Table 1 | G17: £m 20/21 prices | K17: ='Table 1 - Detailed'!K99 -> 423.6354673 | L17: ='Table 1 - Detailed'!L99 -> 429.4699698 | M17: ='Table 1 - Detailed'!M99 -> 432.3173842 | N17: ='Table 1 - Detailed'!N99 -> 427.859675 | O17: ='Table 1 - Detailed'!O99 -> 426.4716347 | P17: ='Table 1 - Detailed'!P99 -> 426.4716347 | R17: R
D19: Users should indicate the years for which tariffs have already been set by selecting "Y" and selecting "N" otherwise. This sheet
D20: demonstrates how revenue over/under-recovery will not be resolved until the first year in which tariffs can be adjusted accordingly.
D22: Tariffs set for year | G22: drop-down | K22: Y | L22: Y | M22: Y | N22: Y | O22: N | P22: N | R22: Y/N
D24: Users may explore the effect of Calculated Revenue being higher or lower than the forecast from 'Table 1' on 'Allowed' and
D25: 'Recovered' Revenue in future years by entering values into the "Possible Changes To Calculated Revenue" table below.
D27: Possible Changes To Calculated Revenue
F28: Description | K28: =K5 -> 2024/25 | L28: 2025/26 | M28: 2026/27 | N28: 2027/28 | O28: 2028/29 | P28: 2029/30
G29: £m 20/21 prices | R29: A1
G30: £m 20/21 prices | R30: A2
G31: £m 20/21 prices | R31: A3
G32: £m 20/21 prices | R32: A4
G33: £m 20/21 prices | R33: A5
G34: £m 20/21 prices | R34: A6
G35: £m 20/21 prices | R35: A7
G36: £m 20/21 prices | R36: A8
G37: £m 20/21 prices | R37: A9
G38: £m 20/21 prices | R38: A10
F39: Total - Potential Change in Calculated Revenue | G39: £m 20/21 prices | K39: =SUM(K29:K38) -> 0 | L39: 0 | M39: 0 | N39: 0 | O39: 0 | P39: 0 | R39: A11 = Sum (A1:A10)
D41: Calculated Revenue including Possible Changes Above | G41: £m 20/21 prices | K41: =SUM(K17, K39) -> 423.6354673 | L41: 429.4699698 | M41: 432.3173842 | N41: 427.859675 | O41: 426.4716347 | P41: 426.4716347 | R41: RA = R + A11
E43: Real to nominal prices conversion factor (splice index for RIIO-2) | G43: scalar | H43: PIt / PI2020-21 | K43: ='Table 1 - Detailed'!K100 -> 1.321792586 | L43: ='Table 1 - Detailed'!L100 -> 1.374382762 | M43: ='Table 1 - Detailed'!M100 -> 1.406672201 | N43: ='Table 1 - Detailed'!N100 -> 1.435242215 | O43: ='Table 1 - Detailed'!O100 -> 1.463947059 | P43: ='Table 1 - Detailed'!P100 -> 1.493226 | R43: PIt / PI2020-21
E44: Combined RPI-CPIH price index (financial year average) (aka Price Index term) | G44: scalar | H44: PIt | K44: ='Table 1 - Detailed'!K101 -> 388.8273189 | L44: ='Table 1 - Detailed'!L101 -> 404.2975959 | M44: ='Table 1 - Detailed'!M101 -> 413.7960725 | N44: ='Table 1 - Detailed'!N101 -> 422.2004182 | O44: ='Table 1 - Detailed'!O101 -> 430.6444266 | P44: ='Table 1 - Detailed'!P101 -> 439.2573151 | R44: PI
E46: Calculated Revenue Including Possible Changes | G46: £m nominal | H46: Rt x PIt / PI2020/21 | K46: =K41 * K43 -> 559.9582197 | L46: =L41 * L43 -> 590.2561234 | M46: 608.1288464 | N46: 614.0822677 | O46: 624.3318955 | P46: 636.8185334 | R46: CA = RA x PIt / PI2020-21
E48: Correction term | G48: £m nominal | H48: Kt | K48: =K64 -> 66.94369182 | L48: =L64 -> 92.69080839 | M48: 28.73775137 | N48: 25.4290846 | O48: 0 | P48: 0 | R48: KA
E50: Forecasting penalty | G50: £m nominal | H50: FPt | K50: ='Table 1 - Detailed'!K105 -> 0 | L50: ='Table 1 - Detailed'!L105 -> 0 | M50: ='Table 1 - Detailed'!M105 -> 0 | N50: ='Table 1 - Detailed'!N105 -> 0 | O50: ='Table 1 - Detailed'!O105 -> 0 | P50: ='Table 1 - Detailed'!P105 -> 0 | R50: FP
E51: Legacy Allowed Revenue | G51: £m nominal | H51: LARt | K51: ='Table 1 - Detailed'!K106 -> 47.82646261 | L51: ='Table 1 - Detailed'!L106 -> 0.9757573821 | M51: ='Table 1 - Detailed'!M106 -> 0.9012215899 | N51: ='Table 1 - Detailed'!N106 -> 0.9580251767 | O51: ='Table 1 - Detailed'!O106 -> 0 | P51: ='Table 1 - Detailed'!P106 -> 0 | R51: LAR
D53: Allowed Revenue Including Possible Changes | G53: £m nominal | H53: ARt (part C) | K53: =SUM(K46, K48, K50:K51) -> 674.7283741 | L53: =SUM(L46, L48, L50:L51) -> 683.9226892 | M53: 637.7678194 | N53: 640.4693775 | O53: 624.3318955 | P53: 636.8185334 | R53: ARA1 = CA + KA + FP + LAR
D55: Recovered Revenue Including Possible Changes | G55: £m nominal | H55: RRt | K55: =IF(K22= "Y", 'Table 1 - Detailed'!K109, K53) -> 589.1257372 | L55: =IF(L22= "Y", 'Table 1 - Detailed'!L109, L53) -> 656.9486498 | M55: =IF(M22= "Y", 'Table 1 - Detailed'!M109, M53) -> 613.8464856 | N55: =IF(N22= "Y", 'Table 1 - Detailed'!N109, N53) -> 640.4693775 | O55: =IF(O22= "Y", 'Table 1 - Detailed'!O109, O53) -> 624.3318955 | P55: =IF(P22= "Y", 'Table 1 - Detailed'!P109, P53) -> 636.8185334 | R55: RRA1
D57: Revenue under/(over) recovery Including Possible Changes | G57: £m nominal | K57: =K53 - K55 -> 85.60263694 | L57: =L53 - L55 -> 26.97403932 | M57: 23.92133382 | N57: 0 | O57: 0 | P57: 0 | R57: D = ARA1 - RRA1
E59: Vanilla weighted average cost of capital | G59: annual real % | H59: WACCt | K59: ='Table 1 - Detailed'!K112 -> 0.0413701832 | L59: ='Table 1 - Detailed'!L112 -> 0.0409301584 | M59: ='Table 1 - Detailed'!M112 -> 0.041868818 | N59: ='Table 1 - Detailed'!N112 -> 0.0413087932 | O59: ='Table 1 - Detailed'!O112 -> 0.0413087932 | P59: ='Table 1 - Detailed'!P112 -> 0.0413087932 | R59: WACC
E60: Inflation (from year t to t+1) | G60: annual % | H60: PIt+1/PIt | K60: ='Table 1 - Detailed'!K113 -> 0.03978701129 | L60: ='Table 1 - Detailed'!L113 -> 0.02349377481 | M60: ='Table 1 - Detailed'!M113 -> 0.02031035638 | N60: ='Table 1 - Detailed'!N113 -> 0.02031035638 | O60: ='Table 1 - Detailed'!O113 -> 0.02031035638 | P60: ='Table 1 - Detailed'!P113 -> 0.02031035638 | R60: E [= PIt+1/PIt]
E62: Nominal time value of money | G62: annual nominal % | H62: TVMt | K62: =(1 + K59) * (1 + K60) - 1 -> 0.08280319044 | L62: =(1 + L59) * (1 + L60) - 1 -> 0.06538553713 | M62: 0.06302954499 | N62: 0.06245814589 | O62: 0.06245814589 | P62: 0.06245814589 | R62: TVM = (1 + WACC) x (1 + E) - 1
D64: Correction Term Including Possible Changes | G64: £m nominal | H64: Kt | K64: =IF(K6 = $K$6,'Table 1 - Detailed'!K115, J57 * (1 + J62)) -> 66.94369182 | L64: =IF(L6 = $K$6,'Table 1 - Detailed'!L115, K57 * (1 + K62)) -> 92.69080839 | M64: =IF(M6 = $K$6,'Table 1 - Detailed'!M115, L57 * (1 + L62)) -> 28.73775137 | N64: =IF(N6 = $K$6,'Table 1 - Detailed'!N115, M57 * (1 + M62)) -> 25.4290846 | O64: =IF(O6 = $K$6,'Table 1 - Detailed'!O115, N57 * (1 + N62)) -> 0 | P64: =IF(P6 = $K$6,'Table 1 - Detailed'!P115, O57 * (1 + O62)) -> 0 | R64: KA = Dt-1 + (1 + TVMt-1)]
C66: Part B - Impact of Variances in Calculated Revenue (%) in future years
D68: Users may explore the effect of Calculated Revenue being higher or lower than the forecast in 'Table 1' (as used to set
D69: published charges) on Allowed Revenue in future years - for instance, to approximate the effect of unanticipated price
D70: inflation - by entering values into the "Percentage change in inflation" row below.
D72: Percentage change in inflation | G72: % Change | R72: P1
D74: Allowed Revenue Including Possible Changes to Calculated Revenue and Inflation Change | G74: £m nominal | K74: =K53 * (1 + K72) -> 674.7283741 | L74: 683.9226892 | M74: 637.7678194 | N74: 640.4693775 | O74: 624.3318955 | P74: 636.8185334 | R74: ARA2 = ARA1 * (1 + P1)
D76: The rows below demonstrate how a one-off change in Calculated Revenue will persist, via the 'Correction Term',
D77: until the first year in which Allowed Revenue can be recovered via charge-setting.
D78: Until then, the fact that charges are already published prevents the change in Allowed Revenue from being recovered.
D80: Reduction in K for Inflation Change | G80: £m nominal | L80: =IF(K22 = "N", 0, - ((K74 - K53) - K80) * (1 + K62)) -> 0 | M80: =IF(L22 = "N", 0, - ((L74 - L53) - L80) * (1 + L62)) -> 0 | N80: =IF(M22 = "N", 0, - ((M74 - M53) - M80) * (1 + M62)) -> 0 | O80: =IF(N22 = "N", 0, - ((N74 - N53) - N80) * (1 + N62)) -> 0 | P80: =IF(O22 = "N", 0, - ((O74 - O53) - O80) * (1 + O62)) -> 0 | R80: KA1t = (ARA2t-1 - ARA1t-1) * (1 + TVMt-1)
D82: New Allowed Revenue inc Inflation Change | G82: £m nominal | K82: =K74 - K80 -> 674.7283741 | L82: 683.9226892 | M82: 637.7678194 | N82: 640.4693775 | O82: 624.3318955 | P82: 636.8185334 | R82: ARA3 = ARA2 + KA1
D84: Please note, these calculations and headings are only approximations of the full financial treatment applied within Ofgem's Price Control Financial Model.
C86: Part C - Impact of Variances in Recovered Revenue (%) in future years
D88: Users may explore the effect of Recovered Revenue being higher or lower than the forecast from 'Table 1' in future years
D89: by entering values into the "Percentage change in Recovered Revenue" row below.
D91: Percentage change in Recovered Revenue | G91: % Change | R91: P2
D93: Recovered Revenue including Possible Recovered Revenue Change | G93: £m nominal | K93: =K55 * (1 + K91) -> 589.1257372 | L93: 656.9486498 | M93: 613.8464856 | N93: 640.4693775 | O93: 624.3318955 | P93: 636.8185334 | R93: RR2 = RR1 * (1 + P2)
D95: Reduction in K for Recovered Revenue Change | G95: £m nominal | L95: =IF(K22= "N", 0, ((K93 - K55) + K95) * (1 + K62)) -> 0 | M95: =IF(L22= "N", 0, ((L93 - L55) + L95) * (1 + L62)) -> 0 | N95: =IF(M22= "N", 0, ((M93 - M55) + M95) * (1 + M62)) -> 0 | O95: =IF(N22= "N", 0, ((N93 - N55) + N95) * (1 + N62)) -> 0 | P95: =IF(O22= "N", 0, ((O93 - O55) + O95) * (1 + O62)) -> 0 | R95: KA2t = (RR2t-1 - RR1t-1) * (1 + TVMt-1)
D97: New Recovered Revenue inc Recovered Revenue Change | G97: £m nominal | K97: =IF(K22 = "Y", K93, K99) -> 589.1257372 | L97: 656.9486498 | M97: 613.8464856 | N97: 640.4693775 | O97: 624.3318955 | P97: 636.8185334 | R97: RR3 = RR2 (tariffs set) or RR3 = ARA4 (tariffs not set)
D99: New Allowed Revenue inc Recovered Revenue Change | G99: £m nominal | K99: =K53 - K95 -> 674.7283741 | L99: 683.9226892 | M99: 637.7678194 | N99: 640.4693775 | O99: 624.3318955 | P99: 636.8185334 | R99: ARA4 = ARA1 + KA2
B101: Summary of Table 2 - Sensitivities
D103: Part A - Impact of Variances in Calculated Revenue (£m 20/21 prices) in future years
E104: Potential Change in Calculated Revenue | G104: £m nominal | K104: =K46 - 'Table 1 - Detailed'!K103 -> 0 | L104: =L46 - 'Table 1 - Detailed'!L103 -> 0 | M104: =M46 - 'Table 1 - Detailed'!M103 -> 0 | N104: =N46 - 'Table 1 - Detailed'!N103 -> 0 | O104: =O46 - 'Table 1 - Detailed'!O103 -> 0 | P104: =P46 - 'Table 1 - Detailed'!P103 -> 0
E105: Resultant Change in Allowed Revenue | G105: £m nominal | K105: =K53 - 'Table 1 - Detailed'!K107 -> 0 | L105: =L53 - 'Table 1 - Detailed'!L107 -> 0 | M105: =M53 - 'Table 1 - Detailed'!M107 -> 0 | N105: =N53 - 'Table 1 - Detailed'!N107 -> 0 | O105: =O53 - 'Table 1 - Detailed'!O107 -> 0 | P105: =P53 - 'Table 1 - Detailed'!P107 -> 0
E106: Resultant Change in Recovered Revenue | G106: £m nominal | K106: =K55 - 'Table 1 - Detailed'!K109 -> 0 | L106: =L55 - 'Table 1 - Detailed'!L109 -> 0 | M106: =M55 - 'Table 1 - Detailed'!M109 -> 0 | N106: =N55 - 'Table 1 - Detailed'!N109 -> 0 | O106: =O55 - 'Table 1 - Detailed'!O109 -> 0 | P106: =P55 - 'Table 1 - Detailed'!P109 -> 0
D108: Part B - Impact of Variances in Calculated Revenue (%) in future years
E109: Potential Change in Calculated Revenue | G109: £m nominal | K109: =K74 - K53 -> 0 | L109: 0 | M109: 0 | N109: 0 | O109: 0 | P109: 0
E110: Resultant Change in Allowed Revenue | G110: £m nominal | K110: =K82 - K53 -> 0 | L110: 0 | M110: 0 | N110: 0 | O110: 0 | P110: 0
E111: Resultant Change in Recovered Revenue | G111: £m nominal | K111: =IF(K22 = "Y", K55, K82) - K55 -> 0 | L111: 0 | M111: 0 | N111: 0 | O111: 0 | P111: 0
D113: Part C - Impact of Variances in Recovered Revenue (%) in future years
E114: Potential Change in Recovered Revenue | G114: £m nominal | K114: =K93 - K55 -> 0 | L114: 0 | M114: 0 | N114: 0 | O114: 0 | P114: 0
E115: Resultant Change in Allowed Revenue | G115: £m nominal | K115: =K99 - K53 -> 0 | L115: 0 | M115: 0 | N115: 0 | O115: 0 | P115: 0
E116: Resultant Change in Recovered Revenue | G116: £m nominal | K116: =K97 - K55 -> 0 | L116: 0 | M116: 0 | N116: 0 | O116: 0 | P116: 0
B118: Checks
E120: Check for error values | G120: number of issues | H120: =SUM(IF(ISERROR(K17:P100), 1)) -> 0
E122: "Tariffs set for year" left blank? | G122: number of issues | H122: =SUM(K122:Q122) -> 0 | K122: =IF(ISBLANK(K22), 1, 0) -> 0 | L122: 0 | M122: 0 | N122: 0 | O122: 0 | P122: 0
E124: DNO acknowledges that:
F125: ...tariffs have been published for "historic/current/published" years | G125: number of issues | H125: =SUM(K125:Q125) -> 0 | K125: =IF(AND(K$22 = "N", K$7 <> forecast), 1, 0) -> 0 | L125: 0 | M125: 0 | N125: 0 | O125: 0 | P125: 0
F126: ...tariffs have not been published for "forecast" years | G126: number of issues | H126: =SUM(K126:Q126) -> 0 | K126: =IF(AND(K$22 = "Y", K$7 = forecast), 1, 0) -> 0 | L126: 0 | M126: 0 | N126: 0 | O126: 0 | P126: 0
E128: Summary of checks | G128: number of issues | H128: =H120 + H122 + H125 + H126 -> 0
B130: End of sheet

Sheet CIRP_Inputs by customer type
A1: =MID(CELL("filename",A1),FIND("]",CELL("filename",A1))+1,255) -> CIRP_Inputs by customer type
A2: =Cover!D23 & " - " & TEXT(CIRP_submission_date, "mmm") & "-" & RIGHT(YEAR(CIRP_submission_date), 2) & " - " & Cover!D25 -> SP Manweb - Jan-26 - V2
A3: =Cover!D2&" - "&Cover!D8&" v"&Cover!D10&" - "&Cover!D19 -> Cost Information Review Pack (CIRP) - Release for charge setting v1 - 2027/28
A4: =H2140 & IF(H2140 = 1, " issue", " issues") &" identified in checks on this sheet" -> 0 issues identified in checks on this sheet | L4: TRUE | M4: TRUE | N4: TRUE
J5: ="Year selected ("& charging_year_selected &")" -> Year selected (2027/28) | L5: =TRANSPOSE('CIRP_User control'!G27:H32) -> 2024/25 | M5: 2025/26 | N5: 2026/27 | O5: 2027/28 | P5: 2028/29 | Q5: 2029/30
B6: Click here to return to model map | G6: Units | H6: Constants | J6: ='CIRP_User control'!$H$41 -> Published | L6: Historic | M6: Current | N6: Published | O6: Published | P6: Forecast | Q6: Forecast | S6: Legal text reference
B8: Description
C10: This sheet sets out inputs by customer type and by year.
C11: DNOs should populate the inputs for the charging year and the four following years.
C12: DNOs can also populate the three years preceding the charging year, but are not obliged to do so.
B14: Load characteristics
C16: =INDEX('Version control'!$H$29:$H$55,MATCH($A$1,'Version control'!$F$29:$F$55,0),1)&"-A: Load factor" -> Input 501-A: Load factor
E18: Load factor | I18: > | S18: Paragraphs 42 (a) and 52
F19: Domestic Aggregated or CT | G19: % | J19: =CHOOSE(charging_year_selected_index, L19,M19,N19,O19,P19,Q19) -> 0.463 | L19: 0.446 | M19: 0.45 | N19: 0.456 | O19: 0.463 | P19: =$O19 -> 0.463 | Q19: 0.463
F20: Domestic Aggregated (Related MPAN) | G20: % | J20: 0.1196666667 | L20: 0.1383333333 | M20: 0.1306666667 | N20: 0.128 | O20: 0.1196666667 | P20: 0.1196666667 | Q20: 0.1196666667
F21: Non-Domestic Aggregated or CT | G21: % | J21: 0.384 | L21: 0.4466666667 | M21: 0.4413333333 | N21: 0.4503333333 | O21: 0.384 | P21: 0.384 | Q21: 0.384
F22: Non-Domestic Aggregated (Related MPAN) | G22: % | J22: 0.1803333333 | L22: 0.1846666667 | M22: 0.178 | N22: 0.182 | O22: 0.1803333333 | P22: 0.1803333333 | Q22: 0.1803333333
F23: LV Site Specific | G23: % | J23: 0.569 | L23: 0.5776666667 | M23: 0.5683333333 | N23: 0.576 | O23: 0.569 | P23: 0.569 | Q23: 0.569
F24: LV Sub Site Specific | G24: % | J24: 0.5506666667 | L24: 0.5593333333 | M24: 0.5516666667 | N24: 0.555 | O24: 0.5506666667 | P24: 0.5506666667 | Q24: 0.5506666667
F25: HV Site Specific | G25: % | J25: 0.7353333333 | L25: 0.738 | M25: 0.7406666667 | N25: 0.7396666667 | O25: 0.7353333333 | P25: 0.7353333333 | Q25: 0.7353333333
F26: Unmetered Supplies | G26: % | J26: 0.513 | L26: 0.46 | M26: 0.49 | N26: 0.5006666667 | O26: 0.513 | P26: 0.513 | Q26: 0.513
F27: LV Generation Aggregated | G27: %
F28: LV Sub Generation Aggregated | G28: %
F29: LV Generation Site Specific | G29: %
F30: LV Generation Site Specific no RP Charge | G30: %
F31: LV Sub Generation Site Specific | G31: %
F32: LV Sub Generation Site Specific no RP Charge | G32: %
F33: HV Generation Site Specific | G33: %
F34: HV Generation Site Specific no RP Charge | G34: %
C36: =INDEX('Version control'!$H$29:$H$55,MATCH($A$1,'Version control'!$F$29:$F$55,0),1)&"-B: Coincidence factor" -> Input 501-B: Coincidence factor
E38: Coincidence factor | I38: > | S38: Paragraphs 42 (b) and 52
F39: Domestic Aggregated or CT | G39: % | J39: =CHOOSE(charging_year_selected_index, L39,M39,N39,O39,P39,Q39) -> 0.9296666667 | L39: 0.839 | M39: 0.8753333333 | N39: 0.9016666667 | O39: 0.9296666667 | P39: =$O39 -> 0.9296666667 | Q39: 0.9296666667
F40: Domestic Aggregated (Related MPAN) | G40: %
F41: Non-Domestic Aggregated or CT | G41: % | J41: =CHOOSE(charging_year_selected_index, L41,M41,N41,O41,P41,Q41) -> 0.6133333333 | L41: 0.7103333333 | M41: 0.727 | N41: 0.727 | O41: 0.6133333333 | P41: =$O41 -> 0.6133333333 | Q41: 0.6133333333
F42: Non-Domestic Aggregated (Related MPAN) | G42: %
F43: LV Site Specific | G43: % | J43: =CHOOSE(charging_year_selected_index, L43,M43,N43,O43,P43,Q43) -> 0.8186666667 | L43: 0.8263333333 | M43: 0.8363333333 | N43: 0.8106666667 | O43: 0.8186666667 | P43: =$O43 -> 0.8186666667 | Q43: 0.8186666667
F44: LV Sub Site Specific | G44: % | J44: =CHOOSE(charging_year_selected_index, L44,M44,N44,O44,P44,Q44) -> 0.7256666667 | L44: 0.7676666667 | M44: 0.7656666667 | N44: 0.738 | O44: 0.7256666667 | P44: 0.7256666667 | Q44: 0.7256666667
F45: HV Site Specific | G45: % | J45: =CHOOSE(charging_year_selected_index, L45,M45,N45,O45,P45,Q45) -> 0.8303333333 | L45: 0.8416666667 | M45: 0.8456666667 | N45: 0.8346666667 | O45: 0.8303333333 | P45: 0.8303333333 | Q45: 0.8303333333
F46: Unmetered Supplies | G46: % | J46: =CHOOSE(charging_year_selected_index, L46,M46,N46,O46,P46,Q46) -> 0.9543333333 | L46: 0.9083333333 | M46: 0.9443333333 | N46: 0.9403333333 | O46: 0.9543333333 | P46: 0.9543333333 | Q46: 0.9543333333
F47: LV Generation Aggregated | G47: %
F48: LV Sub Generation Aggregated | G48: %
F49: LV Generation Site Specific | G49: %
F50: LV Generation Site Specific no RP Charge | G50: %
F51: LV Sub Generation Site Specific | G51: %
F52: LV Sub Generation Site Specific no RP Charge | G52: %
F53: HV Generation Site Specific | G53: %
F54: HV Generation Site Specific no RP Charge | G54: %
B56: Volumes
C58: =INDEX('Version control'!$H$29:$H$55,MATCH($A$1,'Version control'!$F$29:$F$55,0),1)&"-C: All-the-way volumes - No residual" -> Input 501-C: All-the-way volumes - No residual
E60: Rate 1 units | I60: > | S60: Paragraph 52
F61: Domestic Aggregated or CT | G61: MWh | H61: All the way customers | O61: 0
F62: Domestic Aggregated (Related MPAN) | G62: MWh | H62: All the way customers | J62: =CHOOSE(charging_year_selected_index, L62,M62,N62,O62,P62,Q62) -> 47.55861981 | L62: 32.089 | M62: 38.59118658 | N62: 32.13729024 | O62: 47.55861981 | P62: =$O62 -> 47.55861981 | Q62: 47.55861981
F63: Non-Domestic Aggregated or CT | G63: MWh | H63: All the way customers | J63: 37.90881576 | L63: 48.92907436 | M63: 43.00200576 | N63: 50.06856163 | O63: 37.90881576 | P63: 37.90881576 | Q63: 37.90881576
F64: Non-Domestic Aggregated (Related MPAN) | G64: MWh | H64: All the way customers | J64: 4.675 | L64: 5.328 | M64: 6.909 | N64: 5.345 | O64: 4.675 | P64: 4.675 | Q64: 4.675
F65: LV Site Specific | G65: MWh | H65: All the way customers | J65: 160.8745254 | L65: 17.87464222 | M65: 116.3173359 | N65: 22.96694449 | O65: 160.8745254 | P65: 160.8745254 | Q65: 160.8745254
F66: LV Sub Site Specific | G66: MWh | H66: All the way customers | J66: 1.526216166 | L66: 1.02893858 | M66: 0.8317147464 | N66: 0.8768913233 | O66: 1.526216166 | P66: 1.526216166 | Q66: 1.526216166
F67: HV Site Specific | G67: MWh | H67: All the way customers | J67: 164.8969169 | L67: 175.3916604 | M67: 168.9741877 | N67: 158.0821864 | O67: 164.8969169 | P67: 164.8969169 | Q67: 164.8969169
F68: Unmetered Supplies | G68: MWh | H68: All the way customers | O68: 0
F69: LV Generation Aggregated | G69: MWh | H69: All the way customers | J69: =CHOOSE(charging_year_selected_index, L69,M69,N69,O69,P69,Q69) -> 5697.05673 | L69: 2038.954569 | M69: 12470.58473 | N69: 3904.342955 | O69: 5697.05673 | P69: =$O69 -> 5697.05673 | Q69: 5697.05673
F70: LV Sub Generation Aggregated | G70: MWh | H70: All the way customers | J70: 54.2548799 | L70: 34.08550267 | M70: 124.9583486 | N70: 45.31687852 | O70: 54.2548799 | P70: 54.2548799 | Q70: 54.2548799
F71: LV Generation Site Specific | G71: MWh | H71: All the way customers | J71: 3880.56056 | L71: 3793.449 | M71: 5430.528554 | N71: 5605.703744 | O71: 3880.56056 | P71: 3880.56056 | Q71: 3880.56056
F72: LV Generation Site Specific no RP Charge | G72: MWh | H72: All the way customers | J72: 0 | L72: 0 | M72: 0 | N72: 0 | O72: 0 | P72: 0 | Q72: 0
F73: LV Sub Generation Site Specific | G73: MWh | H73: All the way customers | J73: 1135.451614 | L73: 1172.297 | M73: 1454.410736 | N73: 1485.059779 | O73: 1135.451614 | P73: 1135.451614 | Q73: 1135.451614
F74: LV Sub Generation Site Specific no RP Charge | G74: MWh | H74: All the way customers | J74: 0 | L74: 0 | M74: 0 | N74: 0 | O74: 0 | P74: 0 | Q74: 0
F75: HV Generation Site Specific | G75: MWh | H75: All the way customers | J75: 74507.70896 | L75: 51281.671 | M75: 78072.38714 | N75: 76541.31472 | O75: 74507.70896 | P75: 74507.70896 | Q75: 74507.70896
F76: HV Generation Site Specific no RP Charge | G76: MWh | H76: All the way customers | J76: 0 | L76: 0 | M76: 0 | N76: 0 | O76: 0 | P76: 0 | Q76: 0
E78: Rate 2 units
F79: Domestic Aggregated or CT | G79: MWh | H79: All the way customers | O79: 0
F80: Domestic Aggregated (Related MPAN) | G80: MWh | H80: All the way customers | J80: =CHOOSE(charging_year_selected_index, L80,M80,N80,O80,P80,Q80) -> 478.1064034 | L80: 557.914 | M80: 519.2948314 | N80: 510.1241507 | O80: 478.1064034 | P80: =$O80 -> 478.1064034 | Q80: 478.1064034
F81: Non-Domestic Aggregated or CT | G81: MWh | H81: All the way customers | J81: 197.1820027 | L81: 260.6422565 | M81: 218.9038533 | N81: 254.8765082 | O81: 197.1820027 | P81: 197.1820027 | Q81: 197.1820027
F82: Non-Domestic Aggregated (Related MPAN) | G82: MWh | H82: All the way customers | J82: 263.93 | L82: 317.86 | M82: 298.291 | N82: 264.543 | O82: 263.93 | P82: 263.93 | Q82: 263.93
F83: LV Site Specific | G83: MWh | H83: All the way customers | J83: 157.2119977 | L83: 105.4816807 | M83: 116.9786505 | N83: 132.6963842 | O83: 157.2119977 | P83: 157.2119977 | Q83: 157.2119977
F84: LV Sub Site Specific | G84: MWh | H84: All the way customers | J84: 4.719439739 | L84: 4.150458719 | M84: 3.929345033 | N84: 4.255702829 | O84: 4.719439739 | P84: 4.719439739 | Q84: 4.719439739
F85: HV Site Specific | G85: MWh | H85: All the way customers | J85: 1596.711678 | L85: 1149.126321 | M85: 1203.265091 | N85: 1539.746644 | O85: 1596.711678 | P85: 1596.711678 | Q85: 1596.711678
F86: Unmetered Supplies | G86: MWh | H86: All the way customers | O86: 0
F87: LV Generation Aggregated | G87: MWh | H87: All the way customers | J87: =CHOOSE(charging_year_selected_index, L87,M87,N87,O87,P87,Q87) -> 38522.1521 | L87: 12274.52828 | M87: 78216.92781 | N87: 26865.83028 | O87: 38522.1521 | P87: =$O87 -> 38522.1521 | Q87: 38522.1521
F88: LV Sub Generation Aggregated | G88: MWh | H88: All the way customers | J88: 267.9379112 | L88: 143.9227273 | M88: 550.2351226 | N88: 1003.099251 | O88: 267.9379112 | P88: 267.9379112 | Q88: 267.9379112
F89: LV Generation Site Specific | G89: MWh | H89: All the way customers | J89: 24199.32226 | L89: 18380.287 | M89: 25845.07743 | N89: 27021.40485 | O89: 24199.32226 | P89: 24199.32226 | Q89: 24199.32226
F90: LV Generation Site Specific no RP Charge | G90: MWh | H90: All the way customers | J90: 0 | L90: 0 | M90: 0 | N90: 0 | O90: 0 | P90: 0 | Q90: 0
F91: LV Sub Generation Site Specific | G91: MWh | H91: All the way customers | J91: 7248.500841 | L91: 5289.195 | M91: 6746.564829 | N91: 7363.683018 | O91: 7248.500841 | P91: 7248.500841 | Q91: 7248.500841
F92: LV Sub Generation Site Specific no RP Charge | G92: MWh | H92: All the way customers | J92: 0 | L92: 0 | M92: 0 | N92: 0 | O92: 0 | P92: 0 | Q92: 0
F93: HV Generation Site Specific | G93: MWh | H93: All the way customers | J93: 201449.9516 | L93: 176930.155 | M93: 222923.3198 | N93: 182052.6567 | O93: 201449.9516 | P93: 201449.9516 | Q93: 201449.9516
F94: HV Generation Site Specific no RP Charge | G94: MWh | H94: All the way customers | J94: 0 | L94: 0 | M94: 0 | N94: 0 | O94: 0 | P94: 0 | Q94: 0
E96: Rate 3 units
F97: Domestic Aggregated or CT | G97: MWh | H97: All the way customers | O97: 0
F98: Domestic Aggregated (Related MPAN) | G98: MWh | H98: All the way customers | J98: =CHOOSE(charging_year_selected_index, L98,M98,N98,O98,P98,Q98) -> 5120.584977 | L98: 6679.759 | M98: 5883.519982 | N98: 6142.264559 | O98: 5120.584977 | P98: =$O98 -> 5120.584977 | Q98: 5120.584977
F99: Non-Domestic Aggregated or CT | G99: MWh | H99: All the way customers | J99: 161.1635807 | L99: 218.7632633 | M99: 184.5086558 | N99: 214.8291188 | O99: 161.1635807 | P99: 161.1635807 | Q99: 161.1635807
F100: Non-Domestic Aggregated (Related MPAN) | G100: MWh | H100: All the way customers | J100: 3232.503 | L100: 3640.25 | M100: 3449.315 | N100: 3184.623 | O100: 3232.503 | P100: 3232.503 | Q100: 3232.503
F101: LV Site Specific | G101: MWh | H101: All the way customers | J101: 42.85920042 | L101: 94.33406445 | M101: 36.91799188 | N101: 126.7229888 | O101: 42.85920042 | P101: 42.85920042 | Q101: 42.85920042
F102: LV Sub Site Specific | G102: MWh | H102: All the way customers | J102: 6.008070685 | L102: 5.884740792 | M102: 5.810846076 | N102: 6.417205802 | O102: 6.008070685 | P102: 6.008070685 | Q102: 6.008070685
F103: HV Site Specific | G103: MWh | H103: All the way customers | J103: 2294.251483 | L103: 1706.545262 | M103: 1737.147559 | N103: 2216.577334 | O103: 2294.251483 | P103: 2294.251483 | Q103: 2294.251483
F104: Unmetered Supplies | G104: MWh | H104: All the way customers | O104: 0
F105: LV Generation Aggregated | G105: MWh | H105: All the way customers | J105: =CHOOSE(charging_year_selected_index, L105,M105,N105,O105,P105,Q105) -> 16695.11912 | L105: 6127.115168 | M105: 33276.93193 | N105: 11561.26386 | O105: 16695.11912 | P105: =$O105 -> 16695.11912 | Q105: 16695.11912
F106: LV Sub Generation Aggregated | G106: MWh | H106: All the way customers | J106: 158.1068351 | L106: 95.50759893 | M106: 347.7261158 | N106: 222.2997025 | O106: 158.1068351 | P106: 158.1068351 | Q106: 158.1068351
F107: LV Generation Site Specific | G107: MWh | H107: All the way customers | J107: 17284.71025 | L107: 20626.524 | M107: 28812.02407 | N107: 29914.97291 | O107: 17284.71025 | P107: 17284.71025 | Q107: 17284.71025
F108: LV Generation Site Specific no RP Charge | G108: MWh | H108: All the way customers | J108: 0 | L108: 0 | M108: 0 | N108: 0 | O108: 0 | P108: 0 | Q108: 0
F109: LV Sub Generation Site Specific | G109: MWh | H109: All the way customers | J109: 5432.64869 | L109: 6499.353 | M109: 7119.66726 | N109: 7983.903432 | O109: 5432.64869 | P109: 5432.64869 | Q109: 5432.64869
F110: LV Sub Generation Site Specific no RP Charge | G110: MWh | H110: All the way customers | J110: 0 | L110: 0 | M110: 0 | N110: 0 | O110: 0 | P110: 0 | Q110: 0
F111: HV Generation Site Specific | G111: MWh | H111: All the way customers | J111: 122091.0736 | L111: 157737.588 | M111: 187410.7186 | N111: 157762.9562 | O111: 122091.0736 | P111: 122091.0736 | Q111: 122091.0736
F112: HV Generation Site Specific no RP Charge | G112: MWh | H112: All the way customers | J112: 0 | L112: 0 | M112: 0 | N112: 0 | O112: 0 | P112: 0 | Q112: 0
E114: MPANs
F115: Domestic Aggregated or CT | G115: MPANs | H115: All the way customers | O115: 0
F116: Domestic Aggregated (Related MPAN) | G116: MPANs | H116: All the way customers | J116: =CHOOSE(charging_year_selected_index, L116,M116,N116,O116,P116,Q116) -> 2279 | L116: 2859 | M116: 2748 | N116: 2526 | O116: 2279 | P116: =$O116 -> 2279 | Q116: 2279
F117: Non-Domestic Aggregated or CT | G117: MPANs | H117: All the way customers | J117: 44 | L117: 43 | M117: 41 | N117: 43 | O117: 44 | P117: 44 | Q117: 44
F118: Non-Domestic Aggregated (Related MPAN) | G118: MPANs | H118: All the way customers | J118: 791 | L118: 940 | M118: 910 | N118: 867 | O118: 791 | P118: 791 | Q118: 791
F119: LV Site Specific | G119: MPANs | H119: All the way customers | J119: 33 | L119: 28 | M119: 28 | N119: 31 | O119: 33 | P119: 33 | Q119: 33
F120: LV Sub Site Specific | G120: MPANs | H120: All the way customers | J120: 6 | L120: 5 | M120: 5 | N120: 6 | O120: 6 | P120: 6 | Q120: 6
F121: HV Site Specific | G121: MPANs | H121: All the way customers | J121: 79 | L121: 59 | M121: 62 | N121: 74 | O121: 79 | P121: 79 | Q121: 79
F122: Unmetered Supplies | G122: MPANs | H122: All the way customers | O122: 0
F123: LV Generation Aggregated | G123: MPANs | H123: All the way customers | J123: =CHOOSE(charging_year_selected_index, L123,M123,N123,O123,P123,Q123) -> 22642.53311 | L123: 2180 | M123: 25035.65599 | N123: 20721.77218 | O123: 22642.53311 | P123: =$O123 -> 22642.53311 | Q123: 22642.53311
F124: LV Sub Generation Aggregated | G124: MPANs | H124: All the way customers | J124: 35 | L124: 24 | M124: 29 | N124: 34 | O124: 35 | P124: 35 | Q124: 35
F125: LV Generation Site Specific | G125: MPANs | H125: All the way customers | J125: 460 | L125: 344 | M125: 372 | N125: 410 | O125: 460 | P125: 460 | Q125: 460
F126: LV Generation Site Specific no RP Charge | G126: MPANs | H126: All the way customers | J126: 0 | L126: 0 | M126: 0 | N126: 0 | O126: 0 | P126: 0 | Q126: 0
F127: LV Sub Generation Site Specific | G127: MPANs | H127: All the way customers | J127: 65 | L127: 42 | M127: 51 | N127: 57 | O127: 65 | P127: 65 | Q127: 65
F128: LV Sub Generation Site Specific no RP Charge | G128: MPANs | H128: All the way customers | J128: 0 | L128: 0 | M128: 0 | N128: 0 | O128: 0 | P128: 0 | Q128: 0
F129: HV Generation Site Specific | G129: MPANs | H129: All the way customers | J129: 166 | L129: 152 | M129: 154 | N129: 163 | O129: 166 | P129: 166 | Q129: 166
F130: HV Generation Site Specific no RP Charge | G130: MPANs | H130: All the way customers | J130: 0 | L130: 0 | M130: 0 | N130: 0 | O130: 0 | P130: 0 | Q130: 0
E132: Import capacity
F133: Domestic Aggregated or CT | G133: kVA | H133: All the way customers
F134: Domestic Aggregated (Related MPAN) | G134: kVA | H134: All the way customers
F135: Non-Domestic Aggregated or CT | G135: kVA | H135: All the way customers
F136: Non-Domestic Aggregated (Related MPAN) | G136: kVA | H136: All the way customers
F137: LV Site Specific | G137: kVA | H137: All the way customers | J137: =CHOOSE(charging_year_selected_index, L137,M137,N137,O137,P137,Q137) -> 1372 | L137: 1378 | M137: 1378 | N137: 1390 | O137: 1372 | P137: =$O137 -> 1372 | Q137: 1372
F138: LV Sub Site Specific | G138: kVA | H138: All the way customers | J138: =CHOOSE(charging_year_selected_index, L138,M138,N138,O138,P138,Q138) -> 128 | L138: 118 | M138: 118 | N138: 162 | O138: 128 | P138: 128 | Q138: 128
F139: HV Site Specific | G139: kVA | H139: All the way customers | J139: =CHOOSE(charging_year_selected_index, L139,M139,N139,O139,P139,Q139) -> 9090 | L139: 6929 | M139: 7146 | N139: 8639 | O139: 9090 | P139: 9090 | Q139: 9090
F140: Unmetered Supplies | G140: kVA | H140: All the way customers
F141: LV Generation Aggregated | G141: kVA | H141: All the way customers
F142: LV Sub Generation Aggregated | G142: kVA | H142: All the way customers
F143: LV Generation Site Specific | G143: kVA | H143: All the way customers
F144: LV Generation Site Specific no RP Charge | G144: kVA | H144: All the way customers
F145: LV Sub Generation Site Specific | G145: kVA | H145: All the way customers
F146: LV Sub Generation Site Specific no RP Charge | G146: kVA | H146: All the way customers
F147: HV Generation Site Specific | G147: kVA | H147: All the way customers
F148: HV Generation Site Specific no RP Charge | G148: kVA | H148: All the way customers
E150: Exceeded capacity
F151: Domestic Aggregated or CT | G151: kVA | H151: All the way customers
F152: Domestic Aggregated (Related MPAN) | G152: kVA | H152: All the way customers
F153: Non-Domestic Aggregated or CT | G153: kVA | H153: All the way customers
F154: Non-Domestic Aggregated (Related MPAN) | G154: kVA | H154: All the way customers
F155: LV Site Specific | G155: kVA | H155: All the way customers | J155: =CHOOSE(charging_year_selected_index, L155,M155,N155,O155,P155,Q155) -> 21.41666667 | L155: 4 | M155: 4.833333333 | N155: 11.33333333 | O155: 21.41666667 | P155: =$O155 -> 21.41666667 | Q155: 21.41666667
F156: LV Sub Site Specific | G156: kVA | H156: All the way customers | J156: =CHOOSE(charging_year_selected_index, L156,M156,N156,O156,P156,Q156) -> 0 | L156: 0 | M156: 1.5 | N156: 2.916666667 | O156: 0 | P156: 0 | Q156: 0
F157: HV Site Specific | G157: kVA | H157: All the way customers | J157: =CHOOSE(charging_year_selected_index, L157,M157,N157,O157,P157,Q157) -> 377.4166667 | L157: 246.9166667 | M157: 242.5 | N157: 257.25 | O157: 377.4166667 | P157: 377.4166667 | Q157: 377.4166667
F158: Unmetered Supplies | G158: kVA | H158: All the way customers
F159: LV Generation Aggregated | G159: kVA | H159: All the way customers
F160: LV Sub Generation Aggregated | G160: kVA | H160: All the way customers
F161: LV Generation Site Specific | G161: kVA | H161: All the way customers
F162: LV Generation Site Specific no RP Charge | G162: kVA | H162: All the way customers
F163: LV Sub Generation Site Specific | G163: kVA | H163: All the way customers
F164: LV Sub Generation Site Specific no RP Charge | G164: kVA | H164: All the way customers
F165: HV Generation Site Specific | G165: kVA | H165: All the way customers
F166: HV Generation Site Specific no RP Charge | G166: kVA | H166: All the way customers
E168: Reactive power units
F169: Domestic Aggregated or CT | G169: MVArh | H169: All the way customers
F170: Domestic Aggregated (Related MPAN) | G170: MVArh | H170: All the way customers
F171: Non-Domestic Aggregated or CT | G171: MVArh | H171: All the way customers
F172: Non-Domestic Aggregated (Related MPAN) | G172: MVArh | H172: All the way customers
F173: LV Site Specific | G173: MVArh | H173: All the way customers | J173: =CHOOSE(charging_year_selected_index, L173,M173,N173,O173,P173,Q173) -> 76.6 | L173: 49 | M173: 39.043 | N173: 37.848 | O173: 76.6 | P173: =$O173 -> 76.6 | Q173: 76.6
F174: LV Sub Site Specific | G174: MVArh | H174: All the way customers | J174: =CHOOSE(charging_year_selected_index, L174,M174,N174,O174,P174,Q174) -> 4.001 | L174: 4.248 | M174: 4.302 | N174: 4.27 | O174: 4.001 | P174: 4.001 | Q174: 4.001
F175: HV Site Specific | G175: MVArh | H175: All the way customers | J175: =CHOOSE(charging_year_selected_index, L175,M175,N175,O175,P175,Q175) -> 1889.755 | L175: 1606.79 | M175: 1318.467 | N175: 1645.619 | O175: 1889.755 | P175: 1889.755 | Q175: 1889.755
F176: Unmetered Supplies | G176: MVArh | H176: All the way customers
F177: LV Generation Aggregated | G177: MVArh | H177: All the way customers
F178: LV Sub Generation Aggregated | G178: MVArh | H178: All the way customers
F179: LV Generation Site Specific | G179: MVArh | H179: All the way customers | J179: =CHOOSE(charging_year_selected_index, L179,M179,N179,O179,P179,Q179) -> 5768.67 | L179: 5712.562 | M179: 5696.298 | N179: 5921.12 | O179: 5768.67 | P179: =$O179 -> 5768.67 | Q179: 5768.67
F180: LV Generation Site Specific no RP Charge | G180: MVArh | H180: All the way customers
F181: LV Sub Generation Site Specific | G181: MVArh | H181: All the way customers | J181: =CHOOSE(charging_year_selected_index, L181,M181,N181,O181,P181,Q181) -> 973.306 | L181: 573.778 | M181: 454.794 | N181: 727.674 | O181: 973.306 | P181: =$O181 -> 973.306 | Q181: 973.306
F182: LV Sub Generation Site Specific no RP Charge | G182: MVArh | H182: All the way customers
F183: HV Generation Site Specific | G183: MVArh | H183: All the way customers | J183: =CHOOSE(charging_year_selected_index, L183,M183,N183,O183,P183,Q183) -> 10951.124 | L183: 9164.714 | M183: 13275.154 | N183: 9984.85 | O183: 10951.124 | P183: =$O183 -> 10951.124 | Q183: 10951.124
F184: HV Generation Site Specific no RP Charge | G184: MVArh | H184: All the way customers
C186: =INDEX('Version control'!$H$29:$H$55,MATCH($A$1,'Version control'!$F$29:$F$55,0),1)&"-D: All-the-way volumes - Residual Band 1" -> Input 501-D: All-the-way volumes - Residual Band 1
E188: Rate 1 units | I188: > | S188: Paragraph 52
F189: Domestic Aggregated or CT | G189: MWh | H189: All the way customers | J189: =CHOOSE(charging_year_selected_index, L189,M189,N189,O189,P189,Q189) -> 563789.1604 | L189: 542392.9205 | M189: 557299.4612 | N189: 564837.5723 | O189: 563789.1604 | P189: =$O189 -> 563789.1604 | Q189: 563789.1604
F190: Domestic Aggregated (Related MPAN) | G190: MWh | H190: All the way customers | O190: 0
F191: Non-Domestic Aggregated or CT | G191: MWh | H191: All the way customers | J191: =CHOOSE(charging_year_selected_index, L191,M191,N191,O191,P191,Q191) -> 13403.37125 | L191: 13142.79174 | M191: 13428.50847 | N191: 12073.63979 | O191: 13403.37125 | P191: =$O191 -> 13403.37125 | Q191: 13403.37125
F192: Non-Domestic Aggregated (Related MPAN) | G192: MWh | H192: All the way customers | O192: 0
F193: LV Site Specific | G193: MWh | H193: All the way customers | J193: =CHOOSE(charging_year_selected_index, L193,M193,N193,O193,P193,Q193) -> 28404.75322 | L193: 28709.25947 | M193: 30052.91693 | N193: 28500.04583 | O193: 28404.75322 | P193: =$O193 -> 28404.75322 | Q193: 28404.75322
F194: LV Sub Site Specific | G194: MWh | H194: All the way customers | J194: =CHOOSE(charging_year_selected_index, L194,M194,N194,O194,P194,Q194) -> 9414.164749 | L194: 9636.740466 | M194: 9843.888695 | N194: 9321.915626 | O194: 9414.164749 | P194: 9414.164749 | Q194: 9414.164749
F195: HV Site Specific | G195: MWh | H195: All the way customers | J195: =CHOOSE(charging_year_selected_index, L195,M195,N195,O195,P195,Q195) -> 11780.58802 | L195: 11697.3744 | M195: 11581.03228 | N195: 11457.79801 | O195: 11780.58802 | P195: 11780.58802 | Q195: 11780.58802
F196: Unmetered Supplies | G196: MWh | H196: All the way customers | J196: =CHOOSE(charging_year_selected_index, L196,M196,N196,O196,P196,Q196) -> 6372.902515 | L196: 6404.747543 | M196: 5781.355371 | N196: 5982.774111 | O196: 6372.902515 | P196: 6372.902515 | Q196: 6372.902515
F197: LV Generation Aggregated | G197: MWh | H197: All the way customers | O197: 0
F198: LV Sub Generation Aggregated | G198: MWh | H198: All the way customers
F199: LV Generation Site Specific | G199: MWh | H199: All the way customers | O199: 0
F200: LV Generation Site Specific no RP Charge | G200: MWh | H200: All the way customers
F201: LV Sub Generation Site Specific | G201: MWh | H201: All the way customers
F202: LV Sub Generation Site Specific no RP Charge | G202: MWh | H202: All the way customers
F203: HV Generation Site Specific | G203: MWh | H203: All the way customers
F204: HV Generation Site Specific no RP Charge | G204: MWh | H204: All the way customers
E206: Rate 2 units
F207: Domestic Aggregated or CT | G207: MWh | H207: All the way customers | J207: =CHOOSE(charging_year_selected_index, L207,M207,N207,O207,P207,Q207) -> 1976486.479 | L207: 1892156.584 | M207: 1919306.414 | N207: 1976372.064 | O207: 1976486.479 | P207: =$O207 -> 1976486.479 | Q207: 1976486.479
F208: Domestic Aggregated (Related MPAN) | G208: MWh | H208: All the way customers | O208: 0
F209: Non-Domestic Aggregated or CT | G209: MWh | H209: All the way customers | J209: =CHOOSE(charging_year_selected_index, L209,M209,N209,O209,P209,Q209) -> 69717.38717 | L209: 66780.27256 | M209: 68358.49156 | N209: 61461.46505 | O209: 69717.38717 | P209: =$O209 -> 69717.38717 | Q209: 69717.38717
F210: Non-Domestic Aggregated (Related MPAN) | G210: MWh | H210: All the way customers | O210: 0
F211: LV Site Specific | G211: MWh | H211: All the way customers | J211: =CHOOSE(charging_year_selected_index, L211,M211,N211,O211,P211,Q211) -> 129028.978 | L211: 129817.1052 | M211: 137184.5203 | N211: 129830.3483 | O211: 129028.978 | P211: =$O211 -> 129028.978 | Q211: 129028.978
F212: LV Sub Site Specific | G212: MWh | H212: All the way customers | J212: =CHOOSE(charging_year_selected_index, L212,M212,N212,O212,P212,Q212) -> 46828.91213 | L212: 48097.83145 | M212: 49306.68934 | N212: 46679.99962 | O212: 46828.91213 | P212: 46828.91213 | Q212: 46828.91213
F213: HV Site Specific | G213: MWh | H213: All the way customers | J213: =CHOOSE(charging_year_selected_index, L213,M213,N213,O213,P213,Q213) -> 56404.88171 | L213: 57111.12232 | M213: 56712.0554 | N213: 55514.79745 | O213: 56404.88171 | P213: 56404.88171 | Q213: 56404.88171
F214: Unmetered Supplies | G214: MWh | H214: All the way customers | J214: =CHOOSE(charging_year_selected_index, L214,M214,N214,O214,P214,Q214) -> 39293.37048 | L214: 35748.58558 | M214: 31417.50873 | N214: 34212.97952 | O214: 39293.37048 | P214: 39293.37048 | Q214: 39293.37048
F215: LV Generation Aggregated | G215: MWh | H215: All the way customers | O215: 0
F216: LV Sub Generation Aggregated | G216: MWh | H216: All the way customers
F217: LV Generation Site Specific | G217: MWh | H217: All the way customers | O217: 0
F218: LV Generation Site Specific no RP Charge | G218: MWh | H218: All the way customers
F219: LV Sub Generation Site Specific | G219: MWh | H219: All the way customers
... 1786 more rows

Sheet CIRP_Inputs by network level
A1: =MID(CELL("filename",A1),FIND("]",CELL("filename",A1))+1,255) -> CIRP_Inputs by network level
A2: =Cover!D23 & " - " & TEXT(CIRP_submission_date, "mmm") & "-" & RIGHT(YEAR(CIRP_submission_date), 2) & " - " & Cover!D25 -> SP Manweb - Jan-26 - V2
A3: =Cover!D2&" - "&Cover!D8&" v"&Cover!D10&" - "&Cover!D19 -> Cost Information Review Pack (CIRP) - Release for charge setting v1 - 2027/28
A4: =H218 & IF(H218 = 1, " issue", " issues") &" identified in checks on this sheet" -> 0 issues identified in checks on this sheet | L4: TRUE | M4: TRUE | N4: TRUE
J5: ="Year selected ("& charging_year_selected &")" -> Year selected (2027/28) | L5: =TRANSPOSE('CIRP_User control'!G27:H32) -> 2024/25 | M5: 2025/26 | N5: 2026/27 | O5: 2027/28 | P5: 2028/29 | Q5: 2029/30
B6: Click here to return to model map | G6: Units | H6: Constants | J6: ='CIRP_User control'!$H$41 -> Published | L6: Historic | M6: Current | N6: Published | O6: Published | P6: Forecast | Q6: Forecast | S6: Legal text reference
B8: Description
C10: This sheet sets out inputs by network level and by year.
C11: DNOs should populate the inputs for the charging year and the four following years.
C12: DNOs can also populate the three years preceding the charging year, but are not obliged to do so.
B14: Inputs by network level
C16: =INDEX('Version control'!$H$29:$H$55,MATCH($A$1,'Version control'!$F$29:$F$55,0),1)&"-A: Diversity allowance between top and bottom of network level" -> Input 502-A: Diversity allowance between top and bottom of network level
E18: Diversity allowance between top and bottom of network level | I18: > | S18: Paragraphs 26 to 28
F19: Transmission exit | G19: %
F20: GSPs | G20: % | J20: =CHOOSE(charging_year_selected_index, L20,M20,N20,O20,P20,Q20) -> 0.025 | L20: 0.025 | M20: 0.025 | N20: 0.025 | O20: 0.025 | P20: =$O20 -> 0.025 | Q20: 0.025
F21: 132kV | G21: % | J21: =CHOOSE(charging_year_selected_index, L21,M21,N21,O21,P21,Q21) -> 0.1 | L21: 0.1 | M21: 0.1 | N21: 0.1 | O21: 0.1 | P21: 0.1 | Q21: 0.1
F22: 132kV/EHV | G22: %
F23: EHV | G23: % | J23: =CHOOSE(charging_year_selected_index, L23,M23,N23,O23,P23,Q23) -> 0.26 | L23: 0.26 | M23: 0.26 | N23: 0.26 | O23: 0.26 | P23: =$O23 -> 0.26 | Q23: 0.26
F24: EHV/HV | G24: %
F25: 132kV/HV | G25: %
F26: HV | G26: % | J26: =CHOOSE(charging_year_selected_index, L26,M26,N26,O26,P26,Q26) -> 0.2 | L26: 0.2 | M26: 0.2 | N26: 0.2 | O26: 0.2 | P26: =$O26 -> 0.2 | Q26: 0.2
F27: HV/LV | G27: %
F28: LV circuits | G28: %
C30: =INDEX('Version control'!$H$29:$H$55,MATCH($A$1,'Version control'!$F$29:$F$55,0),1)&"-B: Proportion of EHV/HV load going through 132kV/HV direct transformation" -> Input 502-B: Proportion of EHV/HV load going through 132kV/HV direct transformation
E32: Proportion of EHV/HV load going through 132kV/HV direct transformation
F33: Transmission exit | G33: %
F34: GSPs | G34: %
F35: 132kV | G35: %
F36: 132kV/EHV | G36: %
F37: EHV | G37: %
F38: EHV/HV | G38: %
F39: 132kV/HV | G39: % | J39: =CHOOSE(charging_year_selected_index, L39,M39,N39,O39,P39,Q39) -> 0 | L39: 0 | M39: 0 | N39: 0 | O39: 0 | P39: =$O39 -> 0 | Q39: 0
F40: HV | G40: %
F41: HV/LV | G41: %
F42: LV circuits | G42: %
C44: =INDEX('Version control'!$H$29:$H$55,MATCH($A$1,'Version control'!$F$29:$F$55,0),1)&"-C: Loss adjustment factors to transmission" -> Input 502-C: Loss adjustment factors to transmission
E46: Loss adjustment factors to transmission | I46: > | S46: Paragraph 47
F47: Transmission exit | G47: scalar
F48: GSPs | G48: scalar | J48: =CHOOSE(charging_year_selected_index, L48,M48,N48,O48,P48,Q48) -> 1 | L48: 1 | M48: 1 | N48: 1 | O48: 1 | P48: =$O48 -> 1 | Q48: 1
F49: 132kV | G49: scalar | J49: =CHOOSE(charging_year_selected_index, L49,M49,N49,O49,P49,Q49) -> 1.004 | L49: 1.004 | M49: 1.004 | N49: 1.004 | O49: 1.004 | P49: 1.004 | Q49: 1.004
F50: 132kV/EHV | G50: scalar | J50: =CHOOSE(charging_year_selected_index, L50,M50,N50,O50,P50,Q50) -> 1.012 | L50: 1.012 | M50: 1.012 | N50: 1.012 | O50: 1.012 | P50: 1.012 | Q50: 1.012
F51: EHV | G51: scalar | J51: =CHOOSE(charging_year_selected_index, L51,M51,N51,O51,P51,Q51) -> 1.017 | L51: 1.017 | M51: 1.017 | N51: 1.017 | O51: 1.017 | P51: 1.017 | Q51: 1.017
F52: EHV/HV | G52: scalar | J52: =CHOOSE(charging_year_selected_index, L52,M52,N52,O52,P52,Q52) -> 1.025 | L52: 1.025 | M52: 1.026 | N52: 1.025 | O52: 1.025 | P52: 1.025 | Q52: 1.025
F53: 132kV/HV | G53: scalar
F54: HV | G54: scalar | J54: =CHOOSE(charging_year_selected_index, L54,M54,N54,O54,P54,Q54) -> 1.036 | L54: 1.036 | M54: 1.036 | N54: 1.036 | O54: 1.036 | P54: =$O54 -> 1.036 | Q54: 1.036
F55: HV/LV | G55: scalar | J55: =CHOOSE(charging_year_selected_index, L55,M55,N55,O55,P55,Q55) -> 1.059 | L55: 1.059 | M55: 1.059 | N55: 1.059 | O55: 1.059 | P55: 1.059 | Q55: 1.059
F56: LV circuits | G56: scalar | J56: =CHOOSE(charging_year_selected_index, L56,M56,N56,O56,P56,Q56) -> 1.134 | L56: 1.115 | M56: 1.112 | N56: 1.122 | O56: 1.134 | P56: 1.134 | Q56: 1.134
C58: =INDEX('Version control'!$H$29:$H$55,MATCH($A$1,'Version control'!$F$29:$F$55,0),1)&"-D: Average kVAr by kVA, by network level" -> Input 502-D: Average kVAr by kVA, by network level
E60: Average kVAr by kVA, by network level | I60: > | S60: Paragraphs 50 to 51
F61: Transmission exit | G61: kVAr/ kVA
F62: GSPs | G62: kVAr/ kVA | J62: =CHOOSE(charging_year_selected_index, L62,M62,N62,O62,P62,Q62) -> 0.2610446757 | L62: 0.1973565628 | M62: 0.2568385688 | N62: 0.224308852 | O62: 0.2610446757 | P62: =$O62 -> 0.2610446757 | Q62: 0.2610446757
F63: 132kV | G63: kVAr/ kVA | J63: 0.2610446757 | L63: 0.1973565628 | M63: 0.2568385688 | N63: 0.224308852 | O63: 0.2610446757 | P63: 0.2610446757 | Q63: 0.2610446757
F64: 132kV/EHV | G64: kVAr/ kVA | J64: 0.2231317099 | L64: 0.3062997976 | M64: 0.2412180708 | N64: 0.2275129786 | O64: 0.2231317099 | P64: 0.2231317099 | Q64: 0.2231317099
F65: EHV | G65: kVAr/ kVA | J65: 0.2231317099 | L65: 0.3062997976 | M65: 0.2412180708 | N65: 0.2275129786 | O65: 0.2231317099 | P65: 0.2231317099 | Q65: 0.2231317099
F66: EHV/HV | G66: kVAr/ kVA | J66: 0.3281434097 | L66: 0.3377818202 | M66: 0.3636977057 | N66: 0.3634860894 | O66: 0.3281434097 | P66: 0.3281434097 | Q66: 0.3281434097
F67: 132kV/HV | G67: kVAr/ kVA | J67: 0.3281434097 | L67: 0.3377818202 | M67: 0.3636977057 | N67: 0.3634860894 | O67: 0.3281434097 | P67: 0.3281434097 | Q67: 0.3281434097
F68: HV | G68: kVAr/ kVA | J68: 0.3281434097 | L68: 0.3377818202 | M68: 0.3636977057 | N68: 0.3634860894 | O68: 0.3281434097 | P68: 0.3281434097 | Q68: 0.3281434097
F69: HV/LV | G69: kVAr/ kVA | J69: 0.3281434097 | L69: 0.3377818202 | M69: 0.3636977057 | N69: 0.3634860894 | O69: 0.3281434097 | P69: 0.3281434097 | Q69: 0.3281434097
F70: LV circuits | G70: kVAr/ kVA | J70: 0.3281434097 | L70: 0.3377818202 | M70: 0.3636977057 | N70: 0.3634860894 | O70: 0.3281434097 | P70: 0.3281434097 | Q70: 0.3281434097
C72: =INDEX('Version control'!$H$29:$H$55,MATCH($A$1,'Version control'!$F$29:$F$55,0),1)&"-E: Customer contributions under current connection charging policy" -> Input 502-E: Customer contributions under current connection charging policy
D74: Customer contributions under current connection charging policy | I74: > | S74: Paragraphs 29 to 31
E75: LV network
F76: Transmission exit | G76: %
F77: GSPs | G77: %
F78: 132kV | G78: % | J78: =CHOOSE(charging_year_selected_index, L78,M78,N78,O78,P78,Q78) -> 0 | L78: 0 | M78: 0 | N78: 0 | O78: 0 | P78: =$O78 -> 0 | Q78: 0
F79: 132kV/EHV | G79: % | J79: 0 | L79: 0 | M79: 0 | N79: 0 | O79: 0 | P79: 0 | Q79: 0
F80: EHV | G80: % | J80: 0 | L80: 0 | M80: 0 | N80: 0 | O80: 0 | P80: 0 | Q80: 0
F81: EHV/HV | G81: % | J81: 0 | L81: 0 | M81: 0 | N81: 0 | O81: 0 | P81: 0 | Q81: 0
F82: 132kV/HV | G82: % | J82: 0 | L82: 0 | M82: 0 | N82: 0 | O82: 0 | P82: 0 | Q82: 0
F83: HV | G83: % | J83: 0 | L83: 0.3263512902 | M83: 0 | N83: 0 | O83: 0 | P83: 0 | Q83: 0
F84: HV/LV | G84: % | J84: 0 | L84: 0.7109728507 | M84: 0 | N84: 0 | O84: 0 | P84: 0 | Q84: 0
F85: LV circuits | G85: % | J85: 0 | L85: 0.9309486908 | M85: 0 | N85: 0 | O85: 0 | P85: 0 | Q85: 0
E86: LV substation
F87: Transmission exit | G87: %
F88: GSPs | G88: %
F89: 132kV | G89: % | J89: =CHOOSE(charging_year_selected_index, L89,M89,N89,O89,P89,Q89) -> 0 | L89: 0 | M89: 0 | N89: 0 | O89: 0 | P89: =$O89 -> 0 | Q89: 0
F90: 132kV/EHV | G90: % | J90: 0 | L90: 0 | M90: 0 | N90: 0 | O90: 0 | P90: 0 | Q90: 0
F91: EHV | G91: % | J91: 0 | L91: 0 | M91: 0 | N91: 0 | O91: 0 | P91: 0 | Q91: 0
F92: EHV/HV | G92: % | J92: 0 | L92: 0 | M92: 0 | N92: 0 | O92: 0 | P92: 0 | Q92: 0
F93: 132kV/HV | G93: % | J93: 0 | L93: 0 | M93: 0 | N93: 0 | O93: 0 | P93: 0 | Q93: 0
F94: HV | G94: % | J94: 0 | L94: 0.3263512902 | M94: 0 | N94: 0 | O94: 0 | P94: 0 | Q94: 0
F95: HV/LV | G95: % | J95: 0 | L95: 0.7109728507 | M95: 0 | N95: 0 | O95: 0 | P95: 0 | Q95: 0
F96: LV circuits | G96: %
E97: HV network
F98: Transmission exit | G98: %
F99: GSPs | G99: %
F100: 132kV | G100: % | J100: =CHOOSE(charging_year_selected_index, L100,M100,N100,O100,P100,Q100) -> 0 | L100: 0 | M100: 0 | N100: 0 | O100: 0 | P100: =$O100 -> 0 | Q100: 0
F101: 132kV/EHV | G101: % | J101: 0 | L101: 0 | M101: 0 | N101: 0 | O101: 0 | P101: 0 | Q101: 0
F102: EHV | G102: % | J102: 0 | L102: 0.2944301994 | M102: 0 | N102: 0 | O102: 0 | P102: 0 | Q102: 0
F103: EHV/HV | G103: % | J103: 0 | L103: 0.1431705882 | M103: 0 | N103: 0 | O103: 0 | P103: 0 | Q103: 0
F104: 132kV/HV | G104: % | J104: 0 | L104: 0 | M104: 0 | N104: 0 | O104: 0 | P104: 0 | Q104: 0
F105: HV | G105: % | J105: 0 | L105: 0.7342904029 | M105: 0 | N105: 0 | O105: 0 | P105: 0 | Q105: 0
F106: HV/LV | G106: %
F107: LV circuits | G107: %
E108: HV substation
F109: Transmission exit | G109: %
F110: GSPs | G110: %
F111: 132kV | G111: % | J111: =CHOOSE(charging_year_selected_index, L111,M111,N111,O111,P111,Q111) -> 0 | L111: 0 | M111: 0 | N111: 0 | O111: 0 | P111: =$O111 -> 0 | Q111: 0
F112: 132kV/EHV | G112: % | J112: =CHOOSE(charging_year_selected_index, L112,M112,N112,O112,P112,Q112) -> 0 | L112: 0 | M112: 0 | N112: 0 | O112: 0 | P112: 0 | Q112: 0
F113: EHV | G113: % | J113: =CHOOSE(charging_year_selected_index, L113,M113,N113,O113,P113,Q113) -> 0 | L113: 0.2944301994 | M113: 0 | N113: 0 | O113: 0 | P113: 0 | Q113: 0
F114: EHV/HV | G114: % | J114: =CHOOSE(charging_year_selected_index, L114,M114,N114,O114,P114,Q114) -> 0 | L114: 0.1431705882 | M114: 0 | N114: 0 | O114: 0 | P114: 0 | Q114: 0
F115: 132kV/HV | G115: %
F116: HV | G116: %
F117: HV/LV | G117: %
F118: LV circuits | G118: %
C120: =INDEX('Version control'!$H$29:$H$55,MATCH($A$1,'Version control'!$F$29:$F$55,0),1)&"-F: Gross asset cost by network level" -> Input 502-F: Gross asset cost by network level
E122: Gross asset cost by network level
F123: Transmission exit | G123: £
F124: GSPs | G124: £
F125: 132kV | G125: £ | J125: =CHOOSE(charging_year_selected_index, L125,M125,N125,O125,P125,Q125) -> 216006549.7 | L125: 209465521.7 | M125: 208338210.7 | N125: 211551115.4 | O125: 216006549.7 | P125: 220326680.7 | Q125: 224733214.3
F126: 132kV/EHV | G126: £ | J126: 18110426.8 | L126: 17562013.75 | M126: 17467497.71 | N126: 17736874.15 | O126: 18110426.8 | P126: 18472635.33 | Q126: 18842088.04
F127: EHV | G127: £ | J127: 184884001 | L127: 179285414.1 | M127: 178320527.8 | N127: 181070512.4 | O127: 184884001 | P127: 188581681.1 | Q127: 192353314.7
F128: EHV/HV | G128: £ | J128: 30707294.57 | L128: 29777427.97 | M128: 29617170.47 | N128: 30073914.07 | O128: 30707294.57 | P128: 31321440.46 | Q128: 31947869.27
F129: 132kV/HV | G129: £ | J129: 0 | L129: 0 | M129: 0 | N129: 0 | O129: 0 | P129: 0 | Q129: 0
F130: HV | G130: £ | J130: 252029148.4 | L130: 244397297.7 | M130: 243081989.4 | N130: 246830698 | O130: 252029148.4 | P130: 257069731.4 | Q130: 262211126
F131: HV/LV | G131: £ | J131: 98574302.56 | L131: 95589313.07 | M131: 95074866.21 | N131: 96541070.99 | O131: 98574302.56 | P131: 100545788.6 | Q131: 102556704.4
F132: LV circuits | G132: £ | J132: 60358969.82 | L132: 58531202.48 | M132: 58216196.63 | N132: 59113982.44 | O132: 60358969.82 | P132: 61566149.22 | Q132: 62797472.2
C134: =INDEX('Version control'!$H$29:$H$55,MATCH($A$1,'Version control'!$F$29:$F$55,0),1)&"-G: Peaking probabilities, by timeband & network level" -> Input 502-G: Peaking probabilities, by timeband & network level
C136: Red, Amber & Green peaking probabilities must sum to 100%, except for unused network levels, which should sum to 0%
E138: Red peaking probabilities, by network level | I138: > | L138: updated not linking to ARP from last year | S138: Paragraphs 48 to 49
F139: Transmission exit | G139: %
F140: GSPs | G140: % | J140: =CHOOSE(charging_year_selected_index, L140,M140,N140,O140,P140,Q140) -> 0.6711583646 | L140: 0.6218466212 | M140: 0.6477002483 | N140: 0.7092727118 | O140: 0.6711583646 | P140: =$O140 -> 0.6711583646 | Q140: 0.6711583646
F141: 132kV | G141: % | J141: 0.6711583646 | L141: 0.6218466212 | M141: 0.6477002483 | N141: 0.7092727118 | O141: 0.6711583646 | P141: 0.6711583646 | Q141: 0.6711583646
F142: 132kV/EHV | G142: % | J142: 0.4286278804 | L142: 0.3577754549 | M142: 0.3693541325 | N142: 0.4060160444 | O142: 0.4286278804 | P142: 0.4286278804 | Q142: 0.4286278804
F143: EHV | G143: % | J143: 0.4286278804 | L143: 0.3577754549 | M143: 0.3693541325 | N143: 0.4060160444 | O143: 0.4286278804 | P143: 0.4286278804 | Q143: 0.4286278804
F144: EHV/HV | G144: % | J144: 0.3549728665 | L144: 0.2808821019 | M144: 0.3029100521 | N144: 0.324974171 | O144: 0.3549728665 | P144: 0.3549728665 | Q144: 0.3549728665
F145: 132kV/HV | G145: % | J145: 0 | L145: 0 | M145: 0.3029100521 | N145: 0 | O145: 0 | P145: 0 | Q145: 0
F146: HV | G146: % | J146: 0.3549728665 | L146: 0.2808821019 | M146: 0.3029100521 | N146: 0.324974171 | O146: 0.3549728665 | P146: 0.3549728665 | Q146: 0.3549728665
F147: HV/LV | G147: % | J147: 0.3549728665 | L147: 0.2808821019 | M147: 0.3029100521 | N147: 0.324974171 | O147: 0.3549728665 | P147: 0.3549728665 | Q147: 0.3549728665
F148: LV circuits | G148: % | J148: 0.3549728665 | L148: 0.2808821019 | M148: 0.3029100521 | N148: 0.324974171 | O148: 0.3549728665 | P148: 0.3549728665 | Q148: 0.3549728665
E150: Amber peaking probabilities, by network level | I150: > | S150: Paragraphs 48 to 49
F151: Transmission exit | G151: %
F152: GSPs | G152: % | J152: =CHOOSE(charging_year_selected_index, L152,M152,N152,O152,P152,Q152) -> 0.319941631 | L152: 0.3781533788 | M152: 0.3522997517 | N152: 0.2818272838 | O152: 0.319941631 | P152: =$O152 -> 0.319941631 | Q152: 0.319941631
F153: 132kV | G153: % | J153: 0.319941631 | L153: 0.3781533788 | M153: 0.3522997517 | N153: 0.2818272838 | O153: 0.319941631 | P153: 0.319941631 | Q153: 0.319941631
F154: 132kV/EHV | G154: % | J154: 0.4512845498 | L154: 0.5568411963 | M154: 0.5258211593 | N154: 0.4765065511 | O154: 0.4512845498 | P154: 0.4512845498 | Q154: 0.4512845498
F155: EHV | G155: % | J155: 0.4512845498 | L155: 0.5568411963 | M155: 0.5258211593 | N155: 0.4765065511 | O155: 0.4512845498 | P155: 0.4512845498 | Q155: 0.4512845498
F156: EHV/HV | G156: % | J156: 0.5353027677 | L156: 0.6141894308 | M156: 0.586411651 | N156: 0.5498973073 | O156: 0.5353027677 | P156: 0.5353027677 | Q156: 0.5353027677
F157: 132kV/HV | G157: % | J157: 0 | L157: 0 | M157: 0.586411651 | N157: 0 | O157: 0 | P157: 0 | Q157: 0
F158: HV | G158: % | J158: 0.5353027677 | L158: 0.6141894308 | M158: 0.586411651 | N158: 0.5498973073 | O158: 0.5353027677 | P158: 0.5353027677 | Q158: 0.5353027677
F159: HV/LV | G159: % | J159: 0.5353027677 | L159: 0.6141894308 | M159: 0.586411651 | N159: 0.5498973073 | O159: 0.5353027677 | P159: 0.5353027677 | Q159: 0.5353027677
F160: LV circuits | G160: % | J160: 0.5353027677 | L160: 0.6141894308 | M160: 0.586411651 | N160: 0.5498973073 | O160: 0.5353027677 | P160: 0.5353027677 | Q160: 0.5353027677
E162: Green peaking probabilities, by network level | I162: > | S162: Paragraphs 48 to 49
F163: Transmission exit | G163: %
F164: GSPs | G164: % | J164: =CHOOSE(charging_year_selected_index, L164,M164,N164,O164,P164,Q164) -> 0.008900004397 | L164: 0 | M164: 0 | N164: 0.008900004397 | O164: 0.008900004397 | P164: =$O164 -> 0.008900004397 | Q164: 0.008900004397
F165: 132kV | G165: % | J165: 0.008900004397 | L165: 0 | M165: 0 | N165: 0.008900004397 | O165: 0.008900004397 | P165: 0.008900004397 | Q165: 0.008900004397
F166: 132kV/EHV | G166: % | J166: 0.1200875699 | L166: 0.08538334881 | M166: 0.1048247082 | N166: 0.1174774045 | O166: 0.1200875699 | P166: 0.1200875699 | Q166: 0.1200875699
F167: EHV | G167: % | J167: 0.1200875699 | L167: 0.08538334881 | M167: 0.1048247082 | N167: 0.1174774045 | O167: 0.1200875699 | P167: 0.1200875699 | Q167: 0.1200875699
F168: EHV/HV | G168: % | J168: 0.1097243659 | L168: 0.1049284673 | M168: 0.1106782969 | N168: 0.1251285216 | O168: 0.1097243659 | P168: 0.1097243659 | Q168: 0.1097243659
F169: 132kV/HV | G169: % | J169: 0 | L169: 0 | M169: 0.1106782969 | N169: 0 | O169: 0 | P169: 0 | Q169: 0
F170: HV | G170: % | J170: 0.1097243659 | L170: 0.1049284673 | M170: 0.1106782969 | N170: 0.1251285216 | O170: 0.1097243659 | P170: 0.1097243659 | Q170: 0.1097243659
F171: HV/LV | G171: % | J171: 0.1097243659 | L171: 0.1049284673 | M171: 0.1106782969 | N171: 0.1251285216 | O171: 0.1097243659 | P171: 0.1097243659 | Q171: 0.1097243659
F172: LV circuits | G172: % | J172: 0.1097243659 | L172: 0.1049284673 | M172: 0.1106782969 | N172: 0.1251285216 | O172: 0.1097243659 | P172: 0.1097243659 | Q172: 0.1097243659
E174: Black peaking probabilities, by network level
F175: Transmission exit | G175: %
F176: GSPs | G176: % | J176: =CHOOSE(charging_year_selected_index, L176,M176,N176,O176,P176,Q176) -> 0.6711583646 | L176: 0.5425226498 | M176: 0.5768603845 | N176: 0.7092727118 | O176: 0.6711583646 | P176: =$O176 -> 0.6711583646 | Q176: 0.6711583646
F177: 132kV | G177: % | J177: 0.6711583646 | L177: 0.5425226498 | M177: 0.5768603845 | N177: 0.7092727118 | O177: 0.6711583646 | P177: 0.6711583646 | Q177: 0.6711583646
F178: 132kV/EHV | G178: % | J178: 0.2550297862 | L178: 0.2140901385 | M178: 0.2325790388 | N178: 0.2753950708 | O178: 0.2550297862 | P178: 0.2550297862 | Q178: 0.2550297862
F179: EHV | G179: % | J179: 0.2550297862 | L179: 0.2140901385 | M179: 0.2325790388 | N179: 0.2753950708 | O179: 0.2550297862 | P179: 0.2550297862 | Q179: 0.2550297862
F180: EHV/HV | G180: % | J180: 0.2792244446 | L180: 0.1989530189 | M180: 0.2004945875 | N180: 0.2475493494 | O180: 0.2792244446 | P180: 0.2792244446 | Q180: 0.2792244446
F181: 132kV/HV | G181: % | J181: 0 | L181: 0 | M181: 0.2004945875 | N181: 0 | O181: 0 | P181: 0 | Q181: 0
F182: HV | G182: % | J182: 0.2792244446 | L182: 0.1989530189 | M182: 0.2004945875 | N182: 0.2475493494 | O182: 0.2792244446 | P182: 0.2792244446 | Q182: 0.2792244446
F183: HV/LV | G183: % | J183: 0.2792244446 | L183: 0.1989530189 | M183: 0.2004945875 | N183: 0.2475493494 | O183: 0.2792244446 | P183: 0.2792244446 | Q183: 0.2792244446
F184: LV circuits | G184: % | J184: 0.2792244446 | L184: 0.1989530189 | M184: 0.2004945875 | N184: 0.2475493494 | O184: 0.2792244446 | P184: 0.2792244446 | Q184: 0.2792244446
B186: Checks
C188: Checks are not run for historic years, for which DNOs are not obliged to enter inputs.
E190: Check for error values | G190: number of issues | H190: =SUM(IF(ISERROR(H18:R185), 1)) -> 0
E192: Check that loss adjustment factor = 1 at grid supply point | G192: number of issues | H192: =SUM(L192:Q192) -> 0 | O192: =IF(O48 = 1, 0, 1) -> 0 | P192: =IF(P48 = 1, 0, 1) -> 0 | Q192: =IF(Q48 = 1, 0, 1) -> 0
E194: Peaking probabilities check - General
F195: Transmission exit | G195: number of issues
F196: GSPs | G196: number of issues | H196: =SUM(L196:Q196) -> 0 | O196: =IF(ABS(SUM(O140,O152,O164) - 1) < 10^-check_decimals,0,1) -> 0 | P196: =IF(ABS(SUM(P140,P152,P164) - 1) < 10^-check_decimals,0,1) -> 0 | Q196: =IF(ABS(SUM(Q140,Q152,Q164) - 1) < 10^-check_decimals,0,1) -> 0
F197: 132kV | G197: number of issues
F198: 132kV/EHV | G198: number of issues
F199: EHV | G199: number of issues | H199: =SUM(L199:Q199) -> 0 | O199: =IF(ABS(SUM(O143,O155,O167) - 1) < 10^-check_decimals,0,1) -> 0 | P199: 0 | Q199: 0
F200: EHV/HV | G200: number of issues | H200: =SUM(L200:Q200) -> 0 | O200: 0 | P200: 0 | Q200: 0
F201: 132kV/HV | G201: number of issues
F202: HV | G202: number of issues | H202: =SUM(L202:Q202) -> 0 | O202: =IF(ABS(SUM(O146,O158,O170) - 1) < 10^-check_decimals,0,1) -> 0 | P202: 0 | Q202: 0
F203: HV/LV | G203: number of issues | H203: =SUM(L203:Q203) -> 0 | O203: 0 | P203: 0 | Q203: 0
F204: LV circuits | G204: number of issues | H204: =SUM(L204:Q204) -> 0 | O204: 0 | P204: 0 | Q204: 0
E206: Peaking probabilities check - 132kV/HV
F207: Transmission exit | G207: number of issues
F208: GSPs | G208: number of issues
F209: 132kV | G209: number of issues | H209: =SUM(L209:Q209) -> 0 | O209: =IF(OR(ABS(SUM(O141,O153,O165) - 1) < 10^-check_decimals, ABS(SUM(O141,O153,O165) - 0) < 10^-check_decimals),0,1) -> 0 | P209: 0 | Q209: 0
F210: 132kV/EHV | G210: number of issues | H210: =SUM(L210:Q210) -> 0 | O210: 0 | P210: 0 | Q210: 0
F211: EHV | G211: number of issues
F212: EHV/HV | G212: number of issues
F213: 132kV/HV | G213: number of issues | H213: =SUM(L213:Q213) -> 0 | O213: =IF(OR(ABS(SUM(O145,O157,O169) - 1) < 10^-check_decimals, ABS(SUM(O145,O157,O169) - 0) < 10^-check_decimals),0,1) -> 0 | P213: =IF(OR(ABS(SUM(P145,P157,P169) - 1) < 10^-check_decimals, ABS(SUM(P145,P157,P169) - 0) < 10^-check_decimals),0,1) -> 0 | Q213: =IF(OR(ABS(SUM(Q145,Q157,Q169) - 1) < 10^-check_decimals, ABS(SUM(Q145,Q157,Q169) - 0) < 10^-check_decimals),0,1) -> 0
F214: HV | G214: number of issues
F215: HV/LV | G215: number of issues
F216: LV circuits | G216: number of issues
E218: Summary of checks | G218: number of issues | H218: =SUM(H190,H192,H195:H204,H207:H216) -> 0
B220: End of sheet

Sheet CIRP_General inputs
A1: =MID(CELL("filename",A1),FIND("]",CELL("filename",A1))+1,255) -> CIRP_General inputs
A2: =Cover!D23 & " - " & TEXT(CIRP_submission_date, "mmm") & "-" & RIGHT(YEAR(CIRP_submission_date), 2) & " - " & Cover!D25 -> SP Manweb - Jan-26 - V2
A3: =Cover!D2&" - "&Cover!D8&" v"&Cover!D10&" - "&Cover!D19 -> Cost Information Review Pack (CIRP) - Release for charge setting v1 - 2027/28
A4: =H123 & IF(H123 = 1, " issue", " issues") &" identified in checks on this sheet" -> 0 issues identified in checks on this sheet | L4: TRUE | M4: TRUE | N4: TRUE
J5: ="Year selected ("& charging_year_selected &")" -> Year selected (2027/28) | L5: =TRANSPOSE('CIRP_User control'!G27:H32) -> 2024/25 | M5: 2025/26 | N5: 2026/27 | O5: 2027/28 | P5: 2028/29 | Q5: 2029/30
B6: Click here to return to model map | G6: Units | H6: Constants | J6: ='CIRP_User control'!$H$41 -> Published | L6: Historic | M6: Current | N6: Published | O6: Published | P6: Forecast | Q6: Forecast | S6: Legal text reference
B8: Description
C10: This sheet sets out general inputs by year.
C11: DNOs should populate the inputs for the charging year and the four following years.
C12: DNOs can also populate the three years preceding the charging year, but are not obliged to do so.
B14: General inputs
C16: =INDEX('Version control'!$H$29:$H$55,MATCH($A$1,'Version control'!$F$29:$F$55,0),1)&"-A: Split of hours by distribution timeband" -> Input 503-A: Split of hours by distribution timeband
E18: Typical annual hours by special distribution time band | I18: > | S18: Paragraphs 40 to 41
F19: Black | G19: hours per year | J19: =CHOOSE(charging_year_selected_index, L19,M19,N19,O19,P19,Q19) -> 261 | L19: 258 | M19: 255 | N19: 255 | O19: 261 | P19: 258 | Q19: 258
F20: Yellow | G20: hours per year | J20: =CHOOSE(charging_year_selected_index, L20,M20,N20,O20,P20,Q20) -> 3954 | L20: 3942.5 | M20: 3945.5 | N20: 3945.5 | O20: 3954 | P20: 3932 | Q20: 3932
F21: Green | G21: hours per year | J21: =CHOOSE(charging_year_selected_index, L21,M21,N21,O21,P21,Q21) -> 4569 | L21: 4559.5 | M21: 4559.5 | N21: 4559.5 | O21: 4569 | P21: 4570 | Q21: 4570
E23: Typical annual hours by distribution time band | I23: > | S23: Paragraphs 40 to 41
F24: Red | G24: hours per year | J24: =CHOOSE(charging_year_selected_index, L24,M24,N24,O24,P24,Q24) -> 786 | L24: 783 | M24: 783 | N24: 783 | O24: 786 | P24: 780 | Q24: 780
F25: Amber | G25: hours per year | J25: =CHOOSE(charging_year_selected_index, L25,M25,N25,O25,P25,Q25) -> 3429 | L25: 3417.5 | M25: 3417.5 | N25: 3417.5 | O25: 3429 | P25: 3410 | Q25: 3410
F26: Green | G26: hours per year | J26: =CHOOSE(charging_year_selected_index, L26,M26,N26,O26,P26,Q26) -> 4569 | L26: 4559.5 | M26: 4559.5 | N26: 4559.5 | O26: 4569 | P26: 4570 | Q26: 4570
C28: =INDEX('Version control'!$H$29:$H$55,MATCH($A$1,'Version control'!$F$29:$F$55,0),1)&"-B: Embedded network (LDNO) discount percentages" -> Input 503-B: Embedded network (LDNO) discount percentages
D30: Inputs sourced from PCDM
E32: Embedded network (LDNO) discount percentages | I32: > | S32: Paragraph 53
F33: LDNO LV: LV user | G33: % | J33: =CHOOSE(charging_year_selected_index, L33,M33,N33,O33,P33,Q33) -> 0.4107208505 | L33: 0.3944551209 | M33: 0.3868019174 | N33: 0.3879127611 | O33: 0.4107208505 | P33: =$O33 -> 0.4107208505 | Q33: 0.4107208505
F34: LDNO HV: LV user | G34: % | J34: =CHOOSE(charging_year_selected_index, L34,M34,N34,O34,P34,Q34) -> 0.5726592203 | L34: 0.5604265994 | M34: 0.5545676059 | N34: 0.5595851858 | O34: 0.5726592203 | P34: 0.5726592203 | Q34: 0.5726592203 | U34: NHH UMS category D | V34: LV UMS (Pseudo HH Metered) | W34: LV Generation NHH or Aggregate HH | X34: LV Sub Generation NHH | Y34: LV Generation Intermittent | Z34: LV Generation Intermittent no RP charge | AA34: LV Generation Non-Intermittent | AB34: LV Generation Non-Intermittent no RP charge | AC34: LV Sub Generation Intermittent | AD34: LV Sub Generation Intermittent no RP charge | AE34: LV Sub Generation Non-Intermittent | AF34: LV Sub Generation Non-Intermittent no RP charge | AG34: HV Generation Intermittent | AH34: HV Generation Intermittent no RP charge | AI34: HV Generation Non-Intermittent | AJ34: HV Generation Non-Intermittent no RP charge
F35: LDNO HV: LV Sub user | G35: % | J35: =CHOOSE(charging_year_selected_index, L35,M35,N35,O35,P35,Q35) -> 0.2732346839 | L35: 0.2724475054 | M35: 0.2718135823 | N35: 0.2787185164 | O35: 0.2732346839 | P35: 0.2732346839 | Q35: 0.2732346839
F36: LDNO HV: HV user | G36: % | J36: =CHOOSE(charging_year_selected_index, L36,M36,N36,O36,P36,Q36) -> 0.1820269028 | L36: 0.1787927473 | M36: 0.1777829123 | N36: 0.1843436567 | O36: 0.1820269028 | P36: 0.1820269028 | Q36: 0.1820269028
C38: =INDEX('Version control'!$H$29:$H$55,MATCH($A$1,'Version control'!$F$29:$F$55,0),1)&"-C: CDCM target revenue" -> Input 503-C: CDCM target revenue
D40: The contents of this table are defined on the DCUSA website and referenced in Schedule 20 (Appendix A - Table 1). | I40: > | S40: Paragraph 54, Schedule 15 Table 1
D42: Base Revenue
E43: Fast money | G43: £m 20/21 prices | J43: =CHOOSE(charging_year_selected_index, L43,M43,N43,O43,P43,Q43) -> 91.58459937 | L43: 92.23396837 | M43: 88.43509855 | N43: 87.88880209 | O43: 91.58459937 | P43: 91.58459937 | Q43: 91.58459937
E44: Depreciation | G44: £m 20/21 prices | J44: =CHOOSE(charging_year_selected_index, L44,M44,N44,O44,P44,Q44) -> 148.2388185 | L44: 156.8660581 | M44: 154.3203363 | N44: 152.7252036 | O44: 148.2388185 | P44: 148.2388185 | Q44: 148.2388185
E45: Return | G45: £m 20/21 prices | J45: =CHOOSE(charging_year_selected_index, L45,M45,N45,O45,P45,Q45) -> 105.0490166 | L45: 88.91637531 | M45: 95.20449977 | N45: 99.06911001 | O45: 105.0490166 | P45: 105.0490166 | Q45: 105.0490166
E46: Pass-through
F47: Licence Fee Payments | G47: £m 20/21 prices | J47: =CHOOSE(charging_year_selected_index, L47,M47,N47,O47,P47,Q47) -> 2.013948851 | L47: 1.1585 | M47: 1.610632849 | N47: 1.873580565 | O47: 2.013948851 | P47: 2.013948851 | Q47: 2.013948851
F48: Prescribed Rates | G48: £m 20/21 prices | J48: 28.37230314 | L48: 23.87510606 | M48: 23.3184265 | N48: 26.09919031 | O48: 28.37230314 | P48: 28.37230314 | Q48: 28.37230314
F49: Pass-through Transmission Connection Point Charges | G49: £m 20/21 prices | J49: 16.17835922 | L49: 14.69708458 | M49: 15.28531942 | N49: 16.1610012 | O49: 16.17835922 | P49: 16.17835922 | Q49: 16.17835922
F50: Smart Meter Communication Licensee Costs | G50: £m 20/21 prices | J50: 10.37621549 | L50: 2 | M50: 2 | N50: 1.565474031 | O50: 10.37621549 | P50: 10.37621549 | Q50: 10.37621549
F51: Smart Meter Information Technology Costs | G51: £m 20/21 prices | J51: 1.157709633 | L51: 0.2875 | M51: 0.465625 | N51: 1.157709633 | O51: 1.157709633 | P51: 1.157709633 | Q51: 1.157709633
F52: Ring Fence Costs | G52: £m 20/21 prices | J52: 0 | L52: 0 | M52: 0 | N52: 0 | O52: 0 | P52: 0 | Q52: 0
F53: Supplier of Last Resort Net Costs | G53: £m 20/21 prices | J53: 0 | L53: 0 | M53: 0 | N53: 0 | O53: 0 | P53: 0 | Q53: 0
F54: Valid Bad Debt Claims | G54: £m 20/21 prices | J54: 0 | L54: 0 | M54: 0 | N54: 0 | O54: 0 | P54: 0 | Q54: 0
F55: Pension Scheme Established Deficit repair expenditure | G55: £m 20/21 prices | J55: 13.58502022 | L55: 31.64220996 | M55: 33.28437553 | N55: 33.28437553 | O55: 13.58502022 | P55: 13.58502022 | Q55: 13.58502022
F56: Failed Supplier Recovered Costs | G56: £m 20/21 prices | J56: 0 | L56: 0 | M56: 0 | N56: 0 | O56: 0 | P56: 0 | Q56: 0
F57: Shetland Variable Energy Costs (SSEH only) | G57: £m 20/21 prices | J57: 0 | L57: 0 | M57: 0 | N57: 0 | O57: 0 | P57: 0 | Q57: 0
F58: Assistance for high-cost distributors adjustment (SSEH only) | G58: £m 20/21 prices | J58: 0 | L58: 0 | M58: 0 | N58: 0 | O58: 0 | P58: 0 | Q58: 0
F59: Total pass-through | G59: £m 20/21 prices | J59: 71.68355656 | L59: =SUM(L47:L58) -> 73.6604006 | M59: 75.9643793 | N59: =SUM(N47:N58) -> 80.14133128 | O59: =SUM(O47:O58) -> 71.68355656 | P59: 71.68355656 | Q59: 71.68355656
E60: Total base revenue | G60: £m 20/21 prices | J60: 416.555991 | L60: =SUM(L43:L45,L59) -> 411.6768024 | M60: 413.9243139 | N60: =SUM(N43:N45,N59) -> 419.824447 | O60: =SUM(O43:O45,O59) -> 416.555991 | P60: 416.555991 | Q60: 416.555991
D62: Other revenue
E63: Return Adjustment | G63: £m 20/21 prices | J63: =CHOOSE(charging_year_selected_index, L63,M63,N63,O63,P63,Q63) -> 0 | L63: 0 | M63: 0 | N63: 0 | O63: 0 | P63: 0 | Q63: 0
E64: Equity issuance costs | G64: £m 20/21 prices | J64: 0 | L64: 0 | M64: 0 | N64: 0 | O64: 0 | P64: 0 | Q64: 0
E65: Business plan incentive | G65: £m 20/21 prices | J65: 0 | L65: 0 | M65: 0 | N65: 0 | O65: 0 | P65: 0 | Q65: 0
E66: Output delivery incentive | G66: £m 20/21 prices | J66: 9.930314796 | L66: 0 | M66: 0 | N66: 4.4970599 | O66: 9.930314796 | P66: 9.930314796 | Q66: 9.930314796
E67: Other revenue allowances | G67: £m 20/21 prices | J67: 0 | L67: 0.9387574568 | M67: 1.043063737 | N67: 0 | O67: 0 | P67: 0 | Q67: 0
E68: Directly Remunerated Services | G68: £m 20/21 prices | J68: -0.01467110567 | L68: -0.01471656657 | M68: -0.01470800331 | N68: -0.01467110567 | O68: -0.01467110567 | P68: -0.01467110567 | Q68: -0.01467110567
E69: Total other revenue | G69: £m 20/21 prices | J69: 9.915643691 | L69: =SUM(L63:L68) -> 0.9240408902 | M69: 1.028355733 | N69: =SUM(N63:N68) -> 4.482388794 | O69: =SUM(O63:O68) -> 9.915643691 | P69: 9.915643691 | Q69: 9.915643691
D71: Calculated revenue (after tax)
E72: Calculated revenue (before tax) | G72: £m 20/21 prices | J72: =CHOOSE(charging_year_selected_index, L72,M72,N72,O72,P72,Q72) -> 426.4716347 | L72: =L60+L69 -> 412.6008433 | M72: 414.9526696 | N72: =N60+N69 -> 424.3068358 | O72: =O60+O69 -> 426.4716347 | P72: 426.4716347 | Q72: 426.4716347
E73: Tax allowance | G73: £m 20/21 prices | J73: =CHOOSE(charging_year_selected_index, L73,M73,N73,O73,P73,Q73) -> 1.388040331 | L73: 24.69207667 | M73: 1.360252316 | N73: 1.339843656 | O73: 1.388040331 | P73: 0 | Q73: 0
E74: Tax allowance adjustment | G74: £m 20/21 prices | J74: =CHOOSE(charging_year_selected_index, L74,M74,N74,O74,P74,Q74) -> 0 | L74: 0 | M74: 0 | N74: 0 | O74: 0 | P74: 0 | Q74: 0
E75: Calculated revenue (after tax) | G75: £m 20/21 prices | J75: =CHOOSE(charging_year_selected_index, L75,M75,N75,O75,P75,Q75) -> 427.859675 | L75: =SUM(L72:L74) -> 437.29292 | M75: 416.3129219 | N75: =SUM(N72:N74) -> 425.6466795 | O75: =SUM(O72:O74) -> 427.859675 | P75: 426.4716347 | Q75: 426.4716347
D77: Real to nominal prices conversion factor (splice index for RIIO-2) | G77: Price index t / Price index 2020/21 | J77: =CHOOSE(charging_year_selected_index, L77,M77,N77,O77,P77,Q77) -> 1.435242215 | L77: 1.248711688 | M77: 1.351154722 | N77: 1.384129402 | O77: 1.435242215 | P77: 1.463947059 | Q77: 1.493226
D79: Allowed revenue
E80: Nominal calculated revenue (after tax) | G80: £m nominal | J80: =CHOOSE(charging_year_selected_index, L80,M80,N80,O80,P80,Q80) -> 614.0822677 | L80: =L77*L75 -> 546.0527804 | M80: 562.5031702 | N80: =N77*N75 -> 589.150084 | O80: =O77*O75 -> 614.0822677 | P80: 624.3318955 | Q80: 636.8185334
E81: Correction term | G81: £m nominal | J81: 25.4290846 | L81: 0 | M81: 92.65429926 | N81: 23.80906296 | O81: 25.4290846 | P81: 0 | Q81: 0
E82: Forecasting penalty | G82: £m nominal | J82: 0 | L82: 0 | M82: 0 | N82: 0 | O82: 0 | P82: 0 | Q82: 0
E83: Legacy Allowed Revenue | G83: £m nominal | J83: 0.9580251767 | L83: 44.4623322 | M83: 1.791180353 | N83: 0.8867983462 | O83: 0.9580251767 | P83: 0 | Q83: 0
E84: Total allowed revenue | G84: £m nominal | J84: 640.4693775 | L84: =SUM(L80:L83) -> 590.5151126 | M84: =SUM(M80:M83) -> 656.9486498 | N84: =SUM(N80:N83) -> 613.8459453 | O84: =SUM(O80:O83) -> 640.4693775 | P84: 624.3318955 | Q84: 636.8185334
E85: Total allowed revenue | G85: £ | J85: 640469377.5 | L85: =L84*10^6 -> 590515112.6 | M85: =M84*10^6 -> 656948649.8 | N85: 613845945.3 | O85: =O84*10^6 -> 640469377.5 | P85: 624331895.5 | Q85: 636818533.4
D87: Allowed revenue by charging model
E88: Revenue raised outside CDCM - EDCM and Certain Interconnector Revenue | G88: £ | J88: =CHOOSE(charging_year_selected_index, L88,M88,N88,O88,P88,Q88) -> 50676802.24 | L88: 48125358.66 | M88: 51380025.45 | N88: 50719150.19 | O88: 50676802.24 | P88: 50676802.24 | Q88: 50676802.24
E89: CDCM revenue | G89: £ | J89: =CHOOSE(charging_year_selected_index, L89,M89,N89,O89,P89,Q89) -> 589792575.2 | L89: =L85-L88 -> 542389753.9 | M89: 605568624.4 | N89: =N85-N88 -> 563126795.1 | O89: =O85-O88 -> 589792575.2 | P89: 573655093.3 | Q89: 586141731.2
L90: TRUE | M90: TRUE | N90: TRUE | O90: TRUE | P90: TRUE | Q90: TRUE
D91: Pass-through costs not allocated through revenue matching
E92: Supplier of Last Resort Net Costs | G92: £ | J92: =CHOOSE(charging_year_selected_index, L92,M92,N92,O92,P92,Q92) -> 0 | L92: 0 | M92: 0 | N92: 0 | O92: 0 | P92: 0 | Q92: 0
E93: Valid Bad Debt Claims | G93: £ | J93: =CHOOSE(charging_year_selected_index, L93,M93,N93,O93,P93,Q93) -> 0 | L93: 0 | M93: 0 | N93: 0 | O93: 0 | P93: 0 | Q93: 0
D95: Pass-through Smart Meter Communication Licence Costs | G95: £ | J95: =CHOOSE(charging_year_selected_index, L95,M95,N95,O95,P95,Q95) -> 0 | L95: 0 | M95: 0 | N95: 0 | O95: 0 | P95: 0 | Q95: 0
C97: =INDEX('Version control'!$H$29:$H$55,MATCH($A$1,'Version control'!$F$29:$F$55,0),1)&"-D: Financial and general assumptions" -> Input 503-D: Financial and general assumptions
S98: Paragraph 57
E99: Real post-tax cost of capital | G99: % | I99: > | J99: =CHOOSE(charging_year_selected_index, L99,M99,N99,O99,P99,Q99) -> 0.0487 | L99: 0.0374 | M99: 0.049 | N99: 0.0485 | O99: 0.0487 | P99: =$O99 -> 0.0487 | Q99: 0.0487
E100: Days in the charging year | G100: days | J100: =CHOOSE(charging_year_selected_index, L100,M100,N100,O100,P100,Q100) -> 366 | L100: 365 | M100: 365 | N100: 365 | O100: 366 | P100: 365 | Q100: 365
C102: =INDEX('Version control'!$H$29:$H$55,MATCH($A$1,'Version control'!$F$29:$F$55,0),1)&"-E: Transmission exit charges" -> Input 503-E: Transmission exit charges
S103: Paragraph 38
E104: Transmission exit charges | G104: £ per year | I104: > | J104: =CHOOSE(charging_year_selected_index, L104,M104,N104,O104,P104,Q104) -> 21148360.73 | L104: 10412089.28 | M104: 20652831.5 | N104: 22280249.99 | O104: 21148360.73 | P104: 21571327.94 | Q104: 22002754.5
C106: =INDEX('Version control'!$H$29:$H$55,MATCH($A$1,'Version control'!$F$29:$F$55,0),1)&"-F: Other expenditure" -> Input 503-F: Other expenditure
E108: Other expenditure | I108: > | S108: Paragraph 39
F109: Direct cost | G109: £ per year | J109: =CHOOSE(charging_year_selected_index, L109,M109,N109,O109,P109,Q109) -> 39009457.1 | L109: 30262434.67 | M109: 39481878.32 | N109: 38653747.37 | O109: 39009457.1 | P109: 39789646.24 | Q109: 40585439.16
F110: Indirect cost | G110: £ per year | J110: =CHOOSE(charging_year_selected_index, L110,M110,N110,O110,P110,Q110) -> 119071850.4 | L110: 125876892.9 | M110: 141713268 | N110: 128668089.1 | O110: 119071850.4 | P110: 121453287.5 | Q110: 123882353.2
F111: Network rates | G111: £ per year | J111: =CHOOSE(charging_year_selected_index, L111,M111,N111,O111,P111,Q111) -> 38649623.81 | L111: 33209591.6 | M111: 31506802.07 | N111: 35354592.23 | O111: 38649623.81 | P111: 39422616.29 | Q111: 40211068.61
B113: Checks
C115: Checks are not run for historic years, for which DNOs are not obliged to enter inputs.
E117: Check for error values | G117: number of issues | H117: =SUM(IF(ISERROR(H15:Q112), 1)) -> 0
E119: Hours in charging year check
F120: Normal distribution timebands | G120: number of issues | H120: =SUM(L120:Q120) -> 0 | M120: =IF(SUM(M19:M21) = M$100 * hours_in_day, 0, 1) -> 0 | N120: 0 | O120: 0 | P120: =IF(SUM(P19:P21) = P$100 * hours_in_day, 0, 1) -> 0 | Q120: 0
F121: Special distribution timebands | G121: number of issues | H121: =SUM(L121:Q121) -> 0 | M121: =IF(SUM(M24:M26) = M$100 * hours_in_day, 0, 1) -> 0 | N121: 0 | O121: 0 | P121: 0 | Q121: 0
E123: Summary of checks | G123: number of issues | H123: =SUM(H117, H120:H121) -> 0
B125: End of sheet

Sheet Fixed inputs
A1: =MID(CELL("filename",A1),FIND("]",CELL("filename",A1))+1,255) -> Fixed inputs
A2: =Cover!D23 & " - " & TEXT(CIRP_submission_date, "mmm") & "-" & RIGHT(YEAR(CIRP_submission_date), 2) & " - " & Cover!D25 -> SP Manweb - Jan-26 - V2
A3: =Cover!D2&" - "&Cover!D8&" v"&Cover!D10&" - "&Cover!D19 -> Cost Information Review Pack (CIRP) - Release for charge setting v1 - 2027/28
A4: =H201 & IF(H201 = 1, " issue", " issues") &" identified in checks on this sheet" -> 0 issues identified in checks on this sheet
B5: Click here to return to model map | G5: Units | H5: Constants | J5: Domestic Aggregated or CT | K5: Domestic Aggregated (Related MPAN) | L5: Non-Domestic Aggregated or CT | M5: Non-Domestic Aggregated (Related MPAN) | N5: LV Site Specific | O5: LV Sub Site Specific | P5: HV Site Specific | Q5: Unmetered Supplies | R5: LV Generation Aggregated | S5: LV Sub Generation Aggregated | T5: LV Generation Site Specific | U5: LV Generation Site Specific no RP Charge | V5: LV Sub Generation Site Specific | W5: LV Sub Generation Site Specific no RP Charge | X5: HV Generation Site Specific | Y5: HV Generation Site Specific no RP Charge | AQ5: Legal text reference
B7: Description
C9: This sheet sets out the inputs that should be constant across DNOs.
B11: Fixed inputs
C13: =INDEX('Version control'!$H$29:$H$55,MATCH($A$1,'Version control'!$F$29:$F$55,0),1)&"-A: Conversions and time" -> Input 504-A: Conversions and time
E15: Hours per day | G15: hours | H15: 24
E16: Ten | G16: integer | H16: 10
E17: One hundred | G17: integer | H17: 100
E18: One thousand | G18: integer | H18: 1000
E19: One million | G19: integer | H19: 1000000
E20: Historic | G20: year label | H20: Historic
E21: Current | G21: year label | H21: Current
E22: Published | G22: year label | H22: Published
E23: Forecast | G23: year label | H23: Forecast
C25: =INDEX('Version control'!$H$29:$H$55,MATCH($A$1,'Version control'!$F$29:$F$55,0),1)&"-B: Input 101-B: Rounding" -> Input 504-B: Input 101-B: Rounding
D27: Number of decimal places each final charge should be rounded to, specified in Paragraph 14.
E29: Decimal places | I29: > | AQ29: Paragraph 14
F30: Unit rate 1 | G30: integer | H30: 3
F31: Unit rate 2 | G31: integer | H31: 3
F32: Unit rate 3 | G32: integer | H32: 3
F33: Fixed charge | G33: integer | H33: 2
F34: Capacity charge | G34: integer | H34: 2
F35: Exceeded capacity charge | G35: integer | H35: 2
F36: Reactive power charge | G36: integer | H36: 3
C38: =INDEX('Version control'!$H$29:$H$55,MATCH($A$1,'Version control'!$F$29:$F$55,0),1)&"-C: Financial and general assumptions" -> Input 504-C: Financial and general assumptions
E40: Annualisation period | G40: years | H40: 40 | I40: > | AQ40: Paragraph 57
E42: Power factor | G42: % | H42: 0.95 | I42: > | AQ42: Paragraphs 21 & 79
E44: Indirect cost proportion | G44: % | H44: 0.6 | I44: > | AQ44: Paragraph 39
E46: Network model GSP peak demand | G46: MW | H46: 500 | I46: > | AQ46: Paragraph 20
C48: =INDEX('Version control'!$H$29:$H$55,MATCH($A$1,'Version control'!$F$29:$F$55,0),1)&"-D: Mappings" -> Input 504-D: Mappings
E50: LDNO discount map
F51: LDNO LV: LV user | G51: 1 or 0 | J51: 1 | K51: 1 | L51: 1 | M51: 1 | N51: 1 | O51: 0 | P51: 0 | Q51: 1
F52: LDNO HV: LV user | G52: 1 or 0 | J52: 1 | K52: 1 | L52: 1 | M52: 1 | N52: 1 | O52: 0 | P52: 0 | Q52: 1
F53: LDNO HV: LV Sub user | G53: 1 or 0 | J53: 0 | K53: 0 | L53: 0 | M53: 0 | N53: 0 | O53: 1 | P53: 0 | Q53: 0
F54: LDNO HV: HV user | G54: 1 or 0 | J54: 0 | K54: 0 | L54: 0 | M54: 0 | N54: 0 | O54: 0 | P54: 1 | Q54: 0
E56: Network level at which users are supplied | I56: > | AQ56: Paragraph 30
E57: Network use factors based on customer contributed assets
F58: HV substation | G58: 1 or 0 | J58: 0 | K58: 0 | L58: 0 | M58: 0 | N58: 0 | O58: 0 | P58: 0 | Q58: 0 | R58: 0 | S58: 0 | T58: 0 | U58: 0 | V58: 0 | W58: 0 | X58: 0 | Y58: 0
F59: HV network | G59: 1 or 0 | J59: 0 | K59: 0 | L59: 0 | M59: 0 | N59: 0 | O59: 0 | P59: 1 | Q59: 0 | R59: 0 | S59: 0 | T59: 0 | U59: 0 | V59: 0 | W59: 0 | X59: 1 | Y59: 1
F60: LV substation | G60: 1 or 0 | J60: 0 | K60: 0 | L60: 0 | M60: 0 | N60: 0 | O60: 1 | P60: 0 | Q60: 0 | R60: 0 | S60: 1 | T60: 0 | U60: 0 | V60: 1 | W60: 1 | X60: 0 | Y60: 0
F61: LV network | G61: 1 or 0 | J61: 1 | K61: 1 | L61: 1 | M61: 1 | N61: 1 | O61: 0 | P61: 0 | Q61: 1 | R61: 1 | S61: 0 | T61: 1 | U61: 1 | V61: 0 | W61: 0 | X61: 0 | Y61: 0
E63: Network use factors (assuming generation contributes at level of connection)
E64: These assume demand and generation use the network from the point of connection.
F65: Transmission exit | G65: 1, 0 or -1 | J65: 1 | K65: 1 | L65: 1 | M65: 1 | N65: 1 | O65: 1 | P65: 1 | Q65: 1 | R65: -1 | S65: -1 | T65: -1 | U65: -1 | V65: -1 | W65: -1 | X65: -1 | Y65: -1
F66: GSPs | G66: 1, 0 or -1 | J66: 1 | K66: 1 | L66: 1 | M66: 1 | N66: 1 | O66: 1 | P66: 1 | Q66: 1 | R66: -1 | S66: -1 | T66: -1 | U66: -1 | V66: -1 | W66: -1 | X66: -1 | Y66: -1
F67: 132kV | G67: 1, 0 or -1 | J67: 1 | K67: 1 | L67: 1 | M67: 1 | N67: 1 | O67: 1 | P67: 1 | Q67: 1 | R67: -1 | S67: -1 | T67: -1 | U67: -1 | V67: -1 | W67: -1 | X67: -1 | Y67: -1
F68: 132kV/EHV | G68: 1, 0 or -1 | J68: 1 | K68: 1 | L68: 1 | M68: 1 | N68: 1 | O68: 1 | P68: 1 | Q68: 1 | R68: -1 | S68: -1 | T68: -1 | U68: -1 | V68: -1 | W68: -1 | X68: -1 | Y68: -1
F69: EHV | G69: 1, 0 or -1 | J69: 1 | K69: 1 | L69: 1 | M69: 1 | N69: 1 | O69: 1 | P69: 1 | Q69: 1 | R69: -1 | S69: -1 | T69: -1 | U69: -1 | V69: -1 | W69: -1 | X69: -1 | Y69: -1
F70: EHV/HV | G70: 1, 0 or -1 | J70: 1 | K70: 1 | L70: 1 | M70: 1 | N70: 1 | O70: 1 | P70: 1 | Q70: 1 | R70: -1 | S70: -1 | T70: -1 | U70: -1 | V70: -1 | W70: -1 | X70: -1 | Y70: -1
F71: 132kV/HV | G71: 1, 0 or -1 | J71: 1 | K71: 1 | L71: 1 | M71: 1 | N71: 1 | O71: 1 | P71: 1 | Q71: 1 | R71: -1 | S71: -1 | T71: -1 | U71: -1 | V71: -1 | W71: -1 | X71: -1 | Y71: -1
F72: HV | G72: 1, 0 or -1 | J72: 1 | K72: 1 | L72: 1 | M72: 1 | N72: 1 | O72: 1 | P72: 1 | Q72: 1 | R72: -1 | S72: -1 | T72: -1 | U72: -1 | V72: -1 | W72: -1 | X72: -1 | Y72: -1
F73: HV/LV | G73: 1, 0 or -1 | J73: 1 | K73: 1 | L73: 1 | M73: 1 | N73: 1 | O73: 1 | P73: 0 | Q73: 1 | R73: -1 | S73: -1 | T73: -1 | U73: -1 | V73: -1 | W73: -1 | X73: 0 | Y73: 0
F74: LV circuits | G74: 1, 0 or -1 | J74: 1 | K74: 1 | L74: 1 | M74: 1 | N74: 1 | O74: 0 | P74: 0 | Q74: 1 | R74: -1 | S74: 0 | T74: -1 | U74: -1 | V74: 0 | W74: 0 | X74: 0 | Y74: 0
E76: Network use factors (assuming generation makes no contribution at level of connection) | I76: > | AQ76: Paragraphs 62 & 71
E77: Equal to 0 for the network level at which generation is connected, otherwise equal to network use factor
F78: Transmission exit | G78: 1, 0 or -1 | J78: 1 | K78: 1 | L78: 1 | M78: 1 | N78: 1 | O78: 1 | P78: 1 | Q78: 1 | R78: -1 | S78: -1 | T78: -1 | U78: -1 | V78: -1 | W78: -1 | X78: -1 | Y78: -1
F79: GSPs | G79: 1, 0 or -1 | J79: 1 | K79: 1 | L79: 1 | M79: 1 | N79: 1 | O79: 1 | P79: 1 | Q79: 1 | R79: -1 | S79: -1 | T79: -1 | U79: -1 | V79: -1 | W79: -1 | X79: -1 | Y79: -1
F80: 132kV | G80: 1, 0 or -1 | J80: 1 | K80: 1 | L80: 1 | M80: 1 | N80: 1 | O80: 1 | P80: 1 | Q80: 1 | R80: -1 | S80: -1 | T80: -1 | U80: -1 | V80: -1 | W80: -1 | X80: -1 | Y80: -1
F81: 132kV/EHV | G81: 1, 0 or -1 | J81: 1 | K81: 1 | L81: 1 | M81: 1 | N81: 1 | O81: 1 | P81: 1 | Q81: 1 | R81: -1 | S81: -1 | T81: -1 | U81: -1 | V81: -1 | W81: -1 | X81: -1 | Y81: -1
F82: EHV | G82: 1, 0 or -1 | J82: 1 | K82: 1 | L82: 1 | M82: 1 | N82: 1 | O82: 1 | P82: 1 | Q82: 1 | R82: -1 | S82: -1 | T82: -1 | U82: -1 | V82: -1 | W82: -1 | X82: -1 | Y82: -1
F83: EHV/HV | G83: 1, 0 or -1 | J83: 1 | K83: 1 | L83: 1 | M83: 1 | N83: 1 | O83: 1 | P83: 1 | Q83: 1 | R83: -1 | S83: -1 | T83: -1 | U83: -1 | V83: -1 | W83: -1 | X83: -1 | Y83: -1
F84: 132kV/HV | G84: 1, 0 or -1 | J84: 1 | K84: 1 | L84: 1 | M84: 1 | N84: 1 | O84: 1 | P84: 1 | Q84: 1 | R84: -1 | S84: -1 | T84: -1 | U84: -1 | V84: -1 | W84: -1 | X84: -1 | Y84: -1
F85: HV | G85: 1, 0 or -1 | J85: 1 | K85: 1 | L85: 1 | M85: 1 | N85: 1 | O85: 1 | P85: 1 | Q85: 1 | R85: -1 | S85: -1 | T85: -1 | U85: -1 | V85: -1 | W85: -1 | X85: 0 | Y85: 0
F86: HV/LV | G86: 1, 0 or -1 | J86: 1 | K86: 1 | L86: 1 | M86: 1 | N86: 1 | O86: 1 | P86: 0 | Q86: 1 | R86: -1 | S86: 0 | T86: -1 | U86: -1 | V86: 0 | W86: 0 | X86: 0 | Y86: 0
F87: LV circuits | G87: 1, 0 or -1 | J87: 1 | K87: 1 | L87: 1 | M87: 1 | N87: 1 | O87: 0 | P87: 0 | Q87: 1 | R87: 0 | S87: 0 | T87: 0 | U87: 0 | V87: 0 | W87: 0 | X87: 0 | Y87: 0
C89: =INDEX('Version control'!$H$29:$H$55,MATCH($A$1,'Version control'!$F$29:$F$55,0),1)&"-E: Standing charge factors" -> Input 504-E: Standing charge factors
E91: Standing charge factors | I91: > | AQ91: Paragraph 74
E92: Sets the proportion of costs to be recovered through fixed and capacity charge components.
F93: Transmission exit | G93: %
F94: GSPs | G94: %
F95: 132kV | G95: %
F96: 132kV/EHV | G96: %
F97: EHV | G97: % | P97: 0.2
F98: EHV/HV | G98: % | P98: 1
F99: 132kV/HV | G99: %
F100: HV | G100: % | N100: 0.2 | O100: 1 | P100: 1
F101: HV/LV | G101: % | N101: 1 | O101: 1
F102: LV circuits | G102: % | J102: 1 | K102: 1 | L102: 1 | M102: 1 | N102: 1 | Q102: 0
C104: =INDEX('Version control'!$H$29:$H$55,MATCH($A$1,'Version control'!$F$29:$F$55,0),1)&"-F: Flags" -> Input 504-F: Flags
D106: Override discount rate applied
D107: See Schedule 16, para 125. This has been interpreted to mean that MPANs are fully discounted,
D108: and everything else is not
E109: MWh
F110: Override discount | G110: TRUE / FALSE | I110: > | J110: FALSE | K110: FALSE | L110: FALSE | M110: FALSE | N110: FALSE | O110: FALSE | P110: FALSE | Q110: FALSE | R110: TRUE | S110: TRUE | T110: TRUE | U110: TRUE | V110: TRUE | W110: TRUE | X110: TRUE | Y110: TRUE | AQ110: Paragraph 99
F111: Discount % | G111: % | R111: 0 | S111: 0 | T111: 0 | U111: 0 | V111: 0 | W111: 0 | X111: 0 | Y111: 0
E113: MPANs
F114: Override discount | G114: TRUE / FALSE | J114: FALSE | K114: FALSE | L114: FALSE | M114: FALSE | N114: FALSE | O114: FALSE | P114: FALSE | Q114: FALSE | R114: TRUE | S114: TRUE | T114: TRUE | U114: TRUE | V114: TRUE | W114: TRUE | X114: TRUE | Y114: TRUE
F115: Discount % | G115: % | R115: 1 | S115: 1 | T115: 1 | U115: 1 | V115: 1 | W115: 1 | X115: 1 | Y115: 1
E117: Import capacity (kVA)
F118: Override discount | G118: TRUE / FALSE | J118: FALSE | K118: FALSE | L118: FALSE | M118: FALSE | N118: FALSE | O118: FALSE | P118: FALSE | Q118: FALSE | R118: TRUE | S118: TRUE | T118: TRUE | U118: TRUE | V118: TRUE | W118: TRUE | X118: TRUE | Y118: TRUE
F119: Discount % | G119: % | R119: 0 | S119: 0 | T119: 0 | U119: 0 | V119: 0 | W119: 0 | X119: 0 | Y119: 0
E121: Exceeded capacity (kVA)
F122: Override discount | G122: TRUE / FALSE | J122: FALSE | K122: FALSE | L122: FALSE | M122: FALSE | N122: FALSE | O122: FALSE | P122: FALSE | Q122: FALSE | R122: TRUE | S122: TRUE | T122: TRUE | U122: TRUE | V122: TRUE | W122: TRUE | X122: TRUE | Y122: TRUE
F123: Discount % | G123: % | R123: 0 | S123: 0 | T123: 0 | U123: 0 | V123: 0 | W123: 0 | X123: 0 | Y123: 0
E125: Reactive power units (MVArh)
F126: Override discount | G126: TRUE / FALSE | J126: FALSE | K126: FALSE | L126: FALSE | M126: FALSE | N126: FALSE | O126: FALSE | P126: FALSE | Q126: FALSE | R126: TRUE | S126: TRUE | T126: TRUE | U126: TRUE | V126: TRUE | W126: TRUE | X126: TRUE | Y126: TRUE
F127: Discount % | G127: % | R127: 0 | S127: 0 | T127: 0 | U127: 0 | V127: 0 | W127: 0 | X127: 0 | Y127: 0
E129: Unmetered supply flags
E130: These are used to flag UMS tariff forecast in the pseudo load coefficient calculations, because UMS
E131: customers are subject to a different timebanding
F132: Unmetered supply flags | G132: TRUE / FALSE | J132: FALSE | K132: FALSE | L132: FALSE | M132: FALSE | N132: FALSE | O132: FALSE | P132: FALSE | Q132: TRUE | R132: FALSE | S132: FALSE | T132: FALSE | U132: FALSE | V132: FALSE | W132: FALSE | X132: FALSE | Y132: FALSE
E134: Flags used in calculation of LV diversity allowance
E135: FALSE = exclude
F136: Flag for customers included in aggregate maximum demand | G136: TRUE / FALSE | J136: TRUE | K136: FALSE | L136: TRUE | M136: FALSE | N136: TRUE | O136: TRUE | P136: TRUE | Q136: TRUE | R136: TRUE | S136: TRUE | T136: TRUE | U136: TRUE | V136: TRUE | W136: TRUE | X136: TRUE | Y136: TRUE
E138: Flags for applicability of capacity & reactive charges | I138: > | AQ138: Paragraphs 141 & 146
E139: 0 = charges not applicable to customer type
E140: For fixed charges, 1 = capacity element is allocated to fixed charges
F141: Capacity charge | G141: 1 or 0 | J141: 0 | K141: 0 | L141: 0 | M141: 0 | N141: 1 | O141: 1 | P141: 1 | Q141: 0 | R141: 0 | S141: 0 | T141: 0 | U141: 0 | V141: 0 | W141: 0 | X141: 0 | Y141: 0
F142: Exceeded capacity charge | G142: 1 or 0 | J142: 0 | K142: 0 | L142: 0 | M142: 0 | N142: 1 | O142: 1 | P142: 1 | Q142: 0 | R142: 0 | S142: 0 | T142: 0 | U142: 0 | V142: 0 | W142: 0 | X142: 0 | Y142: 0
F143: Reactive power | G143: 1 or 0 | J143: 0 | K143: 0 | L143: 0 | M143: 0 | N143: 1 | O143: 1 | P143: 1 | Q143: 0 | R143: 0 | S143: 0 | T143: 1 | U143: 0 | V143: 1 | W143: 0 | X143: 1 | Y143: 0
F144: Capacity charge allocated to fixed charge | G144: 1 or 0 | J144: 1 | K144: 0 | L144: 1 | M144: 0 | N144: 0 | O144: 0 | P144: 0 | Q144: 0 | R144: 0 | S144: 0 | T144: 0 | U144: 0 | V144: 0 | W144: 0 | X144: 0 | Y144: 0
C146: =INDEX('Version control'!$H$29:$H$55,MATCH($A$1,'Version control'!$F$29:$F$55,0),1)&"-G: Identifiers for customer groupings" -> Input 504-G: Identifiers for customer groupings
E148: Groupings for fixed charges
E149: Sets out the groups that are aggregated when calculating fixed charges. Each group is given an identifier. | I149: > | AQ149: Paragraph 83
F150: Groupings for fixed charges | G150: integer | J150: 1 | L150: 1
E152: Groupings for aggregated pseudo-load coefficients | I152: > | AQ152: Paragraph 70 c) iv
E153: Sets out the groups that are equalised for unit rates, as set out in Paragraph 70 c) iv
F154: Pseudo-load coefficient aggregation group | G154: integer | J154: 1 | K154: 1 | L154: 2 | M154: 2 | N154: 3 | O154: 4 | P154: 5
C156: =INDEX('Version control'!$H$29:$H$55,MATCH($A$1,'Version control'!$F$29:$F$55,0),1)&"-H: Decimal places for error checks" -> Input 504-H: Decimal places for error checks
E158: Decimals of precision for error checks | G158: integer | H158: 3
C160: =INDEX('Version control'!$H$29:$H$55,MATCH($A$1,'Version control'!$F$29:$F$55,0),1)&"-I: Map of applicable MPANs" -> Input 504-I: Map of applicable MPANs
E162: Map of applicable MPANs | I162: > | AQ162: Paragraphs 101 and 103
F163: Supplier of Last Resort Net Costs | G163: 1 or 0 | J163: 1 | K163: 0 | L163: 0 | M163: 0 | N163: 0 | O163: 0 | P163: 0 | Q163: 0 | R163: 0 | S163: 0 | T163: 0 | U163: 0 | V163: 0 | W163: 0 | X163: 0 | Y163: 0
F164: Valid Bad Debt Claims | G164: 1 or 0 | J164: 1 | K164: 0 | L164: 1 | M164: 0 | N164: 1 | O164: 1 | P164: 1 | Q164: 0 | R164: 0 | S164: 0 | T164: 0 | U164: 0 | V164: 0 | W164: 0 | X164: 0 | Y164: 0
C166: =INDEX('Version control'!$H$29:$H$55,MATCH($A$1,'Version control'!$F$29:$F$55,0),1)&"-J: Revenue matching inputs" -> Input 504-J: Revenue matching inputs
E168: Flags for calculation of revenue matching | J168: Domestic Aggregated or CT with Residual | K168: Domestic Aggregated (Related MPAN) | L168: Non-Domestic Aggregated or CT No Residual | M168: Non-Domestic Aggregated or CT Band 1 | N168: Non-Domestic Aggregated or CT Band 2 | O168: Non-Domestic Aggregated or CT Band 3 | P168: Non-Domestic Aggregated or CT Band 4 | Q168: Non-Domestic Aggregated (Related MPAN) | R168: LV Site Specific No Residual | S168: LV Site Specific Band 1 | T168: LV Site Specific Band 2 | U168: LV Site Specific Band 3 | V168: LV Site Specific Band 4 | W168: LV Sub Site Specific No Residual | X168: LV Sub Site Specific Band 1 | Y168: LV Sub Site Specific Band 2 | Z168: LV Sub Site Specific Band 3 | AA168: LV Sub Site Specific Band 4 | AB168: HV Site Specific No Residual | AC168: HV Site Specific Band 1 | AD168: HV Site Specific Band 2 | AE168: HV Site Specific Band 3 | AF168: HV Site Specific Band 4 | AG168: Unmetered Supplies | AH168: LV Generation Aggregated | AI168: LV Sub Generation Aggregated | AJ168: LV Generation Site Specific | AK168: LV Generation Site Specific no RP Charge | AL168: LV Sub Generation Site Specific | AM168: LV Sub Generation Site Specific no RP Charge | AN168: HV Generation Site Specific | AO168: HV Generation Site Specific no RP Charge
F169: Residual charges | G169: TRUE or FALSE | J169: TRUE | K169: FALSE | L169: FALSE | M169: TRUE | N169: TRUE | O169: TRUE | P169: TRUE | Q169: FALSE | R169: FALSE | S169: TRUE | T169: TRUE | U169: TRUE | V169: TRUE | W169: FALSE | X169: TRUE | Y169: TRUE | Z169: TRUE | AA169: TRUE | AB169: FALSE | AC169: TRUE | AD169: TRUE | AE169: TRUE | AF169: TRUE | AG169: TRUE | AH169: FALSE | AI169: FALSE | AJ169: FALSE | AK169: FALSE | AL169: FALSE | AM169: FALSE | AN169: FALSE | AO169: FALSE
F170: Residual fixed charge | G170: TRUE or FALSE | J170: TRUE | M170: TRUE | N170: TRUE | O170: TRUE | P170: TRUE | S170: TRUE | T170: TRUE | U170: TRUE | V170: TRUE | X170: TRUE | Y170: TRUE | Z170: TRUE | AA170: TRUE | AC170: TRUE | AD170: TRUE | AE170: TRUE | AF170: TRUE | AG170: FALSE
F171: Residual, no fixed charge | G171: TRUE or FALSE | J171: FALSE | M171: FALSE | N171: FALSE | O171: FALSE | P171: FALSE | S171: FALSE | T171: FALSE | U171: FALSE | V171: FALSE | X171: FALSE | Y171: FALSE | Z171: FALSE | AA171: FALSE | AC171: FALSE | AD171: FALSE | AE171: FALSE | AF171: FALSE | AG171: TRUE
F172: Residual group | G172: integer | J172: 1 | M172: 2 | N172: 2 | O172: 2 | P172: 2 | S172: 3 | T172: 3 | U172: 3 | V172: 3 | X172: 3 | Y172: 3 | Z172: 3 | AA172: 3 | AC172: 4 | AD172: 4 | AE172: 4 | AF172: 4 | AG172: 5
F173: Residual band | G173: integer | J173: 1 | M173: 1 | N173: 2 | O173: 3 | P173: 4 | S173: 1 | T173: 2 | U173: 3 | V173: 4 | X173: 1 | Y173: 2 | Z173: 3 | AA173: 4 | AC173: 1 | AD173: 2 | AE173: 3 | AF173: 4 | AG173: 1
F174: Index of tariff before revenue matching | G174: integer | J174: 1 | K174: 2 | L174: 3 | M174: 3 | N174: 3 | O174: 3 | P174: 3 | Q174: 4 | R174: 5 | S174: 5 | T174: 5 | U174: 5 | V174: 5 | W174: 6 | X174: 6 | Y174: 6 | Z174: 6 | AA174: 6 | AB174: 7 | AC174: 7 | AD174: 7 | AE174: 7 | AF174: 7 | AG174: 8 | AH174: 9 | AI174: 10 | AJ174: 11 | AK174: 12 | AL174: 13 | AM174: 14 | AN174: 15 | AO174: 16
E176: Minimum number of MPANs in residual band | G176: integer | H176: 2
E178: Band grouping configurations
F179: The legal text requires that any bands with fewer than 2 customers are combined with another band. This input
F180: defines the different possible configurations of these band combinations. | J180: Domestic Aggregated or CT with Residual | K180: Domestic Aggregated (Related MPAN) | L180: Non-Domestic Aggregated or CT No Residual | M180: Non-Domestic Aggregated or CT Band 1 | N180: Non-Domestic Aggregated or CT Band 2 | O180: Non-Domestic Aggregated or CT Band 3 | P180: Non-Domestic Aggregated or CT Band 4 | Q180: Non-Domestic Aggregated (Related MPAN) | R180: LV Site Specific No Residual | S180: LV Site Specific Band 1 | T180: LV Site Specific Band 2 | U180: LV Site Specific Band 3 | V180: LV Site Specific Band 4 | W180: LV Sub Site Specific No Residual | X180: LV Sub Site Specific Band 1 | Y180: LV Sub Site Specific Band 2 | Z180: LV Sub Site Specific Band 3 | AA180: LV Sub Site Specific Band 4 | AB180: HV Site Specific No Residual | AC180: HV Site Specific Band 1 | AD180: HV Site Specific Band 2 | AE180: HV Site Specific Band 3 | AF180: HV Site Specific Band 4 | AG180: Unmetered Supplies | AH180: LV Generation Aggregated | AI180: LV Sub Generation Aggregated | AJ180: LV Generation Site Specific | AK180: LV Generation Site Specific no RP Charge | AL180: LV Sub Generation Site Specific | AM180: LV Sub Generation Site Specific no RP Charge | AN180: HV Generation Site Specific | AO180: HV Generation Site Specific no RP Charge
F181: Band grouping configuration 1 | G181: integer | J181: 1 | M181: 1 | N181: 2 | O181: 3 | P181: 4 | S181: 1 | T181: 2 | U181: 3 | V181: 4 | X181: 1 | Y181: 2 | Z181: 3 | AA181: 4 | AC181: 1 | AD181: 2 | AE181: 3 | AF181: 4 | AG181: 1
F182: Band grouping configuration 2 | G182: integer | J182: 1 | M182: 1 | N182: 1 | O182: 2 | P182: 3 | S182: 1 | T182: 1 | U182: 2 | V182: 3 | X182: 1 | Y182: 1 | Z182: 2 | AA182: 3 | AC182: 1 | AD182: 1 | AE182: 2 | AF182: 3 | AG182: 1
F183: Band grouping configuration 3 | G183: integer | J183: 1 | M183: 1 | N183: 2 | O183: 2 | P183: 3 | S183: 1 | T183: 2 | U183: 2 | V183: 3 | X183: 1 | Y183: 2 | Z183: 2 | AA183: 3 | AC183: 1 | AD183: 2 | AE183: 2 | AF183: 3 | AG183: 1
F184: Band grouping configuration 4 | G184: integer | J184: 1 | M184: 1 | N184: 2 | O184: 3 | P184: 3 | S184: 1 | T184: 2 | U184: 3 | V184: 3 | X184: 1 | Y184: 2 | Z184: 3 | AA184: 3 | AC184: 1 | AD184: 2 | AE184: 3 | AF184: 3 | AG184: 1
F185: Band grouping configuration 5 | G185: integer | J185: 1 | M185: 1 | N185: 1 | O185: 2 | P185: 2 | S185: 1 | T185: 1 | U185: 2 | V185: 2 | X185: 1 | Y185: 1 | Z185: 2 | AA185: 2 | AC185: 1 | AD185: 1 | AE185: 2 | AF185: 2 | AG185: 1
F186: Band grouping configuration 6 | G186: integer | J186: 1 | M186: 1 | N186: 1 | O186: 1 | P186: 2 | S186: 1 | T186: 1 | U186: 1 | V186: 2 | X186: 1 | Y186: 1 | Z186: 1 | AA186: 2 | AC186: 1 | AD186: 1 | AE186: 1 | AF186: 2 | AG186: 1
F187: Band grouping configuration 7 | G187: integer | J187: 1 | M187: 1 | N187: 2 | O187: 2 | P187: 2 | S187: 1 | T187: 2 | U187: 2 | V187: 2 | X187: 1 | Y187: 2 | Z187: 2 | AA187: 2 | AC187: 1 | AD187: 2 | AE187: 2 | AF187: 2 | AG187: 1
F188: Band grouping configuration 8 | G188: integer | J188: 1 | M188: 1 | N188: 1 | O188: 1 | P188: 1 | S188: 1 | T188: 1 | U188: 1 | V188: 1 | X188: 1 | Y188: 1 | Z188: 1 | AA188: 1 | AC188: 1 | AD188: 1 | AE188: 1 | AF188: 1 | AG188: 1
B190: Checks
E192: Check for error values | G192: number of issues | H192: =SUM(IF(ISERROR(H15:Y151), 1)) -> 0
E194: Check that discount overrides are either FALSE, or non-zero
F195: MWh override | G195: number of issues | H195: =SUM(J195:Y195) -> 0 | J195: =IF( OR( AND(J110 = TRUE, NOT(ISBLANK(J111))), AND(J110 = FALSE, J111 = 0)), 0, 1) -> 0 | K195: 0 | L195: 0 | M195: 0 | N195: 0 | O195: 0 | P195: 0 | Q195: 0 | R195: 0 | S195: 0 | T195: 0 | U195: 0 | V195: 0 | W195: 0 | X195: 0 | Y195: 0
F196: MPAN override | G196: number of issues | H196: =SUM(J196:Y196) -> 0 | J196: =IF( OR( AND(J114 = TRUE, NOT(ISBLANK(J115))), AND(J114 = FALSE, J115 = 0)), 0, 1) -> 0 | K196: 0 | L196: 0 | M196: 0 | N196: 0 | O196: 0 | P196: 0 | Q196: 0 | R196: 0 | S196: 0 | T196: 0 | U196: 0 | V196: 0 | W196: 0 | X196: 0 | Y196: 0
F197: Import capacity override | G197: number of issues | H197: =SUM(J197:Y197) -> 0 | J197: =IF( OR( AND(J118 = TRUE, NOT(ISBLANK(J119))), AND(J118 = FALSE, J119 = 0)), 0, 1) -> 0 | K197: 0 | L197: 0 | M197: 0 | N197: 0 | O197: 0 | P197: 0 | Q197: 0 | R197: 0 | S197: 0 | T197: 0 | U197: 0 | V197: 0 | W197: 0 | X197: 0 | Y197: 0
F198: Exceeded capacity override | G198: number of issues | H198: =SUM(J198:Y198) -> 0 | J198: =IF( OR( AND(J122 = TRUE, NOT(ISBLANK(J123))), AND(J122 = FALSE, J123 = 0)), 0, 1) -> 0 | K198: 0 | L198: 0 | M198: 0 | N198: 0 | O198: 0 | P198: 0 | Q198: 0 | R198: 0 | S198: 0 | T198: 0 | U198: 0 | V198: 0 | W198: 0 | X198: 0 | Y198: 0
F199: Reactive power override | G199: number of issues | H199: =SUM(J199:Y199) -> 0 | J199: =IF( OR( AND(J126 = TRUE, NOT(ISBLANK(J127))), AND(J126 = FALSE, J127 = 0)), 0, 1) -> 0 | K199: 0 | L199: 0 | M199: 0 | N199: 0 | O199: 0 | P199: 0 | Q199: 0 | R199: 0 | S199: 0 | T199: 0 | U199: 0 | V199: 0 | W199: 0 | X199: 0 | Y199: 0
E201: Summary of checks | G201: number of issues | H201: =H192 + SUM(H195:H199) -> 0
B203: End of sheet

Sheet Inputs by customer type (hidden)
A1: =MID(CELL("filename",A1),FIND("]",CELL("filename",A1))+1,255) -> Inputs by customer type
A2: =Cover!D23 & " - " & TEXT(CIRP_submission_date, "mmm") & "-" & RIGHT(YEAR(CIRP_submission_date), 2) & " - " & Cover!D25 -> SP Manweb - Jan-26 - V2
A3: =Cover!D2&" - "&Cover!D8&" v"&Cover!D10&" - "&Cover!D19 -> Cost Information Review Pack (CIRP) - Release for charge setting v1 - 2027/28
A4: =H216 & IF(H216 = 1, " issue", " issues") &" identified in checks on this sheet" -> 0 issues identified in checks on this sheet
B5: Click here to return to model map | G5: Units | H5: Constants | J5: Domestic Aggregated or CT | K5: Domestic Aggregated (Related MPAN) | L5: Non-Domestic Aggregated or CT | M5: Non-Domestic Aggregated (Related MPAN) | N5: LV Site Specific | O5: LV Sub Site Specific | P5: HV Site Specific | Q5: Unmetered Supplies | R5: LV Generation Aggregated | S5: LV Sub Generation Aggregated | T5: LV Generation Site Specific | U5: LV Generation Site Specific no RP Charge | V5: LV Sub Generation Site Specific | W5: LV Sub Generation Site Specific no RP Charge | X5: HV Generation Site Specific | Y5: HV Generation Site Specific no RP Charge | AA5: Legal text reference
B7: Description
C9: This sheet sets out the inputs by customer type to be filled in by DNOs.
E11: Charging year selected | G11: year | H11: =charging_year_selected -> 2027/28
E12: Historic / current / forecast | G12: text | H12: ='CIRP_User control'!$H$41 -> Published
B14: Inputs by customer type
C16: =INDEX('Version control'!$H$29:$H$55,MATCH($A$1,'Version control'!$F$29:$F$55,0),1)&"-A: Load characteristics" -> Section 501-A: Load characteristics
E18: Load factor | G18: % | I18: > | J18: =TRANSPOSE('CIRP_Inputs by customer type'!J19:J34) -> 0.463 | K18: 0.1196666667 | L18: 0.384 | M18: 0.1803333333 | N18: 0.569 | O18: 0.5506666667 | P18: 0.7353333333 | Q18: 0.513 | R18: 0 | S18: 0 | T18: 0 | U18: 0 | V18: 0 | W18: 0 | X18: 0 | Y18: 0 | AA18: Paragraph 42 (a)
E19: Coincidence factor | G19: % | I19: > | J19: =TRANSPOSE('CIRP_Inputs by customer type'!J39:J54) -> 0.9296666667 | K19: 0 | L19: 0.6133333333 | M19: 0 | N19: 0.8186666667 | O19: 0.7256666667 | P19: 0.8303333333 | Q19: 0.9543333333 | R19: 0 | S19: 0 | T19: 0 | U19: 0 | V19: 0 | W19: 0 | X19: 0 | Y19: 0 | AA19: Paragraph 42 (b)
C21: =INDEX('Version control'!$H$29:$H$55,MATCH($A$1,'Version control'!$F$29:$F$55,0),1)&"-B: Volume forecasts for the charging year" -> Section 501-B: Volume forecasts for the charging year
D23: Volumes for all the way tariffs are entered here, separately for each residual band. | I23: > | AA23: Paragraph 52
E25: All the way volume forecast - No Residual
F26: Rate 1 units | G26: MWh | J26: =TRANSPOSE('CIRP_Inputs by customer type'!J61:J76) -> 0 | K26: 47.55861981 | L26: 37.90881576 | M26: 4.675 | N26: 160.8745254 | O26: 1.526216166 | P26: 164.8969169 | Q26: 0 | R26: 5697.05673 | S26: 54.2548799 | T26: 3880.56056 | U26: 0 | V26: 1135.451614 | W26: 0 | X26: 74507.70896 | Y26: 0
F27: Rate 2 units | G27: MWh | J27: =TRANSPOSE('CIRP_Inputs by customer type'!J79:J94) -> 0 | K27: 478.1064034 | L27: 197.1820027 | M27: 263.93 | N27: 157.2119977 | O27: 4.719439739 | P27: 1596.711678 | Q27: 0 | R27: 38522.1521 | S27: 267.9379112 | T27: 24199.32226 | U27: 0 | V27: 7248.500841 | W27: 0 | X27: 201449.9516 | Y27: 0
F28: Rate 3 units | G28: MWh | J28: =TRANSPOSE('CIRP_Inputs by customer type'!J97:J112) -> 0 | K28: 5120.584977 | L28: 161.1635807 | M28: 3232.503 | N28: 42.85920042 | O28: 6.008070685 | P28: 2294.251483 | Q28: 0 | R28: 16695.11912 | S28: 158.1068351 | T28: 17284.71025 | U28: 0 | V28: 5432.64869 | W28: 0 | X28: 122091.0736 | Y28: 0
F29: MPANs | G29: MPANs | J29: =TRANSPOSE('CIRP_Inputs by customer type'!J115:J130) -> 0 | K29: 2279 | L29: 44 | M29: 791 | N29: 33 | O29: 6 | P29: 79 | Q29: 0 | R29: 22642.53311 | S29: 35 | T29: 460 | U29: 0 | V29: 65 | W29: 0 | X29: 166 | Y29: 0
F30: Import capacity | G30: kVA | J30: =TRANSPOSE('CIRP_Inputs by customer type'!J133:J148) -> 0 | K30: 0 | L30: 0 | M30: 0 | N30: 1372 | O30: 128 | P30: 9090 | Q30: 0 | R30: 0 | S30: 0 | T30: 0 | U30: 0 | V30: 0 | W30: 0 | X30: 0 | Y30: 0
F31: Exceeded capacity | G31: kVA | J31: =TRANSPOSE('CIRP_Inputs by customer type'!J151:J166) -> 0 | K31: 0 | L31: 0 | M31: 0 | N31: 21.41666667 | O31: 0 | P31: 377.4166667 | Q31: 0 | R31: 0 | S31: 0 | T31: 0 | U31: 0 | V31: 0 | W31: 0 | X31: 0 | Y31: 0
F32: Reactive power units | G32: MVArh | J32: =TRANSPOSE('CIRP_Inputs by customer type'!J169:J184) -> 0 | K32: 0 | L32: 0 | M32: 0 | N32: 76.6 | O32: 4.001 | P32: 1889.755 | Q32: 0 | R32: 0 | S32: 0 | T32: 5768.67 | U32: 0 | V32: 973.306 | W32: 0 | X32: 10951.124 | Y32: 0
E34: All the way volume forecast - Residual Band 1
F35: Rate 1 units | G35: MWh | J35: =TRANSPOSE('CIRP_Inputs by customer type'!J189:J204) -> 563789.1604 | K35: 0 | L35: 13403.37125 | M35: 0 | N35: 28404.75322 | O35: 9414.164749 | P35: 11780.58802 | Q35: 6372.902515 | R35: 0 | S35: 0 | T35: 0 | U35: 0 | V35: 0 | W35: 0 | X35: 0 | Y35: 0
F36: Rate 2 units | G36: MWh | J36: =TRANSPOSE('CIRP_Inputs by customer type'!J207:J222) -> 1976486.479 | K36: 0 | L36: 69717.38717 | M36: 0 | N36: 129028.978 | O36: 46828.91213 | P36: 56404.88171 | Q36: 39293.37048 | R36: 0 | S36: 0 | T36: 0 | U36: 0 | V36: 0 | W36: 0 | X36: 0 | Y36: 0
F37: Rate 3 units | G37: MWh | J37: =TRANSPOSE('CIRP_Inputs by customer type'!J225:J240) -> 1958851.568 | K37: 0 | L37: 56982.40002 | M37: 0 | N37: 117650.396 | O37: 39640.81139 | P37: 60046.63803 | Q37: 83189.84172 | R37: 0 | S37: 0 | T37: 0 | U37: 0 | V37: 0 | W37: 0 | X37: 0 | Y37: 0
F38: MPANs | G38: MPANs | J38: =TRANSPOSE('CIRP_Inputs by customer type'!J243:J258) -> 1406619 | K38: 0 | L38: 35248 | M38: 0 | N38: 2940 | O38: 1024 | P38: 253 | Q38: 534 | R38: 0 | S38: 0 | T38: 0 | U38: 0 | V38: 0 | W38: 0 | X38: 0 | Y38: 0
F39: Import capacity | G39: kVA | J39: =TRANSPOSE('CIRP_Inputs by customer type'!J261:J276) -> 0 | K39: 0 | L39: 0 | M39: 0 | N39: 150810 | O39: 58513 | P39: 71801 | Q39: 0 | R39: 0 | S39: 0 | T39: 0 | U39: 0 | V39: 0 | W39: 0 | X39: 0 | Y39: 0
F40: Exceeded capacity | G40: kVA | J40: =TRANSPOSE('CIRP_Inputs by customer type'!J279:J294) -> 0 | K40: 0 | L40: 0 | M40: 0 | N40: 7763.75 | O40: 4210.666667 | P40: 2784.666667 | Q40: 0 | R40: 0 | S40: 0 | T40: 0 | U40: 0 | V40: 0 | W40: 0 | X40: 0 | Y40: 0
F41: Reactive power units | G41: MVArh | J41: =TRANSPOSE('CIRP_Inputs by customer type'!J297:J312) -> 0 | K41: 0 | L41: 0 | M41: 0 | N41: 20232.797 | O41: 9913.573 | P41: 13284.809 | Q41: 0 | R41: 0 | S41: 0 | T41: 0 | U41: 0 | V41: 0 | W41: 0 | X41: 0 | Y41: 0
E43: All the way volume forecast - Residual Band 2
F44: Rate 1 units | G44: MWh | J44: =TRANSPOSE('CIRP_Inputs by customer type'!J317:J332) -> 0 | K44: 0 | L44: 22142.70856 | M44: 0 | N44: 35885.03001 | O44: 16982.92297 | P44: 42349.20975 | Q44: 0 | R44: 0 | S44: 0 | T44: 0 | U44: 0 | V44: 0 | W44: 0 | X44: 0 | Y44: 0
F45: Rate 2 units | G45: MWh | J45: =TRANSPOSE('CIRP_Inputs by customer type'!J335:J350) -> 0 | K45: 0 | L45: 115174.8883 | M45: 0 | N45: 161410.4834 | O45: 83208.83411 | P45: 196661.042 | Q45: 0 | R45: 0 | S45: 0 | T45: 0 | U45: 0 | V45: 0 | W45: 0 | X45: 0 | Y45: 0
F46: Rate 3 units | G46: MWh | J46: =TRANSPOSE('CIRP_Inputs by customer type'!J353:J368) -> 0 | K46: 0 | L46: 94136.36715 | M46: 0 | N46: 144923.5993 | O46: 73619.16623 | P46: 206989.9135 | Q46: 0 | R46: 0 | S46: 0 | T46: 0 | U46: 0 | V46: 0 | W46: 0 | X46: 0 | Y46: 0
F47: MPANs | G47: MPANs | J47: =TRANSPOSE('CIRP_Inputs by customer type'!J371:J386) -> 0 | K47: 0 | L47: 29339 | M47: 0 | N47: 2120 | O47: 783 | P47: 285 | Q47: 0 | R47: 0 | S47: 0 | T47: 0 | U47: 0 | V47: 0 | W47: 0 | X47: 0 | Y47: 0
F48: Import capacity | G48: kVA | J48: =TRANSPOSE('CIRP_Inputs by customer type'!J389:J404) -> 0 | K48: 0 | L48: 0 | M48: 0 | N48: 241736 | O48: 93427 | P48: 194497 | Q48: 0 | R48: 0 | S48: 0 | T48: 0 | U48: 0 | V48: 0 | W48: 0 | X48: 0 | Y48: 0
F49: Exceeded capacity | G49: kVA | J49: =TRANSPOSE('CIRP_Inputs by customer type'!J407:J422) -> 0 | K49: 0 | L49: 0 | M49: 0 | N49: 3101 | O49: 2946.75 | P49: 2990.75 | Q49: 0 | R49: 0 | S49: 0 | T49: 0 | U49: 0 | V49: 0 | W49: 0 | X49: 0 | Y49: 0
F50: Reactive power units | G50: MVArh | J50: =TRANSPOSE('CIRP_Inputs by customer type'!J425:J440) -> 0 | K50: 0 | L50: 0 | M50: 0 | N50: 24413.03 | O50: 12875.291 | P50: 34018.821 | Q50: 0 | R50: 0 | S50: 0 | T50: 0 | U50: 0 | V50: 0 | W50: 0 | X50: 0 | Y50: 0
E52: All the way volume forecast - Residual Band 3
F53: Rate 1 units | G53: MWh | J53: =TRANSPOSE('CIRP_Inputs by customer type'!J445:J460) -> 0 | K53: 0 | L53: 23335.22172 | M53: 0 | N53: 13628.84051 | O53: 14213.78021 | P53: 38813.78718 | Q53: 0 | R53: 0 | S53: 0 | T53: 0 | U53: 0 | V53: 0 | W53: 0 | X53: 0 | Y53: 0
F54: Rate 2 units | G54: MWh | J54: =TRANSPOSE('CIRP_Inputs by customer type'!J463:J478) -> 0 | K54: 0 | L54: 121377.7234 | M54: 0 | N54: 61352.91802 | O54: 68758.17752 | P54: 180051.3063 | Q54: 0 | R54: 0 | S54: 0 | T54: 0 | U54: 0 | V54: 0 | W54: 0 | X54: 0 | Y54: 0
F55: Rate 3 units | G55: MWh | J55: =TRANSPOSE('CIRP_Inputs by customer type'!J481:J496) -> 0 | K55: 0 | L55: 99206.15598 | M55: 0 | N55: 56210.28718 | O55: 61241.70369 | P55: 190721.8353 | Q55: 0 | R55: 0 | S55: 0 | T55: 0 | U55: 0 | V55: 0 | W55: 0 | X55: 0 | Y55: 0
F56: MPANs | G56: MPANs | J56: =TRANSPOSE('CIRP_Inputs by customer type'!J499:J514) -> 0 | K56: 0 | L56: 14656 | M56: 0 | N56: 549 | O56: 424 | P56: 120 | Q56: 0 | R56: 0 | S56: 0 | T56: 0 | U56: 0 | V56: 0 | W56: 0 | X56: 0 | Y56: 0
F57: Import capacity | G57: kVA | J57: =TRANSPOSE('CIRP_Inputs by customer type'!J517:J532) -> 0 | K57: 0 | L57: 0 | M57: 0 | N57: 99744 | O57: 80450 | P57: 161445 | Q57: 0 | R57: 0 | S57: 0 | T57: 0 | U57: 0 | V57: 0 | W57: 0 | X57: 0 | Y57: 0
F58: Exceeded capacity | G58: kVA | J58: =TRANSPOSE('CIRP_Inputs by customer type'!J535:J550) -> 0 | K58: 0 | L58: 0 | M58: 0 | N58: 338.9166667 | O58: 1109.916667 | P58: 3457 | Q58: 0 | R58: 0 | S58: 0 | T58: 0 | U58: 0 | V58: 0 | W58: 0 | X58: 0 | Y58: 0
F59: Reactive power units | G59: MVArh | J59: =TRANSPOSE('CIRP_Inputs by customer type'!J553:J568) -> 0 | K59: 0 | L59: 0 | M59: 0 | N59: 10091.946 | O59: 10116.082 | P59: 28754.04 | Q59: 0 | R59: 0 | S59: 0 | T59: 0 | U59: 0 | V59: 0 | W59: 0 | X59: 0 | Y59: 0
E61: All the way volume forecast - Residual Band 4
F62: Rate 1 units | G62: MWh | J62: =TRANSPOSE('CIRP_Inputs by customer type'!J573:J588) -> 0 | K62: 0 | L62: 75433.03864 | M62: 0 | N62: 15815.75184 | O62: 54080.20174 | P62: 53781.01012 | Q62: 0 | R62: 0 | S62: 0 | T62: 0 | U62: 0 | V62: 0 | W62: 0 | X62: 0 | Y62: 0
F63: Rate 2 units | G63: MWh | J63: =TRANSPOSE('CIRP_Inputs by customer type'!J591:J606) -> 0 | K63: 0 | L63: 392363.5526 | M63: 0 | N63: 73444.19596 | O63: 259470.7012 | P63: 237915.5741 | Q63: 0 | R63: 0 | S63: 0 | T63: 0 | U63: 0 | V63: 0 | W63: 0 | X63: 0 | Y63: 0
F64: Rate 3 units | G64: MWh | J64: =TRANSPOSE('CIRP_Inputs by customer type'!J609:J624) -> 0 | K64: 0 | L64: 320692.1231 | M64: 0 | N64: 70395.46331 | O64: 246130.7917 | P64: 286759.7207 | Q64: 0 | R64: 0 | S64: 0 | T64: 0 | U64: 0 | V64: 0 | W64: 0 | X64: 0 | Y64: 0
F65: MPANs | G65: MPANs | J65: =TRANSPOSE('CIRP_Inputs by customer type'!J627:J642) -> 0 | K65: 0 | L65: 16307 | M65: 0 | N65: 299 | O65: 789 | P65: 85 | Q65: 0 | R65: 0 | S65: 0 | T65: 0 | U65: 0 | V65: 0 | W65: 0 | X65: 0 | Y65: 0
F66: Import capacity | G66: kVA | J66: =TRANSPOSE('CIRP_Inputs by customer type'!J645:J660) -> 0 | K66: 0 | L66: 0 | M66: 0 | N66: 116229 | O66: 310004 | P66: 226169 | Q66: 0 | R66: 0 | S66: 0 | T66: 0 | U66: 0 | V66: 0 | W66: 0 | X66: 0 | Y66: 0
F67: Exceeded capacity | G67: kVA | J67: =TRANSPOSE('CIRP_Inputs by customer type'!J663:J678) -> 0 | K67: 0 | L67: 0 | M67: 0 | N67: 426.6666667 | O67: 2149.333333 | P67: 810.4166667 | Q67: 0 | R67: 0 | S67: 0 | T67: 0 | U67: 0 | V67: 0 | W67: 0 | X67: 0 | Y67: 0
F68: Reactive power units | G68: MVArh | J68: =TRANSPOSE('CIRP_Inputs by customer type'!J681:J696) -> 0 | K68: 0 | L68: 0 | M68: 0 | N68: 11549.476 | O68: 36844.418 | P68: 29696.795 | Q68: 0 | R68: 0 | S68: 0 | T68: 0 | U68: 0 | V68: 0 | W68: 0 | X68: 0 | Y68: 0
D70: Volumes for LNDO LV tariffs are entered here, separately for each residual band. | I70: > | AA70: Paragraph 52
E72: LDNO LV volume forecast - No Residual
F73: Rate 1 units | G73: MWh | J73: =TRANSPOSE('CIRP_Inputs by customer type'!J701:J716) -> 0 | K73: 0 | L73: 0 | M73: 0 | N73: 0 | O73: 0 | P73: 0 | Q73: 0 | R73: 313.7722248 | S73: 0 | T73: 3.964 | U73: 0 | V73: 0 | W73: 0 | X73: 0 | Y73: 0
F74: Rate 2 units | G74: MWh | J74: =TRANSPOSE('CIRP_Inputs by customer type'!J719:J734) -> 0 | K74: 0 | L74: 0 | M74: 0 | N74: 0 | O74: 0 | P74: 0 | Q74: 0 | R74: 1531.182108 | S74: 0 | T74: 34.748 | U74: 0 | V74: 0 | W74: 0 | X74: 0 | Y74: 0
F75: Rate 3 units | G75: MWh | J75: =TRANSPOSE('CIRP_Inputs by customer type'!J737:J752) -> 0 | K75: 0 | L75: 0 | M75: 0 | N75: 0 | O75: 0 | P75: 0 | Q75: 0 | R75: 959.5524471 | S75: 0 | T75: 18.104 | U75: 0 | V75: 0 | W75: 0 | X75: 0 | Y75: 0
F76: MPANs | G76: MPANs | J76: =TRANSPOSE('CIRP_Inputs by customer type'!J755:J770) -> 0 | K76: 0 | L76: 0 | M76: 0 | N76: 0 | O76: 0 | P76: 0 | Q76: 0 | R76: 718 | S76: 0 | T76: 1 | U76: 0 | V76: 0 | W76: 0 | X76: 0 | Y76: 0
F77: Import capacity | G77: kVA | J77: =TRANSPOSE('CIRP_Inputs by customer type'!J773:J788) -> 0 | K77: 0 | L77: 0 | M77: 0 | N77: 0 | O77: 0 | P77: 0 | Q77: 0 | R77: 0 | S77: 0 | T77: 0 | U77: 0 | V77: 0 | W77: 0 | X77: 0 | Y77: 0
F78: Exceeded capacity | G78: kVA | J78: =TRANSPOSE('CIRP_Inputs by customer type'!J791:J806) -> 0 | K78: 0 | L78: 0 | M78: 0 | N78: 0 | O78: 0 | P78: 0 | Q78: 0 | R78: 0 | S78: 0 | T78: 0 | U78: 0 | V78: 0 | W78: 0 | X78: 0 | Y78: 0
F79: Reactive power units | G79: MVArh | J79: =TRANSPOSE('CIRP_Inputs by customer type'!J809:J824) -> 0 | K79: 0 | L79: 0 | M79: 0 | N79: 0 | O79: 0 | P79: 0 | Q79: 0 | R79: 0 | S79: 0 | T79: 0.196 | U79: 0 | V79: 0 | W79: 0 | X79: 0 | Y79: 0
E81: LDNO LV volume forecast - Residual Band 1
F82: Rate 1 units | G82: MWh | J82: =TRANSPOSE('CIRP_Inputs by customer type'!J829:J844) -> 12350.53351 | K82: 0 | L82: 201.3901353 | M82: 0 | N82: 222.6076392 | O82: 0 | P82: 0 | Q82: 0.0178337778 | R82: 0 | S82: 0 | T82: 0 | U82: 0 | V82: 0 | W82: 0 | X82: 0 | Y82: 0
F83: Rate 2 units | G83: MWh | J83: =TRANSPOSE('CIRP_Inputs by customer type'!J847:J862) -> 43972.0926 | K83: 0 | L83: 1088.919739 | M83: 0 | N83: 928.1202043 | O83: 0 | P83: 0 | Q83: 0.137854861 | R83: 0 | S83: 0 | T83: 0 | U83: 0 | V83: 0 | W83: 0 | X83: 0 | Y83: 0
F84: Rate 3 units | G84: MWh | J84: =TRANSPOSE('CIRP_Inputs by customer type'!J865:J880) -> 43199.83386 | K84: 0 | L84: 789.0527516 | M84: 0 | N84: 767.6564457 | O84: 0 | P84: 0 | Q84: 0.1571732874 | R84: 0 | S84: 0 | T84: 0 | U84: 0 | V84: 0 | W84: 0 | X84: 0 | Y84: 0
F85: MPANs | G85: MPANs | J85: =TRANSPOSE('CIRP_Inputs by customer type'!J883:J898) -> 32344 | K85: 0 | L85: 353 | M85: 0 | N85: 20 | O85: 0 | P85: 0 | Q85: 1 | R85: 0 | S85: 0 | T85: 0 | U85: 0 | V85: 0 | W85: 0 | X85: 0 | Y85: 0
F86: Import capacity | G86: kVA | J86: =TRANSPOSE('CIRP_Inputs by customer type'!J901:J916) -> 0 | K86: 0 | L86: 0 | M86: 0 | N86: 1298 | O86: 0 | P86: 0 | Q86: 0 | R86: 0 | S86: 0 | T86: 0 | U86: 0 | V86: 0 | W86: 0 | X86: 0 | Y86: 0
F87: Exceeded capacity | G87: kVA | J87: =TRANSPOSE('CIRP_Inputs by customer type'!J919:J934) -> 0 | K87: 0 | L87: 0 | M87: 0 | N87: 1 | O87: 0 | P87: 0 | Q87: 0 | R87: 0 | S87: 0 | T87: 0 | U87: 0 | V87: 0 | W87: 0 | X87: 0 | Y87: 0
F88: Reactive power units | G88: MVArh | J88: =TRANSPOSE('CIRP_Inputs by customer type'!J937:J952) -> 0 | K88: 0 | L88: 0 | M88: 0 | N88: 25.25896 | O88: 0 | P88: 0 | Q88: 0 | R88: 0 | S88: 0 | T88: 0 | U88: 0 | V88: 0 | W88: 0 | X88: 0 | Y88: 0
E90: LDNO LV volume forecast - Residual Band 2
F91: Rate 1 units | G91: MWh | J91: =TRANSPOSE('CIRP_Inputs by customer type'!J957:J972) -> 0 | K91: 0 | L91: 121.9395165 | M91: 0 | N91: 708.121145 | O91: 0 | P91: 0 | Q91: 0 | R91: 0 | S91: 0 | T91: 0 | U91: 0 | V91: 0 | W91: 0 | X91: 0 | Y91: 0
F92: Rate 2 units | G92: MWh | J92: =TRANSPOSE('CIRP_Inputs by customer type'!J975:J990) -> 0 | K92: 0 | L92: 651.3665196 | M92: 0 | N92: 3248.660156 | O92: 0 | P92: 0 | Q92: 0 | R92: 0 | S92: 0 | T92: 0 | U92: 0 | V92: 0 | W92: 0 | X92: 0 | Y92: 0
F93: Rate 3 units | G93: MWh | J93: =TRANSPOSE('CIRP_Inputs by customer type'!J993:J1008) -> 0 | K93: 0 | L93: 466.2470545 | M93: 0 | N93: 2734.96364 | O93: 0 | P93: 0 | Q93: 0 | R93: 0 | S93: 0 | T93: 0 | U93: 0 | V93: 0 | W93: 0 | X93: 0 | Y93: 0
F94: MPANs | G94: MPANs | J94: =TRANSPOSE('CIRP_Inputs by customer type'!J1011:J1026) -> 0 | K94: 0 | L94: 128 | M94: 0 | N94: 50 | O94: 0 | P94: 0 | Q94: 0 | R94: 0 | S94: 0 | T94: 0 | U94: 0 | V94: 0 | W94: 0 | X94: 0 | Y94: 0
F95: Import capacity | G95: kVA | J95: =TRANSPOSE('CIRP_Inputs by customer type'!J1029:J1044) -> 0 | K95: 0 | L95: 0 | M95: 0 | N95: 5919 | O95: 0 | P95: 0 | Q95: 0 | R95: 0 | S95: 0 | T95: 0 | U95: 0 | V95: 0 | W95: 0 | X95: 0 | Y95: 0
F96: Exceeded capacity | G96: kVA | J96: =TRANSPOSE('CIRP_Inputs by customer type'!J1047:J1062) -> 0 | K96: 0 | L96: 0 | M96: 0 | N96: 8.1 | O96: 0 | P96: 0 | Q96: 0 | R96: 0 | S96: 0 | T96: 0 | U96: 0 | V96: 0 | W96: 0 | X96: 0 | Y96: 0
F97: Reactive power units | G97: MVArh | J97: =TRANSPOSE('CIRP_Inputs by customer type'!J1065:J1080) -> 0 | K97: 0 | L97: 0 | M97: 0 | N97: 240.28166 | O97: 0 | P97: 0 | Q97: 0 | R97: 0 | S97: 0 | T97: 0 | U97: 0 | V97: 0 | W97: 0 | X97: 0 | Y97: 0
E99: LDNO LV volume forecast - Residual Band 3
F100: Rate 1 units | G100: MWh | J100: =TRANSPOSE('CIRP_Inputs by customer type'!J1085:J1100) -> 0 | K100: 0 | L100: 161.7612908 | M100: 0 | N100: 844.0741192 | O100: 0 | P100: 0 | Q100: 0 | R100: 0 | S100: 0 | T100: 0 | U100: 0 | V100: 0 | W100: 0 | X100: 0 | Y100: 0
F101: Rate 2 units | G101: MWh | J101: =TRANSPOSE('CIRP_Inputs by customer type'!J1103:J1118) -> 0 | K101: 0 | L101: 857.9936194 | M101: 0 | N101: 3512.149584 | O101: 0 | P101: 0 | Q101: 0 | R101: 0 | S101: 0 | T101: 0 | U101: 0 | V101: 0 | W101: 0 | X101: 0 | Y101: 0
F102: Rate 3 units | G102: MWh | J102: =TRANSPOSE('CIRP_Inputs by customer type'!J1121:J1136) -> 0 | K102: 0 | L102: 656.8589002 | M102: 0 | N102: 2699.418129 | O102: 0 | P102: 0 | Q102: 0 | R102: 0 | S102: 0 | T102: 0 | U102: 0 | V102: 0 | W102: 0 | X102: 0 | Y102: 0
F103: MPANs | G103: MPANs | J103: =TRANSPOSE('CIRP_Inputs by customer type'!J1139:J1154) -> 0 | K103: 0 | L103: 99 | M103: 0 | N103: 46 | O103: 0 | P103: 0 | Q103: 0 | R103: 0 | S103: 0 | T103: 0 | U103: 0 | V103: 0 | W103: 0 | X103: 0 | Y103: 0
F104: Import capacity | G104: kVA | J104: =TRANSPOSE('CIRP_Inputs by customer type'!J1157:J1172) -> 0 | K104: 0 | L104: 0 | M104: 0 | N104: 8169 | O104: 0 | P104: 0 | Q104: 0 | R104: 0 | S104: 0 | T104: 0 | U104: 0 | V104: 0 | W104: 0 | X104: 0 | Y104: 0
F105: Exceeded capacity | G105: kVA | J105: =TRANSPOSE('CIRP_Inputs by customer type'!J1175:J1190) -> 0 | K105: 0 | L105: 0 | M105: 0 | N105: 117.26 | O105: 0 | P105: 0 | Q105: 0 | R105: 0 | S105: 0 | T105: 0 | U105: 0 | V105: 0 | W105: 0 | X105: 0 | Y105: 0
F106: Reactive power units | G106: MVArh | J106: =TRANSPOSE('CIRP_Inputs by customer type'!J1193:J1208) -> 0 | K106: 0 | L106: 0 | M106: 0 | N106: 218.0588 | O106: 0 | P106: 0 | Q106: 0 | R106: 0 | S106: 0 | T106: 0 | U106: 0 | V106: 0 | W106: 0 | X106: 0 | Y106: 0
E108: LDNO LV volume forecast - Residual Band 4
F109: Rate 1 units | G109: MWh | J109: =TRANSPOSE('CIRP_Inputs by customer type'!J1213:J1228) -> 0 | K109: 0 | L109: 231.617118 | M109: 0 | N109: 245.8177433 | O109: 0 | P109: 0 | Q109: 0 | R109: 0 | S109: 0 | T109: 0 | U109: 0 | V109: 0 | W109: 0 | X109: 0 | Y109: 0
F110: Rate 2 units | G110: MWh | J110: =TRANSPOSE('CIRP_Inputs by customer type'!J1231:J1246) -> 0 | K110: 0 | L110: 1231.475014 | M110: 0 | N110: 1147.327545 | O110: 0 | P110: 0 | Q110: 0 | R110: 0 | S110: 0 | T110: 0 | U110: 0 | V110: 0 | W110: 0 | X110: 0 | Y110: 0
F111: Rate 3 units | G111: MWh | J111: =TRANSPOSE('CIRP_Inputs by customer type'!J1249:J1264) -> 0 | K111: 0 | L111: 900.4737016 | M111: 0 | N111: 1108.87265 | O111: 0 | P111: 0 | Q111: 0 | R111: 0 | S111: 0 | T111: 0 | U111: 0 | V111: 0 | W111: 0 | X111: 0 | Y111: 0
F112: MPANs | G112: MPANs | J112: =TRANSPOSE('CIRP_Inputs by customer type'!J1267:J1282) -> 0 | K112: 0 | L112: 83 | M112: 0 | N112: 11 | O112: 0 | P112: 0 | Q112: 0 | R112: 0 | S112: 0 | T112: 0 | U112: 0 | V112: 0 | W112: 0 | X112: 0 | Y112: 0
F113: Import capacity | G113: kVA | J113: =TRANSPOSE('CIRP_Inputs by customer type'!J1285:J1300) -> 0 | K113: 0 | L113: 0 | M113: 0 | N113: 3640 | O113: 0 | P113: 0 | Q113: 0 | R113: 0 | S113: 0 | T113: 0 | U113: 0 | V113: 0 | W113: 0 | X113: 0 | Y113: 0
F114: Exceeded capacity | G114: kVA | J114: =TRANSPOSE('CIRP_Inputs by customer type'!J1303:J1318) -> 0 | K114: 0 | L114: 0 | M114: 0 | N114: 0 | O114: 0 | P114: 0 | Q114: 0 | R114: 0 | S114: 0 | T114: 0 | U114: 0 | V114: 0 | W114: 0 | X114: 0 | Y114: 0
F115: Reactive power units | G115: MVArh | J115: =TRANSPOSE('CIRP_Inputs by customer type'!J1321:J1336) -> 0 | K115: 0 | L115: 0 | M115: 0 | N115: 55.93404 | O115: 0 | P115: 0 | Q115: 0 | R115: 0 | S115: 0 | T115: 0 | U115: 0 | V115: 0 | W115: 0 | X115: 0 | Y115: 0
D117: Volumes for LNDO HV tariffs are entered here, separately for each residual band. | I117: > | AA117: Paragraph 52
E119: LDNO HV volume forecast - No Residual
F120: Rate 1 units | G120: MWh | J120: =TRANSPOSE('CIRP_Inputs by customer type'!J1341:J1356) -> 0 | K120: 0.2842312139 | L120: 0 | M120: 0 | N120: 7.10463438 | O120: 0 | P120: 0 | Q120: 0 | R120: 454.9295538 | S120: 0 | T120: 251.503 | U120: 0 | V120: 0.009 | W120: 0 | X120: 0 | Y120: 0
F121: Rate 2 units | G121: MWh | J121: =TRANSPOSE('CIRP_Inputs by customer type'!J1359:J1374) -> 0 | K121: 0.9175183044 | L121: 0 | M121: 0 | N121: 31.75700284 | O121: 0 | P121: 0 | Q121: 0 | R121: 2992.133329 | S121: 0 | T121: 1155.967 | U121: 0 | V121: 0.553 | W121: 0 | X121: 0 | Y121: 0
F122: Rate 3 units | G122: MWh | J122: =TRANSPOSE('CIRP_Inputs by customer type'!J1377:J1392) -> 0 | K122: 0.5023911368 | L122: 0 | M122: 0 | N122: 39.69436344 | O122: 0 | P122: 0 | Q122: 0 | R122: 1310.22961 | S122: 0 | T122: 1481.452 | U122: 0 | V122: 1.418 | W122: 0 | X122: 0 | Y122: 0
F123: MPANs | G123: MPANs | J123: =TRANSPOSE('CIRP_Inputs by customer type'!J1395:J1410) -> 0 | K123: 1 | L123: 0 | M123: 0 | N123: 6 | O123: 0 | P123: 0 | Q123: 0 | R123: 859 | S123: 0 | T123: 4 | U123: 0 | V123: 1 | W123: 0 | X123: 2 | Y123: 0
F124: Import capacity | G124: kVA | J124: =TRANSPOSE('CIRP_Inputs by customer type'!J1413:J1428) -> 0 | K124: 0 | L124: 0 | M124: 0 | N124: 300 | O124: 0 | P124: 0 | Q124: 0 | R124: 0 | S124: 0 | T124: 0 | U124: 0 | V124: 0 | W124: 0 | X124: 0 | Y124: 0
F125: Exceeded capacity | G125: kVA | J125: =TRANSPOSE('CIRP_Inputs by customer type'!J1431:J1446) -> 0 | K125: 0 | L125: 0 | M125: 0 | N125: 0 | O125: 0 | P125: 0 | Q125: 0 | R125: 0 | S125: 0 | T125: 0 | U125: 0 | V125: 0 | W125: 0 | X125: 0 | Y125: 0
F126: Reactive power units | G126: MVArh | J126: =TRANSPOSE('CIRP_Inputs by customer type'!J1449:J1464) -> 0 | K126: 0 | L126: 0 | M126: 0 | N126: 17.93438 | O126: 0 | P126: 0 | Q126: 0 | R126: 0 | S126: 0 | T126: 45.948 | U126: 0 | V126: 0.301 | W126: 0 | X126: 46.298 | Y126: 0
E128: LDNO HV volume forecast - Residual Band 1
F129: Rate 1 units | G129: MWh | J129: =TRANSPOSE('CIRP_Inputs by customer type'!J1469:J1484) -> 22546.61759 | K129: 0 | L129: 246.6372186 | M129: 0 | N129: 580.9685697 | O129: 0 | P129: 234.2345472 | Q129: 0.2250195853 | R129: 0 | S129: 0 | T129: 0 | U129: 0 | V129: 0 | W129: 0 | X129: 0 | Y129: 0
F130: Rate 2 units | G130: MWh | J130: =TRANSPOSE('CIRP_Inputs by customer type'!J1487:J1502) -> 80084.43786 | K130: 0 | L130: 1329.902745 | M130: 0 | N130: 2523.018973 | O130: 0 | P130: 1005.942231 | Q130: 2.112357451 | R130: 0 | S130: 0 | T130: 0 | U130: 0 | V130: 0 | W130: 0 | X130: 0 | Y130: 0
F131: Rate 3 units | G131: MWh | J131: =TRANSPOSE('CIRP_Inputs by customer type'!J1505:J1520) -> 79727.79228 | K131: 0 | L131: 957.2013948 | M131: 0 | N131: 2482.766219 | O131: 0 | P131: 911.3323501 | Q131: 2.711631205 | R131: 0 | S131: 0 | T131: 0 | U131: 0 | V131: 0 | W131: 0 | X131: 0 | Y131: 0
F132: MPANs | G132: MPANs | J132: =TRANSPOSE('CIRP_Inputs by customer type'!J1523:J1538) -> 55434 | K132: 0 | L132: 425 | M132: 0 | N132: 68 | O132: 0 | P132: 4 | Q132: 3 | R132: 0 | S132: 0 | T132: 0 | U132: 0 | V132: 0 | W132: 0 | X132: 0 | Y132: 0
F133: Import capacity | G133: kVA | J133: =TRANSPOSE('CIRP_Inputs by customer type'!J1541:J1556) -> 0 | K133: 0 | L133: 0 | M133: 0 | N133: 3886 | O133: 0 | P133: 942 | Q133: 0 | R133: 0 | S133: 0 | T133: 0 | U133: 0 | V133: 0 | W133: 0 | X133: 0 | Y133: 0
F134: Exceeded capacity | G134: kVA | J134: =TRANSPOSE('CIRP_Inputs by customer type'!J1559:J1574) -> 0 | K134: 0 | L134: 0 | M134: 0 | N134: 114.3333333 | O134: 0 | P134: 0 | Q134: 0 | R134: 0 | S134: 0 | T134: 0 | U134: 0 | V134: 0 | W134: 0 | X134: 0 | Y134: 0
F135: Reactive power units | G135: MVArh | J135: =TRANSPOSE('CIRP_Inputs by customer type'!J1577:J1592) -> 0 | K135: 0 | L135: 0 | M135: 0 | N135: 728.6805 | O135: 0 | P135: 25.002 | Q135: 0 | R135: 0 | S135: 0 | T135: 0 | U135: 0 | V135: 0 | W135: 0 | X135: 0 | Y135: 0
E137: LDNO HV volume forecast - Residual Band 2
F138: Rate 1 units | G138: MWh | J138: =TRANSPOSE('CIRP_Inputs by customer type'!J1597:J1612) -> 0 | K138: 0 | L138: 278.3957703 | M138: 0 | N138: 1932.290982 | O138: 52.93068618 | P138: 1212.341212 | Q138: 0 | R138: 0 | S138: 0 | T138: 0 | U138: 0 | V138: 0 | W138: 0 | X138: 0 | Y138: 0
F139: Rate 2 units | G139: MWh | J139: =TRANSPOSE('CIRP_Inputs by customer type'!J1615:J1630) -> 0 | K139: 0 | L139: 1472.383703 | M139: 0 | N139: 8501.421916 | O139: 217.6592237 | P139: 5557.709889 | Q139: 0 | R139: 0 | S139: 0 | T139: 0 | U139: 0 | V139: 0 | W139: 0 | X139: 0 | Y139: 0
F140: Rate 3 units | G140: MWh | J140: =TRANSPOSE('CIRP_Inputs by customer type'!J1633:J1648) -> 0 | K140: 0 | L140: 1058.566627 | M140: 0 | N140: 7816.20704 | O140: 218.1679068 | P140: 5382.624674 | Q140: 0 | R140: 0 | S140: 0 | T140: 0 | U140: 0 | V140: 0 | W140: 0 | X140: 0 | Y140: 0
F141: MPANs | G141: MPANs | J141: =TRANSPOSE('CIRP_Inputs by customer type'!J1651:J1666) -> 0 | K141: 0 | L141: 219 | M141: 0 | N141: 131 | O141: 3 | P141: 13 | Q141: 0 | R141: 0 | S141: 0 | T141: 0 | U141: 0 | V141: 0 | W141: 0 | X141: 0 | Y141: 0
F142: Import capacity | G142: kVA | J142: =TRANSPOSE('CIRP_Inputs by customer type'!J1669:J1684) -> 0 | K142: 0 | L142: 0 | M142: 0 | N142: 15884 | O142: 415 | P142: 9774 | Q142: 0 | R142: 0 | S142: 0 | T142: 0 | U142: 0 | V142: 0 | W142: 0 | X142: 0 | Y142: 0
F143: Exceeded capacity | G143: kVA | J143: =TRANSPOSE('CIRP_Inputs by customer type'!J1687:J1702) -> 0 | K143: 0 | L143: 0 | M143: 0 | N143: 0.5366666667 | O143: 0 | P143: 0 | Q143: 0 | R143: 0 | S143: 0 | T143: 0 | U143: 0 | V143: 0 | W143: 0 | X143: 0 | Y143: 0
F144: Reactive power units | G144: MVArh | J144: =TRANSPOSE('CIRP_Inputs by customer type'!J1705:J1720) -> 0 | K144: 0 | L144: 0 | M144: 0 | N144: 863.1876 | O144: 52.118 | P144: 300.85178 | Q144: 0 | R144: 0 | S144: 0 | T144: 0 | U144: 0 | V144: 0 | W144: 0 | X144: 0 | Y144: 0
E146: LDNO HV volume forecast - Residual Band 3
F147: Rate 1 units | G147: MWh | J147: =TRANSPOSE('CIRP_Inputs by customer type'!J1725:J1740) -> 0 | K147: 0 | L147: 352.2775799 | M147: 0 | N147: 2330.938951 | O147: 32.64418376 | P147: 1862.589141 | Q147: 0 | R147: 0 | S147: 0 | T147: 0 | U147: 0 | V147: 0 | W147: 0 | X147: 0 | Y147: 0
F148: Rate 2 units | G148: MWh | J148: =TRANSPOSE('CIRP_Inputs by customer type'!J1743:J1758) -> 0 | K148: 0 | L148: 1868.180312 | M148: 0 | N148: 9929.530111 | O148: 146.7117569 | P148: 7986.879488 | Q148: 0 | R148: 0 | S148: 0 | T148: 0 | U148: 0 | V148: 0 | W148: 0 | X148: 0 | Y148: 0
F149: Rate 3 units | G149: MWh | J149: =TRANSPOSE('CIRP_Inputs by customer type'!J1761:J1776) -> 0 | K149: 0 | L149: 1389.432273 | M149: 0 | N149: 9946.928796 | O149: 173.7650344 | P149: 9293.593305 | Q149: 0 | R149: 0 | S149: 0 | T149: 0 | U149: 0 | V149: 0 | W149: 0 | X149: 0 | Y149: 0
F150: MPANs | G150: MPANs | J150: =TRANSPOSE('CIRP_Inputs by customer type'!J1779:J1794) -> 0 | K150: 0 | L150: 147 | M150: 0 | N150: 76 | O150: 1 | P150: 6 | Q150: 0 | R150: 0 | S150: 0 | T150: 0 | U150: 0 | V150: 0 | W150: 0 | X150: 0 | Y150: 0
F151: Import capacity | G151: kVA | J151: =TRANSPOSE('CIRP_Inputs by customer type'!J1797:J1812) -> 0 | K151: 0 | L151: 0 | M151: 0 | N151: 13873 | O151: 180 | P151: 8400 | Q151: 0 | R151: 0 | S151: 0 | T151: 0 | U151: 0 | V151: 0 | W151: 0 | X151: 0 | Y151: 0
F152: Exceeded capacity | G152: kVA | J152: =TRANSPOSE('CIRP_Inputs by customer type'!J1815:J1830) -> 0 | K152: 0 | L152: 0 | M152: 0 | N152: 0 | O152: 0 | P152: 108.06 | Q152: 0 | R152: 0 | S152: 0 | T152: 0 | U152: 0 | V152: 0 | W152: 0 | X152: 0 | Y152: 0
F153: Reactive power units | G153: MVArh | J153: =TRANSPOSE('CIRP_Inputs by customer type'!J1833:J1848) -> 0 | K153: 0 | L153: 0 | M153: 0 | N153: 825.61524 | O153: 0 | P153: 438.81408 | Q153: 0 | R153: 0 | S153: 0 | T153: 0 | U153: 0 | V153: 0 | W153: 0 | X153: 0 | Y153: 0
E155: LDNO HV volume forecast - Residual Band 4
F156: Rate 1 units | G156: MWh | J156: =TRANSPOSE('CIRP_Inputs by customer type'!J1853:J1868) -> 0 | K156: 0 | L156: 998.8689351 | M156: 0 | N156: 8267.726104 | O156: 1795.075319 | P156: 1099.250421 | Q156: 0 | R156: 0 | S156: 0 | T156: 0 | U156: 0 | V156: 0 | W156: 0 | X156: 0 | Y156: 0
F157: Rate 2 units | G157: MWh | J157: =TRANSPOSE('CIRP_Inputs by customer type'!J1871:J1886) -> 0 | K157: 0 | L157: 5164.709955 | M157: 0 | N157: 36414.90288 | O157: 8151.424274 | P157: 4726.61338 | Q157: 0 | R157: 0 | S157: 0 | T157: 0 | U157: 0 | V157: 0 | W157: 0 | X157: 0 | Y157: 0
F158: Rate 3 units | G158: MWh | J158: =TRANSPOSE('CIRP_Inputs by customer type'!J1889:J1904) -> 0 | K158: 0 | L158: 3996.071832 | M158: 0 | N158: 35936.74846 | O158: 7325.843615 | P158: 5754.00136 | Q158: 0 | R158: 0 | S158: 0 | T158: 0 | U158: 0 | V158: 0 | W158: 0 | X158: 0 | Y158: 0
F159: MPANs | G159: MPANs | J159: =TRANSPOSE('CIRP_Inputs by customer type'!J1907:J1922) -> 0 | K159: 0 | L159: 205 | M159: 0 | N159: 181 | O159: 26 | P159: 6 | Q159: 0 | R159: 0 | S159: 0 | T159: 0 | U159: 0 | V159: 0 | W159: 0 | X159: 0 | Y159: 0
F160: Import capacity | G160: kVA | J160: =TRANSPOSE('CIRP_Inputs by customer type'!J1925:J1940) -> 0 | K160: 0 | L160: 0 | M160: 0 | N160: 100245 | O160: 20573 | P160: 19130 | Q160: 0 | R160: 0 | S160: 0 | T160: 0 | U160: 0 | V160: 0 | W160: 0 | X160: 0 | Y160: 0
F161: Exceeded capacity | G161: kVA | J161: =TRANSPOSE('CIRP_Inputs by customer type'!J1943:J1958) -> 0 | K161: 0 | L161: 0 | M161: 0 | N161: 10.33333333 | O161: 2.333333333 | P161: 0 | Q161: 0 | R161: 0 | S161: 0 | T161: 0 | U161: 0 | V161: 0 | W161: 0 | X161: 0 | Y161: 0
F162: Reactive power units | G162: MVArh | J162: =TRANSPOSE('CIRP_Inputs by customer type'!J1961:J1976) -> 0 | K162: 0 | L162: 0 | M162: 0 | N162: 4432.75808 | O162: 3567.2963 | P162: 285.8039 | Q162: 0 | R162: 0 | S162: 0 | T162: 0 | U162: 0 | V162: 0 | W162: 0 | X162: 0 | Y162: 0
E164: 'Designated Property' MPANs with EDCM-level LDNO boundaries | G164: MPANs | I164: > | J164: =TRANSPOSE('CIRP_Inputs by customer type'!J1981:J1996) -> 959 | K164: 46 | L164: 15 | M164: 0 | N164: 37 | O164: 5 | P164: 17 | Q164: 0 | R164: 10 | S164: 0 | T164: 0 | U164: 0 | V164: 0 | W164: 0 | X164: 0 | Y164: 0 | AA164: Paragraphs 53A, 53B, 101 and 102
C166: =INDEX('Version control'!$H$29:$H$55,MATCH($A$1,'Version control'!$F$29:$F$55,0),1)&"-C: Non-Domestic Aggregated (Related MPAN) distribution by bands" -> Section 501-C: Non-Domestic Aggregated (Related MPAN) distribution by bands
D168: The split of Non-Domestic Aggregated (Related MPAN) units by residual band is used to allocate residual revenue | I168: > | AA168: Paragraph 92 (a)
D169: between bands to be recovered from Non-Domestic Aggregated customers.
E171: All the way non-domestic aggregated (related MPAN) distribution by bands | J171: No residual | K171: Band 1 | L171: Band 2 | M171: Band 3 | N171: Band 4
F172: Rate 1 units | G172: % | J172: =TRANSPOSE('CIRP_Inputs by customer type'!J2006:J2010) -> 0 | K172: 0.09979106647 | L172: 0.1648573677 | M172: 0.1737358922 | N172: 0.5616156737
F173: Rate 2 units | G173: % | J173: =TRANSPOSE('CIRP_Inputs by customer type'!J2013:J2017) -> 0 | K173: 0.09979106647 | L173: 0.1648573677 | M173: 0.1737358922 | N173: 0.5616156737
F174: Rate 3 units | G174: % | J174: =TRANSPOSE('CIRP_Inputs by customer type'!J2020:J2024) -> 0 | K174: 0.09979106647 | L174: 0.1648573677 | M174: 0.1737358922 | N174: 0.5616156737
E176: LDNO LV non-domestic aggregated (related MPAN) distribution by bands | J176: No residual | K176: Band 1 | L176: Band 2 | M176: Band 3 | N176: Band 4
F177: Rate 1 units | G177: % | J177: =TRANSPOSE('CIRP_Inputs by customer type'!J2029:J2033) -> 0 | K177: 0.2825568258 | L177: 0.1684382427 | M177: 0.2278287926 | N177: 0.3211761389
F178: Rate 2 units | G178: % | J178: =TRANSPOSE('CIRP_Inputs by customer type'!J2036:J2040) -> 0 | K178: 0.2825568258 | L178: 0.1684382427 | M178: 0.2278287926 | N178: 0.3211761389
F179: Rate 3 units | G179: % | J179: =TRANSPOSE('CIRP_Inputs by customer type'!J2043:J2047) -> 0 | K179: 0.2825568258 | L179: 0.1684382427 | M179: 0.2278287926 | N179: 0.3211761389
E181: LDNO HV non-domestic aggregated (related MPAN) distribution by bands | J181: No residual | K181: Band 1 | L181: Band 2 | M181: Band 3 | N181: Band 4
F182: Rate 1 units | G182: % | J182: =TRANSPOSE('CIRP_Inputs by customer type'!J2052:J2056) -> 0 | K182: 0.132568965 | L182: 0.1469889986 | M182: 0.1888746069 | N182: 0.5315674296
F183: Rate 2 units | G183: % | J183: =TRANSPOSE('CIRP_Inputs by customer type'!J2059:J2063) -> 0 | K183: 0.132568965 | L183: 0.1469889986 | M183: 0.1888746069 | N183: 0.5315674296
F184: Rate 3 units | G184: % | J184: =TRANSPOSE('CIRP_Inputs by customer type'!J2066:J2070) -> 0 | K184: 0.132568965 | L184: 0.1469889986 | M184: 0.1888746069 | N184: 0.5315674296
C186: =INDEX('Version control'!$H$29:$H$55,MATCH($A$1,'Version control'!$F$29:$F$55,0),1)&"-D: Service model asset values" -> Section 501-D: Service model asset values
D188: Service model costs should be entered per customer or per MWh for unmetered customers
I189: > | AA189: Paragraphs 32 to 37
E190: LV customer service model asset values | G190: £ per MPAN | J190: =TRANSPOSE('CIRP_Inputs by customer type'!J2079:J2094) -> 377.7 | K190: 0 | L190: 508.75 | M190: 0 | N190: 2380 | O190: 840 | P190: 0 | Q190: 0 | R190: 0 | S190: 0 | T190: 0 | U190: 0 | V190: 0 | W190: 0 | X190: 0 | Y190: 0
E191: HV customer service model asset values | G191: £ per MPAN | J191: =TRANSPOSE('CIRP_Inputs by customer type'!J2099:J2114) -> 0 | K191: 0 | L191: 0 | M191: 0 | N191: 0 | O191: 0 | P191: 12718.10554 | Q191: 0 | R191: 0 | S191: 0 | T191: 0 | U191: 0 | V191: 0 | W191: 0 | X191: 9287 | Y191: 9287
E193: LV UMS customer service model asset values | G193: £/MWh/year | I193: > | J193: =TRANSPOSE('CIRP_Inputs by customer type'!J2119:J2134) -> 0 | K193: 0 | L193: 0 | M193: 0 | N193: 0 | O193: 0 | P193: 0 | Q193: 120.51 | R193: 0 | S193: 0 | T193: 0 | U193: 0 | V193: 0 | W193: 0 | X193: 0 | Y193: 0 | AA193: Paragraph 36
B195: Checks
E197: Check that all the way non-domestic aggregated (related MPAN) distribution by bands adds to 100%
F198: Rate 1 units | G198: TRUE / FALSE | H198: =SUM(J172:N172)=1 -> TRUE
F199: Rate 2 units | G199: TRUE / FALSE | H199: =SUM(J173:N173)=1 -> TRUE
F200: Rate 3 units | G200: TRUE / FALSE | H200: TRUE
E202: Check that LDNO LV non-domestic aggregated (related MPAN) distribution by bands adds to 100%
F203: Rate 1 units | G203: TRUE / FALSE | H203: =SUM(J177:N177)=1 -> TRUE
F204: Rate 2 units | G204: TRUE / FALSE | H204: =SUM(J178:N178)=1 -> TRUE
F205: Rate 3 units | G205: TRUE / FALSE | H205: TRUE
E207: Check that LDNO HV non-domestic aggregated (related MPAN) distribution by bands adds to 100%
F208: Rate 1 units | G208: TRUE / FALSE | H208: =SUM(J182:N182)=1 -> TRUE
F209: Rate 2 units | G209: TRUE / FALSE | H209: =SUM(J183:N183)=1 -> TRUE
F210: Rate 3 units | G210: TRUE / FALSE | H210: TRUE
E212: Checks on non-domestic aggregated (related MPAN) distributions | G212: number of issues | H212: =COUNTIF(H198:H210,FALSE) -> 0
E214: Check for error values | G214: number of issues | H214: =SUM(IF(ISERROR(H16:Y194), 1)) -> 0
E216: Summary of checks | G216: number of issues | H216: =H212 + H214 -> 0
B218: End of sheet

Sheet Inputs by network level (hidden)
A1: =MID(CELL("filename",A1),FIND("]",CELL("filename",A1))+1,255) -> Inputs by network level
A2: =Cover!D23 & " - " & TEXT(CIRP_submission_date, "mmm") & "-" & RIGHT(YEAR(CIRP_submission_date), 2) & " - " & Cover!D25 -> SP Manweb - Jan-26 - V2
A3: =Cover!D2&" - "&Cover!D8&" v"&Cover!D10&" - "&Cover!D19 -> Cost Information Review Pack (CIRP) - Release for charge setting v1 - 2027/28
A4: =H59 & IF(H59 = 1, " issue", " issues") &" identified in checks on this sheet" -> 0 issues identified in checks on this sheet
B5: Click here to return to model map | G5: Units | H5: Constants | J5: Transmission exit | K5: GSPs | L5: 132kV | M5: 132kV/EHV | N5: EHV | O5: EHV/HV | P5: 132kV/HV | Q5: HV | R5: HV/LV | S5: LV circuits | U5: Legal text reference
B7: Description
C9: This sheet sets out the inputs by network level to be filled in by DNOs.
E11: Charging year selected | G11: year | H11: =charging_year_selected -> 2027/28
E12: Historic / current / forecast | G12: text | H12: ='CIRP_User control'!$H$41 -> Published
B14: Inputs by network level
C16: =INDEX('Version control'!$H$29:$H$55,MATCH($A$1,'Version control'!$F$29:$F$55,0),1)&"-A: Network and load inputs" -> Section 502-A: Network and load inputs
E18: Diversity allowance between top and bottom of network level | G18: % | I18: > | K18: ='CIRP_Inputs by network level'!J20 -> 0.025 | L18: ='CIRP_Inputs by network level'!J21 -> 0.1 | N18: ='CIRP_Inputs by network level'!J23 -> 0.26 | Q18: ='CIRP_Inputs by network level'!J26 -> 0.2 | U18: Paragraphs 26 to 28
E20: Proportion of load going through 132kV/HV direct transformation | G20: % | P20: ='CIRP_Inputs by network level'!J39 -> 0
E22: Loss adjustment factors to transmission | G22: scalar | I22: > | K22: ='CIRP_Inputs by network level'!J48 -> 1 | L22: ='CIRP_Inputs by network level'!J49 -> 1.004 | M22: ='CIRP_Inputs by network level'!J50 -> 1.012 | N22: ='CIRP_Inputs by network level'!J51 -> 1.017 | O22: ='CIRP_Inputs by network level'!J52 -> 1.025 | Q22: ='CIRP_Inputs by network level'!J54 -> 1.036 | R22: ='CIRP_Inputs by network level'!J55 -> 1.059 | S22: ='CIRP_Inputs by network level'!J56 -> 1.134 | U22: Paragraph 47
E24: Average kVAr by kVA, by network level | G24: kVAr/kVA | I24: > | K24: ='CIRP_Inputs by network level'!J62 -> 0.2610446757 | L24: ='CIRP_Inputs by network level'!J63 -> 0.2610446757 | M24: ='CIRP_Inputs by network level'!J64 -> 0.2231317099 | N24: ='CIRP_Inputs by network level'!J65 -> 0.2231317099 | O24: ='CIRP_Inputs by network level'!J66 -> 0.3281434097 | P24: ='CIRP_Inputs by network level'!J67 -> 0.3281434097 | Q24: ='CIRP_Inputs by network level'!J68 -> 0.3281434097 | R24: ='CIRP_Inputs by network level'!J69 -> 0.3281434097 | S24: ='CIRP_Inputs by network level'!J70 -> 0.3281434097 | U24: Paragraphs 50 to 51
C26: =INDEX('Version control'!$H$29:$H$55,MATCH($A$1,'Version control'!$F$29:$F$55,0),1)&"-B: Customer contributions under current connection charging policy" -> Section 502-B: Customer contributions under current connection charging policy
I27: > | U27: Paragraphs 29 to 31
E28: Customer contributions under current connection charging policy
F29: LV network | G29: % | L29: ='CIRP_Inputs by network level'!J78 -> 0 | M29: ='CIRP_Inputs by network level'!J79 -> 0 | N29: ='CIRP_Inputs by network level'!J80 -> 0 | O29: ='CIRP_Inputs by network level'!J81 -> 0 | P29: ='CIRP_Inputs by network level'!J82 -> 0 | Q29: ='CIRP_Inputs by network level'!J83 -> 0 | R29: ='CIRP_Inputs by network level'!J84 -> 0 | S29: ='CIRP_Inputs by network level'!J85 -> 0
F30: LV substation | G30: % | L30: ='CIRP_Inputs by network level'!J89 -> 0 | M30: ='CIRP_Inputs by network level'!J90 -> 0 | N30: ='CIRP_Inputs by network level'!J91 -> 0 | O30: ='CIRP_Inputs by network level'!J92 -> 0 | P30: ='CIRP_Inputs by network level'!J93 -> 0 | Q30: ='CIRP_Inputs by network level'!J94 -> 0 | R30: ='CIRP_Inputs by network level'!J95 -> 0
F31: HV network | G31: % | L31: ='CIRP_Inputs by network level'!J100 -> 0 | M31: ='CIRP_Inputs by network level'!J101 -> 0 | N31: ='CIRP_Inputs by network level'!J102 -> 0 | O31: ='CIRP_Inputs by network level'!J103 -> 0 | P31: ='CIRP_Inputs by network level'!J104 -> 0 | Q31: ='CIRP_Inputs by network level'!J105 -> 0
F32: HV substation | G32: % | L32: ='CIRP_Inputs by network level'!J111 -> 0 | M32: ='CIRP_Inputs by network level'!J112 -> 0 | N32: ='CIRP_Inputs by network level'!J113 -> 0 | O32: ='CIRP_Inputs by network level'!J114 -> 0
C34: =INDEX('Version control'!$H$29:$H$55,MATCH($A$1,'Version control'!$F$29:$F$55,0),1)&"-C: DRM asset costs" -> Section 502-C: DRM asset costs
E36: Gross asset cost by network level | G36: £ | I36: > | L36: ='CIRP_Inputs by network level'!J125 -> 216006549.7 | M36: ='CIRP_Inputs by network level'!J126 -> 18110426.8 | N36: ='CIRP_Inputs by network level'!J127 -> 184884001 | O36: ='CIRP_Inputs by network level'!J128 -> 30707294.57 | P36: ='CIRP_Inputs by network level'!J129 -> 0 | Q36: ='CIRP_Inputs by network level'!J130 -> 252029148.4 | R36: ='CIRP_Inputs by network level'!J131 -> 98574302.56 | S36: ='CIRP_Inputs by network level'!J132 -> 60358969.82
C38: =INDEX('Version control'!$H$29:$H$55,MATCH($A$1,'Version control'!$F$29:$F$55,0),1)&"-D: Peaking probabilities by network level" -> Section 502-D: Peaking probabilities by network level
D40: Red, Amber & Green peaking probabilities must sum to 100%, except for unused network levels, which should sum to 0%
E42: Peaking probabilities by network level | I42: > | U42: Paragraphs 48 to 49
F43: Red | G43: % | K43: ='CIRP_Inputs by network level'!J140 -> 0.6711583646 | L43: ='CIRP_Inputs by network level'!J141 -> 0.6711583646 | M43: ='CIRP_Inputs by network level'!J142 -> 0.4286278804 | N43: ='CIRP_Inputs by network level'!J143 -> 0.4286278804 | O43: ='CIRP_Inputs by network level'!J144 -> 0.3549728665 | P43: ='CIRP_Inputs by network level'!J145 -> 0 | Q43: ='CIRP_Inputs by network level'!J146 -> 0.3549728665 | R43: ='CIRP_Inputs by network level'!J147 -> 0.3549728665 | S43: ='CIRP_Inputs by network level'!J148 -> 0.3549728665
F44: Amber | G44: % | K44: ='CIRP_Inputs by network level'!J152 -> 0.319941631 | L44: ='CIRP_Inputs by network level'!J153 -> 0.319941631 | M44: ='CIRP_Inputs by network level'!J154 -> 0.4512845498 | N44: ='CIRP_Inputs by network level'!J155 -> 0.4512845498 | O44: ='CIRP_Inputs by network level'!J156 -> 0.5353027677 | P44: ='CIRP_Inputs by network level'!J157 -> 0 | Q44: ='CIRP_Inputs by network level'!J158 -> 0.5353027677 | R44: ='CIRP_Inputs by network level'!J159 -> 0.5353027677 | S44: ='CIRP_Inputs by network level'!J160 -> 0.5353027677
F45: Green | G45: % | K45: ='CIRP_Inputs by network level'!J164 -> 0.008900004397 | L45: ='CIRP_Inputs by network level'!J165 -> 0.008900004397 | M45: ='CIRP_Inputs by network level'!J166 -> 0.1200875699 | N45: ='CIRP_Inputs by network level'!J167 -> 0.1200875699 | O45: ='CIRP_Inputs by network level'!J168 -> 0.1097243659 | P45: ='CIRP_Inputs by network level'!J169 -> 0 | Q45: ='CIRP_Inputs by network level'!J170 -> 0.1097243659 | R45: ='CIRP_Inputs by network level'!J171 -> 0.1097243659 | S45: ='CIRP_Inputs by network level'!J172 -> 0.1097243659
F46: Black | G46: % | K46: ='CIRP_Inputs by network level'!J176 -> 0.6711583646 | L46: ='CIRP_Inputs by network level'!J177 -> 0.6711583646 | M46: ='CIRP_Inputs by network level'!J178 -> 0.2550297862 | N46: ='CIRP_Inputs by network level'!J179 -> 0.2550297862 | O46: ='CIRP_Inputs by network level'!J180 -> 0.2792244446 | P46: ='CIRP_Inputs by network level'!J181 -> 0 | Q46: ='CIRP_Inputs by network level'!J182 -> 0.2792244446 | R46: ='CIRP_Inputs by network level'!J183 -> 0.2792244446 | S46: ='CIRP_Inputs by network level'!J184 -> 0.2792244446
B48: Checks
E50: Check for error values | G50: number of issues | H50: =SUM(IF(ISERROR(H18:AA47), 1)) -> 0
E52: Check that loss adjustment factor = 1 at grid supply point | G52: number of issues | H52: =IF(K22 = 1, 0, 1) -> 0
E54: Peaking probabilities check
E55: 0% peaking probabilities are permitted for 132kV, 132kV/EHV & 132kV/HV network levels, which do not exist for all DNOs
F56: General | G56: number of issues | H56: =SUM(K56:S56) -> 0 | K56: =IF(ABS(SUM(K43:K45) - 1) < 10^-check_decimals, 0, 1) -> 0 | N56: =IF(ABS(SUM(N43:N45) - 1) < 10^-check_decimals, 0, 1) -> 0 | O56: =IF(ABS(SUM(O43:O45) - 1) < 10^-check_decimals, 0, 1) -> 0 | Q56: =IF(ABS(SUM(Q43:Q45) - 1) < 10^-check_decimals, 0, 1) -> 0 | R56: =IF(ABS(SUM(R43:R45) - 1) < 10^-check_decimals, 0, 1) -> 0 | S56: =IF(ABS(SUM(S43:S45) - 1) < 10^-check_decimals, 0, 1) -> 0
F57: 132kV | G57: number of issues | H57: =SUM(K57:S57) -> 0 | L57: =IF(OR(ABS(SUM(L43:L45) - 1) < 10^-check_decimals, ABS(SUM(L43:L45) - 0) < 10^-check_decimals), 0, 1) -> 0 | M57: =IF(OR(ABS(SUM(M43:M45) - 1) < 10^-check_decimals, ABS(SUM(M43:M45) - 0) < 10^-check_decimals), 0, 1) -> 0 | P57: =IF(OR(ABS(SUM(P43:P45) - 1) < 10^-check_decimals, ABS(SUM(P43:P45) - 0) < 10^-check_decimals), 0, 1) -> 0
E59: Summary of checks | G59: number of issues | H59: =SUM(H50:H57) -> 0
B61: End of sheet

Sheet General inputs (hidden)
A1: =MID(CELL("filename",A1),FIND("]",CELL("filename",A1))+1,255) -> General inputs
A2: =Cover!D23 & " - " & TEXT(CIRP_submission_date, "mmm") & "-" & RIGHT(YEAR(CIRP_submission_date), 2) & " - " & Cover!D25 -> SP Manweb - Jan-26 - V2
A3: =Cover!D2&" - "&Cover!D8&" v"&Cover!D10&" - "&Cover!D19 -> Cost Information Review Pack (CIRP) - Release for charge setting v1 - 2027/28
A4: =H122 & IF(H122 = 1, " issue", " issues") &" identified in checks on this sheet" -> 0 issues identified in checks on this sheet
B5: Click here to return to model map | G5: Units | H5: Constants | J5: Legal text reference
B7: Description
C9: This sheet sets out the other inputs to be filled in by DNOs
E11: Charging year selected | G11: year | H11: =charging_year_selected -> 2027/28
E12: Historic / current / forecast | G12: text | H12: ='CIRP_User control'!$H$41 -> Published
B14: General inputs
C16: =INDEX('Version control'!$H$29:$H$55,MATCH($A$1,'Version control'!$F$29:$F$55,0),1)&"-A: Inputs by distribution timeband" -> Section 503-A: Inputs by distribution timeband
D18: Typical annual hours by special distribution time band | I18: > | J18: Paragraphs 40 to 41
E19: Black | G19: hours per year | H19: ='CIRP_General inputs'!J19 -> 261
E20: Yellow | G20: hours per year | H20: ='CIRP_General inputs'!J20 -> 3954
E21: Green | G21: hours per year | H21: ='CIRP_General inputs'!J21 -> 4569
D23: Typical annual hours by distribution time band | I23: > | J23: Paragraphs 40 to 41
E24: Red | G24: hours per year | H24: ='CIRP_General inputs'!J24 -> 786
E25: Amber | G25: hours per year | H25: ='CIRP_General inputs'!J25 -> 3429
E26: Green | G26: hours per year | H26: ='CIRP_General inputs'!J26 -> 4569
C28: =INDEX('Version control'!$H$29:$H$55,MATCH($A$1,'Version control'!$F$29:$F$55,0),1)&"-B: LDNO discount inputs" -> Section 503-B: LDNO discount inputs
D30: Inputs sourced from the PCDM
D32: Embedded network (LDNO) discount percentages | I32: > | J32: Paragraph 53
E33: LDNO LV: LV user | G33: % | H33: ='CIRP_General inputs'!J33 -> 0.4107208505
E34: LDNO HV: LV user | G34: % | H34: ='CIRP_General inputs'!J34 -> 0.5726592203
E35: LDNO HV: LV Sub user | G35: % | H35: ='CIRP_General inputs'!J35 -> 0.2732346839
E36: LDNO HV: HV user | G36: % | H36: ='CIRP_General inputs'!J36 -> 0.1820269028
C38: =INDEX('Version control'!$H$29:$H$55,MATCH($A$1,'Version control'!$F$29:$F$55,0),1)&"-C: CDCM target revenue" -> Section 503-C: CDCM target revenue
D40: The contents of this table are defined on the DCUSA website and referenced in Schedule 20 (Appendix A - Table 1). | I40: > | J40: Paragraph 54, Schedule 20 Table 1
D42: Base Revenue
E43: Fast money | G43: £m 20/21 prices | H43: ='CIRP_General inputs'!J43 -> 91.58459937
E44: Depreciation | G44: £m 20/21 prices | H44: ='CIRP_General inputs'!J44 -> 148.2388185
E45: Return | G45: £m 20/21 prices | H45: ='CIRP_General inputs'!J45 -> 105.0490166
E46: Pass-through
F47: Licence Fee Payments | G47: £m 20/21 prices | H47: ='CIRP_General inputs'!J47 -> 2.013948851
F48: Prescribed Rates | G48: £m 20/21 prices | H48: ='CIRP_General inputs'!J48 -> 28.37230314
F49: Pass-through Transmission Connection Point Charges | G49: £m 20/21 prices | H49: ='CIRP_General inputs'!J49 -> 16.17835922
F50: Smart Meter Communication Licensee Costs | G50: £m 20/21 prices | H50: ='CIRP_General inputs'!J50 -> 10.37621549
F51: Smart Meter Information Technology Costs | G51: £m 20/21 prices | H51: ='CIRP_General inputs'!J51 -> 1.157709633
F52: Ring Fence Costs | G52: £m 20/21 prices | H52: ='CIRP_General inputs'!J52 -> 0
F53: Supplier of Last Resort Net Costs | G53: £m 20/21 prices | H53: ='CIRP_General inputs'!J53 -> 0
F54: Valid Bad Debt Claims | G54: £m 20/21 prices | H54: ='CIRP_General inputs'!J54 -> 0
F55: Pension Scheme Established Deficit repair expenditure | G55: £m 20/21 prices | H55: ='CIRP_General inputs'!J55 -> 13.58502022
F56: Failed Supplier Recovered Costs | G56: £m 20/21 prices | H56: ='CIRP_General inputs'!J56 -> 0
F57: Shetland Variable Energy Costs (SSEH only) | G57: £m 20/21 prices | H57: ='CIRP_General inputs'!J57 -> 0
F58: Assistance for high-cost distributors adjustment (SSEH only) | G58: £m 20/21 prices | H58: ='CIRP_General inputs'!J58 -> 0
F59: Total pass-through | G59: £m 20/21 prices | H59: =(H47 + H48 + H49 + H50 + H51 + H52 + H53 + H54 + H55 + H57) - (H56 + H58) -> 71.68355656
E60: Total base revenue | G60: £m 20/21 prices | H60: =H43 + H44 + H45 + H59 -> 416.555991
D62: Other revenue
E63: Return Adjustment | G63: £m 20/21 prices | H63: ='CIRP_General inputs'!J63 -> 0
E64: Equity issuance costs | G64: £m 20/21 prices | H64: ='CIRP_General inputs'!J64 -> 0
E65: Business plan incentive | G65: £m 20/21 prices | H65: ='CIRP_General inputs'!J65 -> 0
E66: Output delivery incentive | G66: £m 20/21 prices | H66: ='CIRP_General inputs'!J66 -> 9.930314796
E67: Other revenue allowances | G67: £m 20/21 prices | H67: ='CIRP_General inputs'!J67 -> 0
E68: Directly Remunerated Services | G68: £m 20/21 prices | H68: ='CIRP_General inputs'!J68 -> -0.01467110567
E69: Total other revenue | G69: £m 20/21 prices | H69: =SUM(H63:H68) -> 9.915643691
D71: Calculated revenue (after tax)
E72: Calculated revenue (before tax) | G72: £m 20/21 prices | H72: =H60 + H69 -> 426.4716347
E73: Tax allowance | G73: £m 20/21 prices | H73: ='CIRP_General inputs'!J73 -> 1.388040331
E74: Tax allowance adjustment | G74: £m 20/21 prices | H74: ='CIRP_General inputs'!J74 -> 0
E75: Calculated revenue (after tax) | G75: £m 20/21 prices | H75: =H72 + H73 + H74 -> 427.859675
D77: Real to nominal prices conversion factor (splice index for RIIO-2) | G77: Price index t / Price index 2020/21 | H77: ='CIRP_General inputs'!J77 -> 1.435242215
D79: Allowed revenue
E80: Nominal calculated revenue (after tax) | G80: £m nominal | H80: =H75 * H77 -> 614.0822677
E81: Correction term | G81: £m nominal | H81: ='CIRP_General inputs'!J81 -> 25.4290846
E82: Forecasting penalty | G82: £m nominal | H82: ='CIRP_General inputs'!J82 -> 0
E83: Legacy Allowed Revenue | G83: £m nominal | H83: ='CIRP_General inputs'!J83 -> 0.9580251767
E84: Total allowed revenue | G84: £m nominal | H84: =SUM(H80:H83) -> 640.4693775
E85: Total allowed revenue | G85: £ | H85: =H84 * million -> 640469377.5
D87: Allowed revenue by charging model
E88: Revenue raised outside CDCM - EDCM and Certain Interconnector Revenue | G88: £ | H88: ='CIRP_General inputs'!J88 -> 50676802.24
E89: CDCM revenue | G89: £ | H89: =H85 - H88 -> 589792575.2
D91: Pass-through costs not allocated through revenue matching
E92: Supplier of Last Resort Net Costs | G92: £ | H92: =H53 * H$77 * million -> 0
E93: Valid Bad Debt Claims | G93: £ | H93: =H54 * H$77 * million -> 0
D95: Pass-through Smart Meter Communication Licence Costs | G95: £ | H95: =H50 * H$77 * million -> 14892382.51
C97: =INDEX('Version control'!$H$29:$H$55,MATCH($A$1,'Version control'!$F$29:$F$55,0),1)&"-D: Financial and general assumptions" -> Section 503-D: Financial and general assumptions
E99: Real pre-tax cost of capital | G99: % | H99: ='CIRP_General inputs'!J99 -> 0.0487 | I99: > | J99: Paragraph 57
E100: Days in the charging year | G100: days | H100: ='CIRP_General inputs'!J100 -> 366
E101: Hours in charging year | G101: hours | H101: =days_in_year * hours_in_day -> 8784
C103: =INDEX('Version control'!$H$29:$H$55,MATCH($A$1,'Version control'!$F$29:$F$55,0),1)&"-E: Transmission exit charges" -> Section 503-E: Transmission exit charges
E105: Transmission exit charges | G105: £ per year | H105: ='CIRP_General inputs'!J104 -> 21148360.73 | I105: > | J105: Paragraph 38
C107: =INDEX('Version control'!$H$29:$H$55,MATCH($A$1,'Version control'!$F$29:$F$55,0),1)&"-F: Other expenditure" -> Section 503-F: Other expenditure
E109: Other expenditure | I109: > | J109: Paragraph 39
F110: Direct cost | G110: £ per year | H110: ='CIRP_General inputs'!J109 -> 39009457.1
F111: Indirect cost | G111: £ per year | H111: ='CIRP_General inputs'!J110 -> 119071850.4
F112: Network rates | G112: £ per year | H112: ='CIRP_General inputs'!J111 -> 38649623.81
B114: Checks
E116: Check for error values | G116: number of issues | H116: =SUM(IF(ISERROR(H6:H113), 1)) -> 0
E118: Hours in charging year check
F119: Normal distribution timebands | G119: number of issues | H119: =IF(SUM(H19:H21) = hours_in_year, 0, 1) -> 0
F120: Special distribution timebands | G120: number of issues | H120: =IF(SUM(H24:H26) = hours_in_year, 0, 1) -> 0
E122: Summary of checks | G122: number of issues | H122: =SUM(H116,H119:H120) -> 0
B124: End of sheet

Sheet Standing charge factors (hidden)
A1: =MID(CELL("filename",A1),FIND("]",CELL("filename",A1))+1,255) -> Standing charge factors
A2: =Cover!D23 & " - " & TEXT(CIRP_submission_date, "mmm") & "-" & RIGHT(YEAR(CIRP_submission_date), 2) & " - " & Cover!D25 -> SP Manweb - Jan-26 - V2
A3: =Cover!D2&" - "&Cover!D8&" v"&Cover!D10&" - "&Cover!D19 -> Cost Information Review Pack (CIRP) - Release for charge setting v1 - 2027/28
A4: =H58 & IF(H58 = 1, " issue", " issues") &" identified in checks on this sheet" -> 0 issues identified in checks on this sheet
B5: Click here to return to model map | G5: Units | H5: Constants | J5: Domestic Aggregated or CT | K5: Domestic Aggregated (Related MPAN) | L5: Non-Domestic Aggregated or CT | M5: Non-Domestic Aggregated (Related MPAN) | N5: LV Site Specific | O5: LV Sub Site Specific | P5: HV Site Specific | Q5: Unmetered Supplies | R5: LV Generation Aggregated | S5: LV Sub Generation Aggregated | T5: LV Generation Site Specific | U5: LV Generation Site Specific no RP Charge | V5: LV Sub Generation Site Specific | W5: LV Sub Generation Site Specific no RP Charge | X5: HV Generation Site Specific | Y5: HV Generation Site Specific no RP Charge | AA5: Legal text reference
B7: Description
C9: This sheet contains standing charge factors, as described in DCUSA Schedule 16, Paragraphs 74-76.
C10: Standing charge factors are used to split network costs between those to be recovered through unit rate charges
C11: and those to be recovered through standing (capacity or fixed) charges, depending on the customer class and
C12: the network level at which costs occur.
C14: Standing charge factors are only applied for demand users.
C15: A factor of 100% implies that all costs will be allocated to standing charges.
B17: Adjustments to standing charges
C19: =INDEX('Version control'!$H$29:$H$55,MATCH($A$1,'Version control'!$F$29:$F$55,0),1)&"-A: Adjustments to standing charges" -> Section 504-A: Adjustments to standing charges
D21: Brings in standing charge factors and adjusts them for share of load going through 132/HV
E23: Raw inputs for standing charge factors, by network level | I23: > | AA23: Paragraph 74
E24: Standing charge factors as specified in Paragraph 74
F25: Transmission exit | G25: % | J25: ='Fixed inputs'!J93 -> 0 | K25: ='Fixed inputs'!K93 -> 0 | L25: ='Fixed inputs'!L93 -> 0 | M25: ='Fixed inputs'!M93 -> 0 | N25: ='Fixed inputs'!N93 -> 0 | O25: ='Fixed inputs'!O93 -> 0 | P25: ='Fixed inputs'!P93 -> 0 | Q25: ='Fixed inputs'!Q93 -> 0
F26: GSPs | G26: % | J26: ='Fixed inputs'!J94 -> 0 | K26: ='Fixed inputs'!K94 -> 0 | L26: ='Fixed inputs'!L94 -> 0 | M26: ='Fixed inputs'!M94 -> 0 | N26: ='Fixed inputs'!N94 -> 0 | O26: ='Fixed inputs'!O94 -> 0 | P26: ='Fixed inputs'!P94 -> 0 | Q26: ='Fixed inputs'!Q94 -> 0
F27: 132kV | G27: % | J27: ='Fixed inputs'!J95 -> 0 | K27: ='Fixed inputs'!K95 -> 0 | L27: ='Fixed inputs'!L95 -> 0 | M27: ='Fixed inputs'!M95 -> 0 | N27: ='Fixed inputs'!N95 -> 0 | O27: ='Fixed inputs'!O95 -> 0 | P27: ='Fixed inputs'!P95 -> 0 | Q27: ='Fixed inputs'!Q95 -> 0
F28: 132kV/EHV | G28: % | J28: ='Fixed inputs'!J96 -> 0 | K28: ='Fixed inputs'!K96 -> 0 | L28: ='Fixed inputs'!L96 -> 0 | M28: ='Fixed inputs'!M96 -> 0 | N28: ='Fixed inputs'!N96 -> 0 | O28: ='Fixed inputs'!O96 -> 0 | P28: ='Fixed inputs'!P96 -> 0 | Q28: ='Fixed inputs'!Q96 -> 0
F29: EHV | G29: % | J29: ='Fixed inputs'!J97 -> 0 | K29: ='Fixed inputs'!K97 -> 0 | L29: ='Fixed inputs'!L97 -> 0 | M29: ='Fixed inputs'!M97 -> 0 | N29: ='Fixed inputs'!N97 -> 0 | O29: ='Fixed inputs'!O97 -> 0 | P29: ='Fixed inputs'!P97 -> 0.2 | Q29: ='Fixed inputs'!Q97 -> 0
F30: EHV/HV | G30: % | J30: ='Fixed inputs'!J98 -> 0 | K30: ='Fixed inputs'!K98 -> 0 | L30: ='Fixed inputs'!L98 -> 0 | M30: ='Fixed inputs'!M98 -> 0 | N30: ='Fixed inputs'!N98 -> 0 | O30: ='Fixed inputs'!O98 -> 0 | P30: ='Fixed inputs'!P98 -> 1 | Q30: ='Fixed inputs'!Q98 -> 0
F31: 132kV/HV | G31: % | J31: ='Fixed inputs'!J99 -> 0 | K31: ='Fixed inputs'!K99 -> 0 | L31: ='Fixed inputs'!L99 -> 0 | M31: ='Fixed inputs'!M99 -> 0 | N31: ='Fixed inputs'!N99 -> 0 | O31: ='Fixed inputs'!O99 -> 0 | P31: ='Fixed inputs'!P99 -> 0 | Q31: ='Fixed inputs'!Q99 -> 0
F32: HV | G32: % | J32: ='Fixed inputs'!J100 -> 0 | K32: ='Fixed inputs'!K100 -> 0 | L32: ='Fixed inputs'!L100 -> 0 | M32: ='Fixed inputs'!M100 -> 0 | N32: ='Fixed inputs'!N100 -> 0.2 | O32: ='Fixed inputs'!O100 -> 1 | P32: ='Fixed inputs'!P100 -> 1 | Q32: ='Fixed inputs'!Q100 -> 0
F33: HV/LV | G33: % | J33: ='Fixed inputs'!J101 -> 0 | K33: ='Fixed inputs'!K101 -> 0 | L33: ='Fixed inputs'!L101 -> 0 | M33: ='Fixed inputs'!M101 -> 0 | N33: ='Fixed inputs'!N101 -> 1 | O33: ='Fixed inputs'!O101 -> 1 | P33: ='Fixed inputs'!P101 -> 0 | Q33: ='Fixed inputs'!Q101 -> 0
F34: LV circuits | G34: % | J34: ='Fixed inputs'!J102 -> 1 | K34: ='Fixed inputs'!K102 -> 1 | L34: ='Fixed inputs'!L102 -> 1 | M34: ='Fixed inputs'!M102 -> 1 | N34: ='Fixed inputs'!N102 -> 1 | O34: ='Fixed inputs'!O102 -> 0 | P34: ='Fixed inputs'!P102 -> 0 | Q34: ='Fixed inputs'!Q102 -> 0
F35: LV customers | G35: %
F36: HV customers | G36: %
E38: Proportion of load going through 132kV/HV direct transformation
F39: Proportion of load going through 132kV/HV direct transformation | G39: % | H39: ='Inputs by network level'!P20 -> 0
E41: Standing charges factors adapted to use 132kV/HV, by network level
E42: Adjustments as described in Paragraph 75 and 76
F43: Transmission exit | G43: %
F44: GSPs | G44: %
F45: 132kV | G45: % | I45: > | J45: =IF($H$39 = 0, J27, J29 * $H$39) -> 0 | K45: =IF($H$39 = 0, K27, K29 * $H$39) -> 0 | L45: 0 | M45: 0 | N45: 0 | O45: 0 | P45: 0 | Q45: 0 | AA45: Paragraph 76
F46: 132kV/EHV | G46: % | J46: =J28 -> 0 | K46: 0 | L46: 0 | M46: 0 | N46: 0 | O46: 0 | P46: 0 | Q46: 0
F47: EHV | G47: % | J47: 0 | K47: 0 | L47: 0 | M47: 0 | N47: 0 | O47: 0 | P47: 0.2 | Q47: 0
F48: EHV/HV | G48: % | J48: 0 | K48: 0 | L48: 0 | M48: 0 | N48: 0 | O48: 0 | P48: 1 | Q48: 0
F49: 132kV/HV | G49: % | I49: > | J49: =J30 -> 0 | K49: 0 | L49: 0 | M49: 0 | N49: 0 | O49: 0 | P49: 1 | Q49: 0 | AA49: Paragraph 75
F50: HV | G50: % | J50: =J32 -> 0 | K50: 0 | L50: 0 | M50: 0 | N50: 0.2 | O50: 1 | P50: 1 | Q50: 0
F51: HV/LV | G51: % | J51: 0 | K51: 0 | L51: 0 | M51: 0 | N51: 1 | O51: 1 | P51: 0 | Q51: 0
F52: LV circuits | G52: % | J52: 1 | K52: 1 | L52: 1 | M52: 1 | N52: 1 | O52: 0 | P52: 0 | Q52: 0
F53: LV customers | G53: %
F54: HV customers | G54: %
B56: Checks
E58: Check for error values | G58: number of issues | H58: =SUM(IF(ISERROR(H25:Y54), 1)) -> 0
B60: End of sheet

Sheet Load & loss characteristics (hidden)
A1: =MID(CELL("filename",A1),FIND("]",CELL("filename",A1))+1,255) -> Load & loss characteristics
A2: =Cover!D23 & " - " & TEXT(CIRP_submission_date, "mmm") & "-" & RIGHT(YEAR(CIRP_submission_date), 2) & " - " & Cover!D25 -> SP Manweb - Jan-26 - V2
A3: =Cover!D2&" - "&Cover!D8&" v"&Cover!D10&" - "&Cover!D19 -> Cost Information Review Pack (CIRP) - Release for charge setting v1 - 2027/28
A4: =H183 & IF(H183 = 1, " issue", " issues") &" identified in checks on this sheet" -> 0 issues identified in checks on this sheet
B5: Click here to return to model map | G5: Units | H5: Constants | J5: Transmission exit | K5: GSPs | L5: 132kV | M5: 132kV/EHV | N5: EHV | O5: EHV/HV | P5: 132kV/HV | Q5: HV | R5: HV/LV | S5: LV circuits | T5: LV customers | U5: HV customers | W5: Legal text reference
B7: Description
C9: This sheet adjusts diversity allowances, coincidence factors and loss adjustment factors for use in the model
C10: This sheet then uses network use factors and loss adjustment factors to calculate user loss factors
C11: Network use factors and user loss factors are also adjusted for the share of load going through 132/HV transformation
B13: Load and loss characteristics
C15: Brings in diversity allowances to calculate coincidence and cumulative diversity factors. Also adjusts loss adjustment factors.
C17: =INDEX('Version control'!$H$29:$H$55,MATCH($A$1,'Version control'!$F$29:$F$55,0),1)&"-A: Load characteristics" -> Section 505-A: Load characteristics
E19: Network model diversity allowances | G19: % | K19: ='Inputs by network level'!K18 -> 0.025 | L19: ='Inputs by network level'!L18 -> 0.1 | N19: ='Inputs by network level'!N18 -> 0.26 | Q19: ='Inputs by network level'!Q18 -> 0.2
E20: Coincidence factor | G20: % | J20: =IF(I20 = "", 1, I20 / (1 + J19)) -> 1 | K20: =IF(J20 = "", 1, J20 / (1 + K19)) -> 0.9756097561 | L20: =IF(K20 = "", 1, K20 / (1 + L19)) -> 0.8869179601 | M20: 0.8869179601 | N20: 0.7039031429 | O20: 0.7039031429 | P20: 0.7039031429 | Q20: 0.5865859524 | R20: 0.5865859524 | S20: 0.5865859524
E21: Network model cumulative diversity factor | G21: % | J21: =1 / J20 - 1 -> 0 | K21: =1 / K20 - 1 -> 0.025 | L21: 0.1275 | M21: 0.1275 | N21: 0.42065 | O21: 0.42065 | P21: 0.42065 | Q21: 0.70478 | R21: 0.70478 | S21: 0.70478
E22: Adjustment for 132/HV diversity | G22: % | P22: =M21 -> 0.1275
E23: Adjusted network model cumulative diversity factor | G23: % | I23: > | J23: =IF(J22 = "", J21, J22) -> 0 | K23: 0.025 | L23: 0.1275 | M23: 0.1275 | N23: 0.42065 | O23: 0.42065 | P23: 0.1275 | Q23: 0.70478 | R23: 0.70478 | S23: 0.70478 | W23: Paragraphs 42 to 44
C25: =INDEX('Version control'!$H$29:$H$55,MATCH($A$1,'Version control'!$F$29:$F$55,0),1)&"-B: Loss adjustment factors" -> Section 505-B: Loss adjustment factors
E27: Loss adjustment factor to transmission | G27: scalar | K27: ='Inputs by network level'!K22 -> 1 | L27: ='Inputs by network level'!L22 -> 1.004 | M27: ='Inputs by network level'!M22 -> 1.012 | N27: ='Inputs by network level'!N22 -> 1.017 | O27: ='Inputs by network level'!O22 -> 1.025 | Q27: ='Inputs by network level'!Q22 -> 1.036 | R27: ='Inputs by network level'!R22 -> 1.059 | S27: ='Inputs by network level'!S22 -> 1.134
E28: Adjustment for 132/HV transformation & transmission exit | G28: scalar | J28: =K27 -> 1 | P28: =O27 -> 1.025
E29: Loss adjustment factor to transmission for each DRM network level | G29: scalar | I29: > | J29: =J27 + J28 -> 1 | K29: 1 | L29: 1.004 | M29: 1.012 | N29: 1.017 | O29: 1.025 | P29: 1.025 | Q29: 1.036 | R29: 1.059 | S29: 1.134 | W29: Paragraph 47
B31: User loss factor adjustments
C33: Calculates user loss factors and makes adjustments for share of load going through 132kV/HV
C35: =INDEX('Version control'!$H$29:$H$55,MATCH($A$1,'Version control'!$F$29:$F$55,0),1)&"-C: Proportion of relevant load going through 132kV/HV direct transformation" -> Section 505-C: Proportion of relevant load going through 132kV/HV direct transformation
E37: 132kV/HV | G37: % | H37: ='Inputs by network level'!P20 -> 0
E38: Adjustment to network use factors for 132/HV share | G38: % | M38: =1 - $H$37 -> 1 | N38: =1 - $H$37 -> 1 | O38: =1 - $H$37 -> 1 | P38: =H37 -> 0
C40: =INDEX('Version control'!$H$29:$H$55,MATCH($A$1,'Version control'!$F$29:$F$55,0),1)&"-D: Network use factors" -> Section 505-D: Network use factors
D42: Network use factors assume demand and generation use the network from the point of connection.
E44: Network use factors (assuming generation contributes at level of connection)
E45: These values are drawn from the "Fixed inputs" sheet.
F46: Domestic Aggregated or CT | G46: 1, 0 or -1 | J46: =TRANSPOSE('Fixed inputs'!J65:Y74) -> 1 | K46: 1 | L46: 1 | M46: 1 | N46: 1 | O46: 1 | P46: 1 | Q46: 1 | R46: 1 | S46: 1
F47: Domestic Aggregated (Related MPAN) | G47: 1, 0 or -1 | J47: 1 | K47: 1 | L47: 1 | M47: 1 | N47: 1 | O47: 1 | P47: 1 | Q47: 1 | R47: 1 | S47: 1
F48: Non-Domestic Aggregated or CT | G48: 1, 0 or -1 | J48: 1 | K48: 1 | L48: 1 | M48: 1 | N48: 1 | O48: 1 | P48: 1 | Q48: 1 | R48: 1 | S48: 1
F49: Non-Domestic Aggregated (Related MPAN) | G49: 1, 0 or -1 | J49: 1 | K49: 1 | L49: 1 | M49: 1 | N49: 1 | O49: 1 | P49: 1 | Q49: 1 | R49: 1 | S49: 1
F50: LV Site Specific | G50: 1, 0 or -1 | J50: 1 | K50: 1 | L50: 1 | M50: 1 | N50: 1 | O50: 1 | P50: 1 | Q50: 1 | R50: 1 | S50: 1
F51: LV Sub Site Specific | G51: 1, 0 or -1 | J51: 1 | K51: 1 | L51: 1 | M51: 1 | N51: 1 | O51: 1 | P51: 1 | Q51: 1 | R51: 1 | S51: 0
F52: HV Site Specific | G52: 1, 0 or -1 | J52: 1 | K52: 1 | L52: 1 | M52: 1 | N52: 1 | O52: 1 | P52: 1 | Q52: 1 | R52: 0 | S52: 0
F53: Unmetered Supplies | G53: 1, 0 or -1 | J53: 1 | K53: 1 | L53: 1 | M53: 1 | N53: 1 | O53: 1 | P53: 1 | Q53: 1 | R53: 1 | S53: 1
F54: LV Generation Aggregated | G54: 1, 0 or -1 | J54: -1 | K54: -1 | L54: -1 | M54: -1 | N54: -1 | O54: -1 | P54: -1 | Q54: -1 | R54: -1 | S54: -1
F55: LV Sub Generation Aggregated | G55: 1, 0 or -1 | J55: -1 | K55: -1 | L55: -1 | M55: -1 | N55: -1 | O55: -1 | P55: -1 | Q55: -1 | R55: -1 | S55: 0
F56: LV Generation Site Specific | G56: 1, 0 or -1 | J56: -1 | K56: -1 | L56: -1 | M56: -1 | N56: -1 | O56: -1 | P56: -1 | Q56: -1 | R56: -1 | S56: -1
F57: LV Generation Site Specific no RP Charge | G57: 1, 0 or -1 | J57: -1 | K57: -1 | L57: -1 | M57: -1 | N57: -1 | O57: -1 | P57: -1 | Q57: -1 | R57: -1 | S57: -1
F58: LV Sub Generation Site Specific | G58: 1, 0 or -1 | J58: -1 | K58: -1 | L58: -1 | M58: -1 | N58: -1 | O58: -1 | P58: -1 | Q58: -1 | R58: -1 | S58: 0
F59: LV Sub Generation Site Specific no RP Charge | G59: 1, 0 or -1 | J59: -1 | K59: -1 | L59: -1 | M59: -1 | N59: -1 | O59: -1 | P59: -1 | Q59: -1 | R59: -1 | S59: 0
F60: HV Generation Site Specific | G60: 1, 0 or -1 | J60: -1 | K60: -1 | L60: -1 | M60: -1 | N60: -1 | O60: -1 | P60: -1 | Q60: -1 | R60: 0 | S60: 0
F61: HV Generation Site Specific no RP Charge | G61: 1, 0 or -1 | J61: -1 | K61: -1 | L61: -1 | M61: -1 | N61: -1 | O61: -1 | P61: -1 | Q61: -1 | R61: 0 | S61: 0
E63: Network use factors (assuming generation contributes at level of connection) scaled for 132/HV
E64: These have been adjusted for the share of load going through 132/HV transformation
F65: Domestic Aggregated or CT | G65: 1, 0 or -1 | J65: =IF(J$38 = "", J46, J46 * J$38) -> 1 | K65: 1 | L65: 1 | M65: 1 | N65: 1 | O65: 1 | P65: 0 | Q65: 1 | R65: 1 | S65: 1
F66: Domestic Aggregated (Related MPAN) | G66: 1, 0 or -1 | J66: 1 | K66: 1 | L66: 1 | M66: 1 | N66: 1 | O66: 1 | P66: 0 | Q66: 1 | R66: 1 | S66: 1
F67: Non-Domestic Aggregated or CT | G67: 1, 0 or -1 | J67: 1 | K67: 1 | L67: 1 | M67: 1 | N67: 1 | O67: 1 | P67: 0 | Q67: 1 | R67: 1 | S67: 1
F68: Non-Domestic Aggregated (Related MPAN) | G68: 1, 0 or -1 | J68: 1 | K68: 1 | L68: 1 | M68: 1 | N68: 1 | O68: 1 | P68: 0 | Q68: 1 | R68: 1 | S68: 1
F69: LV Site Specific | G69: 1, 0 or -1 | J69: 1 | K69: 1 | L69: 1 | M69: 1 | N69: 1 | O69: 1 | P69: 0 | Q69: 1 | R69: 1 | S69: 1
F70: LV Sub Site Specific | G70: 1, 0 or -1 | J70: 1 | K70: 1 | L70: 1 | M70: 1 | N70: 1 | O70: 1 | P70: 0 | Q70: 1 | R70: 1 | S70: 0
F71: HV Site Specific | G71: 1, 0 or -1 | J71: 1 | K71: 1 | L71: 1 | M71: 1 | N71: 1 | O71: 1 | P71: 0 | Q71: 1 | R71: 0 | S71: 0
F72: Unmetered Supplies | G72: 1, 0 or -1 | J72: 1 | K72: 1 | L72: 1 | M72: 1 | N72: 1 | O72: 1 | P72: 0 | Q72: 1 | R72: 1 | S72: 1
F73: LV Generation Aggregated | G73: 1, 0 or -1 | J73: -1 | K73: -1 | L73: -1 | M73: -1 | N73: -1 | O73: -1 | P73: 0 | Q73: -1 | R73: -1 | S73: -1
F74: LV Sub Generation Aggregated | G74: 1, 0 or -1 | J74: -1 | K74: -1 | L74: -1 | M74: -1 | N74: -1 | O74: -1 | P74: 0 | Q74: -1 | R74: -1 | S74: 0
F75: LV Generation Site Specific | G75: 1, 0 or -1 | J75: -1 | K75: -1 | L75: -1 | M75: -1 | N75: -1 | O75: -1 | P75: 0 | Q75: -1 | R75: -1 | S75: -1
F76: LV Generation Site Specific no RP Charge | G76: 1, 0 or -1 | J76: -1 | K76: -1 | L76: -1 | M76: -1 | N76: -1 | O76: -1 | P76: 0 | Q76: -1 | R76: -1 | S76: -1
F77: LV Sub Generation Site Specific | G77: 1, 0 or -1 | J77: -1 | K77: -1 | L77: -1 | M77: -1 | N77: -1 | O77: -1 | P77: 0 | Q77: -1 | R77: -1 | S77: 0
F78: LV Sub Generation Site Specific no RP Charge | G78: 1, 0 or -1 | J78: -1 | K78: -1 | L78: -1 | M78: -1 | N78: -1 | O78: -1 | P78: 0 | Q78: -1 | R78: -1 | S78: 0
F79: HV Generation Site Specific | G79: 1, 0 or -1 | J79: -1 | K79: -1 | L79: -1 | M79: -1 | N79: -1 | O79: -1 | P79: 0 | Q79: -1 | R79: 0 | S79: 0
F80: HV Generation Site Specific no RP Charge | G80: 1, 0 or -1 | J80: -1 | K80: -1 | L80: -1 | M80: -1 | N80: -1 | O80: -1 | P80: 0 | Q80: -1 | R80: 0 | S80: 0
E82: Network use factors (assuming generation makes no contribution at level of connection) | I82: > | W82: Paragraphs 62 and 71
E83: Equal to 0 for the network level at which generation is connected, otherwise equal to network use factor
F84: Domestic Aggregated or CT | G84: 1 or 0 | J84: =TRANSPOSE('Fixed inputs'!J78:Y87) -> 1 | K84: 1 | L84: 1 | M84: 1 | N84: 1 | O84: 1 | P84: 1 | Q84: 1 | R84: 1 | S84: 1
F85: Domestic Aggregated (Related MPAN) | G85: 1 or 0 | J85: 1 | K85: 1 | L85: 1 | M85: 1 | N85: 1 | O85: 1 | P85: 1 | Q85: 1 | R85: 1 | S85: 1
F86: Non-Domestic Aggregated or CT | G86: 1 or 0 | J86: 1 | K86: 1 | L86: 1 | M86: 1 | N86: 1 | O86: 1 | P86: 1 | Q86: 1 | R86: 1 | S86: 1
F87: Non-Domestic Aggregated (Related MPAN) | G87: 1 or 0 | J87: 1 | K87: 1 | L87: 1 | M87: 1 | N87: 1 | O87: 1 | P87: 1 | Q87: 1 | R87: 1 | S87: 1
F88: LV Site Specific | G88: 1 or 0 | J88: 1 | K88: 1 | L88: 1 | M88: 1 | N88: 1 | O88: 1 | P88: 1 | Q88: 1 | R88: 1 | S88: 1
F89: LV Sub Site Specific | G89: 1 or 0 | J89: 1 | K89: 1 | L89: 1 | M89: 1 | N89: 1 | O89: 1 | P89: 1 | Q89: 1 | R89: 1 | S89: 0
F90: HV Site Specific | G90: 1 or 0 | J90: 1 | K90: 1 | L90: 1 | M90: 1 | N90: 1 | O90: 1 | P90: 1 | Q90: 1 | R90: 0 | S90: 0
F91: Unmetered Supplies | G91: 1 or 0 | J91: 1 | K91: 1 | L91: 1 | M91: 1 | N91: 1 | O91: 1 | P91: 1 | Q91: 1 | R91: 1 | S91: 1
F92: LV Generation Aggregated | G92: 1 or 0 | J92: -1 | K92: -1 | L92: -1 | M92: -1 | N92: -1 | O92: -1 | P92: -1 | Q92: -1 | R92: -1 | S92: 0
F93: LV Sub Generation Aggregated | G93: 1 or 0 | J93: -1 | K93: -1 | L93: -1 | M93: -1 | N93: -1 | O93: -1 | P93: -1 | Q93: -1 | R93: 0 | S93: 0
F94: LV Generation Site Specific | G94: 1 or 0 | J94: -1 | K94: -1 | L94: -1 | M94: -1 | N94: -1 | O94: -1 | P94: -1 | Q94: -1 | R94: -1 | S94: 0
F95: LV Generation Site Specific no RP Charge | G95: 1 or 0 | J95: -1 | K95: -1 | L95: -1 | M95: -1 | N95: -1 | O95: -1 | P95: -1 | Q95: -1 | R95: -1 | S95: 0
F96: LV Sub Generation Site Specific | G96: 1 or 0 | J96: -1 | K96: -1 | L96: -1 | M96: -1 | N96: -1 | O96: -1 | P96: -1 | Q96: -1 | R96: 0 | S96: 0
F97: LV Sub Generation Site Specific no RP Charge | G97: 1 or 0 | J97: -1 | K97: -1 | L97: -1 | M97: -1 | N97: -1 | O97: -1 | P97: -1 | Q97: -1 | R97: 0 | S97: 0
F98: HV Generation Site Specific | G98: 1 or 0 | J98: -1 | K98: -1 | L98: -1 | M98: -1 | N98: -1 | O98: -1 | P98: -1 | Q98: 0 | R98: 0 | S98: 0
F99: HV Generation Site Specific no RP Charge | G99: 1 or 0 | J99: -1 | K99: -1 | L99: -1 | M99: -1 | N99: -1 | O99: -1 | P99: -1 | Q99: 0 | R99: 0 | S99: 0
E101: Network use factors (assuming generation makes no contribution at level of connection), scaled for 132/HV | I101: > | W101: Paragraphs 62 and 71
E102: Equal to 0 for the network level at which generation is connected, otherwise equal to network use factor
E103: These have been adjusted for the share of load going through 132/HV transformation
F104: Domestic Aggregated or CT | G104: 1 or 0 | J104: =IF(J$38 = "", J84, J84 * J$38) -> 1 | K104: 1 | L104: 1 | M104: 1 | N104: 1 | O104: 1 | P104: 0 | Q104: 1 | R104: 1 | S104: 1
F105: Domestic Aggregated (Related MPAN) | G105: 1 or 0 | J105: 1 | K105: 1 | L105: 1 | M105: 1 | N105: 1 | O105: 1 | P105: 0 | Q105: 1 | R105: 1 | S105: 1
F106: Non-Domestic Aggregated or CT | G106: 1 or 0 | J106: 1 | K106: 1 | L106: 1 | M106: 1 | N106: 1 | O106: 1 | P106: 0 | Q106: 1 | R106: 1 | S106: 1
F107: Non-Domestic Aggregated (Related MPAN) | G107: 1 or 0 | J107: 1 | K107: 1 | L107: 1 | M107: 1 | N107: 1 | O107: 1 | P107: 0 | Q107: 1 | R107: 1 | S107: 1
F108: LV Site Specific | G108: 1 or 0 | J108: 1 | K108: 1 | L108: 1 | M108: 1 | N108: 1 | O108: 1 | P108: 0 | Q108: 1 | R108: 1 | S108: 1
F109: LV Sub Site Specific | G109: 1 or 0 | J109: 1 | K109: 1 | L109: 1 | M109: 1 | N109: 1 | O109: 1 | P109: 0 | Q109: 1 | R109: 1 | S109: 0
F110: HV Site Specific | G110: 1 or 0 | J110: 1 | K110: 1 | L110: 1 | M110: 1 | N110: 1 | O110: 1 | P110: 0 | Q110: 1 | R110: 0 | S110: 0
F111: Unmetered Supplies | G111: 1 or 0 | J111: 1 | K111: 1 | L111: 1 | M111: 1 | N111: 1 | O111: 1 | P111: 0 | Q111: 1 | R111: 1 | S111: 1
F112: LV Generation Aggregated | G112: 1 or 0 | J112: -1 | K112: -1 | L112: -1 | M112: -1 | N112: -1 | O112: -1 | P112: 0 | Q112: -1 | R112: -1 | S112: 0
F113: LV Sub Generation Aggregated | G113: 1 or 0 | J113: -1 | K113: -1 | L113: -1 | M113: -1 | N113: -1 | O113: -1 | P113: 0 | Q113: -1 | R113: 0 | S113: 0
F114: LV Generation Site Specific | G114: 1 or 0 | J114: -1 | K114: -1 | L114: -1 | M114: -1 | N114: -1 | O114: -1 | P114: 0 | Q114: -1 | R114: -1 | S114: 0
F115: LV Generation Site Specific no RP Charge | G115: 1 or 0 | J115: -1 | K115: -1 | L115: -1 | M115: -1 | N115: -1 | O115: -1 | P115: 0 | Q115: -1 | R115: -1 | S115: 0
F116: LV Sub Generation Site Specific | G116: 1 or 0 | J116: -1 | K116: -1 | L116: -1 | M116: -1 | N116: -1 | O116: -1 | P116: 0 | Q116: -1 | R116: 0 | S116: 0
F117: LV Sub Generation Site Specific no RP Charge | G117: 1 or 0 | J117: -1 | K117: -1 | L117: -1 | M117: -1 | N117: -1 | O117: -1 | P117: 0 | Q117: -1 | R117: 0 | S117: 0
F118: HV Generation Site Specific | G118: 1 or 0 | J118: -1 | K118: -1 | L118: -1 | M118: -1 | N118: -1 | O118: -1 | P118: 0 | Q118: 0 | R118: 0 | S118: 0
F119: HV Generation Site Specific no RP Charge | G119: 1 or 0 | J119: -1 | K119: -1 | L119: -1 | M119: -1 | N119: -1 | O119: -1 | P119: 0 | Q119: 0 | R119: 0 | S119: 0
C121: =INDEX('Version control'!$H$29:$H$55,MATCH($A$1,'Version control'!$F$29:$F$55,0),1)&"-E: User loss factors" -> Section 505-E: User loss factors
E123: User loss factor (assuming generation contributes at level of connection)
E124: For demand, it is the loss factor at network level which user is supplied.
E125: For generation, it is the loss factor at network level which user is supplied. | H125: Maximum
F126: Domestic Aggregated or CT | G126: scalar | H126: =MAX(J126:S126) -> 1.134 | J126: =OR(SUM(J65:$S65) = 1, SUM(J65:$S65) = -1) * J$29 -> 0 | K126: =OR(SUM(K65:$S65) = 1, SUM(K65:$S65) = -1) * K$29 -> 0 | L126: =OR(SUM(L65:$S65) = 1, SUM(L65:$S65) = -1) * L$29 -> 0 | M126: =OR(SUM(M65:$S65) = 1, SUM(M65:$S65) = -1) * M$29 -> 0 | N126: =OR(SUM(N65:$S65) = 1, SUM(N65:$S65) = -1) * N$29 -> 0 | O126: =OR(SUM(O65:$S65) = 1, SUM(O65:$S65) = -1) * O$29 -> 0 | P126: =OR(SUM(P65:$S65) = 1, SUM(P65:$S65) = -1) * P$29 -> 0 | Q126: =OR(SUM(Q65:$S65) = 1, SUM(Q65:$S65) = -1) * Q$29 -> 0 | R126: =OR(SUM(R65:$S65) = 1, SUM(R65:$S65) = -1) * R$29 -> 0 | S126: =OR(SUM(S65:$S65) = 1, SUM(S65:$S65) = -1) * S$29 -> 1.134
F127: Domestic Aggregated (Related MPAN) | G127: scalar | H127: 1.134 | J127: =OR(SUM(J66:$S66) = 1, SUM(J66:$S66) = -1) * J$29 -> 0 | K127: =OR(SUM(K66:$S66) = 1, SUM(K66:$S66) = -1) * K$29 -> 0 | L127: =OR(SUM(L66:$S66) = 1, SUM(L66:$S66) = -1) * L$29 -> 0 | M127: =OR(SUM(M66:$S66) = 1, SUM(M66:$S66) = -1) * M$29 -> 0 | N127: =OR(SUM(N66:$S66) = 1, SUM(N66:$S66) = -1) * N$29 -> 0 | O127: =OR(SUM(O66:$S66) = 1, SUM(O66:$S66) = -1) * O$29 -> 0 | P127: =OR(SUM(P66:$S66) = 1, SUM(P66:$S66) = -1) * P$29 -> 0 | Q127: =OR(SUM(Q66:$S66) = 1, SUM(Q66:$S66) = -1) * Q$29 -> 0 | R127: =OR(SUM(R66:$S66) = 1, SUM(R66:$S66) = -1) * R$29 -> 0 | S127: =OR(SUM(S66:$S66) = 1, SUM(S66:$S66) = -1) * S$29 -> 1.134
F128: Non-Domestic Aggregated or CT | G128: scalar | H128: 1.134 | J128: =OR(SUM(J67:$S67) = 1, SUM(J67:$S67) = -1) * J$29 -> 0 | K128: =OR(SUM(K67:$S67) = 1, SUM(K67:$S67) = -1) * K$29 -> 0 | L128: =OR(SUM(L67:$S67) = 1, SUM(L67:$S67) = -1) * L$29 -> 0 | M128: =OR(SUM(M67:$S67) = 1, SUM(M67:$S67) = -1) * M$29 -> 0 | N128: =OR(SUM(N67:$S67) = 1, SUM(N67:$S67) = -1) * N$29 -> 0 | O128: =OR(SUM(O67:$S67) = 1, SUM(O67:$S67) = -1) * O$29 -> 0 | P128: =OR(SUM(P67:$S67) = 1, SUM(P67:$S67) = -1) * P$29 -> 0 | Q128: =OR(SUM(Q67:$S67) = 1, SUM(Q67:$S67) = -1) * Q$29 -> 0 | R128: =OR(SUM(R67:$S67) = 1, SUM(R67:$S67) = -1) * R$29 -> 0 | S128: =OR(SUM(S67:$S67) = 1, SUM(S67:$S67) = -1) * S$29 -> 1.134
F129: Non-Domestic Aggregated (Related MPAN) | G129: scalar | H129: 1.134 | J129: =OR(SUM(J68:$S68) = 1, SUM(J68:$S68) = -1) * J$29 -> 0 | K129: =OR(SUM(K68:$S68) = 1, SUM(K68:$S68) = -1) * K$29 -> 0 | L129: =OR(SUM(L68:$S68) = 1, SUM(L68:$S68) = -1) * L$29 -> 0 | M129: =OR(SUM(M68:$S68) = 1, SUM(M68:$S68) = -1) * M$29 -> 0 | N129: =OR(SUM(N68:$S68) = 1, SUM(N68:$S68) = -1) * N$29 -> 0 | O129: =OR(SUM(O68:$S68) = 1, SUM(O68:$S68) = -1) * O$29 -> 0 | P129: =OR(SUM(P68:$S68) = 1, SUM(P68:$S68) = -1) * P$29 -> 0 | Q129: =OR(SUM(Q68:$S68) = 1, SUM(Q68:$S68) = -1) * Q$29 -> 0 | R129: =OR(SUM(R68:$S68) = 1, SUM(R68:$S68) = -1) * R$29 -> 0 | S129: =OR(SUM(S68:$S68) = 1, SUM(S68:$S68) = -1) * S$29 -> 1.134
F130: LV Site Specific | G130: scalar | H130: 1.134 | J130: =OR(SUM(J69:$S69) = 1, SUM(J69:$S69) = -1) * J$29 -> 0 | K130: =OR(SUM(K69:$S69) = 1, SUM(K69:$S69) = -1) * K$29 -> 0 | L130: =OR(SUM(L69:$S69) = 1, SUM(L69:$S69) = -1) * L$29 -> 0 | M130: =OR(SUM(M69:$S69) = 1, SUM(M69:$S69) = -1) * M$29 -> 0 | N130: =OR(SUM(N69:$S69) = 1, SUM(N69:$S69) = -1) * N$29 -> 0 | O130: =OR(SUM(O69:$S69) = 1, SUM(O69:$S69) = -1) * O$29 -> 0 | P130: =OR(SUM(P69:$S69) = 1, SUM(P69:$S69) = -1) * P$29 -> 0 | Q130: =OR(SUM(Q69:$S69) = 1, SUM(Q69:$S69) = -1) * Q$29 -> 0 | R130: =OR(SUM(R69:$S69) = 1, SUM(R69:$S69) = -1) * R$29 -> 0 | S130: =OR(SUM(S69:$S69) = 1, SUM(S69:$S69) = -1) * S$29 -> 1.134
